Workbook

Sheet Things to Check
B3: Generic Macros
B4: EIS
B5: Date Formatting | E5: Shift CNTL B
B8: Other
B9: Find UDF
B11: Check ALT = | E11: 100
E12: 200
B14: LOOKUP | D14: RECHERCHER
B15: INDEX | D15: INDICE
B16: SUMPRODUCT
B18: F2 Key works

Sheet Summary
C1: Key Ratios
C2: Pre-tax Project IRR | F2: ='Operating Model'!G146 -> 0
C3: After-tax Project IRR | F3: ='Operating Model'!G166 -> 
C4: Debt IRR | F4: ='Financing Model'!G202 -> 
C5: Equity IRR | F5: ='Financing Model'!G181 -> 0
C7: Debt/Capital | F7: =F30/F32 -> 0
C8: DSCR | F8: ='Financing Model'!G185 -> 0
C9: PLCR | F9: ='Financing Model'!G193 -> 
C11: Target DSCR | F11: =Assumptions!F129 -> 0
C12: Tenure | F12: =Assumptions!F137 -> 20
C13: Cash Sweep | F13: =Assumptions!$F$154 -> 0
C14: Construction Period | F14: =Assumptions!$F$10 -> 5
C15: Merchant Case | F15: =Scenario!F20 -> 2
C16: Merchant Percent | F16: =Assumptions!$F$94 -> 1.35
C18: Value Drivers | T18: Controls
C19: EPC and Dev Cost/kWp (Euro/kW) | F19: =Assumptions!F61+Assumptions!F68 -> 577
C20: Levelised O&M per kWp (Real) | F20: =Assumptions!F72 -> 5 | R20: Scenario Case
C21: Annual Capacity Factor | F21: =Assumptions!J48 -> 0
C22: Real LCOE (Euro/MWH) | F22: ='Operating Model'!G178 -> 
C24: Uses and Sources | F24: Cost | G24: Cost/kW
C25: Development Cost | F25: =Assumptions!H68 -> 162000 | G25: =F25/Assumptions!F$20 -> 27
C26: EPC Cost | F26: =Assumptions!H61 -> 3300000 | G26: =F26/Assumptions!F$20 -> 550 | R26: Crisis Case
C27: Financing Cost | F27: ='Financing Model'!G55+'Financing Model'!G56+'Financing Model'!G57 -> 95204.98012 | G27: =F27/Assumptions!F$20 -> 15.86749669
C28: Total Cost | F28: =SUM(F25:F27) -> 3557204.98 | G28: =F28/Assumptions!F$20 -> 592.8674967 | R28: Probability Case
C30: Debt | F30: ='Financing Model'!G61 -> 0 | R30: Start Date
C31: Equity | F31: ='Financing Model'!G62 -> 6319747.353
C32: Total Sources | F32: =SUM(F30:F31) -> 6319747.353

Sheet Assumptions
B2: Time Assumptions | L2: Equity IRR | M2: =Summary!$F$5 -> 0 | O2: DSCR | P2: PLCR | Q2: =Summary!$F$9 -> 
C3: Periods per Year in Model Pre-COD | E3: Months | F3: 1
C4: Periods per Year in Model Post-COD | E4: Months | F4: 6
C6: Start of Develompent | E6: Date | F6: =Scenario!H99 -> 2015-06-01
C7: Development Periods | E7: Periods | F7: 4
C8: Months | E8: Months
C9: Financial Close | E9: Date
C10: Construction | E10: Periods | F10: =Scenario!I16 -> 5
C11: Months | E11: Months | F11: =F10*F3 -> 5
C12: Total Pre-COD Periods | E12: Periods | F12: =F10+F7 -> 9
C14: Commercial Operation | E14: Date | F14: =EDATE(F9,F10) -> 1900-05-31
C15: Operation Period | E15: Years | F15: =Scenario!J16 -> 25
C16: Operation Period | E16: Periods | F16: =F15*12 -> 300
C17: Decommissioning | E17: Date
B19: Operating Assumptions
C20: Capacity | E20: kW | F20: 6000
C21: Degradation | E21: % p.a. | F21: 0.005
C22: Gross kWh/kW | E22: Hrs | H22: From Scenario
C23: Performance Ratio | E23: % | F23: =Scenario!H16/100 -> 0.85 | H23: From Scenario
C24: Net kWh/kW | E24: Hrs | F24: =F22*F23 -> 0
C26: Standard Deviation/Average | E26: % | F26: 0.08
C27: Standard Deviation Amount | E27: Hrs | F27: =F24*F26 -> 0
C28: P50 | E28: 0.5 | F28: =NORMINV(E28,F24,F27) -> 
C29: P90 | E29: 0.1 | F29: =_xlfn.NORM.INV(E29,F24,F27) -> 
C30: P99 | E30: 0.01 | F30: =_xlfn.NORM.INV(E30,F24,F27) -> 
C32: Applied | E32: 1
C33: Net Capacity Factor | E33: % | F33: =F32/8760 -> 0
C35: Gross Production (P50) | E35: Month # | F35: Percent | G35: kWh/m2 | H35: Days | I35: Hours | J35: % CF
D36: January | E36: 1 | F36: 0.054 | G36: =$F$32*F36 -> 0 | H36: 31 | I36: =H36*24 -> 744 | J36: =G36/I36 -> 0
D37: February | E37: 2 | F37: 0.063 | G37: 0 | H37: 28 | I37: 672 | J37: 0
D38: March | E38: 3 | F38: 0.089 | G38: 0 | H38: 31 | I38: 744 | J38: 0
D39: April | E39: 4 | F39: 0.094 | G39: 0 | H39: 30 | I39: 720 | J39: 0
D40: May | E40: 5 | F40: 0.106 | G40: 0 | H40: 31 | I40: 744 | J40: 0
D41: June | E41: 6 | F41: 0.109 | G41: 0 | H41: 30 | I41: 720 | J41: 0
D42: July | E42: 7 | F42: 0.12 | G42: 0 | H42: 31 | I42: 744 | J42: 0
D43: August | E43: 8 | F43: 0.107 | G43: 0 | H43: 31 | I43: 744 | J43: 0
D44: September | E44: 9 | F44: 0.0945 | G44: 0 | H44: 30 | I44: 720 | J44: 0
D45: October | E45: 10 | F45: 0.0715 | G45: 0 | H45: 31 | I45: 744 | J45: 0
D46: November | E46: 11 | F46: 0.049 | G46: 0 | H46: 30 | I46: 720 | J46: 0
D47: December | E47: 12 | F47: 0.043 | G47: 0 | H47: 31 | I47: 744 | J47: 0
D48: Total | F48: 1 | G48: =SUM(G36:G47) -> 0 | H48: =SUM(H36:H47) -> 365 | I48: =SUM(I36:I47) -> 8760 | J48: 0
B51: Capital Expenditure Assumptions
F52: Euro/kW | G52: kWp | H52: Euro
C53: Engineering, Procurement and Construction
D54: Panel Cost | G54: =$F$20 -> 6000 | H54: =F54*G54 -> 0
D55: Racking and Tracking | F55: 340 | G55: 6000 | H55: 2040000
D56: Balance of System and Inverter | F56: =Scenario!F16 -> 100 | G56: 6000 | H56: 600000
D57: Site Work (assume ineligible) | F57: 30 | G57: 6000 | H57: 180000
D58: Special Ineligible | F58: 0 | G58: 6000 | H58: 0
D59: Battery | F59: 0 | G59: 6000 | H59: 0
D60: Misc. (Tax, Margin, Other) | F60: 80 | G60: 6000 | H60: 480000
D61: Total EPC | F61: =SUM(F54:F60) -> 550 | G61: 6000 | H61: 3300000
C63: Development Costs
D64: Legal | F64: 15 | G64: =$F$20 -> 6000 | H64: =F64*G64 -> 90000
D65: Accounting/Model/Appr | F65: 5 | G65: =$F$20 -> 6000 | H65: =F65*G65 -> 30000
D66: Independent Eng | F66: 3 | G66: =$F$20 -> 6000 | H66: =F66*G66 -> 18000
D67: Misc. | F67: 4 | G67: =$F$20 -> 6000 | H67: =F67*G67 -> 24000
D68: Total Transaction Costs | F68: =SUM(F64:F67) -> 27 | G68: =$F$20 -> 6000 | H68: =SUM(H64:H67) -> 162000
B71: Operating Expense Assumptions | F71: Amount | G71: Inflation | H71: Inflation Start
C72: O&M Fee | E72: Euro/kW-yr | F72: =Scenario!M16/10 -> 5 | G72: 0.015 | H72: =F14 -> 1900-05-31
C73: Battery O&M | E73: Euro/kW-yr | F73: 0 | G73: 0.015 | H73: =$H$72 -> 1900-05-31
C74: Administration Accounting Etc | E74: Euro/kW-yr | F74: 4.5 | G74: 0.005 | H74: 1900-05-31
C75: Insurance Cost | E75: Euro/kW-yr | F75: 2.8 | G75: 0 | H75: 1900-05-31
C76: Rent/Lease Expense | E76: Euro/Yr | F76: 30000 | G76: 0 | H76: 1900-05-31
C77: Property Taxes | E77: Euro/Yr | F77: 0 | G77: 0 | H77: 1900-05-31
C78: Utility Connection Cost | E78: Euro/Yr | F78: 0 | G78: 0 | H78: 1900-05-31
C79: Consumpation of Project | E79: % | F79: 0 | G79: 0 | H79: 1900-05-31
C81: Inverter Replacement
D82: First Inverter Replacement | E82: Years | F82: 80 | G82: 15
D83: Second Inverter Replacement | E83: Years | F83: 80 | G83: 30
D85: First Inverter Replacement Date | E85: Date | F85: =EDATE(F14,F82*12) -> 1980-05-31
D86: Second Inverter Replacement Date | E86: Date | F86: =EDATE(F14,F83*12) -> 1980-05-31
D88: First Inverter Replacement | E88: Euro/kW | F88: 34 | G88: 0 | H88: =$H$72 -> 1900-05-31
D89: Second Inverter Replacement | E89: Euro/kW | F89: 25 | G89: 0 | H89: =$H$72 -> 1900-05-31
B91: Revenues
D92: Fixed Revenue per MWH | E92: Euro/MWH | F92: 45
D94: Merchant Sensitivity | F94: =Scenario!$K$16/100 -> 1.35
F96: =Scenario!F23 -> 2015 | G96: =Scenario!G23 -> 2019 | H96: =Scenario!H23 -> 2020 | I96: =Scenario!I23 -> 2021 | J96: =Scenario!J23 -> 2022 | K96: =Scenario!K23 -> 2023 | L96: =Scenario!L23 -> 2024 | M96: =Scenario!M23 -> 2025 | N96: =Scenario!N23 -> 2026 | O96: =Scenario!O23 -> 2027 | P96: =Scenario!P23 -> 2028 | Q96: =Scenario!Q23 -> 2029 | R96: =Scenario!R23 -> 2030 | S96: =Scenario!S23 -> 2031 | T96: =Scenario!T23 -> 2032 | U96: =Scenario!U23 -> 2033 | V96: =Scenario!V23 -> 2034 | W96: =Scenario!W23 -> 2035 | X96: =Scenario!X23 -> 2036 | Y96: =Scenario!Y23 -> 2037 | Z96: =Scenario!Z23 -> 2038 | AA96: =Scenario!AA23 -> 2039 | AB96: =Scenario!AB23 -> 2040 | AC96: =Scenario!AC23 -> 2041 | AD96: =Scenario!AD23 -> 2042 | AE96: =Scenario!AE23 -> 2043 | AF96: =Scenario!AF23 -> 2044 | AG96: =Scenario!AG23 -> 2045 | AH96: =Scenario!AH23 -> 2046 | AI96: =Scenario!AI23 -> 2047 | AJ96: =Scenario!AJ23 -> 2048 | AK96: =Scenario!AK23 -> 2049 | AL96: =Scenario!AL23 -> 2050 | AM96: =Scenario!AM23 -> 2051 | AN96: =Scenario!AN23 -> 2052 | AO96: =Scenario!AO23 -> 2053 | AP96: =Scenario!AP23 -> 2054 | AQ96: =Scenario!AQ23 -> 2055 | AR96: =Scenario!AR23 -> 2056 | AS96: =Scenario!AS23 -> 2057 | AT96: =Scenario!AT23 -> 2058
D97: =Scenario!$D$31 -> Flat Case | E97: Euro/MWH | F97: =Scenario!F31 -> 0 | G97: =Scenario!G31 -> 0 | H97: =Scenario!H31 -> 0 | I97: =Scenario!I31 -> 0 | J97: =Scenario!J31 -> 0 | K97: =Scenario!K31 -> 0 | L97: =Scenario!L31 -> 0 | M97: =Scenario!M31 -> 0 | N97: =Scenario!N31 -> 0 | O97: =Scenario!O31 -> 0 | P97: =Scenario!P31 -> 0 | Q97: =Scenario!Q31 -> 0 | R97: =Scenario!R31 -> 0 | S97: =Scenario!S31 -> 0 | T97: =Scenario!T31 -> 0 | U97: =Scenario!U31 -> 0 | V97: =Scenario!V31 -> 0 | W97: =Scenario!W31 -> 0 | X97: =Scenario!X31 -> 0 | Y97: =Scenario!Y31 -> 0 | Z97: =Scenario!Z31 -> 0 | AA97: =Scenario!AA31 -> 0 | AB97: =Scenario!AB31 -> 0 | AC97: =Scenario!AC31 -> 0 | AD97: =Scenario!AD31 -> 0 | AE97: =Scenario!AE31 -> 0 | AF97: =Scenario!AF31 -> 0 | AG97: =Scenario!AG31 -> 0 | AH97: =Scenario!AH31 -> 0 | AI97: =Scenario!AI31 -> 0 | AJ97: =Scenario!AJ31 -> 0 | AK97: =Scenario!AK31 -> 0 | AL97: =Scenario!AL31 -> 0 | AM97: =Scenario!AM31 -> 0 | AN97: =Scenario!AN31 -> 0 | AO97: =Scenario!AO31 -> 0 | AP97: =Scenario!AP31 -> 0 | AQ97: =Scenario!AQ31 -> 0 | AR97: =Scenario!AR31 -> 0 | AS97: =Scenario!AS31 -> 0 | AT97: =Scenario!AT31 -> 0
D98: =Scenario!$D$31 -> Flat Case | E98: Euro/MWH | F98: =$F$94*F97 -> 0 | G98: =$F$94*G97 -> 0 | H98: 0 | I98: 0 | J98: 0 | K98: 0 | L98: 0 | M98: 0 | N98: 0 | O98: 0 | P98: 0 | Q98: 0 | R98: 0 | S98: 0 | T98: 0 | U98: 0 | V98: 0 | W98: 0 | X98: 0 | Y98: 0 | Z98: 0 | AA98: 0 | AB98: 0 | AC98: 0 | AD98: 0 | AE98: 0 | AF98: 0 | AG98: 0 | AH98: 0 | AI98: 0 | AJ98: 0 | AK98: 0 | AL98: 0 | AM98: 0 | AN98: 0 | AO98: 0 | AP98: 0 | AQ98: 0 | AR98: 0 | AS98: 0 | AT98: 0
D100: LCOE Nominal Discout Rate | E100: % | F100: 0.07
D101: Inflation for LOCE | E101: % | F101: 0.02
C103: Crisis Over-ride
D104: Apply Crisis Assumptions | E104: Flag | F104: FALSE
D105: Crisis Start | E105: Date | F105: 2020-03-01
D106: Crisis End | E106: Date | F106: 2022-03-01
E108: =Scenario!E34 -> 1
E109: =YEAR(Assumptions!F6) -> 2015 | F109: 2020 | G109: =F109+1 -> 2021 | H109: =G109+1 -> 2022 | I109: 2023 | J109: 2024
D110: January | F110: =CHOOSE($E$108,Scenario!F38,Scenario!F54,Scenario!F70) -> 1 | G110: =CHOOSE($E$108,Scenario!G38,Scenario!G54,Scenario!G70) -> 0.15 | H110: =CHOOSE($E$108,Scenario!H38,Scenario!H54,Scenario!H70) -> 0.5 | I110: =CHOOSE($E$108,Scenario!I38,Scenario!I54,Scenario!I70) -> 0.9 | J110: =CHOOSE($E$108,Scenario!J38,Scenario!J54,Scenario!J70) -> 1
D111: February | E111: =CHOOSE($E$108,Scenario!E39,Scenario!E55,Scenario!E71) -> 1 | F111: =CHOOSE($E$108,Scenario!F39,Scenario!F55,Scenario!F71) -> 1 | G111: =CHOOSE($E$108,Scenario!G39,Scenario!G55,Scenario!G71) -> 0.15 | H111: =CHOOSE($E$108,Scenario!H39,Scenario!H55,Scenario!H71) -> 0.5 | I111: =CHOOSE($E$108,Scenario!I39,Scenario!I55,Scenario!I71) -> 0.9 | J111: =CHOOSE($E$108,Scenario!J39,Scenario!J55,Scenario!J71) -> 1
D112: March | E112: =CHOOSE($E$108,Scenario!E40,Scenario!E56,Scenario!E72) -> 1 | F112: =CHOOSE($E$108,Scenario!F40,Scenario!F56,Scenario!F72) -> 0.5 | G112: =CHOOSE($E$108,Scenario!G40,Scenario!G56,Scenario!G72) -> 0.15 | H112: =CHOOSE($E$108,Scenario!H40,Scenario!H56,Scenario!H72) -> 0.5 | I112: =CHOOSE($E$108,Scenario!I40,Scenario!I56,Scenario!I72) -> 0.9 | J112: =CHOOSE($E$108,Scenario!J40,Scenario!J56,Scenario!J72) -> 1
D113: April | E113: =CHOOSE($E$108,Scenario!E41,Scenario!E57,Scenario!E73) -> 1 | F113: =CHOOSE($E$108,Scenario!F41,Scenario!F57,Scenario!F73) -> 0.1 | G113: =CHOOSE($E$108,Scenario!G41,Scenario!G57,Scenario!G73) -> 0.15 | H113: =CHOOSE($E$108,Scenario!H41,Scenario!H57,Scenario!H73) -> 0.5 | I113: =CHOOSE($E$108,Scenario!I41,Scenario!I57,Scenario!I73) -> 0.9 | J113: =CHOOSE($E$108,Scenario!J41,Scenario!J57,Scenario!J73) -> 1
D114: May | E114: =CHOOSE($E$108,Scenario!E42,Scenario!E58,Scenario!E74) -> 1 | F114: =CHOOSE($E$108,Scenario!F42,Scenario!F58,Scenario!F74) -> 0.1 | G114: =CHOOSE($E$108,Scenario!G42,Scenario!G58,Scenario!G74) -> 0.25 | H114: =CHOOSE($E$108,Scenario!H42,Scenario!H58,Scenario!H74) -> 0.8 | I114: =CHOOSE($E$108,Scenario!I42,Scenario!I58,Scenario!I74) -> 1 | J114: =CHOOSE($E$108,Scenario!J42,Scenario!J58,Scenario!J74) -> 1
D115: June | E115: =CHOOSE($E$108,Scenario!E43,Scenario!E59,Scenario!E75) -> 1 | F115: =CHOOSE($E$108,Scenario!F43,Scenario!F59,Scenario!F75) -> 0.1 | G115: =CHOOSE($E$108,Scenario!G43,Scenario!G59,Scenario!G75) -> 0.25 | H115: =CHOOSE($E$108,Scenario!H43,Scenario!H59,Scenario!H75) -> 0.8 | I115: =CHOOSE($E$108,Scenario!I43,Scenario!I59,Scenario!I75) -> 1 | J115: =CHOOSE($E$108,Scenario!J43,Scenario!J59,Scenario!J75) -> 1
D116: July | E116: =CHOOSE($E$108,Scenario!E44,Scenario!E60,Scenario!E76) -> 1 | F116: =CHOOSE($E$108,Scenario!F44,Scenario!F60,Scenario!F76) -> 0.1 | G116: =CHOOSE($E$108,Scenario!G44,Scenario!G60,Scenario!G76) -> 0.25 | H116: =CHOOSE($E$108,Scenario!H44,Scenario!H60,Scenario!H76) -> 0.8 | I116: =CHOOSE($E$108,Scenario!I44,Scenario!I60,Scenario!I76) -> 1 | J116: =CHOOSE($E$108,Scenario!J44,Scenario!J60,Scenario!J76) -> 1
D117: August | E117: =CHOOSE($E$108,Scenario!E45,Scenario!E61,Scenario!E77) -> 1 | F117: =CHOOSE($E$108,Scenario!F45,Scenario!F61,Scenario!F77) -> 0.15 | G117: =CHOOSE($E$108,Scenario!G45,Scenario!G61,Scenario!G77) -> 0.25 | H117: =CHOOSE($E$108,Scenario!H45,Scenario!H61,Scenario!H77) -> 0.8 | I117: =CHOOSE($E$108,Scenario!I45,Scenario!I61,Scenario!I77) -> 1 | J117: =CHOOSE($E$108,Scenario!J45,Scenario!J61,Scenario!J77) -> 1
D118: September | E118: =CHOOSE($E$108,Scenario!E46,Scenario!E62,Scenario!E78) -> 1 | F118: =CHOOSE($E$108,Scenario!F46,Scenario!F62,Scenario!F78) -> 0.15 | G118: =CHOOSE($E$108,Scenario!G46,Scenario!G62,Scenario!G78) -> 0.25 | H118: =CHOOSE($E$108,Scenario!H46,Scenario!H62,Scenario!H78) -> 0.8 | I118: =CHOOSE($E$108,Scenario!I46,Scenario!I62,Scenario!I78) -> 1 | J118: =CHOOSE($E$108,Scenario!J46,Scenario!J62,Scenario!J78) -> 1
D119: October | E119: =CHOOSE($E$108,Scenario!E47,Scenario!E63,Scenario!E79) -> 1 | F119: =CHOOSE($E$108,Scenario!F47,Scenario!F63,Scenario!F79) -> 0.15 | G119: =CHOOSE($E$108,Scenario!G47,Scenario!G63,Scenario!G79) -> 0.45 | H119: =CHOOSE($E$108,Scenario!H47,Scenario!H63,Scenario!H79) -> 0.9 | I119: =CHOOSE($E$108,Scenario!I47,Scenario!I63,Scenario!I79) -> 1 | J119: =CHOOSE($E$108,Scenario!J47,Scenario!J63,Scenario!J79) -> 1
D120: November | E120: =CHOOSE($E$108,Scenario!E48,Scenario!E64,Scenario!E80) -> 1 | F120: =CHOOSE($E$108,Scenario!F48,Scenario!F64,Scenario!F80) -> 0.15 | G120: =CHOOSE($E$108,Scenario!G48,Scenario!G64,Scenario!G80) -> 0.45 | H120: =CHOOSE($E$108,Scenario!H48,Scenario!H64,Scenario!H80) -> 0.9 | I120: =CHOOSE($E$108,Scenario!I48,Scenario!I64,Scenario!I80) -> 1 | J120: =CHOOSE($E$108,Scenario!J48,Scenario!J64,Scenario!J80) -> 1
D121: December | E121: =CHOOSE($E$108,Scenario!E49,Scenario!E65,Scenario!E81) -> 1 | F121: =CHOOSE($E$108,Scenario!F49,Scenario!F65,Scenario!F81) -> 0.15 | G121: =CHOOSE($E$108,Scenario!G49,Scenario!G65,Scenario!G81) -> 0.45 | H121: =CHOOSE($E$108,Scenario!H49,Scenario!H65,Scenario!H81) -> 0.9 | I121: =CHOOSE($E$108,Scenario!I49,Scenario!I65,Scenario!I81) -> 1 | J121: =CHOOSE($E$108,Scenario!J49,Scenario!J65,Scenario!J81) -> 1
B123: Tax and Depreciation
C124: Depreciation Life | E124: Years | F124: 10
C125: Tax Rate | E125: % | F125: 0.3
B127: Financing
C128: Debt Size
D129: Minimum DSCR | E129: x | G129: 141
D130: Maximum Debt to Capital | E130: % | F130: 0.8
C132: Funding
D133: Equity Up-Front Funding | E133: % | F133: 1
D134: Equity Pro-Rata | E134: % | F134: =1-F133 -> 0
C136: Repayment
D137: Tenor | E137: Years | F137: =G137 -> 20 | G137: 20
D138: Start of Repayment | E138: Date | F138: =F14 -> 1900-05-31
D139: Maturity Date | E139: Date | F139: =EDATE(F14,F137*12) -> 1920-05-31
D140: Fixed Repayments | E140: Flag | F140: TRUE
C142: Interest and Fees
D143: Base Rate | E143: % p.a | F143: 0.018 | G143: 0.022
F144: =F6 -> 2015-06-01 | G144: =F14 -> 1900-05-31 | H144: =EDATE(G144,60) -> 1905-05-31 | I144: =EDATE(H144,60) -> 1910-05-31 | J144: 1915-05-31
D145: Credit Spread | E145: % p.a | F145: 0.015 | G145: 0.016 | H145: 0.0165 | I145: 0.0167 | J145: 0.017
D146: Credit Spread | E146: % p.a | F146: 0.015 | G146: 0.016 | H146: 0.017 | I146: 0.018 | J146: 0.019
D148: Up-Front Fee | E148: % | F148: 0.015
D149: Commitment Fee | E149: % | F149: 0.007
C151: DSRA Months | E151: Months | F151: 6
C153: Cash Sweep Start Date | E153: Date | F153: =F14 -> 1900-05-31
C154: Cash Sweep | E154: % | F154: =G154/100 -> 0 | G154: 0
F172: =D36 -> January | G172: =J36 -> 0
F173: February | G173: 0
F174: March | G174: 0
F175: April | G175: 0
F176: May | G176: 0
F177: June | G177: 0
F178: July | G178: 0
F179: August | G179: 0
F180: September | G180: 0
F181: October | G181: 0
F182: November | G182: 0
F183: December | G183: 0
F184: Total | G184: 0

Sheet Scenario
B2: General Assumptions
C3: Scenario Number | E3: 1
E5: Panel Cost | F5: Balance | G5: Yield | H5: Performace | I5: Construction | J5: Operating | K5: Merchant | L5: Merchant | M5: O&M per | N5: Lease
E6: Euro/kW | F6: of System | G6: kWh/kWp | H6: Ratio | I6: Periods | J6: Life | K6: Multiplier | L6: Code | M6: kWy | N6: Expense | Q6: Equity Irr | R6: =Summary!F5 -> 0
C7: Base Case | E7: 190 | F7: 100 | G7: 2588 | H7: 0.85 | I7: 5 | J7: 25 | K7: 1.35 | L7: 2 | M7: 5 | N7: 20000
C8: Downside Case | E8: 220 | F8: 150 | G8: 2400 | H8: 0.82 | I8: 5 | J8: 22 | K8: 1.25 | L8: 1 | M8: 8 | N8: 30000
C9: Delay Case | E9: 190 | F9: 100 | G9: 2588 | H9: 0.85 | I9: 29 | J9: 25 | K9: 1.2 | L9: 2 | M9: 5 | N9: 20000
C10: California | E10: 400 | F10: 330 | G10: 2500 | H10: 0.85 | I10: 5 | J10: 30 | K10: 1.5 | L10: 3 | M10: 7.5 | N10: 40000
C11: Mexico | E11: 190 | F11: 100 | G11: 2600 | H11: 0.83 | I11: 5 | J11: 30 | K11: 1.1 | L11: 2 | M11: 5 | N11: 10000
C12: Middle East | E12: 180 | F12: 100 | G12: 2700 | H12: 0.8 | I12: 5 | J12: 30 | K12: 1.1 | L12: 2 | M12: 5 | N12: 0
C14: =INDEX(C7:C12,$E$3) -> Base Case | E14: =INDEX(E7:E12,$E$3) -> 190 | F14: =INDEX(F7:F12,$E$3) -> 100 | G14: =INDEX(G7:G12,$E$3) -> 2588 | H14: =INDEX(H7:H12,$E$3) -> 0.85 | I14: =INDEX(I7:I12,$E$3) -> 5 | J14: =INDEX(J7:J12,$E$3) -> 25 | K14: =INDEX(K7:K12,$E$3) -> 1.35 | L14: =INDEX(L7:L12,$E$3) -> 2 | M14: =INDEX(M7:M12,$E$3) -> 5 | N14: =INDEX(N7:N12,$E$3) -> 20000 | O14: Index
C16: Applied | E16: 190 | F16: 100 | G16: 2588 | H16: 85 | I16: 5 | J16: 25 | K16: 135 | L16: 2 | M16: 50 | N16: 20000 | O16: Applied
B18: Revenue Assumptions - Price per MWH
C20: Revenue Scenario Code | F20: =L16 -> 2
D22: Scenarios | E22: Euro/MWH
F23: =YEAR(Assumptions!F6) -> 2015 | G23: 2019 | H23: 2020 | I23: 2021 | J23: 2022 | K23: 2023 | L23: 2024 | M23: 2025 | N23: 2026 | O23: 2027 | P23: 2028 | Q23: 2029 | R23: 2030 | S23: 2031 | T23: 2032 | U23: 2033 | V23: 2034 | W23: 2035 | X23: 2036 | Y23: 2037 | Z23: 2038 | AA23: 2039 | AB23: 2040 | AC23: 2041 | AD23: 2042 | AE23: 2043 | AF23: 2044 | AG23: 2045 | AH23: 2046 | AI23: 2047 | AJ23: 2048 | AK23: 2049 | AL23: 2050 | AM23: 2051 | AN23: 2052 | AO23: 2053 | AP23: 2054 | AQ23: 2055 | AR23: 2056 | AS23: 2057 | AT23: 2058
D24: Scenario 1 | F24: 21.99 | G24: 22.74 | H24: 23.26 | I24: 23.36 | J24: 25.07 | K24: 28.07 | L24: 28.97 | M24: 29.12 | N24: 30.45 | O24: 32.05 | P24: 34.17 | Q24: 36.17 | R24: 37.52 | S24: 38.25 | T24: 40.38 | U24: 41.76 | V24: 44.81 | W24: 47.35 | X24: 50.16 | Y24: 52.83 | Z24: 53.61 | AA24: 54.04 | AB24: 54.52 | AC24: 55.38 | AD24: 55.64 | AE24: 55.91 | AF24: 56.6 | AG24: 58.73 | AH24: 58.15 | AI24: 59.83 | AJ24: 61.0266 | AK24: 62.247132 | AL24: 63.49207464 | AM24: 64.76191613 | AN24: 66.05715446 | AO24: 67.37829754 | AP24: 68.7258635 | AQ24: 70.10038077 | AR24: 71.50238838 | AS24: 72.93243615 | AT24: 74.39108487
D25: Flat Case | F25: 31 | G25: 31 | H25: 31 | I25: 31 | J25: 31 | K25: 31 | L25: 31 | M25: 31 | N25: 31 | O25: 31 | P25: 31 | Q25: 31 | R25: 31 | S25: 31 | T25: 31 | U25: 31 | V25: 31 | W25: 31 | X25: 31 | Y25: 31 | Z25: 31 | AA25: 31 | AB25: 31 | AC25: 31 | AD25: 31 | AE25: 31 | AF25: 31 | AG25: 31 | AH25: 31 | AI25: 31 | AJ25: 31 | AK25: 31 | AL25: 31 | AM25: 31 | AN25: 31 | AO25: 31 | AP25: 31 | AQ25: 31 | AR25: 31 | AS25: 31 | AT25: 31
D26: Scenario 2 | F26: 29.09 | G26: 30 | H26: 30.92 | I26: 30.7 | J26: 33.25 | K26: 35.98 | L26: 36.94 | M26: 37.35 | N26: 38.93 | O26: 40.62 | P26: 42.57 | Q26: 45.12 | R26: 46.06 | S26: 46.55 | T26: 48.52 | U26: 50.18 | V26: 54.06 | W26: 55.7 | X26: 58.63 | Y26: 61.87 | Z26: 62.43 | AA26: 62.46 | AB26: 62.61 | AC26: 64.09 | AD26: 63.99 | AE26: 64.61 | AF26: 64.93 | AG26: 66.81 | AH26: 67.01 | AI26: 68.46 | AJ26: 69.8292 | AK26: 71.225784 | AL26: 72.65029968 | AM26: 74.10330567 | AN26: 75.58537179 | AO26: 77.09707922 | AP26: 78.63902081 | AQ26: 80.21180122 | AR26: 81.81603725 | AS26: 83.45235799 | AT26: 85.12140515
D27: Scenario 3 | F27: 29.09 | G27: 30 | H27: 30.8 | I27: 30.54 | J27: 33.11 | K27: 36.15 | L27: 37.31 | M27: 38.17 | N27: 40.12 | O27: 42.01 | P27: 44.68 | Q27: 47.16 | R27: 48.79 | S27: 50.1 | T27: 52.69 | U27: 54.09 | V27: 57.33 | W27: 60.38 | X27: 63.61 | Y27: 67.43 | Z27: 71.35 | AA27: 71.01 | AB27: 71.57 | AC27: 72.37 | AD27: 73.63 | AE27: 73.38 | AF27: 71.69 | AG27: 72.31 | AH27: 71.67 | AI27: 72.19 | AJ27: 73.6338 | AK27: 75.106476 | AL27: 76.60860552 | AM27: 78.14077763 | AN27: 79.70359318 | AO27: 81.29766505 | AP27: 82.92361835 | AQ27: 84.58209071 | AR27: 86.27373253 | AS27: 87.99920718 | AT27: 89.75919132
D28: Scenario 4 | F28: 36.13 | G28: 37.35 | H28: 38.26 | I28: 38.13 | J28: 40.6 | K28: 44.32 | L28: 45.25 | M28: 46.24 | N28: 48.7 | O28: 50.6 | P28: 53.35 | Q28: 56.14 | R28: 57.59 | S28: 59.01 | T28: 61.69 | U28: 63.41 | V28: 66.74 | W28: 69.56 | X28: 72.45 | Y28: 76.31 | Z28: 80.1 | AA28: 79.49 | AB28: 79.85 | AC28: 80.62 | AD28: 82 | AE28: 81.18 | AF28: 79.87 | AG28: 80 | AH28: 79.37 | AI28: 80.13 | AJ28: 81.7326 | AK28: 83.367252 | AL28: 85.03459704 | AM28: 86.73528898 | AN28: 88.46999476 | AO28: 90.23939466 | AP28: 92.04418255 | AQ28: 93.8850662 | AR28: 95.76276752 | AS28: 97.67802287 | AT28: 99.63158333
D29: Scenario 5 | F29: 29.09 | G29: 29.6718 | H29: 30.265236 | I29: 30.87054072 | J29: 31.48795153 | K29: 32.11771057 | L29: 32.76006478 | M29: 33.41526607 | N29: 34.08357139 | O29: 34.76524282 | P29: 35.46054768 | Q29: 36.16975863 | R29: 36.8931538 | S29: 37.63101688 | T29: 38.38363722 | U29: 39.15130996 | V29: 39.93433616 | W29: 40.73302288 | X29: 41.54768334 | Y29: 42.37863701 | Z29: 43.22620975 | AA29: 44.09073394 | AB29: 44.97254862 | AC29: 45.8719996 | AD29: 46.78943959 | AE29: 47.72522838 | AF29: 48.67973295 | AG29: 49.65332761 | AH29: 50.64639416 | AI29: 51.65932204 | AJ29: 52.69250848 | AK29: 53.74635865 | AL29: 54.82128582 | AM29: 55.91771154 | AN29: 57.03606577 | AO29: 58.17678709 | AP29: 59.34032283 | AQ29: 60.52712929 | AR29: 61.73767187 | AS29: 62.97242531 | AT29: 64.23187381
D31: =INDEX(D24:D29,$F$20) -> Flat Case | E31: =K14 -> 1.35
B33: Crisis Assumptions
C34: Crisis Scenario Code | E34: 1
C36: Crisis Scenario 1
E37: 2016 | F37: 2020 | G37: =F37+1 -> 2021 | H37: =G37+1 -> 2022 | I37: 2023 | J37: 2024 | M37: Base Rebound
D38: January | E38: 1 | F38: 1 | G38: 0.15 | H38: 0.5 | I38: 0.9 | J38: 1 | M38: Longer Case
D39: February | E39: 1 | F39: 1 | G39: 0.15 | H39: 0.5 | I39: 0.9 | J39: 1 | M39: Worst Case
D40: March | E40: 1 | F40: 0.5 | G40: 0.15 | H40: 0.5 | I40: 0.9 | J40: 1
D41: April | E41: 1 | F41: 0.1 | G41: 0.15 | H41: 0.5 | I41: 0.9 | J41: 1
D42: May | E42: 1 | F42: 0.1 | G42: 0.25 | H42: 0.8 | I42: 1 | J42: 1
D43: June | E43: 1 | F43: 0.1 | G43: 0.25 | H43: 0.8 | I43: 1 | J43: 1
D44: July | E44: 1 | F44: 0.1 | G44: 0.25 | H44: 0.8 | I44: 1 | J44: 1
D45: August | E45: 1 | F45: 0.15 | G45: 0.25 | H45: 0.8 | I45: 1 | J45: 1
D46: September | E46: 1 | F46: 0.15 | G46: 0.25 | H46: 0.8 | I46: 1 | J46: 1
D47: October | E47: 1 | F47: 0.15 | G47: 0.45 | H47: 0.9 | I47: 1 | J47: 1
D48: November | E48: 1 | F48: 0.15 | G48: 0.45 | H48: 0.9 | I48: 1 | J48: 1
D49: December | E49: 1 | F49: 0.15 | G49: 0.45 | H49: 0.9 | I49: 1 | J49: 1
C52: Crisis Scenario 2
E53: 2016 | F53: 2020 | G53: =F53+1 -> 2021 | H53: =G53+1 -> 2022 | I53: 2023 | J53: 2024
D54: January | E54: 1 | F54: 1 | G54: 0.15 | H54: 0.3 | I54: 0.5 | J54: 1
D55: February | E55: 1 | F55: 1 | G55: 0.15 | H55: 0.3 | I55: 0.5 | J55: 1
D56: March | E56: 1 | F56: 0.5 | G56: 0.15 | H56: 0.3 | I56: 0.5 | J56: 1
D57: April | E57: 1 | F57: 0.1 | G57: 0.15 | H57: 0.3 | I57: 0.5 | J57: 1
D58: May | E58: 1 | F58: 0.1 | G58: 0.25 | H58: 0.4 | I58: 0.5 | J58: 1
D59: June | E59: 1 | F59: 0.1 | G59: 0.25 | H59: 0.4 | I59: 0.6 | J59: 1
D60: July | E60: 1 | F60: 0.1 | G60: 0.25 | H60: 0.4 | I60: 0.6 | J60: 1
D61: August | E61: 1 | F61: 0.15 | G61: 0.25 | H61: 0.4 | I61: 0.8 | J61: 1
D62: September | E62: 1 | F62: 0.15 | G62: 0.25 | H62: 0.4 | I62: 0.8 | J62: 1
D63: October | E63: 1 | F63: 0.15 | G63: 0.3 | H63: 0.5 | I63: 0.8 | J63: 1
D64: November | E64: 1 | F64: 0.15 | G64: 0.3 | H64: 0.5 | I64: 0.8 | J64: 1
D65: December | E65: 1 | F65: 0.15 | G65: 0.3 | H65: 0.5 | I65: 0.8 | J65: 1
C68: Crisis Scenario 3
E69: 2016 | F69: 2020 | G69: =F69+1 -> 2021 | H69: =G69+1 -> 2022 | I69: 2023 | J69: 2024
D70: January | E70: 1 | F70: 1 | G70: 0.1 | H70: 0.2 | I70: 0.45 | J70: 1
D71: February | E71: 1 | F71: 1 | G71: 0.1 | H71: 0.2 | I71: 0.45 | J71: 1
D72: March | E72: 1 | F72: 0.5 | G72: 0.1 | H72: 0.2 | I72: 0.45 | J72: 1
D73: April | E73: 1 | F73: 0.02 | G73: 0.1 | H73: 0.2 | I73: 0.45 | J73: 1
D74: May | E74: 1 | F74: 0.02 | G74: 0.1 | H74: 0.2 | I74: 0.45 | J74: 1
D75: June | E75: 1 | F75: 0.02 | G75: 0.1 | H75: 0.2 | I75: 0.45 | J75: 1
D76: July | E76: 1 | F76: 0.02 | G76: 0.1 | H76: 0.3 | I76: 0.45 | J76: 1
D77: August | E77: 1 | F77: 0.02 | G77: 0.1 | H77: 0.3 | I77: 0.5 | J77: 1
D78: September | E78: 1 | F78: 0.05 | G78: 0.15 | H78: 0.3 | I78: 0.6 | J78: 1
D79: October | E79: 1 | F79: 0.1 | G79: 0.15 | H79: 0.3 | I79: 0.7 | J79: 1
D80: November | E80: 1 | F80: 0.1 | G80: 0.15 | H80: 0.4 | I80: 0.9 | J80: 1
D81: December | E81: 1 | F81: 0.1 | G81: 0.15 | H81: 0.4 | I81: 0.9 | J81: 1
F86: 1 | G86: =IF(F86=12,1,F86+1) -> 2 | H86: 3 | I86: 4 | J86: 5 | K86: 6 | L86: 7 | M86: 8 | N86: 9 | O86: 10 | P86: 11 | Q86: 12 | R86: 1 | S86: 2 | T86: 3 | U86: 4 | V86: 5 | W86: 6 | X86: 7 | Y86: 8 | Z86: 9 | AA86: 10 | AB86: 11 | AC86: 12 | AD86: 1 | AE86: 2 | AF86: 3 | AG86: 4 | AH86: 5 | AI86: 6 | AJ86: 7 | AK86: 8 | AL86: 9 | AM86: =IF(AL86=12,1,AL86+1) -> 10 | AN86: 11 | AO86: 12 | AP86: 1 | AQ86: 2 | AR86: 3 | AS86: 4 | AT86: 5 | AU86: 6 | AV86: 7 | AW86: 8 | AX86: 9 | AY86: 10 | AZ86: 11 | BA86: 12 | BB86: 1 | BC86: 2 | BD86: 3 | BE86: 4 | BF86: 5 | BG86: 6 | BH86: 7 | BI86: 8 | BJ86: 9 | BK86: 10 | BL86: 11 | BM86: 12 | BN86: 1
F87: =YEAR(Assumptions!F6) -> 2015 | G87: =IF(G86=1,F87+1,F87) -> 2015 | H87: 2015 | I87: 2015 | J87: 2015 | K87: 2015 | L87: 2015 | M87: 2015 | N87: 2015 | O87: 2015 | P87: 2015 | Q87: 2015 | R87: 2016 | S87: 2016 | T87: 2016 | U87: 2016 | V87: 2016 | W87: 2016 | X87: 2016 | Y87: 2016 | Z87: 2016 | AA87: 2016 | AB87: 2016 | AC87: 2016 | AD87: 2017 | AE87: 2017 | AF87: 2017 | AG87: 2017 | AH87: 2017 | AI87: 2017 | AJ87: 2017 | AK87: 2017 | AL87: 2017 | AM87: =IF(AM86=1,AL87+1,AL87) -> 2017 | AN87: 2017 | AO87: 2017 | AP87: 2018 | AQ87: 2018 | AR87: 2018 | AS87: 2018 | AT87: 2018 | AU87: 2018 | AV87: 2018 | AW87: 2018 | AX87: 2018 | AY87: 2018 | AZ87: 2018 | BA87: 2018 | BB87: 2019 | BC87: 2019 | BD87: 2019 | BE87: 2019 | BF87: 2019 | BG87: 2019 | BH87: 2019 | BI87: 2019 | BJ87: 2019 | BK87: 2019 | BL87: 2019 | BM87: 2019 | BN87: 2020
F88: =DATE(F87,F86,1) -> 2015-01-01 | G88: 2015-02-01 | H88: 2015-03-01 | I88: 2015-04-01 | J88: 2015-05-01 | K88: 2015-06-01 | L88: 2015-07-01 | M88: 2015-08-01 | N88: 2015-09-01 | O88: 2015-10-01 | P88: 2015-11-01 | Q88: 2015-12-01 | R88: 2016-01-01 | S88: 2016-02-01 | T88: 2016-03-01 | U88: 2016-04-01 | V88: 2016-05-01 | W88: 2016-06-01 | X88: 2016-07-01 | Y88: 2016-08-01 | Z88: 2016-09-01 | AA88: 2016-10-01 | AB88: 2016-11-01 | AC88: 2016-12-01 | AD88: 2017-01-01 | AE88: 2017-02-01 | AF88: 2017-03-01 | AG88: 2017-04-01 | AH88: 2017-05-01 | AI88: 2017-06-01 | AJ88: 2017-07-01 | AK88: 2017-08-01 | AL88: =DATE(AL87,AL86,1) -> 2017-09-01 | AM88: 2017-10-01 | AN88: 2017-11-01 | AO88: 2017-12-01 | AP88: 2018-01-01 | AQ88: 2018-02-01 | AR88: 2018-03-01 | AS88: 2018-04-01 | AT88: 2018-05-01 | AU88: 2018-06-01 | AV88: 2018-07-01 | AW88: 2018-08-01 | AX88: 2018-09-01 | AY88: 2018-10-01 | AZ88: 2018-11-01 | BA88: 2018-12-01 | BB88: 2019-01-01 | BC88: 2019-02-01 | BD88: 2019-03-01 | BE88: 2019-04-01 | BF88: 2019-05-01 | BG88: 2019-06-01 | BH88: 2019-07-01 | BI88: 2019-08-01 | BJ88: 2019-09-01 | BK88: 2019-10-01 | BL88: 2019-11-01 | BM88: 2019-12-01 | BN88: 2020-01-01
D89: Percent Reduction in Price | F89: =TRANSPOSE(Assumptions!E110:E121) -> 0 | G89: 1 | H89: 1 | I89: 1 | J89: 1 | K89: 1 | L89: 1 | M89: 1 | N89: 1 | O89: 1 | P89: 1 | Q89: 1 | R89: =TRANSPOSE(Assumptions!F110:F121) -> 1 | S89: 1 | T89: 0.5 | U89: 0.1 | V89: 0.1 | W89: 0.1 | X89: 0.1 | Y89: 0.15 | Z89: 0.15 | AA89: 0.15 | AB89: 0.15 | AC89: 0.15 | AD89: =TRANSPOSE(Assumptions!G110:G121) -> 0.15 | AE89: 0.15 | AF89: 0.15 | AG89: 0.15 | AH89: 0.25 | AI89: 0.25 | AJ89: 0.25 | AK89: 0.25 | AL89: 0.25 | AM89: 0.45 | AN89: 0.45 | AO89: 0.45 | AP89: =TRANSPOSE(Assumptions!H110:H121) -> 0.5 | AQ89: 0.5 | AR89: 0.5 | AS89: 0.5 | AT89: 0.8 | AU89: 0.8 | AV89: 0.8 | AW89: 0.8 | AX89: 0.8 | AY89: 0.9 | AZ89: 0.9 | BA89: 0.9 | BB89: =TRANSPOSE(Assumptions!I110:I121) -> 0.9 | BC89: 0.9 | BD89: 0.9 | BE89: 0.9 | BF89: 1 | BG89: 1 | BH89: 1 | BI89: 1 | BJ89: 1 | BK89: 1 | BL89: 1 | BM89: 1
D90: =M37 -> Base Rebound | E90: 1 | F90: 0 | G90: 1 | H90: 1 | I90: 1 | J90: 1 | K90: 1 | L90: 1 | M90: 1 | N90: 1 | O90: 1 | P90: 1 | Q90: 1 | R90: 1 | S90: 1 | T90: 0.5 | U90: 0.1 | V90: 0.1 | W90: 0.1 | X90: 0.1 | Y90: 0.15 | Z90: 0.15 | AA90: 0.15 | AB90: 0.15 | AC90: 0.15 | AD90: 0.15 | AE90: 0.15 | AF90: 0.15 | AG90: 0.15 | AH90: 0.25 | AI90: 0.25 | AJ90: 0.25 | AK90: 0.25 | AL90: 0.25 | AM90: 0.45 | AN90: 0.45 | AO90: 0.45 | AP90: 0.5 | AQ90: 0.5 | AR90: 0.5 | AS90: 0.5 | AT90: 0.8 | AU90: 0.8 | AV90: 0.8 | AW90: 0.8 | AX90: 0.8 | AY90: 0.9 | AZ90: 0.9 | BA90: 0.9 | BB90: 0.9 | BC90: 0.9 | BD90: 0.9 | BE90: 0.9 | BF90: 1 | BG90: 1 | BH90: 1 | BI90: 1 | BJ90: 1 | BK90: 1 | BL90: 1 | BM90: 1
D91: =M38 -> Longer Case | E91: 2 | F91: 0 | G91: 1 | H91: 1 | I91: 1 | J91: 1 | K91: 1 | L91: 1 | M91: 1 | N91: 1 | O91: 1 | P91: 1 | Q91: 1 | R91: 1 | S91: 1 | T91: 0.5 | U91: 0.1 | V91: 0.1 | W91: 0.1 | X91: 0.1 | Y91: 0.15 | Z91: 0.15 | AA91: 0.15 | AB91: 0.15 | AC91: 0.15 | AD91: 0.15 | AE91: 0.15 | AF91: 0.15 | AG91: 0.15 | AH91: 0.25 | AI91: 0.25 | AJ91: 0.25 | AK91: 0.25 | AL91: 0.25 | AM91: 0.3 | AN91: 0.3 | AO91: 0.3 | AP91: 0.3 | AQ91: 0.3 | AR91: 0.3 | AS91: 0.3 | AT91: 0.4 | AU91: 0.4 | AV91: 0.4 | AW91: 0.4 | AX91: 0.4 | AY91: 0.5 | AZ91: 0.5 | BA91: 0.5 | BB91: 0.5 | BC91: 0.5 | BD91: 0.5 | BE91: 0.5 | BF91: 0.5 | BG91: 0.6 | BH91: 0.6 | BI91: 0.8 | BJ91: 0.8 | BK91: 0.8 | BL91: 0.8 | BM91: 0.8
D92: Worst Case | E92: 3 | F92: 0 | G92: 1 | H92: 1 | I92: 1 | J92: 1 | K92: 1 | L92: 1 | M92: 1 | N92: 1 | O92: 1 | P92: 1 | Q92: 1 | R92: 1 | S92: 1 | T92: 0.5 | U92: 0.02 | V92: 0.02 | W92: 0.02 | X92: 0.02 | Y92: 0.02 | Z92: 0.05 | AA92: 0.1 | AB92: 0.1 | AC92: 0.1 | AD92: 0.1 | AE92: 0.1 | AF92: 0.1 | AG92: 0.1 | AH92: 0.1 | AI92: 0.1 | AJ92: 0.1 | AK92: 0.1 | AL92: 0.15 | AM92: 0.15 | AN92: 0.15 | AO92: 0.15 | AP92: 0.2 | AQ92: 0.2 | AR92: 0.2 | AS92: 0.2 | AT92: 0.2 | AU92: 0.2 | AV92: 0.3 | AW92: 0.3 | AX92: 0.3 | AY92: 0.3 | AZ92: 0.4 | BA92: 0.4 | BB92: 0.45 | BC92: 0.45 | BD92: 0.45 | BE92: 0.45 | BF92: 0.45 | BG92: 0.45 | BH92: 0.45 | BI92: 0.5 | BJ92: 0.6 | BK92: 0.7 | BL92: 0.9 | BM92: 0.9
D95: Start Date
F96: 2015-01-01
F97: =EDATE(F96,1) -> 2015-02-01 | J97: 6
F98: =EDATE(F97,1) -> 2015-03-01
F99: 2015-04-01 | H99: =INDEX(F96:F107,J97) -> 2015-06-01
F100: 2015-05-01
F101: 2015-06-01
F102: 2015-07-01
F103: 2015-08-01
F104: 2015-09-01
F105: 2015-10-01
F106: 2015-11-01
F107: 2015-12-01

Sheet Operating Model
F1: Unit | G1: Driver | H1: Driver | I1: Sum | J1: Start
B2: Timeline
C3: Period | F3: Period | J3: 0 | K3: 1 | L3: 2 | M3: 3 | N3: 4 | O3: 5 | P3: 6 | Q3: 7 | R3: 8 | S3: 9 | T3: 10 | U3: 11 | V3: 12 | W3: 13 | X3: 14 | Y3: 15 | Z3: 16 | AA3: 17 | AB3: 18 | AC3: 19 | AD3: 20 | AE3: 21 | AF3: 22 | AG3: 23 | AH3: 24 | AI3: 25 | AJ3: 26 | AK3: 27 | AL3: 28 | AM3: 29 | AN3: 30 | AO3: 31 | AP3: 32 | AQ3: 33 | AR3: 34 | AS3: 35 | AT3: 36 | AU3: 37 | AV3: 38 | AW3: 39 | AX3: 40 | AY3: 41 | AZ3: 42 | BA3: 43 | BB3: 44 | BC3: 45 | BD3: 46 | BE3: 47 | BF3: 48 | BG3: 49 | BH3: 50 | BI3: 51 | BJ3: 52 | BK3: 53 | BL3: 54 | BM3: 55 | BN3: 56 | BO3: 57 | BP3: 58 | BQ3: 59 | BR3: 60 | BS3: 61 | BT3: 62 | BU3: 63 | BV3: 64 | BW3: 65 | BX3: 66 | BY3: 67 | BZ3: 68 | CA3: 69 | CB3: 70 | CC3: 71 | CD3: 72 | CE3: 73 | CF3: 74 | CG3: 75 | CH3: 76 | CI3: 77 | CJ3: 78 | CK3: 79 | CL3: 80 | CM3: 81 | CN3: 82 | CO3: 83 | CP3: 84 | CQ3: 85 | CR3: 86 | CS3: 87 | CT3: 88 | CU3: 89 | CV3: 90 | CW3: 91 | CX3: 92 | CY3: 93 | CZ3: 94 | DA3: 95 | DB3: 96 | DC3: 97 | DD3: 98 | DE3: 99 | DF3: 100 | DG3: 101 | DH3: 102 | DI3: 103 | DJ3: 104 | DK3: 105 | DL3: 106 | DM3: 107 | DN3: 108 | DO3: 109 | DP3: 110 | DQ3: 111
C4: Pre-COD/Post COD | F4: Flag | I4: =SUM(K4:DQ4) -> 0
C5: Months in Period | F5: Months
C6: Start of Period | F6: Date | K6: =J7+1 -> 2015-06-01 | L6: =K7+1 -> 1900-01-01 | M6: 1900-01-01 | N6: 1900-01-01 | O6: 1900-01-01 | P6: 1900-01-01 | Q6: 1900-01-01 | R6: 1900-01-01 | S6: 1900-01-01 | T6: 1900-01-01 | U6: 1900-01-01 | V6: 1900-01-01 | W6: 1900-01-01 | X6: 1900-01-01 | Y6: 1900-01-01 | Z6: 1900-01-01 | AA6: 1900-01-01 | AB6: 1900-01-01 | AC6: 1900-01-01 | AD6: 1900-01-01 | AE6: 1900-01-01 | AF6: 1900-01-01 | AG6: 1900-01-01 | AH6: 1900-01-01 | AI6: 1900-01-01 | AJ6: 1900-01-01 | AK6: 1900-01-01 | AL6: 1900-01-01 | AM6: 1900-01-01 | AN6: 1900-01-01 | AO6: 1900-01-01 | AP6: 1900-01-01 | AQ6: 1900-01-01 | AR6: 1900-01-01 | AS6: 1900-01-01 | AT6: 1900-01-01 | AU6: 1900-01-01 | AV6: 1900-01-01 | AW6: 1900-01-01 | AX6: 1900-01-01 | AY6: 1900-01-01 | AZ6: 1900-01-01 | BA6: 1900-01-01 | BB6: 1900-01-01 | BC6: 1900-01-01 | BD6: 1900-01-01 | BE6: 1900-01-01 | BF6: 1900-01-01 | BG6: 1900-01-01 | BH6: 1900-01-01 | BI6: 1900-01-01 | BJ6: 1900-01-01 | BK6: 1900-01-01 | BL6: 1900-01-01 | BM6: 1900-01-01 | BN6: 1900-01-01 | BO6: 1900-01-01 | BP6: 1900-01-01 | BQ6: 1900-01-01 | BR6: 1900-01-01 | BS6: 1900-01-01 | BT6: 1900-01-01 | BU6: 1900-01-01 | BV6: 1900-01-01 | BW6: 1900-01-01 | BX6: =BW7+1 -> 1900-01-01 | BY6: 1900-01-01 | BZ6: 1900-01-01 | CA6: 1900-01-01 | CB6: 1900-01-01 | CC6: 1900-01-01 | CD6: 1900-01-01 | CE6: 1900-01-01 | CF6: 1900-01-01 | CG6: 1900-01-01 | CH6: 1900-01-01 | CI6: 1900-01-01 | CJ6: 1900-01-01 | CK6: 1900-01-01 | CL6: 1900-01-01 | CM6: 1900-01-01 | CN6: 1900-01-01 | CO6: 1900-01-01 | CP6: 1900-01-01 | CQ6: 1900-01-01 | CR6: 1900-01-01 | CS6: 1900-01-01 | CT6: 1900-01-01 | CU6: 1900-01-01 | CV6: 1900-01-01 | CW6: 1900-01-01 | CX6: 1900-01-01 | CY6: 1900-01-01 | CZ6: 1900-01-01 | DA6: 1900-01-01 | DB6: 1900-01-01 | DC6: 1900-01-01 | DD6: 1900-01-01 | DE6: 1900-01-01 | DF6: 1900-01-01 | DG6: 1900-01-01 | DH6: 1900-01-01 | DI6: 1900-01-01 | DJ6: 1900-01-01 | DK6: 1900-01-01 | DL6: 1900-01-01 | DM6: 1900-01-01 | DN6: 1900-01-01 | DO6: 1900-01-01 | DP6: 1900-01-01 | DQ6: 1900-01-01
C7: End of Period | F7: Date | J7: =Assumptions!$F$6-1 -> 2015-05-31
C8: Development Period | F8: Flag | G8: =Assumptions!$F$7 -> 4 | I8: =SUM(K8:BR8) -> 4 | K8: =(K3<=$G$8)*1 -> 1 | L8: =(L3<=$G$8)*1 -> 1 | M8: 1 | N8: 1 | O8: 0 | P8: 0 | Q8: 0 | R8: 0 | S8: 0 | T8: 0 | U8: 0 | V8: 0 | W8: 0 | X8: 0 | Y8: 0 | Z8: 0 | AA8: 0 | AB8: 0 | AC8: 0 | AD8: 0 | AE8: 0 | AF8: 0 | AG8: 0 | AH8: 0 | AI8: 0 | AJ8: 0 | AK8: 0 | AL8: 0 | AM8: 0 | AN8: 0 | AO8: 0 | AP8: 0 | AQ8: 0 | AR8: 0 | AS8: 0 | AT8: 0 | AU8: 0 | AV8: 0 | AW8: 0 | AX8: 0 | AY8: 0 | AZ8: 0 | BA8: 0 | BB8: 0 | BC8: 0 | BD8: 0 | BE8: 0 | BF8: 0 | BG8: 0 | BH8: 0 | BI8: 0 | BJ8: 0 | BK8: 0 | BL8: 0 | BM8: 0 | BN8: 0 | BO8: 0 | BP8: 0 | BQ8: 0 | BR8: 0 | BS8: =(BS3<=$G$8)*1 -> 0 | BT8: 0 | BU8: 0 | BV8: 0 | BW8: 0 | BX8: 0 | BY8: 0 | BZ8: 0 | CA8: 0 | CB8: 0 | CC8: 0 | CD8: 0 | CE8: 0 | CF8: 0 | CG8: 0 | CH8: 0 | CI8: 0 | CJ8: 0 | CK8: 0 | CL8: 0 | CM8: =(CM3<=$G$8)*1 -> 0 | CN8: 0 | CO8: 0 | CP8: 0 | CQ8: 0 | CR8: 0 | CS8: 0 | CT8: 0 | CU8: 0 | CV8: 0 | CW8: 0 | CX8: 0 | CY8: 0 | CZ8: 0 | DA8: =(DA3<=$G$8)*1 -> 0 | DB8: 0 | DC8: 0 | DD8: 0 | DE8: 0 | DF8: 0 | DG8: 0 | DH8: 0 | DI8: 0 | DJ8: 0 | DK8: 0 | DL8: 0 | DM8: 0 | DN8: 0 | DO8: 0 | DP8: 0 | DQ8: 0
C9: Construction Period | F9: Flag | G9: =Assumptions!$F$9 -> 00:00:00 | H9: =Assumptions!$F$14 -> 1900-05-31 | I9: =SUM(K9:BR9) -> 59 | K9: =AND(K$6>=$G9,K$6<$H9)*1 -> 0 | L9: =AND(L$6>=$G9,L$6<$H9)*1 -> 1 | M9: 1 | N9: 1 | O9: 1 | P9: 1 | Q9: 1 | R9: 1 | S9: 1 | T9: 1 | U9: 1 | V9: 1 | W9: 1 | X9: 1 | Y9: 1 | Z9: 1 | AA9: 1 | AB9: 1 | AC9: 1 | AD9: 1 | AE9: 1 | AF9: 1 | AG9: 1 | AH9: 1 | AI9: 1 | AJ9: 1 | AK9: 1 | AL9: 1 | AM9: 1 | AN9: 1 | AO9: 1 | AP9: 1 | AQ9: 1 | AR9: 1 | AS9: 1 | AT9: 1 | AU9: 1 | AV9: 1 | AW9: 1 | AX9: 1 | AY9: 1 | AZ9: 1 | BA9: 1 | BB9: 1 | BC9: 1 | BD9: 1 | BE9: 1 | BF9: 1 | BG9: 1 | BH9: 1 | BI9: 1 | BJ9: 1 | BK9: 1 | BL9: 1 | BM9: 1 | BN9: 1 | BO9: 1 | BP9: 1 | BQ9: 1 | BR9: 1 | BS9: 1 | BT9: =AND(BT$6>=$G9,BT$6<$H9)*1 -> 1 | BU9: 1 | BV9: 1 | BW9: 1 | BX9: 1 | BY9: 1 | BZ9: 1 | CA9: 1 | CB9: 1 | CC9: 1 | CD9: 1 | CE9: 1 | CF9: 1 | CG9: 1 | CH9: 1 | CI9: 1 | CJ9: 1 | CK9: 1 | CL9: 1 | CM9: 1 | CN9: =AND(CN$6>=$G9,CN$6<$H9)*1 -> 1 | CO9: 1 | CP9: 1 | CQ9: 1 | CR9: 1 | CS9: 1 | CT9: 1 | CU9: 1 | CV9: 1 | CW9: 1 | CX9: 1 | CY9: 1 | CZ9: 1 | DA9: 1 | DB9: 1 | DC9: =AND(DC$6>=$G9,DC$6<$H9)*1 -> 1 | DD9: 1 | DE9: 1 | DF9: 1 | DG9: 1 | DH9: 1 | DI9: 1 | DJ9: 1 | DK9: 1 | DL9: 1 | DM9: 1 | DN9: 1 | DO9: 1 | DP9: 1 | DQ9: 1
C10: Operating Period | F10: Flag | G10: =Assumptions!$F$14 -> 1900-05-31 | H10: =Assumptions!$F$17 -> 00:00:00 | I10: =SUM(K10:ZQ10) -> 0
B12: Operations
C13: Capacity | F13: kW | G13: =Assumptions!F20 -> 6000
C14: Degradation Rate | F14: % p.p. | G14: =Assumptions!F21 -> 0.005 | K14: =(1+$G$14)^(K5/12)-1 -> 0 | L14: =(1+$G$14)^(L5/12)-1 -> 0 | M14: 0 | N14: 0 | O14: 0 | P14: 0 | Q14: 0 | R14: 0 | S14: 0 | T14: 0 | U14: 0 | V14: 0 | W14: 0 | X14: 0 | Y14: 0 | Z14: 0 | AA14: 0 | AB14: 0 | AC14: 0 | AD14: 0 | AE14: 0 | AF14: 0 | AG14: 0 | AH14: 0 | AI14: 0 | AJ14: 0 | AK14: 0 | AL14: 0 | AM14: 0 | AN14: 0 | AO14: 0 | AP14: 0 | AQ14: 0 | AR14: 0 | AS14: 0 | AT14: 0 | AU14: 0 | AV14: 0 | AW14: 0 | AX14: 0 | AY14: 0 | AZ14: 0 | BA14: 0 | BB14: 0 | BC14: 0 | BD14: 0 | BE14: 0 | BF14: 0 | BG14: 0 | BH14: 0 | BI14: 0 | BJ14: 0 | BK14: 0 | BL14: 0 | BM14: 0 | BN14: 0 | BO14: 0 | BP14: 0 | BQ14: 0 | BR14: 0 | BS14: =(1+$G$14)^(BS5/12)-1 -> 0 | BT14: 0 | BU14: 0 | BV14: 0 | BW14: 0 | BX14: 0 | BY14: 0 | BZ14: 0 | CA14: 0 | CB14: 0 | CC14: 0 | CD14: 0 | CE14: 0 | CF14: 0 | CG14: 0 | CH14: 0 | CI14: 0 | CJ14: 0 | CK14: 0 | CL14: 0 | CM14: =(1+$G$14)^(CM5/12)-1 -> 0 | CN14: 0 | CO14: 0 | CP14: 0 | CQ14: 0 | CR14: 0 | CS14: 0 | CT14: 0 | CU14: 0 | CV14: 0 | CW14: 0 | CX14: 0 | CY14: 0 | CZ14: 0 | DA14: =(1+$G$14)^(DA5/12)-1 -> 0 | DB14: 0 | DC14: 0 | DD14: 0 | DE14: 0 | DF14: 0 | DG14: 0 | DH14: 0 | DI14: 0 | DJ14: 0 | DK14: 0 | DL14: 0 | DM14: 0 | DN14: 0 | DO14: 0 | DP14: 0 | DQ14: 0
C15: Degradation Index | F15: Index | J15: 1 | K15: =J15*(1+K14*K10) -> 1 | L15: =K15*(1+L14*L10) -> 1 | M15: 1 | N15: 1 | O15: 1 | P15: 1 | Q15: 1 | R15: 1 | S15: 1 | T15: 1 | U15: 1 | V15: 1 | W15: 1 | X15: 1 | Y15: 1 | Z15: 1 | AA15: 1 | AB15: 1 | AC15: 1 | AD15: 1 | AE15: 1 | AF15: 1 | AG15: 1 | AH15: 1 | AI15: 1 | AJ15: 1 | AK15: 1 | AL15: 1 | AM15: 1 | AN15: 1 | AO15: 1 | AP15: 1 | AQ15: 1 | AR15: 1 | AS15: 1 | AT15: 1 | AU15: 1 | AV15: 1 | AW15: 1 | AX15: 1 | AY15: 1 | AZ15: 1 | BA15: 1 | BB15: 1 | BC15: 1 | BD15: 1 | BE15: 1 | BF15: 1 | BG15: 1 | BH15: 1 | BI15: 1 | BJ15: 1 | BK15: 1 | BL15: 1 | BM15: 1 | BN15: 1 | BO15: 1 | BP15: 1 | BQ15: 1 | BR15: 1 | BS15: =BR15*(1+BS14*BS10) -> 1 | BT15: =BS15*(1+BT14*BT10) -> 1 | BU15: =BT15*(1+BU14*BU10) -> 1 | BV15: =BU15*(1+BV14*BV10) -> 1 | BW15: =BV15*(1+BW14*BW10) -> 1 | BX15: =BW15*(1+BX14*BX10) -> 1 | BY15: =BX15*(1+BY14*BY10) -> 1 | BZ15: =BY15*(1+BZ14*BZ10) -> 1 | CA15: =BZ15*(1+CA14*CA10) -> 1 | CB15: =CA15*(1+CB14*CB10) -> 1 | CC15: =CB15*(1+CC14*CC10) -> 1 | CD15: =CC15*(1+CD14*CD10) -> 1 | CE15: =CD15*(1+CE14*CE10) -> 1 | CF15: =CE15*(1+CF14*CF10) -> 1 | CG15: =CF15*(1+CG14*CG10) -> 1 | CH15: =CG15*(1+CH14*CH10) -> 1 | CI15: =CH15*(1+CI14*CI10) -> 1 | CJ15: =CI15*(1+CJ14*CJ10) -> 1 | CK15: =CJ15*(1+CK14*CK10) -> 1 | CL15: =CK15*(1+CL14*CL10) -> 1 | CM15: =CL15*(1+CM14*CM10) -> 1 | CN15: =CM15*(1+CN14*CN10) -> 1 | CO15: =CN15*(1+CO14*CO10) -> 1 | CP15: =CO15*(1+CP14*CP10) -> 1 | CQ15: =CP15*(1+CQ14*CQ10) -> 1 | CR15: =CQ15*(1+CR14*CR10) -> 1 | CS15: =CR15*(1+CS14*CS10) -> 1 | CT15: =CS15*(1+CT14*CT10) -> 1 | CU15: =CT15*(1+CU14*CU10) -> 1 | CV15: =CU15*(1+CV14*CV10) -> 1 | CW15: =CV15*(1+CW14*CW10) -> 1 | CX15: =CW15*(1+CX14*CX10) -> 1 | CY15: =CX15*(1+CY14*CY10) -> 1 | CZ15: =CY15*(1+CZ14*CZ10) -> 1 | DA15: =CZ15*(1+DA14*DA10) -> 1 | DB15: =DA15*(1+DB14*DB10) -> 1 | DC15: =DB15*(1+DC14*DC10) -> 1 | DD15: =DC15*(1+DD14*DD10) -> 1 | DE15: =DD15*(1+DE14*DE10) -> 1 | DF15: =DE15*(1+DF14*DF10) -> 1 | DG15: =DF15*(1+DG14*DG10) -> 1 | DH15: =DG15*(1+DH14*DH10) -> 1 | DI15: =DH15*(1+DI14*DI10) -> 1 | DJ15: =DI15*(1+DJ14*DJ10) -> 1 | DK15: =DJ15*(1+DK14*DK10) -> 1 | DL15: =DK15*(1+DL14*DL10) -> 1 | DM15: =DL15*(1+DM14*DM10) -> 1 | DN15: =DM15*(1+DN14*DN10) -> 1 | DO15: =DN15*(1+DO14*DO10) -> 1 | DP15: =DO15*(1+DP14*DP10) -> 1 | DQ15: =DP15*(1+DQ14*DQ10) -> 1
C16: Capacity After Degradation | F16: kW | K16: =K13/K15 -> 0 | L16: =L13/L15 -> 0 | M16: 0 | N16: 0 | O16: 0 | P16: 0 | Q16: 0 | R16: 0 | S16: 0 | T16: 0 | U16: 0 | V16: 0 | W16: 0 | X16: 0 | Y16: 0 | Z16: 0 | AA16: 0 | AB16: 0 | AC16: 0 | AD16: 0 | AE16: 0 | AF16: 0 | AG16: 0 | AH16: 0 | AI16: 0 | AJ16: 0 | AK16: 0 | AL16: 0 | AM16: 0 | AN16: 0 | AO16: 0 | AP16: 0 | AQ16: 0 | AR16: 0 | AS16: 0 | AT16: 0 | AU16: 0 | AV16: 0 | AW16: 0 | AX16: 0 | AY16: 0 | AZ16: 0 | BA16: 0 | BB16: 0 | BC16: 0 | BD16: 0 | BE16: 0 | BF16: 0 | BG16: 0 | BH16: 0 | BI16: 0 | BJ16: 0 | BK16: 0 | BL16: 0 | BM16: 0 | BN16: 0 | BO16: 0 | BP16: 0 | BQ16: 0 | BR16: 0 | BS16: =BS13/BS15 -> 0 | BT16: =BT13/BT15 -> 0 | BU16: =BU13/BU15 -> 0 | BV16: =BV13/BV15 -> 0 | BW16: =BW13/BW15 -> 0 | BX16: =BX13/BX15 -> 0 | BY16: =BY13/BY15 -> 0 | BZ16: =BZ13/BZ15 -> 0 | CA16: =CA13/CA15 -> 0 | CB16: =CB13/CB15 -> 0 | CC16: =CC13/CC15 -> 0 | CD16: =CD13/CD15 -> 0 | CE16: =CE13/CE15 -> 0 | CF16: =CF13/CF15 -> 0 | CG16: =CG13/CG15 -> 0 | CH16: =CH13/CH15 -> 0 | CI16: =CI13/CI15 -> 0 | CJ16: =CJ13/CJ15 -> 0 | CK16: =CK13/CK15 -> 0 | CL16: =CL13/CL15 -> 0 | CM16: =CM13/CM15 -> 0 | CN16: =CN13/CN15 -> 0 | CO16: =CO13/CO15 -> 0 | CP16: =CP13/CP15 -> 0 | CQ16: =CQ13/CQ15 -> 0 | CR16: =CR13/CR15 -> 0 | CS16: =CS13/CS15 -> 0 | CT16: =CT13/CT15 -> 0 | CU16: =CU13/CU15 -> 0 | CV16: =CV13/CV15 -> 0 | CW16: =CW13/CW15 -> 0 | CX16: =CX13/CX15 -> 0 | CY16: =CY13/CY15 -> 0 | CZ16: =CZ13/CZ15 -> 0 | DA16: =DA13/DA15 -> 0 | DB16: =DB13/DB15 -> 0 | DC16: =DC13/DC15 -> 0 | DD16: =DD13/DD15 -> 0 | DE16: =DE13/DE15 -> 0 | DF16: =DF13/DF15 -> 0 | DG16: =DG13/DG15 -> 0 | DH16: =DH13/DH15 -> 0 | DI16: =DI13/DI15 -> 0 | DJ16: =DJ13/DJ15 -> 0 | DK16: =DK13/DK15 -> 0 | DL16: =DL13/DL15 -> 0 | DM16: =DM13/DM15 -> 0 | DN16: =DN13/DN15 -> 0 | DO16: =DO13/DO15 -> 0 | DP16: =DP13/DP15 -> 0 | DQ16: =DQ13/DQ15 -> 0
C18: January Month | F18: No | G18: =Assumptions!E36 -> 1 | H18: find_month
C19: February Month | F19: No | G19: =Assumptions!E37 -> 2
C20: March Month | F20: No | G20: =Assumptions!E38 -> 3
C21: April Month | F21: No | G21: =Assumptions!E39 -> 4
C22: May Month | F22: No | G22: =Assumptions!E40 -> 5
C23: June Month | F23: No | G23: =Assumptions!E41 -> 6
C24: July Month | F24: No | G24: =Assumptions!E42 -> 7
C25: August Month | F25: No | G25: =Assumptions!E43 -> 8
C26: September Month | F26: No | G26: =Assumptions!E44 -> 9
C27: October Month | F27: No | G27: =Assumptions!E45 -> 10
C28: November Month | F28: No | G28: =Assumptions!E46 -> 11
C29: December Month | F29: No | G29: =Assumptions!E47 -> 12
C31: January Generation (Divide by 1000) | F31: MWH | G31: =Assumptions!J36 -> 0 | H31: =Assumptions!I36 -> 744 | I31: =SUM(K31:BR31) -> 0
C32: February Generation | F32: MWH | G32: =Assumptions!J37 -> 0 | H32: =Assumptions!I37 -> 672 | I32: =SUM(K32:BR32) -> 0
C33: March Generation | F33: MWH | G33: =Assumptions!J38 -> 0 | H33: =Assumptions!I38 -> 744 | I33: 0
C34: April Generation | F34: MWH | G34: =Assumptions!J39 -> 0 | H34: =Assumptions!I39 -> 720 | I34: 0
C35: May Generation | F35: MWH | G35: =Assumptions!J40 -> 0 | H35: =Assumptions!I40 -> 744 | I35: 0
C36: June Generation | F36: MWH | G36: =Assumptions!J41 -> 0 | H36: =Assumptions!I41 -> 720 | I36: 0
C37: July Generation | F37: MWH | G37: =Assumptions!J42 -> 0 | H37: =Assumptions!I42 -> 744 | I37: 0
C38: August Generation | F38: MWH | G38: =Assumptions!J43 -> 0 | H38: =Assumptions!I43 -> 744 | I38: 0
C39: September Generation | F39: MWH | G39: =Assumptions!J44 -> 0 | H39: =Assumptions!I44 -> 720 | I39: 0
C40: October Generation | F40: MWH | G40: =Assumptions!J45 -> 0 | H40: =Assumptions!I45 -> 744 | I40: 0
C41: November Generation | F41: MWH | G41: =Assumptions!J46 -> 0 | H41: =Assumptions!I46 -> 720 | I41: 0
C42: December Generation | F42: MWH | G42: =Assumptions!J47 -> 0 | H42: =Assumptions!I47 -> 744 | I42: 0
D43: Total Generation | F43: MWH | I43: 0 | K43: =SUM(K31:K42) -> 0 | L43: =SUM(L31:L42) -> 0 | M43: 0 | N43: 0 | O43: 0 | P43: 0 | Q43: 0 | R43: 0 | S43: 0 | T43: 0 | U43: 0 | V43: 0 | W43: 0 | X43: 0 | Y43: 0 | Z43: 0 | AA43: 0 | AB43: 0 | AC43: 0 | AD43: 0 | AE43: 0 | AF43: 0 | AG43: 0 | AH43: 0 | AI43: 0 | AJ43: 0 | AK43: 0 | AL43: 0 | AM43: 0 | AN43: 0 | AO43: 0 | AP43: 0 | AQ43: 0 | AR43: 0 | AS43: 0 | AT43: 0 | AU43: 0 | AV43: 0 | AW43: 0 | AX43: 0 | AY43: 0 | AZ43: 0 | BA43: 0 | BB43: 0 | BC43: 0 | BD43: 0 | BE43: 0 | BF43: 0 | BG43: 0 | BH43: 0 | BI43: 0 | BJ43: 0 | BK43: 0 | BL43: 0 | BM43: 0 | BN43: 0 | BO43: 0 | BP43: 0 | BQ43: 0 | BR43: 0 | BS43: 0 | BT43: 0 | BU43: 0 | BV43: 0 | BW43: 0 | BX43: =SUM(BX31:BX42) -> 0 | BY43: 0 | BZ43: 0 | CA43: 0 | CB43: 0 | CC43: 0 | CD43: 0 | CE43: 0 | CF43: 0 | CG43: 0 | CH43: 0 | CI43: 0 | CJ43: 0 | CK43: 0 | CL43: 0 | CM43: 0 | CN43: 0 | CO43: 0 | CP43: 0 | CQ43: 0 | CR43: 0 | CS43: 0 | CT43: 0 | CU43: 0 | CV43: 0 | CW43: 0 | CX43: 0 | CY43: 0 | CZ43: 0 | DA43: 0 | DB43: 0 | DC43: 0 | DD43: 0 | DE43: 0 | DF43: 0 | DG43: 0 | DH43: 0 | DI43: 0 | DJ43: 0 | DK43: 0 | DL43: 0 | DM43: 0 | DN43: 0 | DO43: 0 | DP43: 0 | DQ43: 0
B45: Capital Expenditures
D46: Development Cost
E47: Legal | F47: Euro | G47: =Assumptions!H64 -> 90000 | H47: =1/$I$8 -> 0.25 | I47: =SUM(K47:DQ47) -> 0
E48: Accounting/Model/Appr | F48: Euro | G48: =Assumptions!H65 -> 30000 | H48: =1/$I$8 -> 0.25 | I48: =SUM(K48:DQ48) -> 30000 | K48: =$G48*$H48*K$8 -> 7500 | L48: 7500 | M48: 7500 | N48: 7500 | O48: 0 | P48: 0 | Q48: 0 | R48: 0 | S48: 0 | T48: 0 | U48: 0 | V48: 0 | W48: 0 | X48: 0 | Y48: 0 | Z48: 0 | AA48: =$G48*$H48*AA$8 -> 0 | AB48: 0 | AC48: 0 | AD48: 0 | AE48: 0 | AF48: 0 | AG48: 0 | AH48: 0 | AI48: 0 | AJ48: 0 | AK48: 0 | AL48: 0 | AM48: 0 | AN48: 0 | AO48: 0 | AP48: 0 | AQ48: 0 | AR48: 0 | AS48: 0 | AT48: 0 | AU48: 0 | AV48: 0 | AW48: 0 | AX48: 0 | AY48: 0 | AZ48: 0 | BA48: 0 | BB48: 0 | BC48: 0 | BD48: 0 | BE48: 0 | BF48: 0 | BG48: 0 | BH48: 0 | BI48: 0 | BJ48: 0 | BK48: 0 | BL48: 0 | BM48: 0 | BN48: 0 | BO48: 0 | BP48: 0 | BQ48: 0 | BR48: 0 | BS48: =$G48*$H48*BS$8 -> 0 | BT48: 0 | BU48: 0 | BV48: 0 | BW48: 0 | BX48: 0 | BY48: 0 | BZ48: 0 | CA48: 0 | CB48: 0 | CC48: 0 | CD48: 0 | CE48: 0 | CF48: 0 | CG48: 0 | CH48: 0 | CI48: 0 | CJ48: 0 | CK48: 0 | CL48: 0 | CM48: =$G48*$H48*CM$8 -> 0 | CN48: 0 | CO48: 0 | CP48: 0 | CQ48: 0 | CR48: 0 | CS48: 0 | CT48: 0 | CU48: 0 | CV48: 0 | CW48: 0 | CX48: 0 | CY48: 0 | CZ48: 0 | DA48: =$G48*$H48*DA$8 -> 0 | DB48: 0 | DC48: 0 | DD48: 0 | DE48: 0 | DF48: 0 | DG48: 0 | DH48: 0 | DI48: 0 | DJ48: 0 | DK48: 0 | DL48: 0 | DM48: 0 | DN48: 0 | DO48: 0 | DP48: 0 | DQ48: 0
E49: Independent Eng | F49: Euro | G49: =Assumptions!H66 -> 18000 | H49: 0.25 | I49: 18000 | K49: 4500 | L49: 4500 | M49: 4500 | N49: 4500 | O49: 0 | P49: 0 | Q49: 0 | R49: 0 | S49: 0 | T49: 0 | U49: 0 | V49: 0 | W49: 0 | X49: 0 | Y49: 0 | Z49: 0 | AA49: 0 | AB49: 0 | AC49: 0 | AD49: 0 | AE49: 0 | AF49: 0 | AG49: 0 | AH49: 0 | AI49: 0 | AJ49: 0 | AK49: 0 | AL49: 0 | AM49: 0 | AN49: 0 | AO49: 0 | AP49: 0 | AQ49: 0 | AR49: 0 | AS49: 0 | AT49: 0 | AU49: 0 | AV49: 0 | AW49: 0 | AX49: 0 | AY49: 0 | AZ49: 0 | BA49: 0 | BB49: 0 | BC49: 0 | BD49: 0 | BE49: 0 | BF49: 0 | BG49: 0 | BH49: 0 | BI49: 0 | BJ49: 0 | BK49: 0 | BL49: 0 | BM49: 0 | BN49: 0 | BO49: 0 | BP49: 0 | BQ49: 0 | BR49: 0 | BS49: 0 | BT49: 0 | BU49: 0 | BV49: 0 | BW49: 0 | BX49: 0 | BY49: 0 | BZ49: 0 | CA49: 0 | CB49: 0 | CC49: 0 | CD49: 0 | CE49: 0 | CF49: 0 | CG49: 0 | CH49: 0 | CI49: 0 | CJ49: 0 | CK49: 0 | CL49: 0 | CM49: 0 | CN49: 0 | CO49: 0 | CP49: 0 | CQ49: 0 | CR49: 0 | CS49: 0 | CT49: 0 | CU49: 0 | CV49: 0 | CW49: 0 | CX49: 0 | CY49: 0 | CZ49: 0 | DA49: 0 | DB49: 0 | DC49: 0 | DD49: 0 | DE49: 0 | DF49: 0 | DG49: 0 | DH49: 0 | DI49: 0 | DJ49: 0 | DK49: 0 | DL49: 0 | DM49: 0 | DN49: 0 | DO49: 0 | DP49: 0 | DQ49: 0
E50: Misc. | F50: Euro | G50: =Assumptions!H67 -> 24000 | H50: 0.25 | I50: 24000 | K50: 6000 | L50: 6000 | M50: 6000 | N50: 6000 | O50: 0 | P50: 0 | Q50: 0 | R50: 0 | S50: 0 | T50: 0 | U50: 0 | V50: 0 | W50: 0 | X50: 0 | Y50: 0 | Z50: 0 | AA50: 0 | AB50: 0 | AC50: 0 | AD50: 0 | AE50: 0 | AF50: 0 | AG50: 0 | AH50: 0 | AI50: 0 | AJ50: 0 | AK50: 0 | AL50: 0 | AM50: 0 | AN50: 0 | AO50: 0 | AP50: 0 | AQ50: 0 | AR50: 0 | AS50: 0 | AT50: 0 | AU50: 0 | AV50: 0 | AW50: 0 | AX50: 0 | AY50: 0 | AZ50: 0 | BA50: 0 | BB50: 0 | BC50: 0 | BD50: 0 | BE50: 0 | BF50: 0 | BG50: 0 | BH50: 0 | BI50: 0 | BJ50: 0 | BK50: 0 | BL50: 0 | BM50: 0 | BN50: 0 | BO50: 0 | BP50: 0 | BQ50: 0 | BR50: 0 | BS50: 0 | BT50: 0 | BU50: 0 | BV50: 0 | BW50: 0 | BX50: 0 | BY50: 0 | BZ50: 0 | CA50: 0 | CB50: 0 | CC50: 0 | CD50: 0 | CE50: 0 | CF50: 0 | CG50: 0 | CH50: 0 | CI50: 0 | CJ50: 0 | CK50: 0 | CL50: 0 | CM50: 0 | CN50: 0 | CO50: 0 | CP50: 0 | CQ50: 0 | CR50: 0 | CS50: 0 | CT50: 0 | CU50: 0 | CV50: 0 | CW50: 0 | CX50: 0 | CY50: 0 | CZ50: 0 | DA50: 0 | DB50: 0 | DC50: 0 | DD50: 0 | DE50: 0 | DF50: 0 | DG50: 0 | DH50: 0 | DI50: 0 | DJ50: 0 | DK50: 0 | DL50: 0 | DM50: 0 | DN50: 0 | DO50: 0 | DP50: 0 | DQ50: 0
E51: Total | F51: Euro | I51: =SUM(K51:BR51) -> 72000 | K51: =SUM(K47:K50) -> 18000 | L51: =SUM(L47:L50) -> 18000 | M51: 18000 | N51: 18000 | O51: 0 | P51: 0 | Q51: 0 | R51: 0 | S51: 0 | T51: 0 | U51: 0 | V51: 0 | W51: 0 | X51: 0 | Y51: 0 | Z51: 0 | AA51: 0 | AB51: 0 | AC51: 0 | AD51: 0 | AE51: 0 | AF51: 0 | AG51: 0 | AH51: 0 | AI51: 0 | AJ51: 0 | AK51: 0 | AL51: 0 | AM51: 0 | AN51: 0 | AO51: 0 | AP51: 0 | AQ51: 0 | AR51: 0 | AS51: 0 | AT51: 0 | AU51: 0 | AV51: 0 | AW51: 0 | AX51: 0 | AY51: 0 | AZ51: 0 | BA51: 0 | BB51: 0 | BC51: 0 | BD51: 0 | BE51: 0 | BF51: 0 | BG51: 0 | BH51: 0 | BI51: 0 | BJ51: 0 | BK51: 0 | BL51: 0 | BM51: 0 | BN51: 0 | BO51: 0 | BP51: 0 | BQ51: 0 | BR51: 0 | BS51: =SUM(BS47:BS50) -> 0 | BT51: =SUM(BT47:BT50) -> 0 | BU51: =SUM(BU47:BU50) -> 0 | BV51: =SUM(BV47:BV50) -> 0 | BW51: =SUM(BW47:BW50) -> 0 | BX51: =SUM(BX47:BX50) -> 0 | BY51: =SUM(BY47:BY50) -> 0 | BZ51: =SUM(BZ47:BZ50) -> 0 | CA51: =SUM(CA47:CA50) -> 0 | CB51: =SUM(CB47:CB50) -> 0 | CC51: =SUM(CC47:CC50) -> 0 | CD51: =SUM(CD47:CD50) -> 0 | CE51: =SUM(CE47:CE50) -> 0 | CF51: =SUM(CF47:CF50) -> 0 | CG51: =SUM(CG47:CG50) -> 0 | CH51: =SUM(CH47:CH50) -> 0 | CI51: =SUM(CI47:CI50) -> 0 | CJ51: =SUM(CJ47:CJ50) -> 0 | CK51: =SUM(CK47:CK50) -> 0 | CL51: =SUM(CL47:CL50) -> 0 | CM51: =SUM(CM47:CM50) -> 0 | CN51: =SUM(CN47:CN50) -> 0 | CO51: =SUM(CO47:CO50) -> 0 | CP51: =SUM(CP47:CP50) -> 0 | CQ51: =SUM(CQ47:CQ50) -> 0 | CR51: =SUM(CR47:CR50) -> 0 | CS51: =SUM(CS47:CS50) -> 0 | CT51: =SUM(CT47:CT50) -> 0 | CU51: =SUM(CU47:CU50) -> 0 | CV51: =SUM(CV47:CV50) -> 0 | CW51: =SUM(CW47:CW50) -> 0 | CX51: =SUM(CX47:CX50) -> 0 | CY51: =SUM(CY47:CY50) -> 0 | CZ51: =SUM(CZ47:CZ50) -> 0 | DA51: =SUM(DA47:DA50) -> 0 | DB51: =SUM(DB47:DB50) -> 0 | DC51: =SUM(DC47:DC50) -> 0 | DD51: =SUM(DD47:DD50) -> 0 | DE51: =SUM(DE47:DE50) -> 0 | DF51: =SUM(DF47:DF50) -> 0 | DG51: =SUM(DG47:DG50) -> 0 | DH51: =SUM(DH47:DH50) -> 0 | DI51: =SUM(DI47:DI50) -> 0 | DJ51: =SUM(DJ47:DJ50) -> 0 | DK51: =SUM(DK47:DK50) -> 0 | DL51: =SUM(DL47:DL50) -> 0 | DM51: =SUM(DM47:DM50) -> 0 | DN51: =SUM(DN47:DN50) -> 0 | DO51: =SUM(DO47:DO50) -> 0 | DP51: =SUM(DP47:DP50) -> 0 | DQ51: =SUM(DQ47:DQ50) -> 0
D53: EPC Cost
E54: Panel Price | F54: Euro | G54: =Assumptions!H54 -> 0 | H54: =1/$I$9 -> 0.01694915254 | I54: =SUM(K54:DQ54) -> 0 | K54: =$G54*$H54*K$9 -> 0 | L54: =$G54*$H54*L$9 -> 0 | M54: 0 | N54: 0 | O54: 0 | P54: 0 | Q54: 0 | R54: 0 | S54: 0 | T54: 0 | U54: 0 | V54: 0 | W54: 0 | X54: 0 | Y54: 0 | Z54: 0 | AA54: 0 | AB54: 0 | AC54: 0 | AD54: 0 | AE54: 0 | AF54: 0 | AG54: 0 | AH54: 0 | AI54: 0 | AJ54: 0 | AK54: 0 | AL54: 0 | AM54: 0 | AN54: 0 | AO54: 0 | AP54: 0 | AQ54: 0 | AR54: 0 | AS54: 0 | AT54: 0 | AU54: 0 | AV54: 0 | AW54: 0 | AX54: 0 | AY54: 0 | AZ54: 0 | BA54: 0 | BB54: 0 | BC54: 0 | BD54: 0 | BE54: 0 | BF54: 0 | BG54: 0 | BH54: 0 | BI54: 0 | BJ54: 0 | BK54: 0 | BL54: 0 | BM54: 0 | BN54: 0 | BO54: 0 | BP54: 0 | BQ54: 0 | BR54: 0 | BS54: 0 | BT54: 0 | BU54: 0 | BV54: 0 | BW54: 0 | BX54: =$G54*$H54*BX$9 -> 0 | BY54: 0 | BZ54: 0 | CA54: 0 | CB54: 0 | CC54: 0 | CD54: 0 | CE54: 0 | CF54: 0 | CG54: 0 | CH54: 0 | CI54: 0 | CJ54: 0 | CK54: 0 | CL54: 0 | CM54: 0 | CN54: 0 | CO54: 0 | CP54: 0 | CQ54: 0 | CR54: 0 | CS54: 0 | CT54: 0 | CU54: 0 | CV54: 0 | CW54: 0 | CX54: 0 | CY54: 0 | CZ54: 0 | DA54: 0 | DB54: =$G54*$H54*DB$9 -> 0 | DC54: 0 | DD54: 0 | DE54: 0 | DF54: 0 | DG54: 0 | DH54: 0 | DI54: 0 | DJ54: 0 | DK54: 0 | DL54: 0 | DM54: 0 | DN54: 0 | DO54: 0 | DP54: 0 | DQ54: 0
E55: Racking and Tracking | F55: Euro | G55: =Assumptions!H55 -> 2040000 | H55: =1/$I$9 -> 0.01694915254 | I55: =SUM(K55:DQ55) -> 3803389.831 | K55: =$G55*$H55*K$9 -> 0 | L55: 34576.27119 | M55: 34576.27119 | N55: 34576.27119 | O55: 34576.27119 | P55: 34576.27119 | Q55: 34576.27119 | R55: 34576.27119 | S55: 34576.27119 | T55: 34576.27119 | U55: 34576.27119 | V55: 34576.27119 | W55: 34576.27119 | X55: 34576.27119 | Y55: 34576.27119 | Z55: 34576.27119 | AA55: 34576.27119 | AB55: 34576.27119 | AC55: 34576.27119 | AD55: 34576.27119 | AE55: 34576.27119 | AF55: 34576.27119 | AG55: 34576.27119 | AH55: 34576.27119 | AI55: 34576.27119 | AJ55: 34576.27119 | AK55: 34576.27119 | AL55: 34576.27119 | AM55: 34576.27119 | AN55: 34576.27119 | AO55: 34576.27119 | AP55: 34576.27119 | AQ55: 34576.27119 | AR55: 34576.27119 | AS55: 34576.27119 | AT55: 34576.27119 | AU55: 34576.27119 | AV55: 34576.27119 | AW55: 34576.27119 | AX55: 34576.27119 | AY55: 34576.27119 | AZ55: 34576.27119 | BA55: 34576.27119 | BB55: 34576.27119 | BC55: 34576.27119 | BD55: 34576.27119 | BE55: 34576.27119 | BF55: 34576.27119 | BG55: 34576.27119 | BH55: 34576.27119 | BI55: 34576.27119 | BJ55: 34576.27119 | BK55: 34576.27119 | BL55: 34576.27119 | BM55: 34576.27119 | BN55: 34576.27119 | BO55: 34576.27119 | BP55: 34576.27119 | BQ55: 34576.27119 | BR55: 34576.27119 | BS55: 34576.27119 | BT55: 34576.27119 | BU55: 34576.27119 | BV55: 34576.27119 | BW55: 34576.27119 | BX55: 34576.27119 | BY55: 34576.27119 | BZ55: 34576.27119 | CA55: 34576.27119 | CB55: 34576.27119 | CC55: 34576.27119 | CD55: 34576.27119 | CE55: 34576.27119 | CF55: 34576.27119 | CG55: 34576.27119 | CH55: 34576.27119 | CI55: 34576.27119 | CJ55: 34576.27119 | CK55: 34576.27119 | CL55: 34576.27119 | CM55: 34576.27119 | CN55: 34576.27119 | CO55: 34576.27119 | CP55: 34576.27119 | CQ55: 34576.27119 | CR55: 34576.27119 | CS55: 34576.27119 | CT55: 34576.27119 | CU55: 34576.27119 | CV55: 34576.27119 | CW55: 34576.27119 | CX55: 34576.27119 | CY55: 34576.27119 | CZ55: 34576.27119 | DA55: 34576.27119 | DB55: 34576.27119 | DC55: 34576.27119 | DD55: 34576.27119 | DE55: 34576.27119 | DF55: 34576.27119 | DG55: 34576.27119 | DH55: 34576.27119 | DI55: 34576.27119 | DJ55: 34576.27119 | DK55: 34576.27119 | DL55: 34576.27119 | DM55: 34576.27119 | DN55: 34576.27119 | DO55: 34576.27119 | DP55: 34576.27119 | DQ55: 34576.27119
E56: Balance of System and Inverter | F56: Euro | G56: =Assumptions!H56 -> 600000 | H56: 0.01694915254 | I56: 1118644.068 | K56: 0 | L56: 10169.49153 | M56: 10169.49153 | N56: 10169.49153 | O56: 10169.49153 | P56: 10169.49153 | Q56: 10169.49153 | R56: 10169.49153 | S56: 10169.49153 | T56: 10169.49153 | U56: 10169.49153 | V56: 10169.49153 | W56: 10169.49153 | X56: 10169.49153 | Y56: 10169.49153 | Z56: 10169.49153 | AA56: 10169.49153 | AB56: 10169.49153 | AC56: 10169.49153 | AD56: 10169.49153 | AE56: 10169.49153 | AF56: 10169.49153 | AG56: 10169.49153 | AH56: 10169.49153 | AI56: 10169.49153 | AJ56: 10169.49153 | AK56: 10169.49153 | AL56: 10169.49153 | AM56: 10169.49153 | AN56: 10169.49153 | AO56: 10169.49153 | AP56: 10169.49153 | AQ56: 10169.49153 | AR56: 10169.49153 | AS56: 10169.49153 | AT56: 10169.49153 | AU56: 10169.49153 | AV56: 10169.49153 | AW56: 10169.49153 | AX56: 10169.49153 | AY56: 10169.49153 | AZ56: 10169.49153 | BA56: 10169.49153 | BB56: 10169.49153 | BC56: 10169.49153 | BD56: 10169.49153 | BE56: 10169.49153 | BF56: 10169.49153 | BG56: 10169.49153 | BH56: 10169.49153 | BI56: 10169.49153 | BJ56: 10169.49153 | BK56: 10169.49153 | BL56: 10169.49153 | BM56: 10169.49153 | BN56: 10169.49153 | BO56: 10169.49153 | BP56: 10169.49153 | BQ56: 10169.49153 | BR56: 10169.49153 | BS56: 10169.49153 | BT56: 10169.49153 | BU56: 10169.49153 | BV56: 10169.49153 | BW56: 10169.49153 | BX56: 10169.49153 | BY56: 10169.49153 | BZ56: 10169.49153 | CA56: 10169.49153 | CB56: 10169.49153 | CC56: 10169.49153 | CD56: 10169.49153 | CE56: 10169.49153 | CF56: 10169.49153 | CG56: 10169.49153 | CH56: 10169.49153 | CI56: 10169.49153 | CJ56: 10169.49153 | CK56: 10169.49153 | CL56: 10169.49153 | CM56: 10169.49153 | CN56: 10169.49153 | CO56: 10169.49153 | CP56: 10169.49153 | CQ56: 10169.49153 | CR56: 10169.49153 | CS56: 10169.49153 | CT56: 10169.49153 | CU56: 10169.49153 | CV56: 10169.49153 | CW56: 10169.49153 | CX56: 10169.49153 | CY56: 10169.49153 | CZ56: 10169.49153 | DA56: 10169.49153 | DB56: 10169.49153 | DC56: 10169.49153 | DD56: 10169.49153 | DE56: 10169.49153 | DF56: 10169.49153 | DG56: 10169.49153 | DH56: 10169.49153 | DI56: 10169.49153 | DJ56: 10169.49153 | DK56: 10169.49153 | DL56: 10169.49153 | DM56: 10169.49153 | DN56: 10169.49153 | DO56: 10169.49153 | DP56: 10169.49153 | DQ56: 10169.49153
E57: Site Work (assume ineligible) | F57: Euro | G57: =Assumptions!H57 -> 180000 | H57: 0.01694915254 | I57: 335593.2203 | K57: 0 | L57: 3050.847458 | M57: 3050.847458 | N57: 3050.847458 | O57: 3050.847458 | P57: 3050.847458 | Q57: 3050.847458 | R57: 3050.847458 | S57: 3050.847458 | T57: 3050.847458 | U57: 3050.847458 | V57: 3050.847458 | W57: 3050.847458 | X57: 3050.847458 | Y57: 3050.847458 | Z57: 3050.847458 | AA57: 3050.847458 | AB57: 3050.847458 | AC57: 3050.847458 | AD57: 3050.847458 | AE57: 3050.847458 | AF57: 3050.847458 | AG57: 3050.847458 | AH57: 3050.847458 | AI57: 3050.847458 | AJ57: 3050.847458 | AK57: 3050.847458 | AL57: 3050.847458 | AM57: 3050.847458 | AN57: 3050.847458 | AO57: 3050.847458 | AP57: 3050.847458 | AQ57: 3050.847458 | AR57: 3050.847458 | AS57: 3050.847458 | AT57: 3050.847458 | AU57: 3050.847458 | AV57: 3050.847458 | AW57: 3050.847458 | AX57: 3050.847458 | AY57: 3050.847458 | AZ57: 3050.847458 | BA57: 3050.847458 | BB57: 3050.847458 | BC57: 3050.847458 | BD57: 3050.847458 | BE57: 3050.847458 | BF57: 3050.847458 | BG57: 3050.847458 | BH57: 3050.847458 | BI57: 3050.847458 | BJ57: 3050.847458 | BK57: 3050.847458 | BL57: 3050.847458 | BM57: 3050.847458 | BN57: 3050.847458 | BO57: 3050.847458 | BP57: 3050.847458 | BQ57: 3050.847458 | BR57: 3050.847458 | BS57: 3050.847458 | BT57: 3050.847458 | BU57: 3050.847458 | BV57: 3050.847458 | BW57: 3050.847458 | BX57: 3050.847458 | BY57: 3050.847458 | BZ57: 3050.847458 | CA57: 3050.847458 | CB57: 3050.847458 | CC57: 3050.847458 | CD57: 3050.847458 | CE57: 3050.847458 | CF57: 3050.847458 | CG57: 3050.847458 | CH57: 3050.847458 | CI57: 3050.847458 | CJ57: 3050.847458 | CK57: 3050.847458 | CL57: 3050.847458 | CM57: 3050.847458 | CN57: 3050.847458 | CO57: 3050.847458 | CP57: 3050.847458 | CQ57: 3050.847458 | CR57: 3050.847458 | CS57: 3050.847458 | CT57: 3050.847458 | CU57: 3050.847458 | CV57: 3050.847458 | CW57: 3050.847458 | CX57: 3050.847458 | CY57: 3050.847458 | CZ57: 3050.847458 | DA57: 3050.847458 | DB57: 3050.847458 | DC57: 3050.847458 | DD57: 3050.847458 | DE57: 3050.847458 | DF57: 3050.847458 | DG57: 3050.847458 | DH57: 3050.847458 | DI57: 3050.847458 | DJ57: 3050.847458 | DK57: 3050.847458 | DL57: 3050.847458 | DM57: 3050.847458 | DN57: 3050.847458 | DO57: 3050.847458 | DP57: 3050.847458 | DQ57: 3050.847458
E58: Special Ineligible | F58: Euro | G58: =Assumptions!H58 -> 0 | H58: 0.01694915254 | I58: 0 | K58: 0 | L58: 0 | M58: 0 | N58: 0 | O58: 0 | P58: 0 | Q58: 0 | R58: 0 | S58: 0 | T58: 0 | U58: 0 | V58: 0 | W58: 0 | X58: 0 | Y58: 0 | Z58: 0 | AA58: 0 | AB58: 0 | AC58: 0 | AD58: 0 | AE58: 0 | AF58: 0 | AG58: 0 | AH58: 0 | AI58: 0 | AJ58: 0 | AK58: 0 | AL58: 0 | AM58: 0 | AN58: 0 | AO58: 0 | AP58: 0 | AQ58: 0 | AR58: 0 | AS58: 0 | AT58: 0 | AU58: 0 | AV58: 0 | AW58: 0 | AX58: 0 | AY58: 0 | AZ58: 0 | BA58: 0 | BB58: 0 | BC58: 0 | BD58: 0 | BE58: 0 | BF58: 0 | BG58: 0 | BH58: 0 | BI58: 0 | BJ58: 0 | BK58: 0 | BL58: 0 | BM58: 0 | BN58: 0 | BO58: 0 | BP58: 0 | BQ58: 0 | BR58: 0 | BS58: =$G58*$H58*BS$9 -> 0 | BT58: 0 | BU58: 0 | BV58: 0 | BW58: 0 | BX58: 0 | BY58: 0 | BZ58: 0 | CA58: 0 | CB58: 0 | CC58: 0 | CD58: 0 | CE58: 0 | CF58: 0 | CG58: 0 | CH58: 0 | CI58: 0 | CJ58: 0 | CK58: 0 | CL58: 0 | CM58: 0 | CN58: 0 | CO58: 0 | CP58: 0 | CQ58: 0 | CR58: 0 | CS58: 0 | CT58: 0 | CU58: 0 | CV58: 0 | CW58: 0 | CX58: 0 | CY58: 0 | CZ58: 0 | DA58: 0 | DB58: 0 | DC58: 0 | DD58: 0 | DE58: 0 | DF58: 0 | DG58: 0 | DH58: 0 | DI58: 0 | DJ58: 0 | DK58: 0 | DL58: 0 | DM58: 0 | DN58: 0 | DO58: 0 | DP58: 0 | DQ58: 0
E59: Battery | F59: Euro | G59: =Assumptions!H59 -> 0 | H59: 0.01694915254 | I59: 0 | K59: 0 | L59: 0 | M59: 0 | N59: 0 | O59: 0 | P59: 0 | Q59: 0 | R59: 0 | S59: 0 | T59: 0 | U59: 0 | V59: 0 | W59: 0 | X59: 0 | Y59: 0 | Z59: 0 | AA59: =$G59*$H59*AA$9 -> 0 | AB59: 0 | AC59: 0 | AD59: 0 | AE59: 0 | AF59: 0 | AG59: 0 | AH59: 0 | AI59: 0 | AJ59: 0 | AK59: 0 | AL59: 0 | AM59: 0 | AN59: 0 | AO59: 0 | AP59: 0 | AQ59: 0 | AR59: 0 | AS59: 0 | AT59: 0 | AU59: 0 | AV59: 0 | AW59: 0 | AX59: 0 | AY59: 0 | AZ59: 0 | BA59: 0 | BB59: 0 | BC59: 0 | BD59: 0 | BE59: 0 | BF59: 0 | BG59: 0 | BH59: 0 | BI59: 0 | BJ59: 0 | BK59: 0 | BL59: 0 | BM59: 0 | BN59: 0 | BO59: 0 | BP59: 0 | BQ59: 0 | BR59: 0 | BS59: 0 | BT59: 0 | BU59: 0 | BV59: 0 | BW59: 0 | BX59: 0 | BY59: 0 | BZ59: 0 | CA59: 0 | CB59: 0 | CC59: 0 | CD59: 0 | CE59: 0 | CF59: 0 | CG59: 0 | CH59: 0 | CI59: 0 | CJ59: 0 | CK59: 0 | CL59: 0 | CM59: 0 | CN59: 0 | CO59: 0 | CP59: 0 | CQ59: 0 | CR59: 0 | CS59: 0 | CT59: 0 | CU59: 0 | CV59: 0 | CW59: 0 | CX59: 0 | CY59: 0 | CZ59: 0 | DA59: 0 | DB59: 0 | DC59: 0 | DD59: 0 | DE59: 0 | DF59: 0 | DG59: 0 | DH59: 0 | DI59: 0 | DJ59: 0 | DK59: 0 | DL59: 0 | DM59: 0 | DN59: 0 | DO59: 0 | DP59: 0 | DQ59: 0
E60: Misc. (Tax, Margin, Other) | F60: Euro | G60: =Assumptions!H60 -> 480000 | H60: 0.01694915254 | I60: 894915.2542 | K60: 0 | L60: 8135.59322 | M60: 8135.59322 | N60: 8135.59322 | O60: 8135.59322 | P60: 8135.59322 | Q60: 8135.59322 | R60: 8135.59322 | S60: 8135.59322 | T60: 8135.59322 | U60: 8135.59322 | V60: 8135.59322 | W60: 8135.59322 | X60: 8135.59322 | Y60: 8135.59322 | Z60: 8135.59322 | AA60: 8135.59322 | AB60: 8135.59322 | AC60: 8135.59322 | AD60: 8135.59322 | AE60: 8135.59322 | AF60: 8135.59322 | AG60: 8135.59322 | AH60: 8135.59322 | AI60: 8135.59322 | AJ60: 8135.59322 | AK60: 8135.59322 | AL60: 8135.59322 | AM60: 8135.59322 | AN60: 8135.59322 | AO60: 8135.59322 | AP60: 8135.59322 | AQ60: 8135.59322 | AR60: 8135.59322 | AS60: 8135.59322 | AT60: 8135.59322 | AU60: 8135.59322 | AV60: 8135.59322 | AW60: 8135.59322 | AX60: 8135.59322 | AY60: 8135.59322 | AZ60: 8135.59322 | BA60: 8135.59322 | BB60: 8135.59322 | BC60: 8135.59322 | BD60: 8135.59322 | BE60: 8135.59322 | BF60: 8135.59322 | BG60: 8135.59322 | BH60: 8135.59322 | BI60: 8135.59322 | BJ60: 8135.59322 | BK60: 8135.59322 | BL60: 8135.59322 | BM60: 8135.59322 | BN60: 8135.59322 | BO60: 8135.59322 | BP60: 8135.59322 | BQ60: 8135.59322 | BR60: 8135.59322 | BS60: 8135.59322 | BT60: 8135.59322 | BU60: 8135.59322 | BV60: 8135.59322 | BW60: 8135.59322 | BX60: 8135.59322 | BY60: 8135.59322 | BZ60: 8135.59322 | CA60: 8135.59322 | CB60: 8135.59322 | CC60: 8135.59322 | CD60: 8135.59322 | CE60: 8135.59322 | CF60: 8135.59322 | CG60: 8135.59322 | CH60: 8135.59322 | CI60: 8135.59322 | CJ60: 8135.59322 | CK60: 8135.59322 | CL60: 8135.59322 | CM60: 8135.59322 | CN60: 8135.59322 | CO60: 8135.59322 | CP60: 8135.59322 | CQ60: 8135.59322 | CR60: 8135.59322 | CS60: 8135.59322 | CT60: 8135.59322 | CU60: 8135.59322 | CV60: 8135.59322 | CW60: 8135.59322 | CX60: 8135.59322 | CY60: 8135.59322 | CZ60: 8135.59322 | DA60: 8135.59322 | DB60: 8135.59322 | DC60: 8135.59322 | DD60: 8135.59322 | DE60: 8135.59322 | DF60: 8135.59322 | DG60: 8135.59322 | DH60: 8135.59322 | DI60: 8135.59322 | DJ60: 8135.59322 | DK60: 8135.59322 | DL60: 8135.59322 | DM60: 8135.59322 | DN60: 8135.59322 | DO60: 8135.59322 | DP60: 8135.59322 | DQ60: 8135.59322
E61: Total | F61: Euro | G61: =Assumptions!H61 -> 3300000 | H61: 0.01694915254 | I61: =SUM(K61:DQ61) -> 6152542.373 | K61: 0 | L61: 55932.20339 | M61: 55932.20339 | N61: 55932.20339 | O61: 55932.20339 | P61: 55932.20339 | Q61: 55932.20339 | R61: 55932.20339 | S61: 55932.20339 | T61: 55932.20339 | U61: 55932.20339 | V61: 55932.20339 | W61: 55932.20339 | X61: 55932.20339 | Y61: 55932.20339 | Z61: 55932.20339 | AA61: 55932.20339 | AB61: 55932.20339 | AC61: 55932.20339 | AD61: 55932.20339 | AE61: 55932.20339 | AF61: 55932.20339 | AG61: 55932.20339 | AH61: 55932.20339 | AI61: 55932.20339 | AJ61: 55932.20339 | AK61: 55932.20339 | AL61: 55932.20339 | AM61: 55932.20339 | AN61: 55932.20339 | AO61: 55932.20339 | AP61: 55932.20339 | AQ61: 55932.20339 | AR61: 55932.20339 | AS61: 55932.20339 | AT61: 55932.20339 | AU61: 55932.20339 | AV61: 55932.20339 | AW61: 55932.20339 | AX61: 55932.20339 | AY61: 55932.20339 | AZ61: 55932.20339 | BA61: 55932.20339 | BB61: 55932.20339 | BC61: 55932.20339 | BD61: 55932.20339 | BE61: 55932.20339 | BF61: 55932.20339 | BG61: 55932.20339 | BH61: 55932.20339 | BI61: 55932.20339 | BJ61: 55932.20339 | BK61: 55932.20339 | BL61: 55932.20339 | BM61: 55932.20339 | BN61: 55932.20339 | BO61: 55932.20339 | BP61: 55932.20339 | BQ61: 55932.20339 | BR61: 55932.20339 | BS61: 55932.20339 | BT61: 55932.20339 | BU61: 55932.20339 | BV61: 55932.20339 | BW61: 55932.20339 | BX61: 55932.20339 | BY61: 55932.20339 | BZ61: 55932.20339 | CA61: 55932.20339 | CB61: 55932.20339 | CC61: 55932.20339 | CD61: 55932.20339 | CE61: 55932.20339 | CF61: 55932.20339 | CG61: 55932.20339 | CH61: 55932.20339 | CI61: 55932.20339 | CJ61: 55932.20339 | CK61: 55932.20339 | CL61: 55932.20339 | CM61: 55932.20339 | CN61: 55932.20339 | CO61: 55932.20339 | CP61: 55932.20339 | CQ61: 55932.20339 | CR61: 55932.20339 | CS61: 55932.20339 | CT61: 55932.20339 | CU61: 55932.20339 | CV61: 55932.20339 | CW61: 55932.20339 | CX61: 55932.20339 | CY61: 55932.20339 | CZ61: 55932.20339 | DA61: 55932.20339 | DB61: 55932.20339 | DC61: 55932.20339 | DD61: 55932.20339 | DE61: 55932.20339 | DF61: 55932.20339 | DG61: 55932.20339 | DH61: 55932.20339 | DI61: 55932.20339 | DJ61: 55932.20339 | DK61: 55932.20339 | DL61: 55932.20339 | DM61: 55932.20339 | DN61: 55932.20339 | DO61: 55932.20339 | DP61: 55932.20339 | DQ61: 55932.20339
E63: Grand Total Capital Expenditure | F63: Euro | I63: =SUM(K63:DQ63) -> 6224542.373 | K63: =K51+K61 -> 18000 | L63: =L51+L61 -> 73932.20339 | M63: 73932.20339 | N63: 73932.20339 | O63: 55932.20339 | P63: 55932.20339 | Q63: 55932.20339 | R63: 55932.20339 | S63: 55932.20339 | T63: 55932.20339 | U63: 55932.20339 | V63: 55932.20339 | W63: 55932.20339 | X63: 55932.20339 | Y63: 55932.20339 | Z63: 55932.20339 | AA63: 55932.20339 | AB63: 55932.20339 | AC63: 55932.20339 | AD63: 55932.20339 | AE63: 55932.20339 | AF63: 55932.20339 | AG63: 55932.20339 | AH63: 55932.20339 | AI63: 55932.20339 | AJ63: 55932.20339 | AK63: 55932.20339 | AL63: 55932.20339 | AM63: 55932.20339 | AN63: 55932.20339 | AO63: 55932.20339 | AP63: 55932.20339 | AQ63: 55932.20339 | AR63: 55932.20339 | AS63: 55932.20339 | AT63: 55932.20339 | AU63: 55932.20339 | AV63: 55932.20339 | AW63: 55932.20339 | AX63: 55932.20339 | AY63: 55932.20339 | AZ63: 55932.20339 | BA63: 55932.20339 | BB63: 55932.20339 | BC63: 55932.20339 | BD63: 55932.20339 | BE63: 55932.20339 | BF63: 55932.20339 | BG63: 55932.20339 | BH63: 55932.20339 | BI63: 55932.20339 | BJ63: 55932.20339 | BK63: 55932.20339 | BL63: 55932.20339 | BM63: 55932.20339 | BN63: 55932.20339 | BO63: 55932.20339 | BP63: 55932.20339 | BQ63: 55932.20339 | BR63: 55932.20339 | BS63: 55932.20339 | BT63: 55932.20339 | BU63: 55932.20339 | BV63: 55932.20339 | BW63: 55932.20339 | BX63: =BX51+BX61 -> 55932.20339 | BY63: 55932.20339 | BZ63: 55932.20339 | CA63: 55932.20339 | CB63: 55932.20339 | CC63: 55932.20339 | CD63: 55932.20339 | CE63: 55932.20339 | CF63: 55932.20339 | CG63: 55932.20339 | CH63: 55932.20339 | CI63: 55932.20339 | CJ63: 55932.20339 | CK63: 55932.20339 | CL63: 55932.20339 | CM63: 55932.20339 | CN63: 55932.20339 | CO63: 55932.20339 | CP63: 55932.20339 | CQ63: 55932.20339 | CR63: 55932.20339 | CS63: 55932.20339 | CT63: 55932.20339 | CU63: 55932.20339 | CV63: 55932.20339 | CW63: 55932.20339 | CX63: 55932.20339 | CY63: 55932.20339 | CZ63: 55932.20339 | DA63: 55932.20339 | DB63: 55932.20339 | DC63: 55932.20339 | DD63: 55932.20339 | DE63: 55932.20339 | DF63: 55932.20339 | DG63: 55932.20339 | DH63: 55932.20339 | DI63: 55932.20339 | DJ63: 55932.20339 | DK63: 55932.20339 | DL63: 55932.20339 | DM63: 55932.20339 | DN63: 55932.20339 | DO63: 55932.20339 | DP63: 55932.20339 | DQ63: 55932.20339
B65: Operating Expense
D66: Inflation Indices
E67: Inflation Applies | F67: Flag | G67: =Assumptions!H72 -> 1900-05-31
E68: Periodic O&M Inflation | F68: % p.p. | G68: =Assumptions!G72 -> 0.015 | K68: =(1+$G68)^(K$5/12)-1 -> 0 | L68: =(1+$G68)^(L$5/12)-1 -> 0 | M68: 0 | N68: 0 | O68: 0 | P68: 0 | Q68: 0 | R68: 0 | S68: 0 | T68: 0 | U68: 0 | V68: 0 | W68: 0 | X68: 0 | Y68: 0 | Z68: 0 | AA68: 0 | AB68: 0 | AC68: 0 | AD68: 0 | AE68: 0 | AF68: 0 | AG68: 0 | AH68: 0 | AI68: 0 | AJ68: 0 | AK68: 0 | AL68: 0 | AM68: 0 | AN68: 0 | AO68: 0 | AP68: 0 | AQ68: 0 | AR68: 0 | AS68: 0 | AT68: 0 | AU68: 0 | AV68: 0 | AW68: 0 | AX68: 0 | AY68: 0 | AZ68: 0 | BA68: 0 | BB68: 0 | BC68: 0 | BD68: 0 | BE68: 0 | BF68: 0 | BG68: 0 | BH68: 0 | BI68: 0 | BJ68: 0 | BK68: 0 | BL68: 0 | BM68: 0 | BN68: 0 | BO68: 0 | BP68: 0 | BQ68: 0 | BR68: 0 | BS68: 0 | BT68: 0 | BU68: 0 | BV68: 0 | BW68: 0 | BX68: =(1+$G68)^(BX$5/12)-1 -> 0 | BY68: 0 | BZ68: 0 | CA68: 0 | CB68: 0 | CC68: 0 | CD68: 0 | CE68: 0 | CF68: 0 | CG68: 0 | CH68: 0 | CI68: 0 | CJ68: 0 | CK68: 0 | CL68: 0 | CM68: 0 | CN68: 0 | CO68: 0 | CP68: 0 | CQ68: 0 | CR68: 0 | CS68: 0 | CT68: 0 | CU68: 0 | CV68: 0 | CW68: 0 | CX68: 0 | CY68: 0 | CZ68: 0 | DA68: 0 | DB68: =(1+$G68)^(DB$5/12)-1 -> 0 | DC68: 0 | DD68: 0 | DE68: 0 | DF68: 0 | DG68: 0 | DH68: 0 | DI68: 0 | DJ68: 0 | DK68: 0 | DL68: 0 | DM68: 0 | DN68: 0 | DO68: 0 | DP68: 0 | DQ68: 0
E69: Periodic Admin Inflation | F69: % p.p. | G69: =Assumptions!G74 -> 0.005 | K69: =(1+$G69)^(K$5/12)-1 -> 0 | L69: 0 | M69: 0 | N69: 0 | O69: 0 | P69: 0 | Q69: 0 | R69: 0 | S69: 0 | T69: 0 | U69: 0 | V69: 0 | W69: 0 | X69: 0 | Y69: 0 | Z69: 0 | AA69: 0 | AB69: 0 | AC69: 0 | AD69: 0 | AE69: 0 | AF69: 0 | AG69: 0 | AH69: 0 | AI69: 0 | AJ69: 0 | AK69: 0 | AL69: 0 | AM69: 0 | AN69: 0 | AO69: 0 | AP69: 0 | AQ69: 0 | AR69: 0 | AS69: 0 | AT69: 0 | AU69: 0 | AV69: 0 | AW69: 0 | AX69: 0 | AY69: 0 | AZ69: 0 | BA69: 0 | BB69: 0 | BC69: 0 | BD69: 0 | BE69: 0 | BF69: 0 | BG69: 0 | BH69: 0 | BI69: 0 | BJ69: 0 | BK69: 0 | BL69: 0 | BM69: 0 | BN69: 0 | BO69: 0 | BP69: 0 | BQ69: 0 | BR69: 0 | BS69: 0 | BT69: 0 | BU69: 0 | BV69: 0 | BW69: 0 | BX69: 0 | BY69: 0 | BZ69: 0 | CA69: 0 | CB69: 0 | CC69: 0 | CD69: 0 | CE69: 0 | CF69: 0 | CG69: 0 | CH69: 0 | CI69: 0 | CJ69: 0 | CK69: 0 | CL69: 0 | CM69: 0 | CN69: 0 | CO69: 0 | CP69: 0 | CQ69: 0 | CR69: 0 | CS69: 0 | CT69: 0 | CU69: 0 | CV69: 0 | CW69: 0 | CX69: 0 | CY69: 0 | CZ69: 0 | DA69: 0 | DB69: 0 | DC69: 0 | DD69: 0 | DE69: 0 | DF69: 0 | DG69: 0 | DH69: 0 | DI69: 0 | DJ69: 0 | DK69: 0 | DL69: 0 | DM69: 0 | DN69: 0 | DO69: 0 | DP69: 0 | DQ69: 0
E70: Periodic Other Inflation | F70: % p.p. | G70: =Assumptions!G75 -> 0 | K70: 0 | L70: 0 | M70: 0 | N70: 0 | O70: 0 | P70: 0 | Q70: 0 | R70: 0 | S70: 0 | T70: 0 | U70: 0 | V70: 0 | W70: 0 | X70: 0 | Y70: 0 | Z70: 0 | AA70: 0 | AB70: 0 | AC70: 0 | AD70: 0 | AE70: 0 | AF70: 0 | AG70: 0 | AH70: 0 | AI70: 0 | AJ70: 0 | AK70: 0 | AL70: 0 | AM70: 0 | AN70: 0 | AO70: 0 | AP70: 0 | AQ70: 0 | AR70: 0 | AS70: 0 | AT70: 0 | AU70: 0 | AV70: 0 | AW70: 0 | AX70: 0 | AY70: 0 | AZ70: 0 | BA70: 0 | BB70: 0 | BC70: 0 | BD70: 0 | BE70: 0 | BF70: 0 | BG70: 0 | BH70: 0 | BI70: 0 | BJ70: 0 | BK70: 0 | BL70: 0 | BM70: 0 | BN70: 0 | BO70: 0 | BP70: 0 | BQ70: 0 | BR70: 0 | BS70: 0 | BT70: 0 | BU70: 0 | BV70: 0 | BW70: 0 | BX70: 0 | BY70: 0 | BZ70: 0 | CA70: 0 | CB70: 0 | CC70: 0 | CD70: 0 | CE70: 0 | CF70: 0 | CG70: 0 | CH70: 0 | CI70: 0 | CJ70: 0 | CK70: 0 | CL70: 0 | CM70: 0 | CN70: 0 | CO70: 0 | CP70: 0 | CQ70: 0 | CR70: 0 | CS70: 0 | CT70: 0 | CU70: 0 | CV70: 0 | CW70: 0 | CX70: 0 | CY70: 0 | CZ70: 0 | DA70: 0 | DB70: 0 | DC70: 0 | DD70: 0 | DE70: 0 | DF70: 0 | DG70: 0 | DH70: 0 | DI70: 0 | DJ70: 0 | DK70: 0 | DL70: 0 | DM70: 0 | DN70: 0 | DO70: 0 | DP70: 0 | DQ70: 0
E72: O&M | F72: Index | J72: 1
E73: Administrative and Asset Mgmt | F73: Index | J73: 1 | K73: =J73*(1+K69*K$67) -> 1 | L73: 1 | M73: 1 | N73: 1 | O73: 1 | P73: 1 | Q73: 1 | R73: 1 | S73: 1 | T73: 1 | U73: 1 | V73: 1 | W73: 1 | X73: 1 | Y73: 1 | Z73: 1 | AA73: =Z73*(1+AA69*AA$67) -> 1 | AB73: 1 | AC73: 1 | AD73: 1 | AE73: 1 | AF73: 1 | AG73: 1 | AH73: 1 | AI73: 1 | AJ73: 1 | AK73: 1 | AL73: 1 | AM73: 1 | AN73: 1 | AO73: 1 | AP73: 1 | AQ73: 1 | AR73: 1 | AS73: 1 | AT73: 1 | AU73: 1 | AV73: 1 | AW73: 1 | AX73: 1 | AY73: 1 | AZ73: 1 | BA73: 1 | BB73: 1 | BC73: 1 | BD73: 1 | BE73: 1 | BF73: 1 | BG73: 1 | BH73: 1 | BI73: 1 | BJ73: 1 | BK73: 1 | BL73: 1 | BM73: 1 | BN73: 1 | BO73: 1 | BP73: 1 | BQ73: 1 | BR73: 1 | BS73: 1 | BT73: 1 | BU73: 1 | BV73: 1 | BW73: 1 | BX73: =BW73*(1+BX69*BX$67) -> 1 | BY73: 1 | BZ73: 1 | CA73: 1 | CB73: 1 | CC73: 1 | CD73: 1 | CE73: 1 | CF73: 1 | CG73: 1 | CH73: 1 | CI73: 1 | CJ73: 1 | CK73: 1 | CL73: 1 | CM73: 1 | CN73: 1 | CO73: 1 | CP73: 1 | CQ73: 1 | CR73: 1 | CS73: 1 | CT73: 1 | CU73: 1 | CV73: 1 | CW73: 1 | CX73: 1 | CY73: 1 | CZ73: 1 | DA73: =CZ73*(1+DA69*DA$67) -> 1 | DB73: 1 | DC73: 1 | DD73: 1 | DE73: 1 | DF73: 1 | DG73: 1 | DH73: 1 | DI73: 1 | DJ73: 1 | DK73: 1 | DL73: 1 | DM73: 1 | DN73: 1 | DO73: 1 | DP73: 1 | DQ73: 1
E74: Other No Inflation | F74: Index | J74: 1 | K74: 1 | L74: 1 | M74: 1 | N74: 1 | O74: 1 | P74: 1 | Q74: 1 | R74: 1 | S74: 1 | T74: 1 | U74: 1 | V74: 1 | W74: 1 | X74: 1 | Y74: 1 | Z74: 1 | AA74: 1 | AB74: 1 | AC74: 1 | AD74: 1 | AE74: 1 | AF74: 1 | AG74: 1 | AH74: 1 | AI74: 1 | AJ74: 1 | AK74: 1 | AL74: 1 | AM74: 1 | AN74: 1 | AO74: 1 | AP74: 1 | AQ74: 1 | AR74: 1 | AS74: 1 | AT74: 1 | AU74: 1 | AV74: 1 | AW74: 1 | AX74: 1 | AY74: 1 | AZ74: 1 | BA74: 1 | BB74: 1 | BC74: 1 | BD74: 1 | BE74: 1 | BF74: 1 | BG74: 1 | BH74: 1 | BI74: 1 | BJ74: 1 | BK74: 1 | BL74: 1 | BM74: 1 | BN74: 1 | BO74: 1 | BP74: 1 | BQ74: 1 | BR74: 1 | BS74: 1 | BT74: 1 | BU74: 1 | BV74: 1 | BW74: 1 | BX74: 1 | BY74: 1 | BZ74: 1 | CA74: 1 | CB74: 1 | CC74: 1 | CD74: 1 | CE74: 1 | CF74: 1 | CG74: 1 | CH74: 1 | CI74: 1 | CJ74: 1 | CK74: 1 | CL74: 1 | CM74: 1 | CN74: 1 | CO74: 1 | CP74: 1 | CQ74: 1 | CR74: 1 | CS74: 1 | CT74: 1 | CU74: 1 | CV74: 1 | CW74: 1 | CX74: 1 | CY74: 1 | CZ74: 1 | DA74: =CZ74*(1+DA70*DA$67) -> 1 | DB74: 1 | DC74: 1 | DD74: 1 | DE74: 1 | DF74: 1 | DG74: 1 | DH74: 1 | DI74: 1 | DJ74: 1 | DK74: 1 | DL74: 1 | DM74: 1 | DN74: 1 | DO74: 1 | DP74: 1 | DQ74: 1
D76: Inflated O&M per Unit | F76: Months | H76: =H5 -> 0
E77: O&M Fee | F77: Euro/kW-yr | G77: =Assumptions!F72 -> 5 | H77: =G77/12*$H$76 -> 0
E78: Battery O&M | F78: Euro/kW-yr | G78: =Assumptions!F73 -> 0 | H78: =G78/12*$H$76 -> 0 | K78: =$G78*K$5/12*K$72 -> 0 | L78: 0 | M78: 0 | N78: 0 | O78: 0 | P78: 0 | Q78: 0 | R78: 0 | S78: 0 | T78: 0 | U78: =$G78*U$5/12*U$72 -> 0 | V78: 0 | W78: 0 | X78: 0 | Y78: 0 | Z78: 0 | AA78: 0 | AB78: 0 | AC78: 0 | AD78: 0 | AE78: =$G78*AE$5/12*AE$72 -> 0 | AF78: 0 | AG78: 0 | AH78: 0 | AI78: 0 | AJ78: 0 | AK78: 0 | AL78: 0 | AM78: 0 | AN78: 0 | AO78: =$G78*AO$5/12*AO$72 -> 0 | AP78: 0 | AQ78: 0 | AR78: 0 | AS78: 0 | AT78: 0 | AU78: 0 | AV78: 0 | AW78: 0 | AX78: 0 | AY78: =$G78*AY$5/12*AY$72 -> 0 | AZ78: 0 | BA78: 0 | BB78: 0 | BC78: 0 | BD78: 0 | BE78: 0 | BF78: 0 | BG78: 0 | BH78: 0 | BI78: =$G78*BI$5/12*BI$72 -> 0 | BJ78: 0 | BK78: 0 | BL78: 0 | BM78: 0 | BN78: 0 | BO78: 0 | BP78: 0 | BQ78: 0 | BR78: 0 | BS78: =$G78*BS$5/12*BS$72 -> 0 | BT78: 0 | BU78: 0 | BV78: 0 | BW78: 0 | BX78: 0 | BY78: 0 | BZ78: 0 | CA78: 0 | CB78: 0 | CC78: =$G78*CC$5/12*CC$72 -> 0 | CD78: 0 | CE78: 0 | CF78: 0 | CG78: 0 | CH78: 0 | CI78: 0 | CJ78: 0 | CK78: 0 | CL78: 0 | CM78: =$G78*CM$5/12*CM$72 -> 0 | CN78: 0 | CO78: 0 | CP78: 0 | CQ78: 0 | CR78: 0 | CS78: 0 | CT78: 0 | CU78: 0 | CV78: 0 | CW78: =$G78*CW$5/12*CW$72 -> 0 | CX78: 0 | CY78: 0 | CZ78: 0 | DA78: 0 | DB78: 0 | DC78: 0 | DD78: 0 | DE78: 0 | DF78: 0 | DG78: =$G78*DG$5/12*DG$72 -> 0 | DH78: 0 | DI78: 0 | DJ78: 0 | DK78: 0 | DL78: 0 | DM78: 0 | DN78: 0 | DO78: 0 | DP78: 0 | DQ78: 0
E79: Administration Accounting Etc | F79: Euro/kW-yr | G79: =Assumptions!F74 -> 4.5 | H79: 0 | K79: =$G79*K$5/12*K$73 -> 0 | L79: =$G79*L$5/12*L$73 -> 0 | M79: 0 | N79: 0 | O79: 0 | P79: 0 | Q79: 0 | R79: 0 | S79: 0 | T79: 0 | U79: 0 | V79: 0 | W79: 0 | X79: 0 | Y79: 0 | Z79: 0 | AA79: 0 | AB79: 0 | AC79: 0 | AD79: 0 | AE79: 0 | AF79: 0 | AG79: 0 | AH79: 0 | AI79: 0 | AJ79: 0 | AK79: 0 | AL79: 0 | AM79: 0 | AN79: 0 | AO79: 0 | AP79: 0 | AQ79: 0 | AR79: 0 | AS79: 0 | AT79: 0 | AU79: 0 | AV79: 0 | AW79: 0 | AX79: 0 | AY79: 0 | AZ79: 0 | BA79: 0 | BB79: 0 | BC79: 0 | BD79: 0 | BE79: 0 | BF79: 0 | BG79: 0 | BH79: 0 | BI79: 0 | BJ79: 0 | BK79: 0 | BL79: 0 | BM79: 0 | BN79: 0 | BO79: 0 | BP79: 0 | BQ79: 0 | BR79: 0 | BS79: 0 | BT79: 0 | BU79: 0 | BV79: 0 | BW79: 0 | BX79: =$G79*BX$5/12*BX$73 -> 0 | BY79: 0 | BZ79: 0 | CA79: 0 | CB79: 0 | CC79: 0 | CD79: 0 | CE79: 0 | CF79: 0 | CG79: 0 | CH79: 0 | CI79: 0 | CJ79: 0 | CK79: 0 | CL79: 0 | CM79: 0 | CN79: 0 | CO79: 0 | CP79: 0 | CQ79: 0 | CR79: 0 | CS79: 0 | CT79: 0 | CU79: 0 | CV79: 0 | CW79: 0 | CX79: 0 | CY79: 0 | CZ79: 0 | DA79: 0 | DB79: 0 | DC79: 0 | DD79: 0 | DE79: 0 | DF79: 0 | DG79: 0 | DH79: 0 | DI79: 0 | DJ79: 0 | DK79: 0 | DL79: 0 | DM79: 0 | DN79: 0 | DO79: 0 | DP79: 0 | DQ79: 0
E80: Insurance Cost | F80: Euro/kW-yr | G80: =Assumptions!F75 -> 2.8 | H80: 0 | K80: =$G80*K$5/12*K74 -> 0 | L80: =$G80*L$5/12*L74 -> 0 | M80: 0 | N80: 0 | O80: 0 | P80: 0 | Q80: 0 | R80: 0 | S80: 0 | T80: 0 | U80: 0 | V80: 0 | W80: 0 | X80: 0 | Y80: 0 | Z80: 0 | AA80: 0 | AB80: 0 | AC80: 0 | AD80: 0 | AE80: 0 | AF80: 0 | AG80: 0 | AH80: 0 | AI80: 0 | AJ80: 0 | AK80: 0 | AL80: 0 | AM80: 0 | AN80: 0 | AO80: 0 | AP80: 0 | AQ80: 0 | AR80: 0 | AS80: 0 | AT80: 0 | AU80: 0 | AV80: 0 | AW80: 0 | AX80: 0 | AY80: 0 | AZ80: 0 | BA80: 0 | BB80: 0 | BC80: 0 | BD80: 0 | BE80: 0 | BF80: 0 | BG80: 0 | BH80: 0 | BI80: 0 | BJ80: 0 | BK80: 0 | BL80: 0 | BM80: 0 | BN80: 0 | BO80: 0 | BP80: 0 | BQ80: 0 | BR80: 0 | BS80: 0 | BT80: 0 | BU80: 0 | BV80: 0 | BW80: 0 | BX80: =$G80*BX$5/12*BX74 -> 0 | BY80: 0 | BZ80: 0 | CA80: 0 | CB80: 0 | CC80: 0 | CD80: 0 | CE80: 0 | CF80: 0 | CG80: 0 | CH80: 0 | CI80: 0 | CJ80: 0 | CK80: 0 | CL80: 0 | CM80: 0 | CN80: 0 | CO80: 0 | CP80: 0 | CQ80: 0 | CR80: 0 | CS80: 0 | CT80: 0 | CU80: 0 | CV80: 0 | CW80: 0 | CX80: 0 | CY80: 0 | CZ80: 0 | DA80: =$G80*DA$5/12*DA74 -> 0 | DB80: 0 | DC80: 0 | DD80: 0 | DE80: 0 | DF80: 0 | DG80: 0 | DH80: 0 | DI80: 0 | DJ80: 0 | DK80: 0 | DL80: 0 | DM80: 0 | DN80: 0 | DO80: 0 | DP80: 0 | DQ80: 0
E81: Rent/Lease Expense | F81: Euro/Yr | G81: =Assumptions!F76 -> 30000 | H81: 0 | K81: =$G81*K$5/12 -> 0 | L81: =$G81*L$5/12 -> 0 | M81: 0 | N81: 0 | O81: 0 | P81: 0 | Q81: 0 | R81: 0 | S81: 0 | T81: 0 | U81: 0 | V81: 0 | W81: 0 | X81: 0 | Y81: 0 | Z81: 0 | AA81: 0 | AB81: 0 | AC81: 0 | AD81: 0 | AE81: 0 | AF81: 0 | AG81: 0 | AH81: 0 | AI81: 0 | AJ81: 0 | AK81: 0 | AL81: 0 | AM81: 0 | AN81: 0 | AO81: 0 | AP81: 0 | AQ81: 0 | AR81: 0 | AS81: 0 | AT81: 0 | AU81: 0 | AV81: 0 | AW81: 0 | AX81: 0 | AY81: 0 | AZ81: 0 | BA81: 0 | BB81: 0 | BC81: 0 | BD81: 0 | BE81: 0 | BF81: 0 | BG81: 0 | BH81: 0 | BI81: 0 | BJ81: 0 | BK81: 0 | BL81: 0 | BM81: 0 | BN81: 0 | BO81: 0 | BP81: 0 | BQ81: 0 | BR81: 0 | BS81: 0 | BT81: 0 | BU81: 0 | BV81: 0 | BW81: 0 | BX81: =$G81*BX$5/12 -> 0 | BY81: 0 | BZ81: 0 | CA81: 0 | CB81: 0 | CC81: 0 | CD81: 0 | CE81: 0 | CF81: 0 | CG81: 0 | CH81: 0 | CI81: 0 | CJ81: 0 | CK81: 0 | CL81: 0 | CM81: 0 | CN81: 0 | CO81: 0 | CP81: 0 | CQ81: 0 | CR81: 0 | CS81: 0 | CT81: 0 | CU81: 0 | CV81: 0 | CW81: 0 | CX81: 0 | CY81: 0 | CZ81: 0 | DA81: 0 | DB81: 0 | DC81: 0 | DD81: 0 | DE81: 0 | DF81: 0 | DG81: 0 | DH81: 0 | DI81: 0 | DJ81: 0 | DK81: 0 | DL81: 0 | DM81: 0 | DN81: 0 | DO81: 0 | DP81: 0 | DQ81: 0
E82: Property Taxes | F82: Euro/Yr | G82: =Assumptions!F77 -> 0 | H82: 0 | K82: =$G82*K$5/12*K$72 -> 0 | L82: 0 | M82: 0 | N82: 0 | O82: 0 | P82: 0 | Q82: 0 | R82: 0 | S82: 0 | T82: 0 | U82: =$G82*U$5/12*U$72 -> 0 | V82: 0 | W82: 0 | X82: 0 | Y82: 0 | Z82: 0 | AA82: 0 | AB82: 0 | AC82: 0 | AD82: 0 | AE82: =$G82*AE$5/12*AE$72 -> 0 | AF82: 0 | AG82: 0 | AH82: 0 | AI82: 0 | AJ82: 0 | AK82: 0 | AL82: 0 | AM82: 0 | AN82: 0 | AO82: =$G82*AO$5/12*AO$72 -> 0 | AP82: 0 | AQ82: 0 | AR82: 0 | AS82: 0 | AT82: 0 | AU82: 0 | AV82: 0 | AW82: 0 | AX82: 0 | AY82: =$G82*AY$5/12*AY$72 -> 0 | AZ82: 0 | BA82: 0 | BB82: 0 | BC82: 0 | BD82: 0 | BE82: 0 | BF82: 0 | BG82: 0 | BH82: 0 | BI82: =$G82*BI$5/12*BI$72 -> 0 | BJ82: 0 | BK82: 0 | BL82: 0 | BM82: 0 | BN82: 0 | BO82: 0 | BP82: 0 | BQ82: 0 | BR82: 0 | BS82: =$G82*BS$5/12*BS$72 -> 0 | BT82: 0 | BU82: 0 | BV82: 0 | BW82: 0 | BX82: 0 | BY82: 0 | BZ82: 0 | CA82: 0 | CB82: 0 | CC82: =$G82*CC$5/12*CC$72 -> 0 | CD82: 0 | CE82: 0 | CF82: 0 | CG82: 0 | CH82: 0 | CI82: 0 | CJ82: 0 | CK82: 0 | CL82: 0 | CM82: =$G82*CM$5/12*CM$72 -> 0 | CN82: 0 | CO82: 0 | CP82: 0 | CQ82: 0 | CR82: 0 | CS82: 0 | CT82: 0 | CU82: 0 | CV82: 0 | CW82: =$G82*CW$5/12*CW$72 -> 0 | CX82: 0 | CY82: 0 | CZ82: 0 | DA82: 0 | DB82: 0 | DC82: 0 | DD82: 0 | DE82: 0 | DF82: 0 | DG82: =$G82*DG$5/12*DG$72 -> 0 | DH82: 0 | DI82: 0 | DJ82: 0 | DK82: 0 | DL82: 0 | DM82: 0 | DN82: 0 | DO82: 0 | DP82: 0 | DQ82: 0
E83: Utility Connection Cost | F83: Euro/Yr | G83: =Assumptions!F78 -> 0 | H83: 0 | K83: 0 | L83: 0 | M83: 0 | N83: 0 | O83: 0 | P83: 0 | Q83: 0 | R83: 0 | S83: 0 | T83: 0 | U83: 0 | V83: 0 | W83: 0 | X83: 0 | Y83: 0 | Z83: 0 | AA83: 0 | AB83: 0 | AC83: 0 | AD83: 0 | AE83: 0 | AF83: 0 | AG83: 0 | AH83: 0 | AI83: 0 | AJ83: 0 | AK83: 0 | AL83: 0 | AM83: 0 | AN83: 0 | AO83: 0 | AP83: 0 | AQ83: 0 | AR83: 0 | AS83: 0 | AT83: 0 | AU83: 0 | AV83: 0 | AW83: 0 | AX83: 0 | AY83: 0 | AZ83: 0 | BA83: 0 | BB83: 0 | BC83: 0 | BD83: 0 | BE83: 0 | BF83: 0 | BG83: 0 | BH83: 0 | BI83: 0 | BJ83: 0 | BK83: 0 | BL83: 0 | BM83: 0 | BN83: 0 | BO83: 0 | BP83: 0 | BQ83: 0 | BR83: 0 | BS83: 0 | BT83: 0 | BU83: 0 | BV83: 0 | BW83: 0 | BX83: 0 | BY83: 0 | BZ83: 0 | CA83: 0 | CB83: 0 | CC83: 0 | CD83: 0 | CE83: 0 | CF83: 0 | CG83: 0 | CH83: 0 | CI83: 0 | CJ83: 0 | CK83: 0 | CL83: 0 | CM83: 0 | CN83: 0 | CO83: 0 | CP83: 0 | CQ83: 0 | CR83: 0 | CS83: 0 | CT83: 0 | CU83: 0 | CV83: 0 | CW83: 0 | CX83: 0 | CY83: 0 | CZ83: 0 | DA83: 0 | DB83: 0 | DC83: 0 | DD83: 0 | DE83: 0 | DF83: 0 | DG83: 0 | DH83: 0 | DI83: 0 | DJ83: 0 | DK83: 0 | DL83: 0 | DM83: 0 | DN83: 0 | DO83: 0 | DP83: 0 | DQ83: 0
E84: Consumption of Project | F84: % | G84: =Assumptions!F79 -> 0 | H84: 0 | K84: =$G84*K$5/12*K$72 -> 0 | L84: 0 | M84: 0 | N84: 0 | O84: 0 | P84: 0 | Q84: 0 | R84: 0 | S84: 0 | T84: 0 | U84: 0 | V84: 0 | W84: 0 | X84: 0 | Y84: 0 | Z84: 0 | AA84: 0 | AB84: 0 | AC84: 0 | AD84: 0 | AE84: 0 | AF84: 0 | AG84: 0 | AH84: 0 | AI84: 0 | AJ84: 0 | AK84: 0 | AL84: 0 | AM84: 0 | AN84: 0 | AO84: 0 | AP84: 0 | AQ84: =$G84*AQ$5/12*AQ$72 -> 0 | AR84: 0 | AS84: 0 | AT84: 0 | AU84: 0 | AV84: 0 | AW84: 0 | AX84: 0 | AY84: 0 | AZ84: 0 | BA84: 0 | BB84: 0 | BC84: 0 | BD84: 0 | BE84: 0 | BF84: 0 | BG84: 0 | BH84: 0 | BI84: 0 | BJ84: 0 | BK84: 0 | BL84: 0 | BM84: 0 | BN84: 0 | BO84: 0 | BP84: 0 | BQ84: 0 | BR84: 0 | BS84: 0 | BT84: 0 | BU84: 0 | BV84: =$G84*BV$5/12*BV$72 -> 0 | BW84: 0 | BX84: =$G84*BX$5/12*BX$72 -> 0 | BY84: 0 | BZ84: 0 | CA84: 0 | CB84: 0 | CC84: 0 | CD84: 0 | CE84: 0 | CF84: 0 | CG84: 0 | CH84: 0 | CI84: 0 | CJ84: 0 | CK84: 0 | CL84: 0 | CM84: 0 | CN84: 0 | CO84: 0 | CP84: 0 | CQ84: 0 | CR84: 0 | CS84: 0 | CT84: 0 | CU84: 0 | CV84: 0 | CW84: 0 | CX84: 0 | CY84: 0 | CZ84: 0 | DA84: 0 | DB84: 0 | DC84: 0 | DD84: 0 | DE84: 0 | DF84: 0 | DG84: 0 | DH84: 0 | DI84: 0 | DJ84: 0 | DK84: 0 | DL84: 0 | DM84: 0 | DN84: 0 | DO84: 0 | DP84: 0 | DQ84: 0
D86: Total Operating Expense | F86: Months
E87: Capacity | F87: kWp | K87: =K13 -> 0 | L87: =L13 -> 0 | M87: 0 | N87: 0 | O87: 0 | P87: 0 | Q87: 0 | R87: 0 | S87: 0 | T87: 0 | U87: 0 | V87: 0 | W87: 0 | X87: 0 | Y87: 0 | Z87: 0 | AA87: 0 | AB87: 0 | AC87: 0 | AD87: 0 | AE87: 0 | AF87: 0 | AG87: 0 | AH87: 0 | AI87: 0 | AJ87: 0 | AK87: 0 | AL87: 0 | AM87: 0 | AN87: 0 | AO87: 0 | AP87: 0 | AQ87: 0 | AR87: 0 | AS87: 0 | AT87: 0 | AU87: 0 | AV87: 0 | AW87: 0 | AX87: 0 | AY87: 0 | AZ87: 0 | BA87: 0 | BB87: 0 | BC87: 0 | BD87: 0 | BE87: 0 | BF87: 0 | BG87: 0 | BH87: 0 | BI87: 0 | BJ87: 0 | BK87: 0 | BL87: 0 | BM87: 0 | BN87: 0 | BO87: 0 | BP87: 0 | BQ87: 0 | BR87: 0 | BS87: 0 | BT87: 0 | BU87: 0 | BV87: 0 | BW87: 0 | BX87: =BX13 -> 0 | BY87: 0 | BZ87: 0 | CA87: 0 | CB87: 0 | CC87: 0 | CD87: 0 | CE87: 0 | CF87: 0 | CG87: 0 | CH87: 0 | CI87: 0 | CJ87: 0 | CK87: 0 | CL87: 0 | CM87: 0 | CN87: 0 | CO87: 0 | CP87: 0 | CQ87: 0 | CR87: 0 | CS87: 0 | CT87: 0 | CU87: 0 | CV87: 0 | CW87: 0 | CX87: 0 | CY87: 0 | CZ87: 0 | DA87: =DA13 -> 0 | DB87: 0 | DC87: 0 | DD87: 0 | DE87: 0 | DF87: 0 | DG87: 0 | DH87: 0 | DI87: 0 | DJ87: 0 | DK87: 0 | DL87: 0 | DM87: 0 | DN87: 0 | DO87: 0 | DP87: 0 | DQ87: 0
E88: O&M Fee | F88: Euro | I88: =SUM(K88:DQ88) -> 0 | K88: =K$87*K77 -> 0 | L88: =L$87*L77 -> 0 | M88: 0 | N88: 0 | O88: 0 | P88: 0 | Q88: 0 | R88: 0 | S88: 0 | T88: 0 | U88: 0 | V88: 0 | W88: 0 | X88: 0 | Y88: 0 | Z88: 0 | AA88: 0 | AB88: 0 | AC88: 0 | AD88: 0 | AE88: 0 | AF88: 0 | AG88: 0 | AH88: 0 | AI88: 0 | AJ88: 0 | AK88: 0 | AL88: 0 | AM88: 0 | AN88: 0 | AO88: 0 | AP88: 0 | AQ88: 0 | AR88: 0 | AS88: 0 | AT88: 0 | AU88: 0 | AV88: 0 | AW88: 0 | AX88: 0 | AY88: 0 | AZ88: 0 | BA88: 0 | BB88: 0 | BC88: 0 | BD88: 0 | BE88: 0 | BF88: 0 | BG88: 0 | BH88: 0 | BI88: 0 | BJ88: 0 | BK88: 0 | BL88: 0 | BM88: 0 | BN88: 0 | BO88: 0 | BP88: 0 | BQ88: 0 | BR88: 0 | BS88: 0 | BT88: 0 | BU88: 0 | BV88: 0 | BW88: 0 | BX88: =BX$87*BX77 -> 0 | BY88: 0 | BZ88: 0 | CA88: 0 | CB88: 0 | CC88: 0 | CD88: 0 | CE88: 0 | CF88: 0 | CG88: 0 | CH88: 0 | CI88: 0 | CJ88: 0 | CK88: 0 | CL88: 0 | CM88: 0 | CN88: 0 | CO88: 0 | CP88: 0 | CQ88: 0 | CR88: 0 | CS88: 0 | CT88: 0 | CU88: 0 | CV88: 0 | CW88: 0 | CX88: 0 | CY88: 0 | CZ88: 0 | DA88: =DA$87*DA77 -> 0 | DB88: 0 | DC88: 0 | DD88: 0 | DE88: 0 | DF88: 0 | DG88: 0 | DH88: 0 | DI88: 0 | DJ88: 0 | DK88: 0 | DL88: 0 | DM88: 0 | DN88: 0 | DO88: 0 | DP88: 0 | DQ88: 0
E89: Battery O&M | F89: Euro | I89: =SUM(K89:DQ89) -> 0 | K89: =K$87*K78 -> 0 | L89: 0 | M89: 0 | N89: 0 | O89: 0 | P89: 0 | Q89: 0 | R89: 0 | S89: 0 | T89: 0 | U89: 0 | V89: 0 | W89: 0 | X89: 0 | Y89: 0 | Z89: 0 | AA89: 0 | AB89: 0 | AC89: 0 | AD89: 0 | AE89: 0 | AF89: 0 | AG89: 0 | AH89: 0 | AI89: 0 | AJ89: 0 | AK89: 0 | AL89: 0 | AM89: 0 | AN89: 0 | AO89: 0 | AP89: 0 | AQ89: 0 | AR89: 0 | AS89: 0 | AT89: 0 | AU89: 0 | AV89: 0 | AW89: 0 | AX89: 0 | AY89: 0 | AZ89: 0 | BA89: 0 | BB89: 0 | BC89: 0 | BD89: 0 | BE89: 0 | BF89: 0 | BG89: 0 | BH89: 0 | BI89: 0 | BJ89: 0 | BK89: 0 | BL89: 0 | BM89: 0 | BN89: 0 | BO89: 0 | BP89: 0 | BQ89: 0 | BR89: 0 | BS89: 0 | BT89: 0 | BU89: 0 | BV89: 0 | BW89: 0 | BX89: 0 | BY89: 0 | BZ89: 0 | CA89: 0 | CB89: 0 | CC89: 0 | CD89: 0 | CE89: 0 | CF89: 0 | CG89: 0 | CH89: 0 | CI89: 0 | CJ89: 0 | CK89: 0 | CL89: 0 | CM89: 0 | CN89: 0 | CO89: 0 | CP89: 0 | CQ89: 0 | CR89: 0 | CS89: 0 | CT89: 0 | CU89: 0 | CV89: 0 | CW89: 0 | CX89: 0 | CY89: 0 | CZ89: 0 | DA89: =DA$87*DA78 -> 0 | DB89: 0 | DC89: 0 | DD89: 0 | DE89: 0 | DF89: 0 | DG89: 0 | DH89: 0 | DI89: 0 | DJ89: 0 | DK89: 0 | DL89: 0 | DM89: 0 | DN89: 0 | DO89: 0 | DP89: 0 | DQ89: 0
E90: Administration Accounting Etc | F90: Euro | I90: 0 | K90: 0 | L90: 0 | M90: 0 | N90: 0 | O90: 0 | P90: 0 | Q90: 0 | R90: 0 | S90: 0 | T90: 0 | U90: 0 | V90: 0 | W90: 0 | X90: 0 | Y90: 0 | Z90: 0 | AA90: 0 | AB90: 0 | AC90: 0 | AD90: 0 | AE90: 0 | AF90: 0 | AG90: 0 | AH90: 0 | AI90: 0 | AJ90: 0 | AK90: 0 | AL90: 0 | AM90: 0 | AN90: 0 | AO90: 0 | AP90: 0 | AQ90: 0 | AR90: 0 | AS90: 0 | AT90: 0 | AU90: 0 | AV90: 0 | AW90: 0 | AX90: 0 | AY90: 0 | AZ90: 0 | BA90: 0 | BB90: 0 | BC90: 0 | BD90: 0 | BE90: 0 | BF90: 0 | BG90: 0 | BH90: 0 | BI90: 0 | BJ90: 0 | BK90: 0 | BL90: 0 | BM90: 0 | BN90: 0 | BO90: 0 | BP90: 0 | BQ90: 0 | BR90: 0 | BS90: 0 | BT90: 0 | BU90: 0 | BV90: 0 | BW90: 0 | BX90: 0 | BY90: 0 | BZ90: 0 | CA90: 0 | CB90: 0 | CC90: 0 | CD90: 0 | CE90: 0 | CF90: 0 | CG90: 0 | CH90: 0 | CI90: 0 | CJ90: 0 | CK90: 0 | CL90: 0 | CM90: 0 | CN90: 0 | CO90: 0 | CP90: 0 | CQ90: 0 | CR90: 0 | CS90: 0 | CT90: 0 | CU90: 0 | CV90: 0 | CW90: 0 | CX90: 0 | CY90: 0 | CZ90: 0 | DA90: =DA$87*DA79 -> 0 | DB90: 0 | DC90: 0 | DD90: 0 | DE90: 0 | DF90: 0 | DG90: 0 | DH90: 0 | DI90: 0 | DJ90: 0 | DK90: 0 | DL90: 0 | DM90: 0 | DN90: 0 | DO90: 0 | DP90: 0 | DQ90: 0
E91: Insurance Cost | F91: Euro | I91: 0 | K91: 0 | L91: 0 | M91: 0 | N91: 0 | O91: 0 | P91: 0 | Q91: 0 | R91: 0 | S91: 0 | T91: 0 | U91: 0 | V91: 0 | W91: 0 | X91: 0 | Y91: 0 | Z91: 0 | AA91: 0 | AB91: 0 | AC91: 0 | AD91: 0 | AE91: 0 | AF91: 0 | AG91: 0 | AH91: 0 | AI91: 0 | AJ91: 0 | AK91: 0 | AL91: 0 | AM91: 0 | AN91: 0 | AO91: 0 | AP91: 0 | AQ91: 0 | AR91: 0 | AS91: 0 | AT91: 0 | AU91: 0 | AV91: 0 | AW91: 0 | AX91: 0 | AY91: 0 | AZ91: 0 | BA91: 0 | BB91: 0 | BC91: 0 | BD91: 0 | BE91: 0 | BF91: 0 | BG91: 0 | BH91: 0 | BI91: 0 | BJ91: 0 | BK91: 0 | BL91: 0 | BM91: 0 | BN91: 0 | BO91: 0 | BP91: 0 | BQ91: 0 | BR91: 0 | BS91: 0 | BT91: 0 | BU91: 0 | BV91: 0 | BW91: 0 | BX91: 0 | BY91: 0 | BZ91: 0 | CA91: 0 | CB91: 0 | CC91: 0 | CD91: 0 | CE91: 0 | CF91: 0 | CG91: 0 | CH91: 0 | CI91: 0 | CJ91: 0 | CK91: 0 | CL91: 0 | CM91: 0 | CN91: 0 | CO91: 0 | CP91: 0 | CQ91: 0 | CR91: 0 | CS91: 0 | CT91: 0 | CU91: 0 | CV91: 0 | CW91: 0 | CX91: 0 | CY91: 0 | CZ91: 0 | DA91: =DA$87*DA80 -> 0 | DB91: 0 | DC91: 0 | DD91: 0 | DE91: 0 | DF91: 0 | DG91: 0 | DH91: 0 | DI91: 0 | DJ91: 0 | DK91: 0 | DL91: 0 | DM91: 0 | DN91: 0 | DO91: 0 | DP91: 0 | DQ91: 0
E92: Rent/Lease Expense | F92: Euro | I92: 0 | K92: =K81*K10 -> 0 | L92: =L81*L10 -> 0 | M92: 0 | N92: 0 | O92: 0 | P92: 0 | Q92: 0 | R92: 0 | S92: 0 | T92: 0 | U92: 0 | V92: 0 | W92: 0 | X92: 0 | Y92: 0 | Z92: 0 | AA92: 0 | AB92: 0 | AC92: 0 | AD92: 0 | AE92: 0 | AF92: 0 | AG92: 0 | AH92: 0 | AI92: 0 | AJ92: 0 | AK92: 0 | AL92: 0 | AM92: 0 | AN92: 0 | AO92: 0 | AP92: 0 | AQ92: 0 | AR92: 0 | AS92: 0 | AT92: 0 | AU92: 0 | AV92: 0 | AW92: 0 | AX92: 0 | AY92: 0 | AZ92: 0 | BA92: 0 | BB92: 0 | BC92: 0 | BD92: 0 | BE92: 0 | BF92: 0 | BG92: 0 | BH92: 0 | BI92: 0 | BJ92: 0 | BK92: 0 | BL92: 0 | BM92: 0 | BN92: 0 | BO92: 0 | BP92: 0 | BQ92: 0 | BR92: 0 | BS92: 0 | BT92: 0 | BU92: 0 | BV92: 0 | BW92: 0 | BX92: =BX81*BX10 -> 0 | BY92: 0 | BZ92: 0 | CA92: 0 | CB92: 0 | CC92: 0 | CD92: 0 | CE92: 0 | CF92: 0 | CG92: 0 | CH92: 0 | CI92: 0 | CJ92: 0 | CK92: 0 | CL92: 0 | CM92: 0 | CN92: 0 | CO92: 0 | CP92: 0 | CQ92: 0 | CR92: 0 | CS92: 0 | CT92: 0 | CU92: 0 | CV92: 0 | CW92: 0 | CX92: 0 | CY92: 0 | CZ92: 0 | DA92: =DA81*DA10 -> 0 | DB92: 0 | DC92: 0 | DD92: 0 | DE92: 0 | DF92: 0 | DG92: 0 | DH92: 0 | DI92: 0 | DJ92: 0 | DK92: 0 | DL92: 0 | DM92: 0 | DN92: 0 | DO92: 0 | DP92: 0 | DQ92: 0
E93: Property Taxes | F93: Euro | I93: 0 | K93: =K82*K10 -> 0 | L93: =L82*L10 -> 0 | M93: 0 | N93: 0 | O93: 0 | P93: 0 | Q93: 0 | R93: 0 | S93: 0 | T93: 0 | U93: 0 | V93: 0 | W93: 0 | X93: 0 | Y93: 0 | Z93: 0 | AA93: 0 | AB93: 0 | AC93: 0 | AD93: 0 | AE93: 0 | AF93: 0 | AG93: 0 | AH93: 0 | AI93: 0 | AJ93: 0 | AK93: 0 | AL93: 0 | AM93: 0 | AN93: 0 | AO93: 0 | AP93: 0 | AQ93: 0 | AR93: 0 | AS93: 0 | AT93: 0 | AU93: 0 | AV93: 0 | AW93: 0 | AX93: 0 | AY93: 0 | AZ93: 0 | BA93: 0 | BB93: 0 | BC93: 0 | BD93: 0 | BE93: 0 | BF93: 0 | BG93: 0 | BH93: 0 | BI93: 0 | BJ93: 0 | BK93: 0 | BL93: 0 | BM93: 0 | BN93: 0 | BO93: 0 | BP93: 0 | BQ93: 0 | BR93: 0 | BS93: 0 | BT93: 0 | BU93: 0 | BV93: 0 | BW93: 0 | BX93: =BX82*BX10 -> 0 | BY93: 0 | BZ93: 0 | CA93: 0 | CB93: 0 | CC93: 0 | CD93: 0 | CE93: 0 | CF93: 0 | CG93: 0 | CH93: 0 | CI93: 0 | CJ93: 0 | CK93: 0 | CL93: 0 | CM93: 0 | CN93: 0 | CO93: 0 | CP93: 0 | CQ93: 0 | CR93: 0 | CS93: 0 | CT93: 0 | CU93: 0 | CV93: 0 | CW93: 0 | CX93: 0 | CY93: 0 | CZ93: 0 | DA93: =DA82*DA10 -> 0 | DB93: 0 | DC93: 0 | DD93: 0 | DE93: 0 | DF93: 0 | DG93: 0 | DH93: 0 | DI93: 0 | DJ93: 0 | DK93: 0 | DL93: 0 | DM93: 0 | DN93: 0 | DO93: 0 | DP93: 0 | DQ93: 0
E94: Utility Connection Cost | F94: Euro | I94: 0 | K94: =K83 -> 0 | L94: =L83 -> 0 | M94: 0 | N94: 0 | O94: 0 | P94: 0 | Q94: 0 | R94: 0 | S94: 0 | T94: 0 | U94: 0 | V94: 0 | W94: 0 | X94: 0 | Y94: 0 | Z94: 0 | AA94: 0 | AB94: 0 | AC94: 0 | AD94: 0 | AE94: 0 | AF94: 0 | AG94: 0 | AH94: 0 | AI94: 0 | AJ94: 0 | AK94: 0 | AL94: 0 | AM94: 0 | AN94: 0 | AO94: 0 | AP94: 0 | AQ94: 0 | AR94: 0 | AS94: 0 | AT94: 0 | AU94: 0 | AV94: 0 | AW94: 0 | AX94: 0 | AY94: 0 | AZ94: 0 | BA94: 0 | BB94: 0 | BC94: 0 | BD94: 0 | BE94: 0 | BF94: 0 | BG94: 0 | BH94: 0 | BI94: 0 | BJ94: 0 | BK94: 0 | BL94: 0 | BM94: 0 | BN94: 0 | BO94: 0 | BP94: 0 | BQ94: 0 | BR94: 0 | BS94: 0 | BT94: 0 | BU94: 0 | BV94: 0 | BW94: 0 | BX94: =BX83 -> 0 | BY94: 0 | BZ94: 0 | CA94: 0 | CB94: 0 | CC94: 0 | CD94: 0 | CE94: 0 | CF94: 0 | CG94: 0 | CH94: 0 | CI94: 0 | CJ94: 0 | CK94: 0 | CL94: 0 | CM94: 0 | CN94: 0 | CO94: 0 | CP94: 0 | CQ94: 0 | CR94: 0 | CS94: 0 | CT94: 0 | CU94: 0 | CV94: 0 | CW94: 0 | CX94: 0 | CY94: 0 | CZ94: 0 | DA94: =DA83 -> 0 | DB94: 0 | DC94: 0 | DD94: 0 | DE94: 0 | DF94: 0 | DG94: 0 | DH94: 0 | DI94: 0 | DJ94: 0 | DK94: 0 | DL94: 0 | DM94: 0 | DN94: 0 | DO94: 0 | DP94: 0 | DQ94: 0
E95: Consumption of Project | F95: Euro | I95: 0 | K95: =K84 -> 0 | L95: =L84 -> 0 | M95: 0 | N95: 0 | O95: 0 | P95: 0 | Q95: 0 | R95: 0 | S95: 0 | T95: 0 | U95: 0 | V95: 0 | W95: 0 | X95: 0 | Y95: 0 | Z95: 0 | AA95: 0 | AB95: 0 | AC95: 0 | AD95: 0 | AE95: 0 | AF95: 0 | AG95: 0 | AH95: 0 | AI95: 0 | AJ95: 0 | AK95: 0 | AL95: 0 | AM95: 0 | AN95: 0 | AO95: 0 | AP95: 0 | AQ95: 0 | AR95: 0 | AS95: 0 | AT95: 0 | AU95: 0 | AV95: 0 | AW95: 0 | AX95: 0 | AY95: 0 | AZ95: 0 | BA95: 0 | BB95: 0 | BC95: 0 | BD95: 0 | BE95: 0 | BF95: 0 | BG95: 0 | BH95: 0 | BI95: 0 | BJ95: 0 | BK95: 0 | BL95: 0 | BM95: 0 | BN95: 0 | BO95: 0 | BP95: 0 | BQ95: 0 | BR95: 0 | BS95: 0 | BT95: 0 | BU95: 0 | BV95: 0 | BW95: 0 | BX95: =BX84 -> 0 | BY95: 0 | BZ95: 0 | CA95: 0 | CB95: 0 | CC95: 0 | CD95: 0 | CE95: 0 | CF95: 0 | CG95: 0 | CH95: 0 | CI95: 0 | CJ95: 0 | CK95: 0 | CL95: 0 | CM95: 0 | CN95: 0 | CO95: 0 | CP95: 0 | CQ95: 0 | CR95: 0 | CS95: 0 | CT95: 0 | CU95: 0 | CV95: 0 | CW95: 0 | CX95: 0 | CY95: 0 | CZ95: 0 | DA95: =DA84 -> 0 | DB95: 0 | DC95: 0 | DD95: 0 | DE95: 0 | DF95: 0 | DG95: 0 | DH95: 0 | DI95: 0 | DJ95: 0 | DK95: 0 | DL95: 0 | DM95: 0 | DN95: 0 | DO95: 0 | DP95: 0 | DQ95: 0
E96: Total O&M | F96: Euro | I96: =SUM(K96:DQ96) -> 0 | K96: =SUM(K87:K95) -> 0 | L96: =SUM(L87:L95) -> 0 | M96: 0 | N96: 0 | O96: 0 | P96: 0 | Q96: 0 | R96: 0 | S96: 0 | T96: 0 | U96: 0 | V96: 0 | W96: 0 | X96: 0 | Y96: 0 | Z96: 0 | AA96: 0 | AB96: 0 | AC96: 0 | AD96: 0 | AE96: 0 | AF96: 0 | AG96: 0 | AH96: 0 | AI96: 0 | AJ96: 0 | AK96: 0 | AL96: 0 | AM96: 0 | AN96: 0 | AO96: 0 | AP96: 0 | AQ96: 0 | AR96: 0 | AS96: 0 | AT96: 0 | AU96: 0 | AV96: 0 | AW96: 0 | AX96: 0 | AY96: 0 | AZ96: 0 | BA96: 0 | BB96: 0 | BC96: 0 | BD96: 0 | BE96: 0 | BF96: 0 | BG96: 0 | BH96: 0 | BI96: 0 | BJ96: 0 | BK96: 0 | BL96: 0 | BM96: 0 | BN96: 0 | BO96: 0 | BP96: 0 | BQ96: 0 | BR96: 0 | BS96: 0 | BT96: 0 | BU96: 0 | BV96: 0 | BW96: 0 | BX96: =SUM(BX87:BX95) -> 0 | BY96: 0 | BZ96: 0 | CA96: 0 | CB96: 0 | CC96: 0 | CD96: 0 | CE96: 0 | CF96: 0 | CG96: 0 | CH96: 0 | CI96: 0 | CJ96: 0 | CK96: 0 | CL96: 0 | CM96: 0 | CN96: 0 | CO96: 0 | CP96: 0 | CQ96: 0 | CR96: 0 | CS96: 0 | CT96: 0 | CU96: 0 | CV96: 0 | CW96: 0 | CX96: 0 | CY96: 0 | CZ96: 0 | DA96: =SUM(DA87:DA95) -> 0 | DB96: =SUM(DB87:DB95) -> 0 | DC96: =SUM(DC87:DC95) -> 0 | DD96: =SUM(DD87:DD95) -> 0 | DE96: =SUM(DE87:DE95) -> 0 | DF96: =SUM(DF87:DF95) -> 0 | DG96: =SUM(DG87:DG95) -> 0 | DH96: =SUM(DH87:DH95) -> 0 | DI96: =SUM(DI87:DI95) -> 0 | DJ96: =SUM(DJ87:DJ95) -> 0 | DK96: =SUM(DK87:DK95) -> 0 | DL96: =SUM(DL87:DL95) -> 0 | DM96: =SUM(DM87:DM95) -> 0 | DN96: =SUM(DN87:DN95) -> 0 | DO96: =SUM(DO87:DO95) -> 0 | DP96: =SUM(DP87:DP95) -> 0 | DQ96: =SUM(DQ87:DQ95) -> 0
D98: Inverter Replacement
E99: Inverter Replacement Period | F99: Flag | G99: =Assumptions!F85 -> 1980-05-31 | H99: =Assumptions!F86 -> 1980-05-31 | K99: =OR(K6=$G$99,K6=$H$99) -> FALSE | L99: =OR(L6=$G$99,L6=$H$99) -> FALSE | M99: FALSE | N99: FALSE | O99: FALSE | P99: FALSE | Q99: FALSE | R99: FALSE | S99: FALSE | T99: FALSE | U99: FALSE | V99: FALSE | W99: FALSE | X99: FALSE | Y99: FALSE | Z99: FALSE | AA99: FALSE | AB99: FALSE | AC99: FALSE | AD99: FALSE | AE99: FALSE | AF99: FALSE | AG99: FALSE | AH99: FALSE | AI99: FALSE | AJ99: FALSE | AK99: FALSE | AL99: FALSE | AM99: FALSE | AN99: FALSE | AO99: FALSE | AP99: FALSE | AQ99: FALSE | AR99: FALSE | AS99: FALSE | AT99: FALSE | AU99: FALSE | AV99: FALSE | AW99: FALSE | AX99: FALSE | AY99: FALSE | AZ99: FALSE | BA99: FALSE | BB99: FALSE | BC99: FALSE | BD99: FALSE | BE99: FALSE | BF99: FALSE | BG99: FALSE | BH99: FALSE | BI99: FALSE | BJ99: FALSE | BK99: FALSE | BL99: FALSE | BM99: FALSE | BN99: FALSE | BO99: FALSE | BP99: FALSE | BQ99: FALSE | BR99: FALSE | BS99: FALSE | BT99: FALSE | BU99: FALSE | BV99: FALSE | BW99: FALSE | BX99: =OR(BX6=$G$99,BX6=$H$99) -> FALSE | BY99: FALSE | BZ99: FALSE | CA99: FALSE | CB99: FALSE | CC99: FALSE | CD99: FALSE | CE99: FALSE | CF99: FALSE | CG99: FALSE | CH99: FALSE | CI99: FALSE | CJ99: FALSE | CK99: FALSE | CL99: FALSE | CM99: FALSE | CN99: FALSE | CO99: FALSE | CP99: FALSE | CQ99: FALSE | CR99: FALSE | CS99: FALSE | CT99: FALSE | CU99: FALSE | CV99: FALSE | CW99: FALSE | CX99: FALSE | CY99: FALSE | CZ99: FALSE | DA99: FALSE | DB99: FALSE | DC99: FALSE | DD99: FALSE | DE99: FALSE | DF99: FALSE | DG99: FALSE | DH99: FALSE | DI99: FALSE | DJ99: FALSE | DK99: FALSE | DL99: FALSE | DM99: FALSE | DN99: FALSE | DO99: FALSE | DP99: FALSE | DQ99: FALSE
E100: First Inverter Replacement | F100: Euro | G100: =Assumptions!F88 -> 34 | I100: =SUM(K100:DQ100) -> 0 | K100: =$G100*K$99*K87 -> 0 | L100: =$G100*L$99*L87 -> 0 | M100: 0 | N100: 0 | O100: 0 | P100: 0 | Q100: 0 | R100: 0 | S100: 0 | T100: 0 | U100: 0 | V100: 0 | W100: 0 | X100: 0 | Y100: 0 | Z100: 0 | AA100: 0 | AB100: 0 | AC100: 0 | AD100: 0 | AE100: 0 | AF100: 0 | AG100: 0 | AH100: 0 | AI100: 0 | AJ100: 0 | AK100: 0 | AL100: 0 | AM100: 0 | AN100: 0 | AO100: 0 | AP100: 0 | AQ100: 0 | AR100: 0 | AS100: 0 | AT100: 0 | AU100: 0 | AV100: 0 | AW100: 0 | AX100: 0 | AY100: 0 | AZ100: 0 | BA100: 0 | BB100: 0 | BC100: 0 | BD100: 0 | BE100: 0 | BF100: 0 | BG100: 0 | BH100: 0 | BI100: 0 | BJ100: 0 | BK100: 0 | BL100: 0 | BM100: 0 | BN100: 0 | BO100: 0 | BP100: 0 | BQ100: 0 | BR100: 0 | BS100: 0 | BT100: 0 | BU100: 0 | BV100: 0 | BW100: 0 | BX100: =$G100*BX$99*BX87 -> 0 | BY100: 0 | BZ100: 0 | CA100: 0 | CB100: 0 | CC100: 0 | CD100: 0 | CE100: 0 | CF100: 0 | CG100: 0 | CH100: 0 | CI100: 0 | CJ100: 0 | CK100: 0 | CL100: 0 | CM100: 0 | CN100: 0 | CO100: 0 | CP100: 0 | CQ100: 0 | CR100: 0 | CS100: 0 | CT100: 0 | CU100: 0 | CV100: 0 | CW100: 0 | CX100: 0 | CY100: 0 | CZ100: 0 | DA100: 0 | DB100: 0 | DC100: 0 | DD100: 0 | DE100: 0 | DF100: 0 | DG100: 0 | DH100: 0 | DI100: 0 | DJ100: 0 | DK100: 0 | DL100: 0 | DM100: 0 | DN100: 0 | DO100: 0 | DP100: 0 | DQ100: 0
E101: Second Inverter Replacement | F101: Euro | G101: =Assumptions!F89 -> 25 | I101: =SUM(K101:DQ101) -> 0 | K101: =$G101*K$99*K87 -> 0 | L101: =$G101*L$99*L87 -> 0 | M101: 0 | N101: 0 | O101: 0 | P101: 0 | Q101: 0 | R101: 0 | S101: 0 | T101: 0 | U101: 0 | V101: 0 | W101: 0 | X101: 0 | Y101: 0 | Z101: 0 | AA101: 0 | AB101: 0 | AC101: 0 | AD101: 0 | AE101: 0 | AF101: 0 | AG101: 0 | AH101: 0 | AI101: 0 | AJ101: 0 | AK101: 0 | AL101: 0 | AM101: 0 | AN101: 0 | AO101: 0 | AP101: 0 | AQ101: 0 | AR101: 0 | AS101: 0 | AT101: 0 | AU101: 0 | AV101: 0 | AW101: 0 | AX101: 0 | AY101: 0 | AZ101: 0 | BA101: 0 | BB101: 0 | BC101: 0 | BD101: 0 | BE101: 0 | BF101: 0 | BG101: 0 | BH101: 0 | BI101: 0 | BJ101: 0 | BK101: 0 | BL101: 0 | BM101: 0 | BN101: 0 | BO101: 0 | BP101: 0 | BQ101: 0 | BR101: 0 | BS101: 0 | BT101: 0 | BU101: 0 | BV101: 0 | BW101: 0 | BX101: =$G101*BX$99*BX87 -> 0 | BY101: 0 | BZ101: 0 | CA101: 0 | CB101: 0 | CC101: 0 | CD101: 0 | CE101: 0 | CF101: 0 | CG101: 0 | CH101: 0 | CI101: 0 | CJ101: 0 | CK101: 0 | CL101: 0 | CM101: 0 | CN101: 0 | CO101: 0 | CP101: 0 | CQ101: 0 | CR101: 0 | CS101: 0 | CT101: 0 | CU101: 0 | CV101: 0 | CW101: 0 | CX101: 0 | CY101: 0 | CZ101: 0 | DA101: 0 | DB101: 0 | DC101: 0 | DD101: 0 | DE101: 0 | DF101: 0 | DG101: 0 | DH101: 0 | DI101: 0 | DJ101: 0 | DK101: 0 | DL101: 0 | DM101: 0 | DN101: 0 | DO101: 0 | DP101: 0 | DQ101: 0
E102: Total Inverter Cost | F102: Euro | I102: =SUM(K102:DQ102) -> 0 | K102: =SUM(K100:K101) -> 0 | L102: =SUM(L100:L101) -> 0 | M102: 0 | N102: 0 | O102: 0 | P102: 0 | Q102: 0 | R102: 0 | S102: 0 | T102: 0 | U102: 0 | V102: 0 | W102: 0 | X102: 0 | Y102: 0 | Z102: 0 | AA102: 0 | AB102: 0 | AC102: 0 | AD102: 0 | AE102: 0 | AF102: 0 | AG102: 0 | AH102: 0 | AI102: 0 | AJ102: 0 | AK102: 0 | AL102: 0 | AM102: 0 | AN102: 0 | AO102: 0 | AP102: 0 | AQ102: 0 | AR102: 0 | AS102: 0 | AT102: 0 | AU102: 0 | AV102: 0 | AW102: 0 | AX102: 0 | AY102: 0 | AZ102: 0 | BA102: 0 | BB102: 0 | BC102: 0 | BD102: 0 | BE102: 0 | BF102: 0 | BG102: 0 | BH102: 0 | BI102: 0 | BJ102: 0 | BK102: 0 | BL102: 0 | BM102: 0 | BN102: 0 | BO102: 0 | BP102: 0 | BQ102: 0 | BR102: 0 | BS102: 0 | BT102: 0 | BU102: 0 | BV102: 0 | BW102: 0 | BX102: =SUM(BX100:BX101) -> 0 | BY102: 0 | BZ102: 0 | CA102: 0 | CB102: 0 | CC102: 0 | CD102: 0 | CE102: 0 | CF102: 0 | CG102: 0 | CH102: 0 | CI102: 0 | CJ102: 0 | CK102: 0 | CL102: 0 | CM102: 0 | CN102: 0 | CO102: 0 | CP102: 0 | CQ102: 0 | CR102: 0 | CS102: 0 | CT102: 0 | CU102: 0 | CV102: 0 | CW102: 0 | CX102: 0 | CY102: 0 | CZ102: 0 | DA102: 0 | DB102: 0 | DC102: 0 | DD102: 0 | DE102: 0 | DF102: 0 | DG102: 0 | DH102: 0 | DI102: 0 | DJ102: 0 | DK102: 0 | DL102: 0 | DM102: 0 | DN102: 0 | DO102: 0 | DP102: 0 | DQ102: 0
E104: Total O&M and Inverter | F104: Euro | K104: =K102+K96 -> 0 | L104: =L102+L96 -> 0 | M104: 0 | N104: 0 | O104: 0 | P104: 0 | Q104: 0 | R104: 0 | S104: 0 | T104: 0 | U104: 0 | V104: 0 | W104: 0 | X104: 0 | Y104: 0 | Z104: 0 | AA104: 0 | AB104: 0 | AC104: 0 | AD104: 0 | AE104: 0 | AF104: 0 | AG104: 0 | AH104: 0 | AI104: 0 | AJ104: 0 | AK104: 0 | AL104: 0 | AM104: 0 | AN104: 0 | AO104: 0 | AP104: 0 | AQ104: 0 | AR104: 0 | AS104: 0 | AT104: 0 | AU104: 0 | AV104: 0 | AW104: 0 | AX104: 0 | AY104: 0 | AZ104: 0 | BA104: 0 | BB104: 0 | BC104: 0 | BD104: 0 | BE104: 0 | BF104: 0 | BG104: 0 | BH104: 0 | BI104: 0 | BJ104: 0 | BK104: 0 | BL104: 0 | BM104: 0 | BN104: 0 | BO104: 0 | BP104: 0 | BQ104: 0 | BR104: 0 | BS104: 0 | BT104: 0 | BU104: 0 | BV104: 0 | BW104: 0 | BX104: =BX102+BX96 -> 0 | BY104: 0 | BZ104: 0 | CA104: 0 | CB104: 0 | CC104: 0 | CD104: 0 | CE104: 0 | CF104: 0 | CG104: 0 | CH104: 0 | CI104: 0 | CJ104: 0 | CK104: 0 | CL104: 0 | CM104: 0 | CN104: 0 | CO104: 0 | CP104: 0 | CQ104: 0 | CR104: 0 | CS104: 0 | CT104: 0 | CU104: 0 | CV104: 0 | CW104: 0 | CX104: 0 | CY104: 0 | CZ104: 0 | DA104: 0 | DB104: 0 | DC104: 0 | DD104: 0 | DE104: 0 | DF104: 0 | DG104: 0 | DH104: 0 | DI104: 0 | DJ104: 0 | DK104: 0 | DL104: 0 | DM104: 0 | DN104: 0 | DO104: 0 | DP104: 0 | DQ104: 0
B106: Revenues | J106: =Scenario!$F$20 -> 2
D107: Year | F107: Year | K107: =YEAR(K7) -> 1900 | L107: =YEAR(L7) -> 1900 | M107: 1900 | N107: 1900 | O107: 1900 | P107: 1900 | Q107: 1900 | R107: 1900 | S107: 1900 | T107: 1900 | U107: 1900 | V107: 1900 | W107: 1900 | X107: 1900 | Y107: 1900 | Z107: 1900 | AA107: 1900 | AB107: 1900 | AC107: 1900 | AD107: 1900 | AE107: 1900 | AF107: 1900 | AG107: 1900 | AH107: 1900 | AI107: 1900 | AJ107: 1900 | AK107: 1900 | AL107: 1900 | AM107: 1900 | AN107: 1900 | AO107: 1900 | AP107: 1900 | AQ107: 1900 | AR107: 1900 | AS107: 1900 | AT107: 1900 | AU107: 1900 | AV107: 1900 | AW107: 1900 | AX107: 1900 | AY107: 1900 | AZ107: 1900 | BA107: 1900 | BB107: 1900 | BC107: 1900 | BD107: 1900 | BE107: 1900 | BF107: 1900 | BG107: 1900 | BH107: 1900 | BI107: 1900 | BJ107: 1900 | BK107: 1900 | BL107: 1900 | BM107: 1900 | BN107: 1900 | BO107: 1900 | BP107: 1900 | BQ107: 1900 | BR107: 1900 | BS107: 1900 | BT107: 1900 | BU107: 1900 | BV107: 1900 | BW107: 1900 | BX107: =YEAR(BX7) -> 1900 | BY107: 1900 | BZ107: 1900 | CA107: 1900 | CB107: 1900 | CC107: 1900 | CD107: 1900 | CE107: 1900 | CF107: 1900 | CG107: 1900 | CH107: 1900 | CI107: 1900 | CJ107: 1900 | CK107: 1900 | CL107: 1900 | CM107: 1900 | CN107: 1900 | CO107: 1900 | CP107: 1900 | CQ107: 1900 | CR107: 1900 | CS107: 1900 | CT107: 1900 | CU107: 1900 | CV107: 1900 | CW107: 1900 | CX107: 1900 | CY107: 1900 | CZ107: 1900 | DA107: 1900 | DB107: 1900 | DC107: 1900 | DD107: 1900 | DE107: 1900 | DF107: 1900 | DG107: 1900 | DH107: 1900 | DI107: 1900 | DJ107: 1900 | DK107: 1900 | DL107: 1900 | DM107: 1900 | DN107: 1900 | DO107: 1900 | DP107: 1900 | DQ107: 1900
D108: Price (Non Crisis) | F108: Euro/MWH | G108: Lookup
D109: Revenues without Crisis | F109: Euro | K109: =K108*K43 -> 0 | L109: =L108*L43 -> 0 | M109: 0 | N109: 0 | O109: 0 | P109: 0 | Q109: 0 | R109: 0 | S109: 0 | T109: 0 | U109: 0 | V109: 0 | W109: 0 | X109: 0 | Y109: 0 | Z109: 0 | AA109: 0 | AB109: 0 | AC109: 0 | AD109: 0 | AE109: 0 | AF109: 0 | AG109: 0 | AH109: 0 | AI109: 0 | AJ109: 0 | AK109: 0 | AL109: 0 | AM109: 0 | AN109: 0 | AO109: 0 | AP109: 0 | AQ109: 0 | AR109: 0 | AS109: 0 | AT109: 0 | AU109: 0 | AV109: 0 | AW109: 0 | AX109: 0 | AY109: 0 | AZ109: 0 | BA109: 0 | BB109: 0 | BC109: 0 | BD109: 0 | BE109: 0 | BF109: 0 | BG109: 0 | BH109: 0 | BI109: 0 | BJ109: 0 | BK109: 0 | BL109: 0 | BM109: 0 | BN109: 0 | BO109: 0 | BP109: 0 | BQ109: 0 | BR109: 0 | BS109: 0 | BT109: 0 | BU109: 0 | BV109: 0 | BW109: 0 | BX109: =BX108*BX43 -> 0 | BY109: 0 | BZ109: 0 | CA109: 0 | CB109: 0 | CC109: 0 | CD109: 0 | CE109: 0 | CF109: 0 | CG109: 0 | CH109: 0 | CI109: 0 | CJ109: 0 | CK109: 0 | CL109: 0 | CM109: 0 | CN109: 0 | CO109: 0 | CP109: 0 | CQ109: 0 | CR109: 0 | CS109: 0 | CT109: 0 | CU109: 0 | CV109: 0 | CW109: 0 | CX109: 0 | CY109: 0 | CZ109: 0 | DA109: 0 | DB109: 0 | DC109: 0 | DD109: 0 | DE109: 0 | DF109: 0 | DG109: 0 | DH109: 0 | DI109: 0 | DJ109: 0 | DK109: 0 | DL109: 0 | DM109: 0 | DN109: 0 | DO109: 0 | DP109: 0 | DQ109: 0
E111: January | F111: Euro/MWH | K111: =LOOKUP(K$107,Assumptions!$109:$109,Assumptions!110:110)*K$108 ->  | L111: =LOOKUP(L$107,Assumptions!$109:$109,Assumptions!110:110)*L$108 ->  | M111: =LOOKUP(M$107,Assumptions!$109:$109,Assumptions!110:110)*M$108 ->  | N111: =LOOKUP(N$107,Assumptions!$109:$109,Assumptions!110:110)*N$108 ->  | O111: =LOOKUP(O$107,Assumptions!$109:$109,Assumptions!110:110)*O$108 ->  | P111: =LOOKUP(P$107,Assumptions!$109:$109,Assumptions!110:110)*P$108 ->  | Q111: =LOOKUP(Q$107,Assumptions!$109:$109,Assumptions!110:110)*Q$108 ->  | R111: =LOOKUP(R$107,Assumptions!$109:$109,Assumptions!110:110)*R$108 ->  | S111: =LOOKUP(S$107,Assumptions!$109:$109,Assumptions!110:110)*S$108 ->  | T111: =LOOKUP(T$107,Assumptions!$109:$109,Assumptions!110:110)*T$108 ->  | U111: =LOOKUP(U$107,Assumptions!$109:$109,Assumptions!110:110)*U$108 ->  | V111: =LOOKUP(V$107,Assumptions!$109:$109,Assumptions!110:110)*V$108 ->  | W111: =LOOKUP(W$107,Assumptions!$109:$109,Assumptions!110:110)*W$108 ->  | X111: =LOOKUP(X$107,Assumptions!$109:$109,Assumptions!110:110)*X$108 ->  | Y111: =LOOKUP(Y$107,Assumptions!$109:$109,Assumptions!110:110)*Y$108 ->  | Z111: =LOOKUP(Z$107,Assumptions!$109:$109,Assumptions!110:110)*Z$108 ->  | AA111: =LOOKUP(AA$107,Assumptions!$109:$109,Assumptions!110:110)*AA$108 ->  | AB111: =LOOKUP(AB$107,Assumptions!$109:$109,Assumptions!110:110)*AB$108 ->  | AC111: =LOOKUP(AC$107,Assumptions!$109:$109,Assumptions!110:110)*AC$108 ->  | AD111: =LOOKUP(AD$107,Assumptions!$109:$109,Assumptions!110:110)*AD$108 ->  | AE111: =LOOKUP(AE$107,Assumptions!$109:$109,Assumptions!110:110)*AE$108 ->  | AF111: =LOOKUP(AF$107,Assumptions!$109:$109,Assumptions!110:110)*AF$108 ->  | AG111: =LOOKUP(AG$107,Assumptions!$109:$109,Assumptions!110:110)*AG$108 ->  | AH111: =LOOKUP(AH$107,Assumptions!$109:$109,Assumptions!110:110)*AH$108 ->  | AI111: =LOOKUP(AI$107,Assumptions!$109:$109,Assumptions!110:110)*AI$108 ->  | AJ111: =LOOKUP(AJ$107,Assumptions!$109:$109,Assumptions!110:110)*AJ$108 ->  | AK111: =LOOKUP(AK$107,Assumptions!$109:$109,Assumptions!110:110)*AK$108 ->  | AL111: =LOOKUP(AL$107,Assumptions!$109:$109,Assumptions!110:110)*AL$108 ->  | AM111: =LOOKUP(AM$107,Assumptions!$109:$109,Assumptions!110:110)*AM$108 ->  | AN111: =LOOKUP(AN$107,Assumptions!$109:$109,Assumptions!110:110)*AN$108 ->  | AO111: =LOOKUP(AO$107,Assumptions!$109:$109,Assumptions!110:110)*AO$108 ->  | AP111: =LOOKUP(AP$107,Assumptions!$109:$109,Assumptions!110:110)*AP$108 ->  | AQ111: =LOOKUP(AQ$107,Assumptions!$109:$109,Assumptions!110:110)*AQ$108 ->  | AR111: =LOOKUP(AR$107,Assumptions!$109:$109,Assumptions!110:110)*AR$108 ->  | AS111: =LOOKUP(AS$107,Assumptions!$109:$109,Assumptions!110:110)*AS$108 ->  | AT111: =LOOKUP(AT$107,Assumptions!$109:$109,Assumptions!110:110)*AT$108 ->  | AU111: =LOOKUP(AU$107,Assumptions!$109:$109,Assumptions!110:110)*AU$108 ->  | AV111: =LOOKUP(AV$107,Assumptions!$109:$109,Assumptions!110:110)*AV$108 ->  | AW111: =LOOKUP(AW$107,Assumptions!$109:$109,Assumptions!110:110)*AW$108 ->  | AX111: =LOOKUP(AX$107,Assumptions!$109:$109,Assumptions!110:110)*AX$108 ->  | AY111: =LOOKUP(AY$107,Assumptions!$109:$109,Assumptions!110:110)*AY$108 ->  | AZ111: =LOOKUP(AZ$107,Assumptions!$109:$109,Assumptions!110:110)*AZ$108 ->  | BA111: =LOOKUP(BA$107,Assumptions!$109:$109,Assumptions!110:110)*BA$108 ->  | BB111: =LOOKUP(BB$107,Assumptions!$109:$109,Assumptions!110:110)*BB$108 ->  | BC111: =LOOKUP(BC$107,Assumptions!$109:$109,Assumptions!110:110)*BC$108 ->  | BD111: =LOOKUP(BD$107,Assumptions!$109:$109,Assumptions!110:110)*BD$108 ->  | BE111: =LOOKUP(BE$107,Assumptions!$109:$109,Assumptions!110:110)*BE$108 ->  | BF111: =LOOKUP(BF$107,Assumptions!$109:$109,Assumptions!110:110)*BF$108 ->  | BG111: =LOOKUP(BG$107,Assumptions!$109:$109,Assumptions!110:110)*BG$108 ->  | BH111: =LOOKUP(BH$107,Assumptions!$109:$109,Assumptions!110:110)*BH$108 ->  | BI111: =LOOKUP(BI$107,Assumptions!$109:$109,Assumptions!110:110)*BI$108 ->  | BJ111: =LOOKUP(BJ$107,Assumptions!$109:$109,Assumptions!110:110)*BJ$108 ->  | BK111: =LOOKUP(BK$107,Assumptions!$109:$109,Assumptions!110:110)*BK$108 ->  | BL111: =LOOKUP(BL$107,Assumptions!$109:$109,Assumptions!110:110)*BL$108 ->  | BM111: =LOOKUP(BM$107,Assumptions!$109:$109,Assumptions!110:110)*BM$108 ->  | BN111: =LOOKUP(BN$107,Assumptions!$109:$109,Assumptions!110:110)*BN$108 ->  | BO111: =LOOKUP(BO$107,Assumptions!$109:$109,Assumptions!110:110)*BO$108 ->  | BP111: =LOOKUP(BP$107,Assumptions!$109:$109,Assumptions!110:110)*BP$108 ->  | BQ111: =LOOKUP(BQ$107,Assumptions!$109:$109,Assumptions!110:110)*BQ$108 ->  | BR111: =LOOKUP(BR$107,Assumptions!$109:$109,Assumptions!110:110)*BR$108 ->  | BS111: =LOOKUP(BS$107,Assumptions!$109:$109,Assumptions!110:110)*BS$108 ->  | BT111: =LOOKUP(BT$107,Assumptions!$109:$109,Assumptions!110:110)*BT$108 ->  | BU111: =LOOKUP(BU$107,Assumptions!$109:$109,Assumptions!110:110)*BU$108 ->  | BV111: =LOOKUP(BV$107,Assumptions!$109:$109,Assumptions!110:110)*BV$108 ->  | BW111: =LOOKUP(BW$107,Assumptions!$109:$109,Assumptions!110:110)*BW$108 ->  | BX111: =LOOKUP(BX$107,Assumptions!$109:$109,Assumptions!110:110)*BX$108 ->  | BY111: =LOOKUP(BY$107,Assumptions!$109:$109,Assumptions!110:110)*BY$108 ->  | BZ111: =LOOKUP(BZ$107,Assumptions!$109:$109,Assumptions!110:110)*BZ$108 ->  | CA111: =LOOKUP(CA$107,Assumptions!$109:$109,Assumptions!110:110)*CA$108 ->  | CB111: =LOOKUP(CB$107,Assumptions!$109:$109,Assumptions!110:110)*CB$108 ->  | CC111: =LOOKUP(CC$107,Assumptions!$109:$109,Assumptions!110:110)*CC$108 ->  | CD111: =LOOKUP(CD$107,Assumptions!$109:$109,Assumptions!110:110)*CD$108 ->  | CE111: =LOOKUP(CE$107,Assumptions!$109:$109,Assumptions!110:110)*CE$108 ->  | CF111: =LOOKUP(CF$107,Assumptions!$109:$109,Assumptions!110:110)*CF$108 ->  | CG111: =LOOKUP(CG$107,Assumptions!$109:$109,Assumptions!110:110)*CG$108 ->  | CH111: =LOOKUP(CH$107,Assumptions!$109:$109,Assumptions!110:110)*CH$108 ->  | CI111: =LOOKUP(CI$107,Assumptions!$109:$109,Assumptions!110:110)*CI$108 ->  | CJ111: =LOOKUP(CJ$107,Assumptions!$109:$109,Assumptions!110:110)*CJ$108 ->  | CK111: =LOOKUP(CK$107,Assumptions!$109:$109,Assumptions!110:110)*CK$108 ->  | CL111: =LOOKUP(CL$107,Assumptions!$109:$109,Assumptions!110:110)*CL$108 ->  | CM111: =LOOKUP(CM$107,Assumptions!$109:$109,Assumptions!110:110)*CM$108 ->  | CN111: =LOOKUP(CN$107,Assumptions!$109:$109,Assumptions!110:110)*CN$108 ->  | CO111: =LOOKUP(CO$107,Assumptions!$109:$109,Assumptions!110:110)*CO$108 ->  | CP111: =LOOKUP(CP$107,Assumptions!$109:$109,Assumptions!110:110)*CP$108 ->  | CQ111: =LOOKUP(CQ$107,Assumptions!$109:$109,Assumptions!110:110)*CQ$108 ->  | CR111: =LOOKUP(CR$107,Assumptions!$109:$109,Assumptions!110:110)*CR$108 ->  | CS111: =LOOKUP(CS$107,Assumptions!$109:$109,Assumptions!110:110)*CS$108 ->  | CT111: =LOOKUP(CT$107,Assumptions!$109:$109,Assumptions!110:110)*CT$108 ->  | CU111: =LOOKUP(CU$107,Assumptions!$109:$109,Assumptions!110:110)*CU$108 ->  | CV111: =LOOKUP(CV$107,Assumptions!$109:$109,Assumptions!110:110)*CV$108 ->  | CW111: =LOOKUP(CW$107,Assumptions!$109:$109,Assumptions!110:110)*CW$108 ->  | CX111: =LOOKUP(CX$107,Assumptions!$109:$109,Assumptions!110:110)*CX$108 ->  | CY111: =LOOKUP(CY$107,Assumptions!$109:$109,Assumptions!110:110)*CY$108 ->  | CZ111: =LOOKUP(CZ$107,Assumptions!$109:$109,Assumptions!110:110)*CZ$108 ->  | DA111: =LOOKUP(DA$107,Assumptions!$109:$109,Assumptions!110:110)*DA$108 ->  | DB111: =LOOKUP(DB$107,Assumptions!$109:$109,Assumptions!110:110)*DB$108 ->  | DC111: =LOOKUP(DC$107,Assumptions!$109:$109,Assumptions!110:110)*DC$108 ->  | DD111: =LOOKUP(DD$107,Assumptions!$109:$109,Assumptions!110:110)*DD$108 ->  | DE111: =LOOKUP(DE$107,Assumptions!$109:$109,Assumptions!110:110)*DE$108 ->  | DF111: =LOOKUP(DF$107,Assumptions!$109:$109,Assumptions!110:110)*DF$108 ->  | DG111: =LOOKUP(DG$107,Assumptions!$109:$109,Assumptions!110:110)*DG$108 ->  | DH111: =LOOKUP(DH$107,Assumptions!$109:$109,Assumptions!110:110)*DH$108 ->  | DI111: =LOOKUP(DI$107,Assumptions!$109:$109,Assumptions!110:110)*DI$108 ->  | DJ111: =LOOKUP(DJ$107,Assumptions!$109:$109,Assumptions!110:110)*DJ$108 ->  | DK111: =LOOKUP(DK$107,Assumptions!$109:$109,Assumptions!110:110)*DK$108 ->  | DL111: =LOOKUP(DL$107,Assumptions!$109:$109,Assumptions!110:110)*DL$108 ->  | DM111: =LOOKUP(DM$107,Assumptions!$109:$109,Assumptions!110:110)*DM$108 ->  | DN111: =LOOKUP(DN$107,Assumptions!$109:$109,Assumptions!110:110)*DN$108 ->  | DO111: =LOOKUP(DO$107,Assumptions!$109:$109,Assumptions!110:110)*DO$108 ->  | DP111: =LOOKUP(DP$107,Assumptions!$109:$109,Assumptions!110:110)*DP$108 ->  | DQ111: =LOOKUP(DQ$107,Assumptions!$109:$109,Assumptions!110:110)*DQ$108 -> 
E112: February | F112: Euro/MWH | K112: =LOOKUP(K$107,Assumptions!$109:$109,Assumptions!111:111)*K$108 ->  | L112: =LOOKUP(L$107,Assumptions!$109:$109,Assumptions!111:111)*L$108 ->  | M112: =LOOKUP(M$107,Assumptions!$109:$109,Assumptions!111:111)*M$108 ->  | N112: =LOOKUP(N$107,Assumptions!$109:$109,Assumptions!111:111)*N$108 ->  | O112: =LOOKUP(O$107,Assumptions!$109:$109,Assumptions!111:111)*O$108 ->  | P112: =LOOKUP(P$107,Assumptions!$109:$109,Assumptions!111:111)*P$108 ->  | Q112: =LOOKUP(Q$107,Assumptions!$109:$109,Assumptions!111:111)*Q$108 ->  | R112: =LOOKUP(R$107,Assumptions!$109:$109,Assumptions!111:111)*R$108 ->  | S112: =LOOKUP(S$107,Assumptions!$109:$109,Assumptions!111:111)*S$108 ->  | T112: =LOOKUP(T$107,Assumptions!$109:$109,Assumptions!111:111)*T$108 ->  | U112: =LOOKUP(U$107,Assumptions!$109:$109,Assumptions!111:111)*U$108 ->  | V112: =LOOKUP(V$107,Assumptions!$109:$109,Assumptions!111:111)*V$108 ->  | W112: =LOOKUP(W$107,Assumptions!$109:$109,Assumptions!111:111)*W$108 ->  | X112: =LOOKUP(X$107,Assumptions!$109:$109,Assumptions!111:111)*X$108 ->  | Y112: =LOOKUP(Y$107,Assumptions!$109:$109,Assumptions!111:111)*Y$108 ->  | Z112: =LOOKUP(Z$107,Assumptions!$109:$109,Assumptions!111:111)*Z$108 ->  | AA112: =LOOKUP(AA$107,Assumptions!$109:$109,Assumptions!111:111)*AA$108 ->  | AB112: =LOOKUP(AB$107,Assumptions!$109:$109,Assumptions!111:111)*AB$108 ->  | AC112: =LOOKUP(AC$107,Assumptions!$109:$109,Assumptions!111:111)*AC$108 ->  | AD112: =LOOKUP(AD$107,Assumptions!$109:$109,Assumptions!111:111)*AD$108 ->  | AE112: =LOOKUP(AE$107,Assumptions!$109:$109,Assumptions!111:111)*AE$108 ->  | AF112: =LOOKUP(AF$107,Assumptions!$109:$109,Assumptions!111:111)*AF$108 ->  | AG112: =LOOKUP(AG$107,Assumptions!$109:$109,Assumptions!111:111)*AG$108 ->  | AH112: =LOOKUP(AH$107,Assumptions!$109:$109,Assumptions!111:111)*AH$108 ->  | AI112: =LOOKUP(AI$107,Assumptions!$109:$109,Assumptions!111:111)*AI$108 ->  | AJ112: =LOOKUP(AJ$107,Assumptions!$109:$109,Assumptions!111:111)*AJ$108 ->  | AK112: =LOOKUP(AK$107,Assumptions!$109:$109,Assumptions!111:111)*AK$108 ->  | AL112: =LOOKUP(AL$107,Assumptions!$109:$109,Assumptions!111:111)*AL$108 ->  | AM112: =LOOKUP(AM$107,Assumptions!$109:$109,Assumptions!111:111)*AM$108 ->  | AN112: =LOOKUP(AN$107,Assumptions!$109:$109,Assumptions!111:111)*AN$108 ->  | AO112: =LOOKUP(AO$107,Assumptions!$109:$109,Assumptions!111:111)*AO$108 ->  | AP112: =LOOKUP(AP$107,Assumptions!$109:$109,Assumptions!111:111)*AP$108 ->  | AQ112: =LOOKUP(AQ$107,Assumptions!$109:$109,Assumptions!111:111)*AQ$108 ->  | AR112: =LOOKUP(AR$107,Assumptions!$109:$109,Assumptions!111:111)*AR$108 ->  | AS112: =LOOKUP(AS$107,Assumptions!$109:$109,Assumptions!111:111)*AS$108 ->  | AT112: =LOOKUP(AT$107,Assumptions!$109:$109,Assumptions!111:111)*AT$108 ->  | AU112: =LOOKUP(AU$107,Assumptions!$109:$109,Assumptions!111:111)*AU$108 ->  | AV112: =LOOKUP(AV$107,Assumptions!$109:$109,Assumptions!111:111)*AV$108 ->  | AW112: =LOOKUP(AW$107,Assumptions!$109:$109,Assumptions!111:111)*AW$108 ->  | AX112: =LOOKUP(AX$107,Assumptions!$109:$109,Assumptions!111:111)*AX$108 ->  | AY112: =LOOKUP(AY$107,Assumptions!$109:$109,Assumptions!111:111)*AY$108 ->  | AZ112: =LOOKUP(AZ$107,Assumptions!$109:$109,Assumptions!111:111)*AZ$108 ->  | BA112: =LOOKUP(BA$107,Assumptions!$109:$109,Assumptions!111:111)*BA$108 ->  | BB112: =LOOKUP(BB$107,Assumptions!$109:$109,Assumptions!111:111)*BB$108 ->  | BC112: =LOOKUP(BC$107,Assumptions!$109:$109,Assumptions!111:111)*BC$108 ->  | BD112: =LOOKUP(BD$107,Assumptions!$109:$109,Assumptions!111:111)*BD$108 ->  | BE112: =LOOKUP(BE$107,Assumptions!$109:$109,Assumptions!111:111)*BE$108 ->  | BF112: =LOOKUP(BF$107,Assumptions!$109:$109,Assumptions!111:111)*BF$108 ->  | BG112: =LOOKUP(BG$107,Assumptions!$109:$109,Assumptions!111:111)*BG$108 ->  | BH112: =LOOKUP(BH$107,Assumptions!$109:$109,Assumptions!111:111)*BH$108 ->  | BI112: =LOOKUP(BI$107,Assumptions!$109:$109,Assumptions!111:111)*BI$108 ->  | BJ112: =LOOKUP(BJ$107,Assumptions!$109:$109,Assumptions!111:111)*BJ$108 ->  | BK112: =LOOKUP(BK$107,Assumptions!$109:$109,Assumptions!111:111)*BK$108 ->  | BL112: =LOOKUP(BL$107,Assumptions!$109:$109,Assumptions!111:111)*BL$108 ->  | BM112: =LOOKUP(BM$107,Assumptions!$109:$109,Assumptions!111:111)*BM$108 ->  | BN112: =LOOKUP(BN$107,Assumptions!$109:$109,Assumptions!111:111)*BN$108 ->  | BO112: =LOOKUP(BO$107,Assumptions!$109:$109,Assumptions!111:111)*BO$108 ->  | BP112: =LOOKUP(BP$107,Assumptions!$109:$109,Assumptions!111:111)*BP$108 ->  | BQ112: =LOOKUP(BQ$107,Assumptions!$109:$109,Assumptions!111:111)*BQ$108 ->  | BR112: =LOOKUP(BR$107,Assumptions!$109:$109,Assumptions!111:111)*BR$108 ->  | BS112: =LOOKUP(BS$107,Assumptions!$109:$109,Assumptions!111:111)*BS$108 ->  | BT112: =LOOKUP(BT$107,Assumptions!$109:$109,Assumptions!111:111)*BT$108 ->  | BU112: =LOOKUP(BU$107,Assumptions!$109:$109,Assumptions!111:111)*BU$108 ->  | BV112: =LOOKUP(BV$107,Assumptions!$109:$109,Assumptions!111:111)*BV$108 ->  | BW112: =LOOKUP(BW$107,Assumptions!$109:$109,Assumptions!111:111)*BW$108 ->  | BX112: =LOOKUP(BX$107,Assumptions!$109:$109,Assumptions!111:111)*BX$108 ->  | BY112: =LOOKUP(BY$107,Assumptions!$109:$109,Assumptions!111:111)*BY$108 ->  | BZ112: =LOOKUP(BZ$107,Assumptions!$109:$109,Assumptions!111:111)*BZ$108 ->  | CA112: =LOOKUP(CA$107,Assumptions!$109:$109,Assumptions!111:111)*CA$108 ->  | CB112: =LOOKUP(CB$107,Assumptions!$109:$109,Assumptions!111:111)*CB$108 ->  | CC112: =LOOKUP(CC$107,Assumptions!$109:$109,Assumptions!111:111)*CC$108 ->  | CD112: =LOOKUP(CD$107,Assumptions!$109:$109,Assumptions!111:111)*CD$108 ->  | CE112: =LOOKUP(CE$107,Assumptions!$109:$109,Assumptions!111:111)*CE$108 ->  | CF112: =LOOKUP(CF$107,Assumptions!$109:$109,Assumptions!111:111)*CF$108 ->  | CG112: =LOOKUP(CG$107,Assumptions!$109:$109,Assumptions!111:111)*CG$108 ->  | CH112: =LOOKUP(CH$107,Assumptions!$109:$109,Assumptions!111:111)*CH$108 ->  | CI112: =LOOKUP(CI$107,Assumptions!$109:$109,Assumptions!111:111)*CI$108 ->  | CJ112: =LOOKUP(CJ$107,Assumptions!$109:$109,Assumptions!111:111)*CJ$108 ->  | CK112: =LOOKUP(CK$107,Assumptions!$109:$109,Assumptions!111:111)*CK$108 ->  | CL112: =LOOKUP(CL$107,Assumptions!$109:$109,Assumptions!111:111)*CL$108 ->  | CM112: =LOOKUP(CM$107,Assumptions!$109:$109,Assumptions!111:111)*CM$108 ->  | CN112: =LOOKUP(CN$107,Assumptions!$109:$109,Assumptions!111:111)*CN$108 ->  | CO112: =LOOKUP(CO$107,Assumptions!$109:$109,Assumptions!111:111)*CO$108 ->  | CP112: =LOOKUP(CP$107,Assumptions!$109:$109,Assumptions!111:111)*CP$108 ->  | CQ112: =LOOKUP(CQ$107,Assumptions!$109:$109,Assumptions!111:111)*CQ$108 ->  | CR112: =LOOKUP(CR$107,Assumptions!$109:$109,Assumptions!111:111)*CR$108 ->  | CS112: =LOOKUP(CS$107,Assumptions!$109:$109,Assumptions!111:111)*CS$108 ->  | CT112: =LOOKUP(CT$107,Assumptions!$109:$109,Assumptions!111:111)*CT$108 ->  | CU112: =LOOKUP(CU$107,Assumptions!$109:$109,Assumptions!111:111)*CU$108 ->  | CV112: =LOOKUP(CV$107,Assumptions!$109:$109,Assumptions!111:111)*CV$108 ->  | CW112: =LOOKUP(CW$107,Assumptions!$109:$109,Assumptions!111:111)*CW$108 ->  | CX112: =LOOKUP(CX$107,Assumptions!$109:$109,Assumptions!111:111)*CX$108 ->  | CY112: =LOOKUP(CY$107,Assumptions!$109:$109,Assumptions!111:111)*CY$108 ->  | CZ112: =LOOKUP(CZ$107,Assumptions!$109:$109,Assumptions!111:111)*CZ$108 ->  | DA112: =LOOKUP(DA$107,Assumptions!$109:$109,Assumptions!111:111)*DA$108 ->  | DB112: =LOOKUP(DB$107,Assumptions!$109:$109,Assumptions!111:111)*DB$108 ->  | DC112: =LOOKUP(DC$107,Assumptions!$109:$109,Assumptions!111:111)*DC$108 ->  | DD112: =LOOKUP(DD$107,Assumptions!$109:$109,Assumptions!111:111)*DD$108 ->  | DE112: =LOOKUP(DE$107,Assumptions!$109:$109,Assumptions!111:111)*DE$108 ->  | DF112: =LOOKUP(DF$107,Assumptions!$109:$109,Assumptions!111:111)*DF$108 ->  | DG112: =LOOKUP(DG$107,Assumptions!$109:$109,Assumptions!111:111)*DG$108 ->  | DH112: =LOOKUP(DH$107,Assumptions!$109:$109,Assumptions!111:111)*DH$108 ->  | DI112: =LOOKUP(DI$107,Assumptions!$109:$109,Assumptions!111:111)*DI$108 ->  | DJ112: =LOOKUP(DJ$107,Assumptions!$109:$109,Assumptions!111:111)*DJ$108 ->  | DK112: =LOOKUP(DK$107,Assumptions!$109:$109,Assumptions!111:111)*DK$108 ->  | DL112: =LOOKUP(DL$107,Assumptions!$109:$109,Assumptions!111:111)*DL$108 ->  | DM112: =LOOKUP(DM$107,Assumptions!$109:$109,Assumptions!111:111)*DM$108 ->  | DN112: =LOOKUP(DN$107,Assumptions!$109:$109,Assumptions!111:111)*DN$108 ->  | DO112: =LOOKUP(DO$107,Assumptions!$109:$109,Assumptions!111:111)*DO$108 ->  | DP112: =LOOKUP(DP$107,Assumptions!$109:$109,Assumptions!111:111)*DP$108 ->  | DQ112: =LOOKUP(DQ$107,Assumptions!$109:$109,Assumptions!111:111)*DQ$108 -> 
E113: March | F113: Euro/MWH | K113: =LOOKUP(K$107,Assumptions!$109:$109,Assumptions!112:112)*K$108 ->  | L113: =LOOKUP(L$107,Assumptions!$109:$109,Assumptions!112:112)*L$108 ->  | M113: =LOOKUP(M$107,Assumptions!$109:$109,Assumptions!112:112)*M$108 ->  | N113: =LOOKUP(N$107,Assumptions!$109:$109,Assumptions!112:112)*N$108 ->  | O113: =LOOKUP(O$107,Assumptions!$109:$109,Assumptions!112:112)*O$108 ->  | P113: =LOOKUP(P$107,Assumptions!$109:$109,Assumptions!112:112)*P$108 ->  | Q113: =LOOKUP(Q$107,Assumptions!$109:$109,Assumptions!112:112)*Q$108 ->  | R113: =LOOKUP(R$107,Assumptions!$109:$109,Assumptions!112:112)*R$108 ->  | S113: =LOOKUP(S$107,Assumptions!$109:$109,Assumptions!112:112)*S$108 ->  | T113: =LOOKUP(T$107,Assumptions!$109:$109,Assumptions!112:112)*T$108 ->  | U113: =LOOKUP(U$107,Assumptions!$109:$109,Assumptions!112:112)*U$108 ->  | V113: =LOOKUP(V$107,Assumptions!$109:$109,Assumptions!112:112)*V$108 ->  | W113: =LOOKUP(W$107,Assumptions!$109:$109,Assumptions!112:112)*W$108 ->  | X113: =LOOKUP(X$107,Assumptions!$109:$109,Assumptions!112:112)*X$108 ->  | Y113: =LOOKUP(Y$107,Assumptions!$109:$109,Assumptions!112:112)*Y$108 ->  | Z113: =LOOKUP(Z$107,Assumptions!$109:$109,Assumptions!112:112)*Z$108 ->  | AA113: =LOOKUP(AA$107,Assumptions!$109:$109,Assumptions!112:112)*AA$108 ->  | AB113: =LOOKUP(AB$107,Assumptions!$109:$109,Assumptions!112:112)*AB$108 ->  | AC113: =LOOKUP(AC$107,Assumptions!$109:$109,Assumptions!112:112)*AC$108 ->  | AD113: =LOOKUP(AD$107,Assumptions!$109:$109,Assumptions!112:112)*AD$108 ->  | AE113: =LOOKUP(AE$107,Assumptions!$109:$109,Assumptions!112:112)*AE$108 ->  | AF113: =LOOKUP(AF$107,Assumptions!$109:$109,Assumptions!112:112)*AF$108 ->  | AG113: =LOOKUP(AG$107,Assumptions!$109:$109,Assumptions!112:112)*AG$108 ->  | AH113: =LOOKUP(AH$107,Assumptions!$109:$109,Assumptions!112:112)*AH$108 ->  | AI113: =LOOKUP(AI$107,Assumptions!$109:$109,Assumptions!112:112)*AI$108 ->  | AJ113: =LOOKUP(AJ$107,Assumptions!$109:$109,Assumptions!112:112)*AJ$108 ->  | AK113: =LOOKUP(AK$107,Assumptions!$109:$109,Assumptions!112:112)*AK$108 ->  | AL113: =LOOKUP(AL$107,Assumptions!$109:$109,Assumptions!112:112)*AL$108 ->  | AM113: =LOOKUP(AM$107,Assumptions!$109:$109,Assumptions!112:112)*AM$108 ->  | AN113: =LOOKUP(AN$107,Assumptions!$109:$109,Assumptions!112:112)*AN$108 ->  | AO113: =LOOKUP(AO$107,Assumptions!$109:$109,Assumptions!112:112)*AO$108 ->  | AP113: =LOOKUP(AP$107,Assumptions!$109:$109,Assumptions!112:112)*AP$108 ->  | AQ113: =LOOKUP(AQ$107,Assumptions!$109:$109,Assumptions!112:112)*AQ$108 ->  | AR113: =LOOKUP(AR$107,Assumptions!$109:$109,Assumptions!112:112)*AR$108 ->  | AS113: =LOOKUP(AS$107,Assumptions!$109:$109,Assumptions!112:112)*AS$108 ->  | AT113: =LOOKUP(AT$107,Assumptions!$109:$109,Assumptions!112:112)*AT$108 ->  | AU113: =LOOKUP(AU$107,Assumptions!$109:$109,Assumptions!112:112)*AU$108 ->  | AV113: =LOOKUP(AV$107,Assumptions!$109:$109,Assumptions!112:112)*AV$108 ->  | AW113: =LOOKUP(AW$107,Assumptions!$109:$109,Assumptions!112:112)*AW$108 ->  | AX113: =LOOKUP(AX$107,Assumptions!$109:$109,Assumptions!112:112)*AX$108 ->  | AY113: =LOOKUP(AY$107,Assumptions!$109:$109,Assumptions!112:112)*AY$108 ->  | AZ113: =LOOKUP(AZ$107,Assumptions!$109:$109,Assumptions!112:112)*AZ$108 ->  | BA113: =LOOKUP(BA$107,Assumptions!$109:$109,Assumptions!112:112)*BA$108 ->  | BB113: =LOOKUP(BB$107,Assumptions!$109:$109,Assumptions!112:112)*BB$108 ->  | BC113: =LOOKUP(BC$107,Assumptions!$109:$109,Assumptions!112:112)*BC$108 ->  | BD113: =LOOKUP(BD$107,Assumptions!$109:$109,Assumptions!112:112)*BD$108 ->  | BE113: =LOOKUP(BE$107,Assumptions!$109:$109,Assumptions!112:112)*BE$108 ->  | BF113: =LOOKUP(BF$107,Assumptions!$109:$109,Assumptions!112:112)*BF$108 ->  | BG113: =LOOKUP(BG$107,Assumptions!$109:$109,Assumptions!112:112)*BG$108 ->  | BH113: =LOOKUP(BH$107,Assumptions!$109:$109,Assumptions!112:112)*BH$108 ->  | BI113: =LOOKUP(BI$107,Assumptions!$109:$109,Assumptions!112:112)*BI$108 ->  | BJ113: =LOOKUP(BJ$107,Assumptions!$109:$109,Assumptions!112:112)*BJ$108 ->  | BK113: =LOOKUP(BK$107,Assumptions!$109:$109,Assumptions!112:112)*BK$108 ->  | BL113: =LOOKUP(BL$107,Assumptions!$109:$109,Assumptions!112:112)*BL$108 ->  | BM113: =LOOKUP(BM$107,Assumptions!$109:$109,Assumptions!112:112)*BM$108 ->  | BN113: =LOOKUP(BN$107,Assumptions!$109:$109,Assumptions!112:112)*BN$108 ->  | BO113: =LOOKUP(BO$107,Assumptions!$109:$109,Assumptions!112:112)*BO$108 ->  | BP113: =LOOKUP(BP$107,Assumptions!$109:$109,Assumptions!112:112)*BP$108 ->  | BQ113: =LOOKUP(BQ$107,Assumptions!$109:$109,Assumptions!112:112)*BQ$108 ->  | BR113: =LOOKUP(BR$107,Assumptions!$109:$109,Assumptions!112:112)*BR$108 ->  | BS113: =LOOKUP(BS$107,Assumptions!$109:$109,Assumptions!112:112)*BS$108 ->  | BT113: =LOOKUP(BT$107,Assumptions!$109:$109,Assumptions!112:112)*BT$108 ->  | BU113: =LOOKUP(BU$107,Assumptions!$109:$109,Assumptions!112:112)*BU$108 ->  | BV113: =LOOKUP(BV$107,Assumptions!$109:$109,Assumptions!112:112)*BV$108 ->  | BW113: =LOOKUP(BW$107,Assumptions!$109:$109,Assumptions!112:112)*BW$108 ->  | BX113: =LOOKUP(BX$107,Assumptions!$109:$109,Assumptions!112:112)*BX$108 ->  | BY113: =LOOKUP(BY$107,Assumptions!$109:$109,Assumptions!112:112)*BY$108 ->  | BZ113: =LOOKUP(BZ$107,Assumptions!$109:$109,Assumptions!112:112)*BZ$108 ->  | CA113: =LOOKUP(CA$107,Assumptions!$109:$109,Assumptions!112:112)*CA$108 ->  | CB113: =LOOKUP(CB$107,Assumptions!$109:$109,Assumptions!112:112)*CB$108 ->  | CC113: =LOOKUP(CC$107,Assumptions!$109:$109,Assumptions!112:112)*CC$108 ->  | CD113: =LOOKUP(CD$107,Assumptions!$109:$109,Assumptions!112:112)*CD$108 ->  | CE113: =LOOKUP(CE$107,Assumptions!$109:$109,Assumptions!112:112)*CE$108 ->  | CF113: =LOOKUP(CF$107,Assumptions!$109:$109,Assumptions!112:112)*CF$108 ->  | CG113: =LOOKUP(CG$107,Assumptions!$109:$109,Assumptions!112:112)*CG$108 ->  | CH113: =LOOKUP(CH$107,Assumptions!$109:$109,Assumptions!112:112)*CH$108 ->  | CI113: =LOOKUP(CI$107,Assumptions!$109:$109,Assumptions!112:112)*CI$108 ->  | CJ113: =LOOKUP(CJ$107,Assumptions!$109:$109,Assumptions!112:112)*CJ$108 ->  | CK113: =LOOKUP(CK$107,Assumptions!$109:$109,Assumptions!112:112)*CK$108 ->  | CL113: =LOOKUP(CL$107,Assumptions!$109:$109,Assumptions!112:112)*CL$108 ->  | CM113: =LOOKUP(CM$107,Assumptions!$109:$109,Assumptions!112:112)*CM$108 ->  | CN113: =LOOKUP(CN$107,Assumptions!$109:$109,Assumptions!112:112)*CN$108 ->  | CO113: =LOOKUP(CO$107,Assumptions!$109:$109,Assumptions!112:112)*CO$108 ->  | CP113: =LOOKUP(CP$107,Assumptions!$109:$109,Assumptions!112:112)*CP$108 ->  | CQ113: =LOOKUP(CQ$107,Assumptions!$109:$109,Assumptions!112:112)*CQ$108 ->  | CR113: =LOOKUP(CR$107,Assumptions!$109:$109,Assumptions!112:112)*CR$108 ->  | CS113: =LOOKUP(CS$107,Assumptions!$109:$109,Assumptions!112:112)*CS$108 ->  | CT113: =LOOKUP(CT$107,Assumptions!$109:$109,Assumptions!112:112)*CT$108 ->  | CU113: =LOOKUP(CU$107,Assumptions!$109:$109,Assumptions!112:112)*CU$108 ->  | CV113: =LOOKUP(CV$107,Assumptions!$109:$109,Assumptions!112:112)*CV$108 ->  | CW113: =LOOKUP(CW$107,Assumptions!$109:$109,Assumptions!112:112)*CW$108 ->  | CX113: =LOOKUP(CX$107,Assumptions!$109:$109,Assumptions!112:112)*CX$108 ->  | CY113: =LOOKUP(CY$107,Assumptions!$109:$109,Assumptions!112:112)*CY$108 ->  | CZ113: =LOOKUP(CZ$107,Assumptions!$109:$109,Assumptions!112:112)*CZ$108 ->  | DA113: =LOOKUP(DA$107,Assumptions!$109:$109,Assumptions!112:112)*DA$108 ->  | DB113: =LOOKUP(DB$107,Assumptions!$109:$109,Assumptions!112:112)*DB$108 ->  | DC113: =LOOKUP(DC$107,Assumptions!$109:$109,Assumptions!112:112)*DC$108 ->  | DD113: =LOOKUP(DD$107,Assumptions!$109:$109,Assumptions!112:112)*DD$108 ->  | DE113: =LOOKUP(DE$107,Assumptions!$109:$109,Assumptions!112:112)*DE$108 ->  | DF113: =LOOKUP(DF$107,Assumptions!$109:$109,Assumptions!112:112)*DF$108 ->  | DG113: =LOOKUP(DG$107,Assumptions!$109:$109,Assumptions!112:112)*DG$108 ->  | DH113: =LOOKUP(DH$107,Assumptions!$109:$109,Assumptions!112:112)*DH$108 ->  | DI113: =LOOKUP(DI$107,Assumptions!$109:$109,Assumptions!112:112)*DI$108 ->  | DJ113: =LOOKUP(DJ$107,Assumptions!$109:$109,Assumptions!112:112)*DJ$108 ->  | DK113: =LOOKUP(DK$107,Assumptions!$109:$109,Assumptions!112:112)*DK$108 ->  | DL113: =LOOKUP(DL$107,Assumptions!$109:$109,Assumptions!112:112)*DL$108 ->  | DM113: =LOOKUP(DM$107,Assumptions!$109:$109,Assumptions!112:112)*DM$108 ->  | DN113: =LOOKUP(DN$107,Assumptions!$109:$109,Assumptions!112:112)*DN$108 ->  | DO113: =LOOKUP(DO$107,Assumptions!$109:$109,Assumptions!112:112)*DO$108 ->  | DP113: =LOOKUP(DP$107,Assumptions!$109:$109,Assumptions!112:112)*DP$108 ->  | DQ113: =LOOKUP(DQ$107,Assumptions!$109:$109,Assumptions!112:112)*DQ$108 -> 
E114: April | F114: Euro/MWH | K114: =LOOKUP(K$107,Assumptions!$109:$109,Assumptions!113:113)*K$108 ->  | L114: =LOOKUP(L$107,Assumptions!$109:$109,Assumptions!113:113)*L$108 ->  | M114: =LOOKUP(M$107,Assumptions!$109:$109,Assumptions!113:113)*M$108 ->  | N114: =LOOKUP(N$107,Assumptions!$109:$109,Assumptions!113:113)*N$108 ->  | O114: =LOOKUP(O$107,Assumptions!$109:$109,Assumptions!113:113)*O$108 ->  | P114: =LOOKUP(P$107,Assumptions!$109:$109,Assumptions!113:113)*P$108 ->  | Q114: =LOOKUP(Q$107,Assumptions!$109:$109,Assumptions!113:113)*Q$108 ->  | R114: =LOOKUP(R$107,Assumptions!$109:$109,Assumptions!113:113)*R$108 ->  | S114: =LOOKUP(S$107,Assumptions!$109:$109,Assumptions!113:113)*S$108 ->  | T114: =LOOKUP(T$107,Assumptions!$109:$109,Assumptions!113:113)*T$108 ->  | U114: =LOOKUP(U$107,Assumptions!$109:$109,Assumptions!113:113)*U$108 ->  | V114: =LOOKUP(V$107,Assumptions!$109:$109,Assumptions!113:113)*V$108 ->  | W114: =LOOKUP(W$107,Assumptions!$109:$109,Assumptions!113:113)*W$108 ->  | X114: =LOOKUP(X$107,Assumptions!$109:$109,Assumptions!113:113)*X$108 ->  | Y114: =LOOKUP(Y$107,Assumptions!$109:$109,Assumptions!113:113)*Y$108 ->  | Z114: =LOOKUP(Z$107,Assumptions!$109:$109,Assumptions!113:113)*Z$108 ->  | AA114: =LOOKUP(AA$107,Assumptions!$109:$109,Assumptions!113:113)*AA$108 ->  | AB114: =LOOKUP(AB$107,Assumptions!$109:$109,Assumptions!113:113)*AB$108 ->  | AC114: =LOOKUP(AC$107,Assumptions!$109:$109,Assumptions!113:113)*AC$108 ->  | AD114: =LOOKUP(AD$107,Assumptions!$109:$109,Assumptions!113:113)*AD$108 ->  | AE114: =LOOKUP(AE$107,Assumptions!$109:$109,Assumptions!113:113)*AE$108 ->  | AF114: =LOOKUP(AF$107,Assumptions!$109:$109,Assumptions!113:113)*AF$108 ->  | AG114: =LOOKUP(AG$107,Assumptions!$109:$109,Assumptions!113:113)*AG$108 ->  | AH114: =LOOKUP(AH$107,Assumptions!$109:$109,Assumptions!113:113)*AH$108 ->  | AI114: =LOOKUP(AI$107,Assumptions!$109:$109,Assumptions!113:113)*AI$108 ->  | AJ114: =LOOKUP(AJ$107,Assumptions!$109:$109,Assumptions!113:113)*AJ$108 ->  | AK114: =LOOKUP(AK$107,Assumptions!$109:$109,Assumptions!113:113)*AK$108 ->  | AL114: =LOOKUP(AL$107,Assumptions!$109:$109,Assumptions!113:113)*AL$108 ->  | AM114: =LOOKUP(AM$107,Assumptions!$109:$109,Assumptions!113:113)*AM$108 ->  | AN114: =LOOKUP(AN$107,Assumptions!$109:$109,Assumptions!113:113)*AN$108 ->  | AO114: =LOOKUP(AO$107,Assumptions!$109:$109,Assumptions!113:113)*AO$108 ->  | AP114: =LOOKUP(AP$107,Assumptions!$109:$109,Assumptions!113:113)*AP$108 ->  | AQ114: =LOOKUP(AQ$107,Assumptions!$109:$109,Assumptions!113:113)*AQ$108 ->  | AR114: =LOOKUP(AR$107,Assumptions!$109:$109,Assumptions!113:113)*AR$108 ->  | AS114: =LOOKUP(AS$107,Assumptions!$109:$109,Assumptions!113:113)*AS$108 ->  | AT114: =LOOKUP(AT$107,Assumptions!$109:$109,Assumptions!113:113)*AT$108 ->  | AU114: =LOOKUP(AU$107,Assumptions!$109:$109,Assumptions!113:113)*AU$108 ->  | AV114: =LOOKUP(AV$107,Assumptions!$109:$109,Assumptions!113:113)*AV$108 ->  | AW114: =LOOKUP(AW$107,Assumptions!$109:$109,Assumptions!113:113)*AW$108 ->  | AX114: =LOOKUP(AX$107,Assumptions!$109:$109,Assumptions!113:113)*AX$108 ->  | AY114: =LOOKUP(AY$107,Assumptions!$109:$109,Assumptions!113:113)*AY$108 ->  | AZ114: =LOOKUP(AZ$107,Assumptions!$109:$109,Assumptions!113:113)*AZ$108 ->  | BA114: =LOOKUP(BA$107,Assumptions!$109:$109,Assumptions!113:113)*BA$108 ->  | BB114: =LOOKUP(BB$107,Assumptions!$109:$109,Assumptions!113:113)*BB$108 ->  | BC114: =LOOKUP(BC$107,Assumptions!$109:$109,Assumptions!113:113)*BC$108 ->  | BD114: =LOOKUP(BD$107,Assumptions!$109:$109,Assumptions!113:113)*BD$108 ->  | BE114: =LOOKUP(BE$107,Assumptions!$109:$109,Assumptions!113:113)*BE$108 ->  | BF114: =LOOKUP(BF$107,Assumptions!$109:$109,Assumptions!113:113)*BF$108 ->  | BG114: =LOOKUP(BG$107,Assumptions!$109:$109,Assumptions!113:113)*BG$108 ->  | BH114: =LOOKUP(BH$107,Assumptions!$109:$109,Assumptions!113:113)*BH$108 ->  | BI114: =LOOKUP(BI$107,Assumptions!$109:$109,Assumptions!113:113)*BI$108 ->  | BJ114: =LOOKUP(BJ$107,Assumptions!$109:$109,Assumptions!113:113)*BJ$108 ->  | BK114: =LOOKUP(BK$107,Assumptions!$109:$109,Assumptions!113:113)*BK$108 ->  | BL114: =LOOKUP(BL$107,Assumptions!$109:$109,Assumptions!113:113)*BL$108 ->  | BM114: =LOOKUP(BM$107,Assumptions!$109:$109,Assumptions!113:113)*BM$108 ->  | BN114: =LOOKUP(BN$107,Assumptions!$109:$109,Assumptions!113:113)*BN$108 ->  | BO114: =LOOKUP(BO$107,Assumptions!$109:$109,Assumptions!113:113)*BO$108 ->  | BP114: =LOOKUP(BP$107,Assumptions!$109:$109,Assumptions!113:113)*BP$108 ->  | BQ114: =LOOKUP(BQ$107,Assumptions!$109:$109,Assumptions!113:113)*BQ$108 ->  | BR114: =LOOKUP(BR$107,Assumptions!$109:$109,Assumptions!113:113)*BR$108 ->  | BS114: =LOOKUP(BS$107,Assumptions!$109:$109,Assumptions!113:113)*BS$108 ->  | BT114: =LOOKUP(BT$107,Assumptions!$109:$109,Assumptions!113:113)*BT$108 ->  | BU114: =LOOKUP(BU$107,Assumptions!$109:$109,Assumptions!113:113)*BU$108 ->  | BV114: =LOOKUP(BV$107,Assumptions!$109:$109,Assumptions!113:113)*BV$108 ->  | BW114: =LOOKUP(BW$107,Assumptions!$109:$109,Assumptions!113:113)*BW$108 ->  | BX114: =LOOKUP(BX$107,Assumptions!$109:$109,Assumptions!113:113)*BX$108 ->  | BY114: =LOOKUP(BY$107,Assumptions!$109:$109,Assumptions!113:113)*BY$108 ->  | BZ114: =LOOKUP(BZ$107,Assumptions!$109:$109,Assumptions!113:113)*BZ$108 ->  | CA114: =LOOKUP(CA$107,Assumptions!$109:$109,Assumptions!113:113)*CA$108 ->  | CB114: =LOOKUP(CB$107,Assumptions!$109:$109,Assumptions!113:113)*CB$108 ->  | CC114: =LOOKUP(CC$107,Assumptions!$109:$109,Assumptions!113:113)*CC$108 ->  | CD114: =LOOKUP(CD$107,Assumptions!$109:$109,Assumptions!113:113)*CD$108 ->  | CE114: =LOOKUP(CE$107,Assumptions!$109:$109,Assumptions!113:113)*CE$108 ->  | CF114: =LOOKUP(CF$107,Assumptions!$109:$109,Assumptions!113:113)*CF$108 ->  | CG114: =LOOKUP(CG$107,Assumptions!$109:$109,Assumptions!113:113)*CG$108 ->  | CH114: =LOOKUP(CH$107,Assumptions!$109:$109,Assumptions!113:113)*CH$108 ->  | CI114: =LOOKUP(CI$107,Assumptions!$109:$109,Assumptions!113:113)*CI$108 ->  | CJ114: =LOOKUP(CJ$107,Assumptions!$109:$109,Assumptions!113:113)*CJ$108 ->  | CK114: =LOOKUP(CK$107,Assumptions!$109:$109,Assumptions!113:113)*CK$108 ->  | CL114: =LOOKUP(CL$107,Assumptions!$109:$109,Assumptions!113:113)*CL$108 ->  | CM114: =LOOKUP(CM$107,Assumptions!$109:$109,Assumptions!113:113)*CM$108 ->  | CN114: =LOOKUP(CN$107,Assumptions!$109:$109,Assumptions!113:113)*CN$108 ->  | CO114: =LOOKUP(CO$107,Assumptions!$109:$109,Assumptions!113:113)*CO$108 ->  | CP114: =LOOKUP(CP$107,Assumptions!$109:$109,Assumptions!113:113)*CP$108 ->  | CQ114: =LOOKUP(CQ$107,Assumptions!$109:$109,Assumptions!113:113)*CQ$108 ->  | CR114: =LOOKUP(CR$107,Assumptions!$109:$109,Assumptions!113:113)*CR$108 ->  | CS114: =LOOKUP(CS$107,Assumptions!$109:$109,Assumptions!113:113)*CS$108 ->  | CT114: =LOOKUP(CT$107,Assumptions!$109:$109,Assumptions!113:113)*CT$108 ->  | CU114: =LOOKUP(CU$107,Assumptions!$109:$109,Assumptions!113:113)*CU$108 ->  | CV114: =LOOKUP(CV$107,Assumptions!$109:$109,Assumptions!113:113)*CV$108 ->  | CW114: =LOOKUP(CW$107,Assumptions!$109:$109,Assumptions!113:113)*CW$108 ->  | CX114: =LOOKUP(CX$107,Assumptions!$109:$109,Assumptions!113:113)*CX$108 ->  | CY114: =LOOKUP(CY$107,Assumptions!$109:$109,Assumptions!113:113)*CY$108 ->  | CZ114: =LOOKUP(CZ$107,Assumptions!$109:$109,Assumptions!113:113)*CZ$108 ->  | DA114: =LOOKUP(DA$107,Assumptions!$109:$109,Assumptions!113:113)*DA$108 ->  | DB114: =LOOKUP(DB$107,Assumptions!$109:$109,Assumptions!113:113)*DB$108 ->  | DC114: =LOOKUP(DC$107,Assumptions!$109:$109,Assumptions!113:113)*DC$108 ->  | DD114: =LOOKUP(DD$107,Assumptions!$109:$109,Assumptions!113:113)*DD$108 ->  | DE114: =LOOKUP(DE$107,Assumptions!$109:$109,Assumptions!113:113)*DE$108 ->  | DF114: =LOOKUP(DF$107,Assumptions!$109:$109,Assumptions!113:113)*DF$108 ->  | DG114: =LOOKUP(DG$107,Assumptions!$109:$109,Assumptions!113:113)*DG$108 ->  | DH114: =LOOKUP(DH$107,Assumptions!$109:$109,Assumptions!113:113)*DH$108 ->  | DI114: =LOOKUP(DI$107,Assumptions!$109:$109,Assumptions!113:113)*DI$108 ->  | DJ114: =LOOKUP(DJ$107,Assumptions!$109:$109,Assumptions!113:113)*DJ$108 ->  | DK114: =LOOKUP(DK$107,Assumptions!$109:$109,Assumptions!113:113)*DK$108 ->  | DL114: =LOOKUP(DL$107,Assumptions!$109:$109,Assumptions!113:113)*DL$108 ->  | DM114: =LOOKUP(DM$107,Assumptions!$109:$109,Assumptions!113:113)*DM$108 ->  | DN114: =LOOKUP(DN$107,Assumptions!$109:$109,Assumptions!113:113)*DN$108 ->  | DO114: =LOOKUP(DO$107,Assumptions!$109:$109,Assumptions!113:113)*DO$108 ->  | DP114: =LOOKUP(DP$107,Assumptions!$109:$109,Assumptions!113:113)*DP$108 ->  | DQ114: =LOOKUP(DQ$107,Assumptions!$109:$109,Assumptions!113:113)*DQ$108 -> 
E115: May | F115: Euro/MWH | K115: =LOOKUP(K$107,Assumptions!$109:$109,Assumptions!114:114)*K$108 ->  | L115: =LOOKUP(L$107,Assumptions!$109:$109,Assumptions!114:114)*L$108 ->  | M115: =LOOKUP(M$107,Assumptions!$109:$109,Assumptions!114:114)*M$108 ->  | N115: =LOOKUP(N$107,Assumptions!$109:$109,Assumptions!114:114)*N$108 ->  | O115: =LOOKUP(O$107,Assumptions!$109:$109,Assumptions!114:114)*O$108 ->  | P115: =LOOKUP(P$107,Assumptions!$109:$109,Assumptions!114:114)*P$108 ->  | Q115: =LOOKUP(Q$107,Assumptions!$109:$109,Assumptions!114:114)*Q$108 ->  | R115: =LOOKUP(R$107,Assumptions!$109:$109,Assumptions!114:114)*R$108 ->  | S115: =LOOKUP(S$107,Assumptions!$109:$109,Assumptions!114:114)*S$108 ->  | T115: =LOOKUP(T$107,Assumptions!$109:$109,Assumptions!114:114)*T$108 ->  | U115: =LOOKUP(U$107,Assumptions!$109:$109,Assumptions!114:114)*U$108 ->  | V115: =LOOKUP(V$107,Assumptions!$109:$109,Assumptions!114:114)*V$108 ->  | W115: =LOOKUP(W$107,Assumptions!$109:$109,Assumptions!114:114)*W$108 ->  | X115: =LOOKUP(X$107,Assumptions!$109:$109,Assumptions!114:114)*X$108 ->  | Y115: =LOOKUP(Y$107,Assumptions!$109:$109,Assumptions!114:114)*Y$108 ->  | Z115: =LOOKUP(Z$107,Assumptions!$109:$109,Assumptions!114:114)*Z$108 ->  | AA115: =LOOKUP(AA$107,Assumptions!$109:$109,Assumptions!114:114)*AA$108 ->  | AB115: =LOOKUP(AB$107,Assumptions!$109:$109,Assumptions!114:114)*AB$108 ->  | AC115: =LOOKUP(AC$107,Assumptions!$109:$109,Assumptions!114:114)*AC$108 ->  | AD115: =LOOKUP(AD$107,Assumptions!$109:$109,Assumptions!114:114)*AD$108 ->  | AE115: =LOOKUP(AE$107,Assumptions!$109:$109,Assumptions!114:114)*AE$108 ->  | AF115: =LOOKUP(AF$107,Assumptions!$109:$109,Assumptions!114:114)*AF$108 ->  | AG115: =LOOKUP(AG$107,Assumptions!$109:$109,Assumptions!114:114)*AG$108 ->  | AH115: =LOOKUP(AH$107,Assumptions!$109:$109,Assumptions!114:114)*AH$108 ->  | AI115: =LOOKUP(AI$107,Assumptions!$109:$109,Assumptions!114:114)*AI$108 ->  | AJ115: =LOOKUP(AJ$107,Assumptions!$109:$109,Assumptions!114:114)*AJ$108 ->  | AK115: =LOOKUP(AK$107,Assumptions!$109:$109,Assumptions!114:114)*AK$108 ->  | AL115: =LOOKUP(AL$107,Assumptions!$109:$109,Assumptions!114:114)*AL$108 ->  | AM115: =LOOKUP(AM$107,Assumptions!$109:$109,Assumptions!114:114)*AM$108 ->  | AN115: =LOOKUP(AN$107,Assumptions!$109:$109,Assumptions!114:114)*AN$108 ->  | AO115: =LOOKUP(AO$107,Assumptions!$109:$109,Assumptions!114:114)*AO$108 ->  | AP115: =LOOKUP(AP$107,Assumptions!$109:$109,Assumptions!114:114)*AP$108 ->  | AQ115: =LOOKUP(AQ$107,Assumptions!$109:$109,Assumptions!114:114)*AQ$108 ->  | AR115: =LOOKUP(AR$107,Assumptions!$109:$109,Assumptions!114:114)*AR$108 ->  | AS115: =LOOKUP(AS$107,Assumptions!$109:$109,Assumptions!114:114)*AS$108 ->  | AT115: =LOOKUP(AT$107,Assumptions!$109:$109,Assumptions!114:114)*AT$108 ->  | AU115: =LOOKUP(AU$107,Assumptions!$109:$109,Assumptions!114:114)*AU$108 ->  | AV115: =LOOKUP(AV$107,Assumptions!$109:$109,Assumptions!114:114)*AV$108 ->  | AW115: =LOOKUP(AW$107,Assumptions!$109:$109,Assumptions!114:114)*AW$108 ->  | AX115: =LOOKUP(AX$107,Assumptions!$109:$109,Assumptions!114:114)*AX$108 ->  | AY115: =LOOKUP(AY$107,Assumptions!$109:$109,Assumptions!114:114)*AY$108 ->  | AZ115: =LOOKUP(AZ$107,Assumptions!$109:$109,Assumptions!114:114)*AZ$108 ->  | BA115: =LOOKUP(BA$107,Assumptions!$109:$109,Assumptions!114:114)*BA$108 ->  | BB115: =LOOKUP(BB$107,Assumptions!$109:$109,Assumptions!114:114)*BB$108 ->  | BC115: =LOOKUP(BC$107,Assumptions!$109:$109,Assumptions!114:114)*BC$108 ->  | BD115: =LOOKUP(BD$107,Assumptions!$109:$109,Assumptions!114:114)*BD$108 ->  | BE115: =LOOKUP(BE$107,Assumptions!$109:$109,Assumptions!114:114)*BE$108 ->  | BF115: =LOOKUP(BF$107,Assumptions!$109:$109,Assumptions!114:114)*BF$108 ->  | BG115: =LOOKUP(BG$107,Assumptions!$109:$109,Assumptions!114:114)*BG$108 ->  | BH115: =LOOKUP(BH$107,Assumptions!$109:$109,Assumptions!114:114)*BH$108 ->  | BI115: =LOOKUP(BI$107,Assumptions!$109:$109,Assumptions!114:114)*BI$108 ->  | BJ115: =LOOKUP(BJ$107,Assumptions!$109:$109,Assumptions!114:114)*BJ$108 ->  | BK115: =LOOKUP(BK$107,Assumptions!$109:$109,Assumptions!114:114)*BK$108 ->  | BL115: =LOOKUP(BL$107,Assumptions!$109:$109,Assumptions!114:114)*BL$108 ->  | BM115: =LOOKUP(BM$107,Assumptions!$109:$109,Assumptions!114:114)*BM$108 ->  | BN115: =LOOKUP(BN$107,Assumptions!$109:$109,Assumptions!114:114)*BN$108 ->  | BO115: =LOOKUP(BO$107,Assumptions!$109:$109,Assumptions!114:114)*BO$108 ->  | BP115: =LOOKUP(BP$107,Assumptions!$109:$109,Assumptions!114:114)*BP$108 ->  | BQ115: =LOOKUP(BQ$107,Assumptions!$109:$109,Assumptions!114:114)*BQ$108 ->  | BR115: =LOOKUP(BR$107,Assumptions!$109:$109,Assumptions!114:114)*BR$108 ->  | BS115: =LOOKUP(BS$107,Assumptions!$109:$109,Assumptions!114:114)*BS$108 ->  | BT115: =LOOKUP(BT$107,Assumptions!$109:$109,Assumptions!114:114)*BT$108 ->  | BU115: =LOOKUP(BU$107,Assumptions!$109:$109,Assumptions!114:114)*BU$108 ->  | BV115: =LOOKUP(BV$107,Assumptions!$109:$109,Assumptions!114:114)*BV$108 ->  | BW115: =LOOKUP(BW$107,Assumptions!$109:$109,Assumptions!114:114)*BW$108 ->  | BX115: =LOOKUP(BX$107,Assumptions!$109:$109,Assumptions!114:114)*BX$108 ->  | BY115: =LOOKUP(BY$107,Assumptions!$109:$109,Assumptions!114:114)*BY$108 ->  | BZ115: =LOOKUP(BZ$107,Assumptions!$109:$109,Assumptions!114:114)*BZ$108 ->  | CA115: =LOOKUP(CA$107,Assumptions!$109:$109,Assumptions!114:114)*CA$108 ->  | CB115: =LOOKUP(CB$107,Assumptions!$109:$109,Assumptions!114:114)*CB$108 ->  | CC115: =LOOKUP(CC$107,Assumptions!$109:$109,Assumptions!114:114)*CC$108 ->  | CD115: =LOOKUP(CD$107,Assumptions!$109:$109,Assumptions!114:114)*CD$108 ->  | CE115: =LOOKUP(CE$107,Assumptions!$109:$109,Assumptions!114:114)*CE$108 ->  | CF115: =LOOKUP(CF$107,Assumptions!$109:$109,Assumptions!114:114)*CF$108 ->  | CG115: =LOOKUP(CG$107,Assumptions!$109:$109,Assumptions!114:114)*CG$108 ->  | CH115: =LOOKUP(CH$107,Assumptions!$109:$109,Assumptions!114:114)*CH$108 ->  | CI115: =LOOKUP(CI$107,Assumptions!$109:$109,Assumptions!114:114)*CI$108 ->  | CJ115: =LOOKUP(CJ$107,Assumptions!$109:$109,Assumptions!114:114)*CJ$108 ->  | CK115: =LOOKUP(CK$107,Assumptions!$109:$109,Assumptions!114:114)*CK$108 ->  | CL115: =LOOKUP(CL$107,Assumptions!$109:$109,Assumptions!114:114)*CL$108 ->  | CM115: =LOOKUP(CM$107,Assumptions!$109:$109,Assumptions!114:114)*CM$108 ->  | CN115: =LOOKUP(CN$107,Assumptions!$109:$109,Assumptions!114:114)*CN$108 ->  | CO115: =LOOKUP(CO$107,Assumptions!$109:$109,Assumptions!114:114)*CO$108 ->  | CP115: =LOOKUP(CP$107,Assumptions!$109:$109,Assumptions!114:114)*CP$108 ->  | CQ115: =LOOKUP(CQ$107,Assumptions!$109:$109,Assumptions!114:114)*CQ$108 ->  | CR115: =LOOKUP(CR$107,Assumptions!$109:$109,Assumptions!114:114)*CR$108 ->  | CS115: =LOOKUP(CS$107,Assumptions!$109:$109,Assumptions!114:114)*CS$108 ->  | CT115: =LOOKUP(CT$107,Assumptions!$109:$109,Assumptions!114:114)*CT$108 ->  | CU115: =LOOKUP(CU$107,Assumptions!$109:$109,Assumptions!114:114)*CU$108 ->  | CV115: =LOOKUP(CV$107,Assumptions!$109:$109,Assumptions!114:114)*CV$108 ->  | CW115: =LOOKUP(CW$107,Assumptions!$109:$109,Assumptions!114:114)*CW$108 ->  | CX115: =LOOKUP(CX$107,Assumptions!$109:$109,Assumptions!114:114)*CX$108 ->  | CY115: =LOOKUP(CY$107,Assumptions!$109:$109,Assumptions!114:114)*CY$108 ->  | CZ115: =LOOKUP(CZ$107,Assumptions!$109:$109,Assumptions!114:114)*CZ$108 ->  | DA115: =LOOKUP(DA$107,Assumptions!$109:$109,Assumptions!114:114)*DA$108 ->  | DB115: =LOOKUP(DB$107,Assumptions!$109:$109,Assumptions!114:114)*DB$108 ->  | DC115: =LOOKUP(DC$107,Assumptions!$109:$109,Assumptions!114:114)*DC$108 ->  | DD115: =LOOKUP(DD$107,Assumptions!$109:$109,Assumptions!114:114)*DD$108 ->  | DE115: =LOOKUP(DE$107,Assumptions!$109:$109,Assumptions!114:114)*DE$108 ->  | DF115: =LOOKUP(DF$107,Assumptions!$109:$109,Assumptions!114:114)*DF$108 ->  | DG115: =LOOKUP(DG$107,Assumptions!$109:$109,Assumptions!114:114)*DG$108 ->  | DH115: =LOOKUP(DH$107,Assumptions!$109:$109,Assumptions!114:114)*DH$108 ->  | DI115: =LOOKUP(DI$107,Assumptions!$109:$109,Assumptions!114:114)*DI$108 ->  | DJ115: =LOOKUP(DJ$107,Assumptions!$109:$109,Assumptions!114:114)*DJ$108 ->  | DK115: =LOOKUP(DK$107,Assumptions!$109:$109,Assumptions!114:114)*DK$108 ->  | DL115: =LOOKUP(DL$107,Assumptions!$109:$109,Assumptions!114:114)*DL$108 ->  | DM115: =LOOKUP(DM$107,Assumptions!$109:$109,Assumptions!114:114)*DM$108 ->  | DN115: =LOOKUP(DN$107,Assumptions!$109:$109,Assumptions!114:114)*DN$108 ->  | DO115: =LOOKUP(DO$107,Assumptions!$109:$109,Assumptions!114:114)*DO$108 ->  | DP115: =LOOKUP(DP$107,Assumptions!$109:$109,Assumptions!114:114)*DP$108 ->  | DQ115: =LOOKUP(DQ$107,Assumptions!$109:$109,Assumptions!114:114)*DQ$108 -> 
E116: June | F116: Euro/MWH | K116: =LOOKUP(K$107,Assumptions!$109:$109,Assumptions!115:115)*K$108 ->  | L116: =LOOKUP(L$107,Assumptions!$109:$109,Assumptions!115:115)*L$108 ->  | M116: =LOOKUP(M$107,Assumptions!$109:$109,Assumptions!115:115)*M$108 ->  | N116: =LOOKUP(N$107,Assumptions!$109:$109,Assumptions!115:115)*N$108 ->  | O116: =LOOKUP(O$107,Assumptions!$109:$109,Assumptions!115:115)*O$108 ->  | P116: =LOOKUP(P$107,Assumptions!$109:$109,Assumptions!115:115)*P$108 ->  | Q116: =LOOKUP(Q$107,Assumptions!$109:$109,Assumptions!115:115)*Q$108 ->  | R116: =LOOKUP(R$107,Assumptions!$109:$109,Assumptions!115:115)*R$108 ->  | S116: =LOOKUP(S$107,Assumptions!$109:$109,Assumptions!115:115)*S$108 ->  | T116: =LOOKUP(T$107,Assumptions!$109:$109,Assumptions!115:115)*T$108 ->  | U116: =LOOKUP(U$107,Assumptions!$109:$109,Assumptions!115:115)*U$108 ->  | V116: =LOOKUP(V$107,Assumptions!$109:$109,Assumptions!115:115)*V$108 ->  | W116: =LOOKUP(W$107,Assumptions!$109:$109,Assumptions!115:115)*W$108 ->  | X116: =LOOKUP(X$107,Assumptions!$109:$109,Assumptions!115:115)*X$108 ->  | Y116: =LOOKUP(Y$107,Assumptions!$109:$109,Assumptions!115:115)*Y$108 ->  | Z116: =LOOKUP(Z$107,Assumptions!$109:$109,Assumptions!115:115)*Z$108 ->  | AA116: =LOOKUP(AA$107,Assumptions!$109:$109,Assumptions!115:115)*AA$108 ->  | AB116: =LOOKUP(AB$107,Assumptions!$109:$109,Assumptions!115:115)*AB$108 ->  | AC116: =LOOKUP(AC$107,Assumptions!$109:$109,Assumptions!115:115)*AC$108 ->  | AD116: =LOOKUP(AD$107,Assumptions!$109:$109,Assumptions!115:115)*AD$108 ->  | AE116: =LOOKUP(AE$107,Assumptions!$109:$109,Assumptions!115:115)*AE$108 ->  | AF116: =LOOKUP(AF$107,Assumptions!$109:$109,Assumptions!115:115)*AF$108 ->  | AG116: =LOOKUP(AG$107,Assumptions!$109:$109,Assumptions!115:115)*AG$108 ->  | AH116: =LOOKUP(AH$107,Assumptions!$109:$109,Assumptions!115:115)*AH$108 ->  | AI116: =LOOKUP(AI$107,Assumptions!$109:$109,Assumptions!115:115)*AI$108 ->  | AJ116: =LOOKUP(AJ$107,Assumptions!$109:$109,Assumptions!115:115)*AJ$108 ->  | AK116: =LOOKUP(AK$107,Assumptions!$109:$109,Assumptions!115:115)*AK$108 ->  | AL116: =LOOKUP(AL$107,Assumptions!$109:$109,Assumptions!115:115)*AL$108 ->  | AM116: =LOOKUP(AM$107,Assumptions!$109:$109,Assumptions!115:115)*AM$108 ->  | AN116: =LOOKUP(AN$107,Assumptions!$109:$109,Assumptions!115:115)*AN$108 ->  | AO116: =LOOKUP(AO$107,Assumptions!$109:$109,Assumptions!115:115)*AO$108 ->  | AP116: =LOOKUP(AP$107,Assumptions!$109:$109,Assumptions!115:115)*AP$108 ->  | AQ116: =LOOKUP(AQ$107,Assumptions!$109:$109,Assumptions!115:115)*AQ$108 ->  | AR116: =LOOKUP(AR$107,Assumptions!$109:$109,Assumptions!115:115)*AR$108 ->  | AS116: =LOOKUP(AS$107,Assumptions!$109:$109,Assumptions!115:115)*AS$108 ->  | AT116: =LOOKUP(AT$107,Assumptions!$109:$109,Assumptions!115:115)*AT$108 ->  | AU116: =LOOKUP(AU$107,Assumptions!$109:$109,Assumptions!115:115)*AU$108 ->  | AV116: =LOOKUP(AV$107,Assumptions!$109:$109,Assumptions!115:115)*AV$108 ->  | AW116: =LOOKUP(AW$107,Assumptions!$109:$109,Assumptions!115:115)*AW$108 ->  | AX116: =LOOKUP(AX$107,Assumptions!$109:$109,Assumptions!115:115)*AX$108 ->  | AY116: =LOOKUP(AY$107,Assumptions!$109:$109,Assumptions!115:115)*AY$108 ->  | AZ116: =LOOKUP(AZ$107,Assumptions!$109:$109,Assumptions!115:115)*AZ$108 ->  | BA116: =LOOKUP(BA$107,Assumptions!$109:$109,Assumptions!115:115)*BA$108 ->  | BB116: =LOOKUP(BB$107,Assumptions!$109:$109,Assumptions!115:115)*BB$108 ->  | BC116: =LOOKUP(BC$107,Assumptions!$109:$109,Assumptions!115:115)*BC$108 ->  | BD116: =LOOKUP(BD$107,Assumptions!$109:$109,Assumptions!115:115)*BD$108 ->  | BE116: =LOOKUP(BE$107,Assumptions!$109:$109,Assumptions!115:115)*BE$108 ->  | BF116: =LOOKUP(BF$107,Assumptions!$109:$109,Assumptions!115:115)*BF$108 ->  | BG116: =LOOKUP(BG$107,Assumptions!$109:$109,Assumptions!115:115)*BG$108 ->  | BH116: =LOOKUP(BH$107,Assumptions!$109:$109,Assumptions!115:115)*BH$108 ->  | BI116: =LOOKUP(BI$107,Assumptions!$109:$109,Assumptions!115:115)*BI$108 ->  | BJ116: =LOOKUP(BJ$107,Assumptions!$109:$109,Assumptions!115:115)*BJ$108 ->  | BK116: =LOOKUP(BK$107,Assumptions!$109:$109,Assumptions!115:115)*BK$108 ->  | BL116: =LOOKUP(BL$107,Assumptions!$109:$109,Assumptions!115:115)*BL$108 ->  | BM116: =LOOKUP(BM$107,Assumptions!$109:$109,Assumptions!115:115)*BM$108 ->  | BN116: =LOOKUP(BN$107,Assumptions!$109:$109,Assumptions!115:115)*BN$108 ->  | BO116: =LOOKUP(BO$107,Assumptions!$109:$109,Assumptions!115:115)*BO$108 ->  | BP116: =LOOKUP(BP$107,Assumptions!$109:$109,Assumptions!115:115)*BP$108 ->  | BQ116: =LOOKUP(BQ$107,Assumptions!$109:$109,Assumptions!115:115)*BQ$108 ->  | BR116: =LOOKUP(BR$107,Assumptions!$109:$109,Assumptions!115:115)*BR$108 ->  | BS116: =LOOKUP(BS$107,Assumptions!$109:$109,Assumptions!115:115)*BS$108 ->  | BT116: =LOOKUP(BT$107,Assumptions!$109:$109,Assumptions!115:115)*BT$108 ->  | BU116: =LOOKUP(BU$107,Assumptions!$109:$109,Assumptions!115:115)*BU$108 ->  | BV116: =LOOKUP(BV$107,Assumptions!$109:$109,Assumptions!115:115)*BV$108 ->  | BW116: =LOOKUP(BW$107,Assumptions!$109:$109,Assumptions!115:115)*BW$108 ->  | BX116: =LOOKUP(BX$107,Assumptions!$109:$109,Assumptions!115:115)*BX$108 ->  | BY116: =LOOKUP(BY$107,Assumptions!$109:$109,Assumptions!115:115)*BY$108 ->  | BZ116: =LOOKUP(BZ$107,Assumptions!$109:$109,Assumptions!115:115)*BZ$108 ->  | CA116: =LOOKUP(CA$107,Assumptions!$109:$109,Assumptions!115:115)*CA$108 ->  | CB116: =LOOKUP(CB$107,Assumptions!$109:$109,Assumptions!115:115)*CB$108 ->  | CC116: =LOOKUP(CC$107,Assumptions!$109:$109,Assumptions!115:115)*CC$108 ->  | CD116: =LOOKUP(CD$107,Assumptions!$109:$109,Assumptions!115:115)*CD$108 ->  | CE116: =LOOKUP(CE$107,Assumptions!$109:$109,Assumptions!115:115)*CE$108 ->  | CF116: =LOOKUP(CF$107,Assumptions!$109:$109,Assumptions!115:115)*CF$108 ->  | CG116: =LOOKUP(CG$107,Assumptions!$109:$109,Assumptions!115:115)*CG$108 ->  | CH116: =LOOKUP(CH$107,Assumptions!$109:$109,Assumptions!115:115)*CH$108 ->  | CI116: =LOOKUP(CI$107,Assumptions!$109:$109,Assumptions!115:115)*CI$108 ->  | CJ116: =LOOKUP(CJ$107,Assumptions!$109:$109,Assumptions!115:115)*CJ$108 ->  | CK116: =LOOKUP(CK$107,Assumptions!$109:$109,Assumptions!115:115)*CK$108 ->  | CL116: =LOOKUP(CL$107,Assumptions!$109:$109,Assumptions!115:115)*CL$108 ->  | CM116: =LOOKUP(CM$107,Assumptions!$109:$109,Assumptions!115:115)*CM$108 ->  | CN116: =LOOKUP(CN$107,Assumptions!$109:$109,Assumptions!115:115)*CN$108 ->  | CO116: =LOOKUP(CO$107,Assumptions!$109:$109,Assumptions!115:115)*CO$108 ->  | CP116: =LOOKUP(CP$107,Assumptions!$109:$109,Assumptions!115:115)*CP$108 ->  | CQ116: =LOOKUP(CQ$107,Assumptions!$109:$109,Assumptions!115:115)*CQ$108 ->  | CR116: =LOOKUP(CR$107,Assumptions!$109:$109,Assumptions!115:115)*CR$108 ->  | CS116: =LOOKUP(CS$107,Assumptions!$109:$109,Assumptions!115:115)*CS$108 ->  | CT116: =LOOKUP(CT$107,Assumptions!$109:$109,Assumptions!115:115)*CT$108 ->  | CU116: =LOOKUP(CU$107,Assumptions!$109:$109,Assumptions!115:115)*CU$108 ->  | CV116: =LOOKUP(CV$107,Assumptions!$109:$109,Assumptions!115:115)*CV$108 ->  | CW116: =LOOKUP(CW$107,Assumptions!$109:$109,Assumptions!115:115)*CW$108 ->  | CX116: =LOOKUP(CX$107,Assumptions!$109:$109,Assumptions!115:115)*CX$108 ->  | CY116: =LOOKUP(CY$107,Assumptions!$109:$109,Assumptions!115:115)*CY$108 ->  | CZ116: =LOOKUP(CZ$107,Assumptions!$109:$109,Assumptions!115:115)*CZ$108 ->  | DA116: =LOOKUP(DA$107,Assumptions!$109:$109,Assumptions!115:115)*DA$108 ->  | DB116: =LOOKUP(DB$107,Assumptions!$109:$109,Assumptions!115:115)*DB$108 ->  | DC116: =LOOKUP(DC$107,Assumptions!$109:$109,Assumptions!115:115)*DC$108 ->  | DD116: =LOOKUP(DD$107,Assumptions!$109:$109,Assumptions!115:115)*DD$108 ->  | DE116: =LOOKUP(DE$107,Assumptions!$109:$109,Assumptions!115:115)*DE$108 ->  | DF116: =LOOKUP(DF$107,Assumptions!$109:$109,Assumptions!115:115)*DF$108 ->  | DG116: =LOOKUP(DG$107,Assumptions!$109:$109,Assumptions!115:115)*DG$108 ->  | DH116: =LOOKUP(DH$107,Assumptions!$109:$109,Assumptions!115:115)*DH$108 ->  | DI116: =LOOKUP(DI$107,Assumptions!$109:$109,Assumptions!115:115)*DI$108 ->  | DJ116: =LOOKUP(DJ$107,Assumptions!$109:$109,Assumptions!115:115)*DJ$108 ->  | DK116: =LOOKUP(DK$107,Assumptions!$109:$109,Assumptions!115:115)*DK$108 ->  | DL116: =LOOKUP(DL$107,Assumptions!$109:$109,Assumptions!115:115)*DL$108 ->  | DM116: =LOOKUP(DM$107,Assumptions!$109:$109,Assumptions!115:115)*DM$108 ->  | DN116: =LOOKUP(DN$107,Assumptions!$109:$109,Assumptions!115:115)*DN$108 ->  | DO116: =LOOKUP(DO$107,Assumptions!$109:$109,Assumptions!115:115)*DO$108 ->  | DP116: =LOOKUP(DP$107,Assumptions!$109:$109,Assumptions!115:115)*DP$108 ->  | DQ116: =LOOKUP(DQ$107,Assumptions!$109:$109,Assumptions!115:115)*DQ$108 -> 
E117: July | F117: Euro/MWH | K117: =LOOKUP(K$107,Assumptions!$109:$109,Assumptions!116:116)*K$108 ->  | L117: =LOOKUP(L$107,Assumptions!$109:$109,Assumptions!116:116)*L$108 ->  | M117: =LOOKUP(M$107,Assumptions!$109:$109,Assumptions!116:116)*M$108 ->  | N117: =LOOKUP(N$107,Assumptions!$109:$109,Assumptions!116:116)*N$108 ->  | O117: =LOOKUP(O$107,Assumptions!$109:$109,Assumptions!116:116)*O$108 ->  | P117: =LOOKUP(P$107,Assumptions!$109:$109,Assumptions!116:116)*P$108 ->  | Q117: =LOOKUP(Q$107,Assumptions!$109:$109,Assumptions!116:116)*Q$108 ->  | R117: =LOOKUP(R$107,Assumptions!$109:$109,Assumptions!116:116)*R$108 ->  | S117: =LOOKUP(S$107,Assumptions!$109:$109,Assumptions!116:116)*S$108 ->  | T117: =LOOKUP(T$107,Assumptions!$109:$109,Assumptions!116:116)*T$108 ->  | U117: =LOOKUP(U$107,Assumptions!$109:$109,Assumptions!116:116)*U$108 ->  | V117: =LOOKUP(V$107,Assumptions!$109:$109,Assumptions!116:116)*V$108 ->  | W117: =LOOKUP(W$107,Assumptions!$109:$109,Assumptions!116:116)*W$108 ->  | X117: =LOOKUP(X$107,Assumptions!$109:$109,Assumptions!116:116)*X$108 ->  | Y117: =LOOKUP(Y$107,Assumptions!$109:$109,Assumptions!116:116)*Y$108 ->  | Z117: =LOOKUP(Z$107,Assumptions!$109:$109,Assumptions!116:116)*Z$108 ->  | AA117: =LOOKUP(AA$107,Assumptions!$109:$109,Assumptions!116:116)*AA$108 ->  | AB117: =LOOKUP(AB$107,Assumptions!$109:$109,Assumptions!116:116)*AB$108 ->  | AC117: =LOOKUP(AC$107,Assumptions!$109:$109,Assumptions!116:116)*AC$108 ->  | AD117: =LOOKUP(AD$107,Assumptions!$109:$109,Assumptions!116:116)*AD$108 ->  | AE117: =LOOKUP(AE$107,Assumptions!$109:$109,Assumptions!116:116)*AE$108 ->  | AF117: =LOOKUP(AF$107,Assumptions!$109:$109,Assumptions!116:116)*AF$108 ->  | AG117: =LOOKUP(AG$107,Assumptions!$109:$109,Assumptions!116:116)*AG$108 ->  | AH117: =LOOKUP(AH$107,Assumptions!$109:$109,Assumptions!116:116)*AH$108 ->  | AI117: =LOOKUP(AI$107,Assumptions!$109:$109,Assumptions!116:116)*AI$108 ->  | AJ117: =LOOKUP(AJ$107,Assumptions!$109:$109,Assumptions!116:116)*AJ$108 ->  | AK117: =LOOKUP(AK$107,Assumptions!$109:$109,Assumptions!116:116)*AK$108 ->  | AL117: =LOOKUP(AL$107,Assumptions!$109:$109,Assumptions!116:116)*AL$108 ->  | AM117: =LOOKUP(AM$107,Assumptions!$109:$109,Assumptions!116:116)*AM$108 ->  | AN117: =LOOKUP(AN$107,Assumptions!$109:$109,Assumptions!116:116)*AN$108 ->  | AO117: =LOOKUP(AO$107,Assumptions!$109:$109,Assumptions!116:116)*AO$108 ->  | AP117: =LOOKUP(AP$107,Assumptions!$109:$109,Assumptions!116:116)*AP$108 ->  | AQ117: =LOOKUP(AQ$107,Assumptions!$109:$109,Assumptions!116:116)*AQ$108 ->  | AR117: =LOOKUP(AR$107,Assumptions!$109:$109,Assumptions!116:116)*AR$108 ->  | AS117: =LOOKUP(AS$107,Assumptions!$109:$109,Assumptions!116:116)*AS$108 ->  | AT117: =LOOKUP(AT$107,Assumptions!$109:$109,Assumptions!116:116)*AT$108 ->  | AU117: =LOOKUP(AU$107,Assumptions!$109:$109,Assumptions!116:116)*AU$108 ->  | AV117: =LOOKUP(AV$107,Assumptions!$109:$109,Assumptions!116:116)*AV$108 ->  | AW117: =LOOKUP(AW$107,Assumptions!$109:$109,Assumptions!116:116)*AW$108 ->  | AX117: =LOOKUP(AX$107,Assumptions!$109:$109,Assumptions!116:116)*AX$108 ->  | AY117: =LOOKUP(AY$107,Assumptions!$109:$109,Assumptions!116:116)*AY$108 ->  | AZ117: =LOOKUP(AZ$107,Assumptions!$109:$109,Assumptions!116:116)*AZ$108 ->  | BA117: =LOOKUP(BA$107,Assumptions!$109:$109,Assumptions!116:116)*BA$108 ->  | BB117: =LOOKUP(BB$107,Assumptions!$109:$109,Assumptions!116:116)*BB$108 ->  | BC117: =LOOKUP(BC$107,Assumptions!$109:$109,Assumptions!116:116)*BC$108 ->  | BD117: =LOOKUP(BD$107,Assumptions!$109:$109,Assumptions!116:116)*BD$108 ->  | BE117: =LOOKUP(BE$107,Assumptions!$109:$109,Assumptions!116:116)*BE$108 ->  | BF117: =LOOKUP(BF$107,Assumptions!$109:$109,Assumptions!116:116)*BF$108 ->  | BG117: =LOOKUP(BG$107,Assumptions!$109:$109,Assumptions!116:116)*BG$108 ->  | BH117: =LOOKUP(BH$107,Assumptions!$109:$109,Assumptions!116:116)*BH$108 ->  | BI117: =LOOKUP(BI$107,Assumptions!$109:$109,Assumptions!116:116)*BI$108 ->  | BJ117: =LOOKUP(BJ$107,Assumptions!$109:$109,Assumptions!116:116)*BJ$108 ->  | BK117: =LOOKUP(BK$107,Assumptions!$109:$109,Assumptions!116:116)*BK$108 ->  | BL117: =LOOKUP(BL$107,Assumptions!$109:$109,Assumptions!116:116)*BL$108 ->  | BM117: =LOOKUP(BM$107,Assumptions!$109:$109,Assumptions!116:116)*BM$108 ->  | BN117: =LOOKUP(BN$107,Assumptions!$109:$109,Assumptions!116:116)*BN$108 ->  | BO117: =LOOKUP(BO$107,Assumptions!$109:$109,Assumptions!116:116)*BO$108 ->  | BP117: =LOOKUP(BP$107,Assumptions!$109:$109,Assumptions!116:116)*BP$108 ->  | BQ117: =LOOKUP(BQ$107,Assumptions!$109:$109,Assumptions!116:116)*BQ$108 ->  | BR117: =LOOKUP(BR$107,Assumptions!$109:$109,Assumptions!116:116)*BR$108 ->  | BS117: =LOOKUP(BS$107,Assumptions!$109:$109,Assumptions!116:116)*BS$108 ->  | BT117: =LOOKUP(BT$107,Assumptions!$109:$109,Assumptions!116:116)*BT$108 ->  | BU117: =LOOKUP(BU$107,Assumptions!$109:$109,Assumptions!116:116)*BU$108 ->  | BV117: =LOOKUP(BV$107,Assumptions!$109:$109,Assumptions!116:116)*BV$108 ->  | BW117: =LOOKUP(BW$107,Assumptions!$109:$109,Assumptions!116:116)*BW$108 ->  | BX117: =LOOKUP(BX$107,Assumptions!$109:$109,Assumptions!116:116)*BX$108 ->  | BY117: =LOOKUP(BY$107,Assumptions!$109:$109,Assumptions!116:116)*BY$108 ->  | BZ117: =LOOKUP(BZ$107,Assumptions!$109:$109,Assumptions!116:116)*BZ$108 ->  | CA117: =LOOKUP(CA$107,Assumptions!$109:$109,Assumptions!116:116)*CA$108 ->  | CB117: =LOOKUP(CB$107,Assumptions!$109:$109,Assumptions!116:116)*CB$108 ->  | CC117: =LOOKUP(CC$107,Assumptions!$109:$109,Assumptions!116:116)*CC$108 ->  | CD117: =LOOKUP(CD$107,Assumptions!$109:$109,Assumptions!116:116)*CD$108 ->  | CE117: =LOOKUP(CE$107,Assumptions!$109:$109,Assumptions!116:116)*CE$108 ->  | CF117: =LOOKUP(CF$107,Assumptions!$109:$109,Assumptions!116:116)*CF$108 ->  | CG117: =LOOKUP(CG$107,Assumptions!$109:$109,Assumptions!116:116)*CG$108 ->  | CH117: =LOOKUP(CH$107,Assumptions!$109:$109,Assumptions!116:116)*CH$108 ->  | CI117: =LOOKUP(CI$107,Assumptions!$109:$109,Assumptions!116:116)*CI$108 ->  | CJ117: =LOOKUP(CJ$107,Assumptions!$109:$109,Assumptions!116:116)*CJ$108 ->  | CK117: =LOOKUP(CK$107,Assumptions!$109:$109,Assumptions!116:116)*CK$108 ->  | CL117: =LOOKUP(CL$107,Assumptions!$109:$109,Assumptions!116:116)*CL$108 ->  | CM117: =LOOKUP(CM$107,Assumptions!$109:$109,Assumptions!116:116)*CM$108 ->  | CN117: =LOOKUP(CN$107,Assumptions!$109:$109,Assumptions!116:116)*CN$108 ->  | CO117: =LOOKUP(CO$107,Assumptions!$109:$109,Assumptions!116:116)*CO$108 ->  | CP117: =LOOKUP(CP$107,Assumptions!$109:$109,Assumptions!116:116)*CP$108 ->  | CQ117: =LOOKUP(CQ$107,Assumptions!$109:$109,Assumptions!116:116)*CQ$108 ->  | CR117: =LOOKUP(CR$107,Assumptions!$109:$109,Assumptions!116:116)*CR$108 ->  | CS117: =LOOKUP(CS$107,Assumptions!$109:$109,Assumptions!116:116)*CS$108 ->  | CT117: =LOOKUP(CT$107,Assumptions!$109:$109,Assumptions!116:116)*CT$108 ->  | CU117: =LOOKUP(CU$107,Assumptions!$109:$109,Assumptions!116:116)*CU$108 ->  | CV117: =LOOKUP(CV$107,Assumptions!$109:$109,Assumptions!116:116)*CV$108 ->  | CW117: =LOOKUP(CW$107,Assumptions!$109:$109,Assumptions!116:116)*CW$108 ->  | CX117: =LOOKUP(CX$107,Assumptions!$109:$109,Assumptions!116:116)*CX$108 ->  | CY117: =LOOKUP(CY$107,Assumptions!$109:$109,Assumptions!116:116)*CY$108 ->  | CZ117: =LOOKUP(CZ$107,Assumptions!$109:$109,Assumptions!116:116)*CZ$108 ->  | DA117: =LOOKUP(DA$107,Assumptions!$109:$109,Assumptions!116:116)*DA$108 ->  | DB117: =LOOKUP(DB$107,Assumptions!$109:$109,Assumptions!116:116)*DB$108 ->  | DC117: =LOOKUP(DC$107,Assumptions!$109:$109,Assumptions!116:116)*DC$108 ->  | DD117: =LOOKUP(DD$107,Assumptions!$109:$109,Assumptions!116:116)*DD$108 ->  | DE117: =LOOKUP(DE$107,Assumptions!$109:$109,Assumptions!116:116)*DE$108 ->  | DF117: =LOOKUP(DF$107,Assumptions!$109:$109,Assumptions!116:116)*DF$108 ->  | DG117: =LOOKUP(DG$107,Assumptions!$109:$109,Assumptions!116:116)*DG$108 ->  | DH117: =LOOKUP(DH$107,Assumptions!$109:$109,Assumptions!116:116)*DH$108 ->  | DI117: =LOOKUP(DI$107,Assumptions!$109:$109,Assumptions!116:116)*DI$108 ->  | DJ117: =LOOKUP(DJ$107,Assumptions!$109:$109,Assumptions!116:116)*DJ$108 ->  | DK117: =LOOKUP(DK$107,Assumptions!$109:$109,Assumptions!116:116)*DK$108 ->  | DL117: =LOOKUP(DL$107,Assumptions!$109:$109,Assumptions!116:116)*DL$108 ->  | DM117: =LOOKUP(DM$107,Assumptions!$109:$109,Assumptions!116:116)*DM$108 ->  | DN117: =LOOKUP(DN$107,Assumptions!$109:$109,Assumptions!116:116)*DN$108 ->  | DO117: =LOOKUP(DO$107,Assumptions!$109:$109,Assumptions!116:116)*DO$108 ->  | DP117: =LOOKUP(DP$107,Assumptions!$109:$109,Assumptions!116:116)*DP$108 ->  | DQ117: =LOOKUP(DQ$107,Assumptions!$109:$109,Assumptions!116:116)*DQ$108 -> 
E118: August | F118: Euro/MWH | K118: =LOOKUP(K$107,Assumptions!$109:$109,Assumptions!117:117)*K$108 ->  | L118: =LOOKUP(L$107,Assumptions!$109:$109,Assumptions!117:117)*L$108 ->  | M118: =LOOKUP(M$107,Assumptions!$109:$109,Assumptions!117:117)*M$108 ->  | N118: =LOOKUP(N$107,Assumptions!$109:$109,Assumptions!117:117)*N$108 ->  | O118: =LOOKUP(O$107,Assumptions!$109:$109,Assumptions!117:117)*O$108 ->  | P118: =LOOKUP(P$107,Assumptions!$109:$109,Assumptions!117:117)*P$108 ->  | Q118: =LOOKUP(Q$107,Assumptions!$109:$109,Assumptions!117:117)*Q$108 ->  | R118: =LOOKUP(R$107,Assumptions!$109:$109,Assumptions!117:117)*R$108 ->  | S118: =LOOKUP(S$107,Assumptions!$109:$109,Assumptions!117:117)*S$108 ->  | T118: =LOOKUP(T$107,Assumptions!$109:$109,Assumptions!117:117)*T$108 ->  | U118: =LOOKUP(U$107,Assumptions!$109:$109,Assumptions!117:117)*U$108 ->  | V118: =LOOKUP(V$107,Assumptions!$109:$109,Assumptions!117:117)*V$108 ->  | W118: =LOOKUP(W$107,Assumptions!$109:$109,Assumptions!117:117)*W$108 ->  | X118: =LOOKUP(X$107,Assumptions!$109:$109,Assumptions!117:117)*X$108 ->  | Y118: =LOOKUP(Y$107,Assumptions!$109:$109,Assumptions!117:117)*Y$108 ->  | Z118: =LOOKUP(Z$107,Assumptions!$109:$109,Assumptions!117:117)*Z$108 ->  | AA118: =LOOKUP(AA$107,Assumptions!$109:$109,Assumptions!117:117)*AA$108 ->  | AB118: =LOOKUP(AB$107,Assumptions!$109:$109,Assumptions!117:117)*AB$108 ->  | AC118: =LOOKUP(AC$107,Assumptions!$109:$109,Assumptions!117:117)*AC$108 ->  | AD118: =LOOKUP(AD$107,Assumptions!$109:$109,Assumptions!117:117)*AD$108 ->  | AE118: =LOOKUP(AE$107,Assumptions!$109:$109,Assumptions!117:117)*AE$108 ->  | AF118: =LOOKUP(AF$107,Assumptions!$109:$109,Assumptions!117:117)*AF$108 ->  | AG118: =LOOKUP(AG$107,Assumptions!$109:$109,Assumptions!117:117)*AG$108 ->  | AH118: =LOOKUP(AH$107,Assumptions!$109:$109,Assumptions!117:117)*AH$108 ->  | AI118: =LOOKUP(AI$107,Assumptions!$109:$109,Assumptions!117:117)*AI$108 ->  | AJ118: =LOOKUP(AJ$107,Assumptions!$109:$109,Assumptions!117:117)*AJ$108 ->  | AK118: =LOOKUP(AK$107,Assumptions!$109:$109,Assumptions!117:117)*AK$108 ->  | AL118: =LOOKUP(AL$107,Assumptions!$109:$109,Assumptions!117:117)*AL$108 ->  | AM118: =LOOKUP(AM$107,Assumptions!$109:$109,Assumptions!117:117)*AM$108 ->  | AN118: =LOOKUP(AN$107,Assumptions!$109:$109,Assumptions!117:117)*AN$108 ->  | AO118: =LOOKUP(AO$107,Assumptions!$109:$109,Assumptions!117:117)*AO$108 ->  | AP118: =LOOKUP(AP$107,Assumptions!$109:$109,Assumptions!117:117)*AP$108 ->  | AQ118: =LOOKUP(AQ$107,Assumptions!$109:$109,Assumptions!117:117)*AQ$108 ->  | AR118: =LOOKUP(AR$107,Assumptions!$109:$109,Assumptions!117:117)*AR$108 ->  | AS118: =LOOKUP(AS$107,Assumptions!$109:$109,Assumptions!117:117)*AS$108 ->  | AT118: =LOOKUP(AT$107,Assumptions!$109:$109,Assumptions!117:117)*AT$108 ->  | AU118: =LOOKUP(AU$107,Assumptions!$109:$109,Assumptions!117:117)*AU$108 ->  | AV118: =LOOKUP(AV$107,Assumptions!$109:$109,Assumptions!117:117)*AV$108 ->  | AW118: =LOOKUP(AW$107,Assumptions!$109:$109,Assumptions!117:117)*AW$108 ->  | AX118: =LOOKUP(AX$107,Assumptions!$109:$109,Assumptions!117:117)*AX$108 ->  | AY118: =LOOKUP(AY$107,Assumptions!$109:$109,Assumptions!117:117)*AY$108 ->  | AZ118: =LOOKUP(AZ$107,Assumptions!$109:$109,Assumptions!117:117)*AZ$108 ->  | BA118: =LOOKUP(BA$107,Assumptions!$109:$109,Assumptions!117:117)*BA$108 ->  | BB118: =LOOKUP(BB$107,Assumptions!$109:$109,Assumptions!117:117)*BB$108 ->  | BC118: =LOOKUP(BC$107,Assumptions!$109:$109,Assumptions!117:117)*BC$108 ->  | BD118: =LOOKUP(BD$107,Assumptions!$109:$109,Assumptions!117:117)*BD$108 ->  | BE118: =LOOKUP(BE$107,Assumptions!$109:$109,Assumptions!117:117)*BE$108 ->  | BF118: =LOOKUP(BF$107,Assumptions!$109:$109,Assumptions!117:117)*BF$108 ->  | BG118: =LOOKUP(BG$107,Assumptions!$109:$109,Assumptions!117:117)*BG$108 ->  | BH118: =LOOKUP(BH$107,Assumptions!$109:$109,Assumptions!117:117)*BH$108 ->  | BI118: =LOOKUP(BI$107,Assumptions!$109:$109,Assumptions!117:117)*BI$108 ->  | BJ118: =LOOKUP(BJ$107,Assumptions!$109:$109,Assumptions!117:117)*BJ$108 ->  | BK118: =LOOKUP(BK$107,Assumptions!$109:$109,Assumptions!117:117)*BK$108 ->  | BL118: =LOOKUP(BL$107,Assumptions!$109:$109,Assumptions!117:117)*BL$108 ->  | BM118: =LOOKUP(BM$107,Assumptions!$109:$109,Assumptions!117:117)*BM$108 ->  | BN118: =LOOKUP(BN$107,Assumptions!$109:$109,Assumptions!117:117)*BN$108 ->  | BO118: =LOOKUP(BO$107,Assumptions!$109:$109,Assumptions!117:117)*BO$108 ->  | BP118: =LOOKUP(BP$107,Assumptions!$109:$109,Assumptions!117:117)*BP$108 ->  | BQ118: =LOOKUP(BQ$107,Assumptions!$109:$109,Assumptions!117:117)*BQ$108 ->  | BR118: =LOOKUP(BR$107,Assumptions!$109:$109,Assumptions!117:117)*BR$108 ->  | BS118: =LOOKUP(BS$107,Assumptions!$109:$109,Assumptions!117:117)*BS$108 ->  | BT118: =LOOKUP(BT$107,Assumptions!$109:$109,Assumptions!117:117)*BT$108 ->  | BU118: =LOOKUP(BU$107,Assumptions!$109:$109,Assumptions!117:117)*BU$108 ->  | BV118: =LOOKUP(BV$107,Assumptions!$109:$109,Assumptions!117:117)*BV$108 ->  | BW118: =LOOKUP(BW$107,Assumptions!$109:$109,Assumptions!117:117)*BW$108 ->  | BX118: =LOOKUP(BX$107,Assumptions!$109:$109,Assumptions!117:117)*BX$108 ->  | BY118: =LOOKUP(BY$107,Assumptions!$109:$109,Assumptions!117:117)*BY$108 ->  | BZ118: =LOOKUP(BZ$107,Assumptions!$109:$109,Assumptions!117:117)*BZ$108 ->  | CA118: =LOOKUP(CA$107,Assumptions!$109:$109,Assumptions!117:117)*CA$108 ->  | CB118: =LOOKUP(CB$107,Assumptions!$109:$109,Assumptions!117:117)*CB$108 ->  | CC118: =LOOKUP(CC$107,Assumptions!$109:$109,Assumptions!117:117)*CC$108 ->  | CD118: =LOOKUP(CD$107,Assumptions!$109:$109,Assumptions!117:117)*CD$108 ->  | CE118: =LOOKUP(CE$107,Assumptions!$109:$109,Assumptions!117:117)*CE$108 ->  | CF118: =LOOKUP(CF$107,Assumptions!$109:$109,Assumptions!117:117)*CF$108 ->  | CG118: =LOOKUP(CG$107,Assumptions!$109:$109,Assumptions!117:117)*CG$108 ->  | CH118: =LOOKUP(CH$107,Assumptions!$109:$109,Assumptions!117:117)*CH$108 ->  | CI118: =LOOKUP(CI$107,Assumptions!$109:$109,Assumptions!117:117)*CI$108 ->  | CJ118: =LOOKUP(CJ$107,Assumptions!$109:$109,Assumptions!117:117)*CJ$108 ->  | CK118: =LOOKUP(CK$107,Assumptions!$109:$109,Assumptions!117:117)*CK$108 ->  | CL118: =LOOKUP(CL$107,Assumptions!$109:$109,Assumptions!117:117)*CL$108 ->  | CM118: =LOOKUP(CM$107,Assumptions!$109:$109,Assumptions!117:117)*CM$108 ->  | CN118: =LOOKUP(CN$107,Assumptions!$109:$109,Assumptions!117:117)*CN$108 ->  | CO118: =LOOKUP(CO$107,Assumptions!$109:$109,Assumptions!117:117)*CO$108 ->  | CP118: =LOOKUP(CP$107,Assumptions!$109:$109,Assumptions!117:117)*CP$108 ->  | CQ118: =LOOKUP(CQ$107,Assumptions!$109:$109,Assumptions!117:117)*CQ$108 ->  | CR118: =LOOKUP(CR$107,Assumptions!$109:$109,Assumptions!117:117)*CR$108 ->  | CS118: =LOOKUP(CS$107,Assumptions!$109:$109,Assumptions!117:117)*CS$108 ->  | CT118: =LOOKUP(CT$107,Assumptions!$109:$109,Assumptions!117:117)*CT$108 ->  | CU118: =LOOKUP(CU$107,Assumptions!$109:$109,Assumptions!117:117)*CU$108 ->  | CV118: =LOOKUP(CV$107,Assumptions!$109:$109,Assumptions!117:117)*CV$108 ->  | CW118: =LOOKUP(CW$107,Assumptions!$109:$109,Assumptions!117:117)*CW$108 ->  | CX118: =LOOKUP(CX$107,Assumptions!$109:$109,Assumptions!117:117)*CX$108 ->  | CY118: =LOOKUP(CY$107,Assumptions!$109:$109,Assumptions!117:117)*CY$108 ->  | CZ118: =LOOKUP(CZ$107,Assumptions!$109:$109,Assumptions!117:117)*CZ$108 ->  | DA118: =LOOKUP(DA$107,Assumptions!$109:$109,Assumptions!117:117)*DA$108 ->  | DB118: =LOOKUP(DB$107,Assumptions!$109:$109,Assumptions!117:117)*DB$108 ->  | DC118: =LOOKUP(DC$107,Assumptions!$109:$109,Assumptions!117:117)*DC$108 ->  | DD118: =LOOKUP(DD$107,Assumptions!$109:$109,Assumptions!117:117)*DD$108 ->  | DE118: =LOOKUP(DE$107,Assumptions!$109:$109,Assumptions!117:117)*DE$108 ->  | DF118: =LOOKUP(DF$107,Assumptions!$109:$109,Assumptions!117:117)*DF$108 ->  | DG118: =LOOKUP(DG$107,Assumptions!$109:$109,Assumptions!117:117)*DG$108 ->  | DH118: =LOOKUP(DH$107,Assumptions!$109:$109,Assumptions!117:117)*DH$108 ->  | DI118: =LOOKUP(DI$107,Assumptions!$109:$109,Assumptions!117:117)*DI$108 ->  | DJ118: =LOOKUP(DJ$107,Assumptions!$109:$109,Assumptions!117:117)*DJ$108 ->  | DK118: =LOOKUP(DK$107,Assumptions!$109:$109,Assumptions!117:117)*DK$108 ->  | DL118: =LOOKUP(DL$107,Assumptions!$109:$109,Assumptions!117:117)*DL$108 ->  | DM118: =LOOKUP(DM$107,Assumptions!$109:$109,Assumptions!117:117)*DM$108 ->  | DN118: =LOOKUP(DN$107,Assumptions!$109:$109,Assumptions!117:117)*DN$108 ->  | DO118: =LOOKUP(DO$107,Assumptions!$109:$109,Assumptions!117:117)*DO$108 ->  | DP118: =LOOKUP(DP$107,Assumptions!$109:$109,Assumptions!117:117)*DP$108 ->  | DQ118: =LOOKUP(DQ$107,Assumptions!$109:$109,Assumptions!117:117)*DQ$108 -> 
E119: September | F119: Euro/MWH | K119: =LOOKUP(K$107,Assumptions!$109:$109,Assumptions!118:118)*K$108 ->  | L119: =LOOKUP(L$107,Assumptions!$109:$109,Assumptions!118:118)*L$108 ->  | M119: =LOOKUP(M$107,Assumptions!$109:$109,Assumptions!118:118)*M$108 ->  | N119: =LOOKUP(N$107,Assumptions!$109:$109,Assumptions!118:118)*N$108 ->  | O119: =LOOKUP(O$107,Assumptions!$109:$109,Assumptions!118:118)*O$108 ->  | P119: =LOOKUP(P$107,Assumptions!$109:$109,Assumptions!118:118)*P$108 ->  | Q119: =LOOKUP(Q$107,Assumptions!$109:$109,Assumptions!118:118)*Q$108 ->  | R119: =LOOKUP(R$107,Assumptions!$109:$109,Assumptions!118:118)*R$108 ->  | S119: =LOOKUP(S$107,Assumptions!$109:$109,Assumptions!118:118)*S$108 ->  | T119: =LOOKUP(T$107,Assumptions!$109:$109,Assumptions!118:118)*T$108 ->  | U119: =LOOKUP(U$107,Assumptions!$109:$109,Assumptions!118:118)*U$108 ->  | V119: =LOOKUP(V$107,Assumptions!$109:$109,Assumptions!118:118)*V$108 ->  | W119: =LOOKUP(W$107,Assumptions!$109:$109,Assumptions!118:118)*W$108 ->  | X119: =LOOKUP(X$107,Assumptions!$109:$109,Assumptions!118:118)*X$108 ->  | Y119: =LOOKUP(Y$107,Assumptions!$109:$109,Assumptions!118:118)*Y$108 ->  | Z119: =LOOKUP(Z$107,Assumptions!$109:$109,Assumptions!118:118)*Z$108 ->  | AA119: =LOOKUP(AA$107,Assumptions!$109:$109,Assumptions!118:118)*AA$108 ->  | AB119: =LOOKUP(AB$107,Assumptions!$109:$109,Assumptions!118:118)*AB$108 ->  | AC119: =LOOKUP(AC$107,Assumptions!$109:$109,Assumptions!118:118)*AC$108 ->  | AD119: =LOOKUP(AD$107,Assumptions!$109:$109,Assumptions!118:118)*AD$108 ->  | AE119: =LOOKUP(AE$107,Assumptions!$109:$109,Assumptions!118:118)*AE$108 ->  | AF119: =LOOKUP(AF$107,Assumptions!$109:$109,Assumptions!118:118)*AF$108 ->  | AG119: =LOOKUP(AG$107,Assumptions!$109:$109,Assumptions!118:118)*AG$108 ->  | AH119: =LOOKUP(AH$107,Assumptions!$109:$109,Assumptions!118:118)*AH$108 ->  | AI119: =LOOKUP(AI$107,Assumptions!$109:$109,Assumptions!118:118)*AI$108 ->  | AJ119: =LOOKUP(AJ$107,Assumptions!$109:$109,Assumptions!118:118)*AJ$108 ->  | AK119: =LOOKUP(AK$107,Assumptions!$109:$109,Assumptions!118:118)*AK$108 ->  | AL119: =LOOKUP(AL$107,Assumptions!$109:$109,Assumptions!118:118)*AL$108 ->  | AM119: =LOOKUP(AM$107,Assumptions!$109:$109,Assumptions!118:118)*AM$108 ->  | AN119: =LOOKUP(AN$107,Assumptions!$109:$109,Assumptions!118:118)*AN$108 ->  | AO119: =LOOKUP(AO$107,Assumptions!$109:$109,Assumptions!118:118)*AO$108 ->  | AP119: =LOOKUP(AP$107,Assumptions!$109:$109,Assumptions!118:118)*AP$108 ->  | AQ119: =LOOKUP(AQ$107,Assumptions!$109:$109,Assumptions!118:118)*AQ$108 ->  | AR119: =LOOKUP(AR$107,Assumptions!$109:$109,Assumptions!118:118)*AR$108 ->  | AS119: =LOOKUP(AS$107,Assumptions!$109:$109,Assumptions!118:118)*AS$108 ->  | AT119: =LOOKUP(AT$107,Assumptions!$109:$109,Assumptions!118:118)*AT$108 ->  | AU119: =LOOKUP(AU$107,Assumptions!$109:$109,Assumptions!118:118)*AU$108 ->  | AV119: =LOOKUP(AV$107,Assumptions!$109:$109,Assumptions!118:118)*AV$108 ->  | AW119: =LOOKUP(AW$107,Assumptions!$109:$109,Assumptions!118:118)*AW$108 ->  | AX119: =LOOKUP(AX$107,Assumptions!$109:$109,Assumptions!118:118)*AX$108 ->  | AY119: =LOOKUP(AY$107,Assumptions!$109:$109,Assumptions!118:118)*AY$108 ->  | AZ119: =LOOKUP(AZ$107,Assumptions!$109:$109,Assumptions!118:118)*AZ$108 ->  | BA119: =LOOKUP(BA$107,Assumptions!$109:$109,Assumptions!118:118)*BA$108 ->  | BB119: =LOOKUP(BB$107,Assumptions!$109:$109,Assumptions!118:118)*BB$108 ->  | BC119: =LOOKUP(BC$107,Assumptions!$109:$109,Assumptions!118:118)*BC$108 ->  | BD119: =LOOKUP(BD$107,Assumptions!$109:$109,Assumptions!118:118)*BD$108 ->  | BE119: =LOOKUP(BE$107,Assumptions!$109:$109,Assumptions!118:118)*BE$108 ->  | BF119: =LOOKUP(BF$107,Assumptions!$109:$109,Assumptions!118:118)*BF$108 ->  | BG119: =LOOKUP(BG$107,Assumptions!$109:$109,Assumptions!118:118)*BG$108 ->  | BH119: =LOOKUP(BH$107,Assumptions!$109:$109,Assumptions!118:118)*BH$108 ->  | BI119: =LOOKUP(BI$107,Assumptions!$109:$109,Assumptions!118:118)*BI$108 ->  | BJ119: =LOOKUP(BJ$107,Assumptions!$109:$109,Assumptions!118:118)*BJ$108 ->  | BK119: =LOOKUP(BK$107,Assumptions!$109:$109,Assumptions!118:118)*BK$108 ->  | BL119: =LOOKUP(BL$107,Assumptions!$109:$109,Assumptions!118:118)*BL$108 ->  | BM119: =LOOKUP(BM$107,Assumptions!$109:$109,Assumptions!118:118)*BM$108 ->  | BN119: =LOOKUP(BN$107,Assumptions!$109:$109,Assumptions!118:118)*BN$108 ->  | BO119: =LOOKUP(BO$107,Assumptions!$109:$109,Assumptions!118:118)*BO$108 ->  | BP119: =LOOKUP(BP$107,Assumptions!$109:$109,Assumptions!118:118)*BP$108 ->  | BQ119: =LOOKUP(BQ$107,Assumptions!$109:$109,Assumptions!118:118)*BQ$108 ->  | BR119: =LOOKUP(BR$107,Assumptions!$109:$109,Assumptions!118:118)*BR$108 ->  | BS119: =LOOKUP(BS$107,Assumptions!$109:$109,Assumptions!118:118)*BS$108 ->  | BT119: =LOOKUP(BT$107,Assumptions!$109:$109,Assumptions!118:118)*BT$108 ->  | BU119: =LOOKUP(BU$107,Assumptions!$109:$109,Assumptions!118:118)*BU$108 ->  | BV119: =LOOKUP(BV$107,Assumptions!$109:$109,Assumptions!118:118)*BV$108 ->  | BW119: =LOOKUP(BW$107,Assumptions!$109:$109,Assumptions!118:118)*BW$108 ->  | BX119: =LOOKUP(BX$107,Assumptions!$109:$109,Assumptions!118:118)*BX$108 ->  | BY119: =LOOKUP(BY$107,Assumptions!$109:$109,Assumptions!118:118)*BY$108 ->  | BZ119: =LOOKUP(BZ$107,Assumptions!$109:$109,Assumptions!118:118)*BZ$108 ->  | CA119: =LOOKUP(CA$107,Assumptions!$109:$109,Assumptions!118:118)*CA$108 ->  | CB119: =LOOKUP(CB$107,Assumptions!$109:$109,Assumptions!118:118)*CB$108 ->  | CC119: =LOOKUP(CC$107,Assumptions!$109:$109,Assumptions!118:118)*CC$108 ->  | CD119: =LOOKUP(CD$107,Assumptions!$109:$109,Assumptions!118:118)*CD$108 ->  | CE119: =LOOKUP(CE$107,Assumptions!$109:$109,Assumptions!118:118)*CE$108 ->  | CF119: =LOOKUP(CF$107,Assumptions!$109:$109,Assumptions!118:118)*CF$108 ->  | CG119: =LOOKUP(CG$107,Assumptions!$109:$109,Assumptions!118:118)*CG$108 ->  | CH119: =LOOKUP(CH$107,Assumptions!$109:$109,Assumptions!118:118)*CH$108 ->  | CI119: =LOOKUP(CI$107,Assumptions!$109:$109,Assumptions!118:118)*CI$108 ->  | CJ119: =LOOKUP(CJ$107,Assumptions!$109:$109,Assumptions!118:118)*CJ$108 ->  | CK119: =LOOKUP(CK$107,Assumptions!$109:$109,Assumptions!118:118)*CK$108 ->  | CL119: =LOOKUP(CL$107,Assumptions!$109:$109,Assumptions!118:118)*CL$108 ->  | CM119: =LOOKUP(CM$107,Assumptions!$109:$109,Assumptions!118:118)*CM$108 ->  | CN119: =LOOKUP(CN$107,Assumptions!$109:$109,Assumptions!118:118)*CN$108 ->  | CO119: =LOOKUP(CO$107,Assumptions!$109:$109,Assumptions!118:118)*CO$108 ->  | CP119: =LOOKUP(CP$107,Assumptions!$109:$109,Assumptions!118:118)*CP$108 ->  | CQ119: =LOOKUP(CQ$107,Assumptions!$109:$109,Assumptions!118:118)*CQ$108 ->  | CR119: =LOOKUP(CR$107,Assumptions!$109:$109,Assumptions!118:118)*CR$108 ->  | CS119: =LOOKUP(CS$107,Assumptions!$109:$109,Assumptions!118:118)*CS$108 ->  | CT119: =LOOKUP(CT$107,Assumptions!$109:$109,Assumptions!118:118)*CT$108 ->  | CU119: =LOOKUP(CU$107,Assumptions!$109:$109,Assumptions!118:118)*CU$108 ->  | CV119: =LOOKUP(CV$107,Assumptions!$109:$109,Assumptions!118:118)*CV$108 ->  | CW119: =LOOKUP(CW$107,Assumptions!$109:$109,Assumptions!118:118)*CW$108 ->  | CX119: =LOOKUP(CX$107,Assumptions!$109:$109,Assumptions!118:118)*CX$108 ->  | CY119: =LOOKUP(CY$107,Assumptions!$109:$109,Assumptions!118:118)*CY$108 ->  | CZ119: =LOOKUP(CZ$107,Assumptions!$109:$109,Assumptions!118:118)*CZ$108 ->  | DA119: =LOOKUP(DA$107,Assumptions!$109:$109,Assumptions!118:118)*DA$108 ->  | DB119: =LOOKUP(DB$107,Assumptions!$109:$109,Assumptions!118:118)*DB$108 ->  | DC119: =LOOKUP(DC$107,Assumptions!$109:$109,Assumptions!118:118)*DC$108 ->  | DD119: =LOOKUP(DD$107,Assumptions!$109:$109,Assumptions!118:118)*DD$108 ->  | DE119: =LOOKUP(DE$107,Assumptions!$109:$109,Assumptions!118:118)*DE$108 ->  | DF119: =LOOKUP(DF$107,Assumptions!$109:$109,Assumptions!118:118)*DF$108 ->  | DG119: =LOOKUP(DG$107,Assumptions!$109:$109,Assumptions!118:118)*DG$108 ->  | DH119: =LOOKUP(DH$107,Assumptions!$109:$109,Assumptions!118:118)*DH$108 ->  | DI119: =LOOKUP(DI$107,Assumptions!$109:$109,Assumptions!118:118)*DI$108 ->  | DJ119: =LOOKUP(DJ$107,Assumptions!$109:$109,Assumptions!118:118)*DJ$108 ->  | DK119: =LOOKUP(DK$107,Assumptions!$109:$109,Assumptions!118:118)*DK$108 ->  | DL119: =LOOKUP(DL$107,Assumptions!$109:$109,Assumptions!118:118)*DL$108 ->  | DM119: =LOOKUP(DM$107,Assumptions!$109:$109,Assumptions!118:118)*DM$108 ->  | DN119: =LOOKUP(DN$107,Assumptions!$109:$109,Assumptions!118:118)*DN$108 ->  | DO119: =LOOKUP(DO$107,Assumptions!$109:$109,Assumptions!118:118)*DO$108 ->  | DP119: =LOOKUP(DP$107,Assumptions!$109:$109,Assumptions!118:118)*DP$108 ->  | DQ119: =LOOKUP(DQ$107,Assumptions!$109:$109,Assumptions!118:118)*DQ$108 -> 
E120: October | F120: Euro/MWH | K120: =LOOKUP(K$107,Assumptions!$109:$109,Assumptions!119:119)*K$108 ->  | L120: =LOOKUP(L$107,Assumptions!$109:$109,Assumptions!119:119)*L$108 ->  | M120: =LOOKUP(M$107,Assumptions!$109:$109,Assumptions!119:119)*M$108 ->  | N120: =LOOKUP(N$107,Assumptions!$109:$109,Assumptions!119:119)*N$108 ->  | O120: =LOOKUP(O$107,Assumptions!$109:$109,Assumptions!119:119)*O$108 ->  | P120: =LOOKUP(P$107,Assumptions!$109:$109,Assumptions!119:119)*P$108 ->  | Q120: =LOOKUP(Q$107,Assumptions!$109:$109,Assumptions!119:119)*Q$108 ->  | R120: =LOOKUP(R$107,Assumptions!$109:$109,Assumptions!119:119)*R$108 ->  | S120: =LOOKUP(S$107,Assumptions!$109:$109,Assumptions!119:119)*S$108 ->  | T120: =LOOKUP(T$107,Assumptions!$109:$109,Assumptions!119:119)*T$108 ->  | U120: =LOOKUP(U$107,Assumptions!$109:$109,Assumptions!119:119)*U$108 ->  | V120: =LOOKUP(V$107,Assumptions!$109:$109,Assumptions!119:119)*V$108 ->  | W120: =LOOKUP(W$107,Assumptions!$109:$109,Assumptions!119:119)*W$108 ->  | X120: =LOOKUP(X$107,Assumptions!$109:$109,Assumptions!119:119)*X$108 ->  | Y120: =LOOKUP(Y$107,Assumptions!$109:$109,Assumptions!119:119)*Y$108 ->  | Z120: =LOOKUP(Z$107,Assumptions!$109:$109,Assumptions!119:119)*Z$108 ->  | AA120: =LOOKUP(AA$107,Assumptions!$109:$109,Assumptions!119:119)*AA$108 ->  | AB120: =LOOKUP(AB$107,Assumptions!$109:$109,Assumptions!119:119)*AB$108 ->  | AC120: =LOOKUP(AC$107,Assumptions!$109:$109,Assumptions!119:119)*AC$108 ->  | AD120: =LOOKUP(AD$107,Assumptions!$109:$109,Assumptions!119:119)*AD$108 ->  | AE120: =LOOKUP(AE$107,Assumptions!$109:$109,Assumptions!119:119)*AE$108 ->  | AF120: =LOOKUP(AF$107,Assumptions!$109:$109,Assumptions!119:119)*AF$108 ->  | AG120: =LOOKUP(AG$107,Assumptions!$109:$109,Assumptions!119:119)*AG$108 ->  | AH120: =LOOKUP(AH$107,Assumptions!$109:$109,Assumptions!119:119)*AH$108 ->  | AI120: =LOOKUP(AI$107,Assumptions!$109:$109,Assumptions!119:119)*AI$108 ->  | AJ120: =LOOKUP(AJ$107,Assumptions!$109:$109,Assumptions!119:119)*AJ$108 ->  | AK120: =LOOKUP(AK$107,Assumptions!$109:$109,Assumptions!119:119)*AK$108 ->  | AL120: =LOOKUP(AL$107,Assumptions!$109:$109,Assumptions!119:119)*AL$108 ->  | AM120: =LOOKUP(AM$107,Assumptions!$109:$109,Assumptions!119:119)*AM$108 ->  | AN120: =LOOKUP(AN$107,Assumptions!$109:$109,Assumptions!119:119)*AN$108 ->  | AO120: =LOOKUP(AO$107,Assumptions!$109:$109,Assumptions!119:119)*AO$108 ->  | AP120: =LOOKUP(AP$107,Assumptions!$109:$109,Assumptions!119:119)*AP$108 ->  | AQ120: =LOOKUP(AQ$107,Assumptions!$109:$109,Assumptions!119:119)*AQ$108 ->  | AR120: =LOOKUP(AR$107,Assumptions!$109:$109,Assumptions!119:119)*AR$108 ->  | AS120: =LOOKUP(AS$107,Assumptions!$109:$109,Assumptions!119:119)*AS$108 ->  | AT120: =LOOKUP(AT$107,Assumptions!$109:$109,Assumptions!119:119)*AT$108 ->  | AU120: =LOOKUP(AU$107,Assumptions!$109:$109,Assumptions!119:119)*AU$108 ->  | AV120: =LOOKUP(AV$107,Assumptions!$109:$109,Assumptions!119:119)*AV$108 ->  | AW120: =LOOKUP(AW$107,Assumptions!$109:$109,Assumptions!119:119)*AW$108 ->  | AX120: =LOOKUP(AX$107,Assumptions!$109:$109,Assumptions!119:119)*AX$108 ->  | AY120: =LOOKUP(AY$107,Assumptions!$109:$109,Assumptions!119:119)*AY$108 ->  | AZ120: =LOOKUP(AZ$107,Assumptions!$109:$109,Assumptions!119:119)*AZ$108 ->  | BA120: =LOOKUP(BA$107,Assumptions!$109:$109,Assumptions!119:119)*BA$108 ->  | BB120: =LOOKUP(BB$107,Assumptions!$109:$109,Assumptions!119:119)*BB$108 ->  | BC120: =LOOKUP(BC$107,Assumptions!$109:$109,Assumptions!119:119)*BC$108 ->  | BD120: =LOOKUP(BD$107,Assumptions!$109:$109,Assumptions!119:119)*BD$108 ->  | BE120: =LOOKUP(BE$107,Assumptions!$109:$109,Assumptions!119:119)*BE$108 ->  | BF120: =LOOKUP(BF$107,Assumptions!$109:$109,Assumptions!119:119)*BF$108 ->  | BG120: =LOOKUP(BG$107,Assumptions!$109:$109,Assumptions!119:119)*BG$108 ->  | BH120: =LOOKUP(BH$107,Assumptions!$109:$109,Assumptions!119:119)*BH$108 ->  | BI120: =LOOKUP(BI$107,Assumptions!$109:$109,Assumptions!119:119)*BI$108 ->  | BJ120: =LOOKUP(BJ$107,Assumptions!$109:$109,Assumptions!119:119)*BJ$108 ->  | BK120: =LOOKUP(BK$107,Assumptions!$109:$109,Assumptions!119:119)*BK$108 ->  | BL120: =LOOKUP(BL$107,Assumptions!$109:$109,Assumptions!119:119)*BL$108 ->  | BM120: =LOOKUP(BM$107,Assumptions!$109:$109,Assumptions!119:119)*BM$108 ->  | BN120: =LOOKUP(BN$107,Assumptions!$109:$109,Assumptions!119:119)*BN$108 ->  | BO120: =LOOKUP(BO$107,Assumptions!$109:$109,Assumptions!119:119)*BO$108 ->  | BP120: =LOOKUP(BP$107,Assumptions!$109:$109,Assumptions!119:119)*BP$108 ->  | BQ120: =LOOKUP(BQ$107,Assumptions!$109:$109,Assumptions!119:119)*BQ$108 ->  | BR120: =LOOKUP(BR$107,Assumptions!$109:$109,Assumptions!119:119)*BR$108 ->  | BS120: =LOOKUP(BS$107,Assumptions!$109:$109,Assumptions!119:119)*BS$108 ->  | BT120: =LOOKUP(BT$107,Assumptions!$109:$109,Assumptions!119:119)*BT$108 ->  | BU120: =LOOKUP(BU$107,Assumptions!$109:$109,Assumptions!119:119)*BU$108 ->  | BV120: =LOOKUP(BV$107,Assumptions!$109:$109,Assumptions!119:119)*BV$108 ->  | BW120: =LOOKUP(BW$107,Assumptions!$109:$109,Assumptions!119:119)*BW$108 ->  | BX120: =LOOKUP(BX$107,Assumptions!$109:$109,Assumptions!119:119)*BX$108 ->  | BY120: =LOOKUP(BY$107,Assumptions!$109:$109,Assumptions!119:119)*BY$108 ->  | BZ120: =LOOKUP(BZ$107,Assumptions!$109:$109,Assumptions!119:119)*BZ$108 ->  | CA120: =LOOKUP(CA$107,Assumptions!$109:$109,Assumptions!119:119)*CA$108 ->  | CB120: =LOOKUP(CB$107,Assumptions!$109:$109,Assumptions!119:119)*CB$108 ->  | CC120: =LOOKUP(CC$107,Assumptions!$109:$109,Assumptions!119:119)*CC$108 ->  | CD120: =LOOKUP(CD$107,Assumptions!$109:$109,Assumptions!119:119)*CD$108 ->  | CE120: =LOOKUP(CE$107,Assumptions!$109:$109,Assumptions!119:119)*CE$108 ->  | CF120: =LOOKUP(CF$107,Assumptions!$109:$109,Assumptions!119:119)*CF$108 ->  | CG120: =LOOKUP(CG$107,Assumptions!$109:$109,Assumptions!119:119)*CG$108 ->  | CH120: =LOOKUP(CH$107,Assumptions!$109:$109,Assumptions!119:119)*CH$108 ->  | CI120: =LOOKUP(CI$107,Assumptions!$109:$109,Assumptions!119:119)*CI$108 ->  | CJ120: =LOOKUP(CJ$107,Assumptions!$109:$109,Assumptions!119:119)*CJ$108 ->  | CK120: =LOOKUP(CK$107,Assumptions!$109:$109,Assumptions!119:119)*CK$108 ->  | CL120: =LOOKUP(CL$107,Assumptions!$109:$109,Assumptions!119:119)*CL$108 ->  | CM120: =LOOKUP(CM$107,Assumptions!$109:$109,Assumptions!119:119)*CM$108 ->  | CN120: =LOOKUP(CN$107,Assumptions!$109:$109,Assumptions!119:119)*CN$108 ->  | CO120: =LOOKUP(CO$107,Assumptions!$109:$109,Assumptions!119:119)*CO$108 ->  | CP120: =LOOKUP(CP$107,Assumptions!$109:$109,Assumptions!119:119)*CP$108 ->  | CQ120: =LOOKUP(CQ$107,Assumptions!$109:$109,Assumptions!119:119)*CQ$108 ->  | CR120: =LOOKUP(CR$107,Assumptions!$109:$109,Assumptions!119:119)*CR$108 ->  | CS120: =LOOKUP(CS$107,Assumptions!$109:$109,Assumptions!119:119)*CS$108 ->  | CT120: =LOOKUP(CT$107,Assumptions!$109:$109,Assumptions!119:119)*CT$108 ->  | CU120: =LOOKUP(CU$107,Assumptions!$109:$109,Assumptions!119:119)*CU$108 ->  | CV120: =LOOKUP(CV$107,Assumptions!$109:$109,Assumptions!119:119)*CV$108 ->  | CW120: =LOOKUP(CW$107,Assumptions!$109:$109,Assumptions!119:119)*CW$108 ->  | CX120: =LOOKUP(CX$107,Assumptions!$109:$109,Assumptions!119:119)*CX$108 ->  | CY120: =LOOKUP(CY$107,Assumptions!$109:$109,Assumptions!119:119)*CY$108 ->  | CZ120: =LOOKUP(CZ$107,Assumptions!$109:$109,Assumptions!119:119)*CZ$108 ->  | DA120: =LOOKUP(DA$107,Assumptions!$109:$109,Assumptions!119:119)*DA$108 ->  | DB120: =LOOKUP(DB$107,Assumptions!$109:$109,Assumptions!119:119)*DB$108 ->  | DC120: =LOOKUP(DC$107,Assumptions!$109:$109,Assumptions!119:119)*DC$108 ->  | DD120: =LOOKUP(DD$107,Assumptions!$109:$109,Assumptions!119:119)*DD$108 ->  | DE120: =LOOKUP(DE$107,Assumptions!$109:$109,Assumptions!119:119)*DE$108 ->  | DF120: =LOOKUP(DF$107,Assumptions!$109:$109,Assumptions!119:119)*DF$108 ->  | DG120: =LOOKUP(DG$107,Assumptions!$109:$109,Assumptions!119:119)*DG$108 ->  | DH120: =LOOKUP(DH$107,Assumptions!$109:$109,Assumptions!119:119)*DH$108 ->  | DI120: =LOOKUP(DI$107,Assumptions!$109:$109,Assumptions!119:119)*DI$108 ->  | DJ120: =LOOKUP(DJ$107,Assumptions!$109:$109,Assumptions!119:119)*DJ$108 ->  | DK120: =LOOKUP(DK$107,Assumptions!$109:$109,Assumptions!119:119)*DK$108 ->  | DL120: =LOOKUP(DL$107,Assumptions!$109:$109,Assumptions!119:119)*DL$108 ->  | DM120: =LOOKUP(DM$107,Assumptions!$109:$109,Assumptions!119:119)*DM$108 ->  | DN120: =LOOKUP(DN$107,Assumptions!$109:$109,Assumptions!119:119)*DN$108 ->  | DO120: =LOOKUP(DO$107,Assumptions!$109:$109,Assumptions!119:119)*DO$108 ->  | DP120: =LOOKUP(DP$107,Assumptions!$109:$109,Assumptions!119:119)*DP$108 ->  | DQ120: =LOOKUP(DQ$107,Assumptions!$109:$109,Assumptions!119:119)*DQ$108 -> 
E121: November | F121: Euro/MWH | K121: =LOOKUP(K$107,Assumptions!$109:$109,Assumptions!120:120)*K$108 ->  | L121: =LOOKUP(L$107,Assumptions!$109:$109,Assumptions!120:120)*L$108 ->  | M121: =LOOKUP(M$107,Assumptions!$109:$109,Assumptions!120:120)*M$108 ->  | N121: =LOOKUP(N$107,Assumptions!$109:$109,Assumptions!120:120)*N$108 ->  | O121: =LOOKUP(O$107,Assumptions!$109:$109,Assumptions!120:120)*O$108 ->  | P121: =LOOKUP(P$107,Assumptions!$109:$109,Assumptions!120:120)*P$108 ->  | Q121: =LOOKUP(Q$107,Assumptions!$109:$109,Assumptions!120:120)*Q$108 ->  | R121: =LOOKUP(R$107,Assumptions!$109:$109,Assumptions!120:120)*R$108 ->  | S121: =LOOKUP(S$107,Assumptions!$109:$109,Assumptions!120:120)*S$108 ->  | T121: =LOOKUP(T$107,Assumptions!$109:$109,Assumptions!120:120)*T$108 ->  | U121: =LOOKUP(U$107,Assumptions!$109:$109,Assumptions!120:120)*U$108 ->  | V121: =LOOKUP(V$107,Assumptions!$109:$109,Assumptions!120:120)*V$108 ->  | W121: =LOOKUP(W$107,Assumptions!$109:$109,Assumptions!120:120)*W$108 ->  | X121: =LOOKUP(X$107,Assumptions!$109:$109,Assumptions!120:120)*X$108 ->  | Y121: =LOOKUP(Y$107,Assumptions!$109:$109,Assumptions!120:120)*Y$108 ->  | Z121: =LOOKUP(Z$107,Assumptions!$109:$109,Assumptions!120:120)*Z$108 ->  | AA121: =LOOKUP(AA$107,Assumptions!$109:$109,Assumptions!120:120)*AA$108 ->  | AB121: =LOOKUP(AB$107,Assumptions!$109:$109,Assumptions!120:120)*AB$108 ->  | AC121: =LOOKUP(AC$107,Assumptions!$109:$109,Assumptions!120:120)*AC$108 ->  | AD121: =LOOKUP(AD$107,Assumptions!$109:$109,Assumptions!120:120)*AD$108 ->  | AE121: =LOOKUP(AE$107,Assumptions!$109:$109,Assumptions!120:120)*AE$108 ->  | AF121: =LOOKUP(AF$107,Assumptions!$109:$109,Assumptions!120:120)*AF$108 ->  | AG121: =LOOKUP(AG$107,Assumptions!$109:$109,Assumptions!120:120)*AG$108 ->  | AH121: =LOOKUP(AH$107,Assumptions!$109:$109,Assumptions!120:120)*AH$108 ->  | AI121: =LOOKUP(AI$107,Assumptions!$109:$109,Assumptions!120:120)*AI$108 ->  | AJ121: =LOOKUP(AJ$107,Assumptions!$109:$109,Assumptions!120:120)*AJ$108 ->  | AK121: =LOOKUP(AK$107,Assumptions!$109:$109,Assumptions!120:120)*AK$108 ->  | AL121: =LOOKUP(AL$107,Assumptions!$109:$109,Assumptions!120:120)*AL$108 ->  | AM121: =LOOKUP(AM$107,Assumptions!$109:$109,Assumptions!120:120)*AM$108 ->  | AN121: =LOOKUP(AN$107,Assumptions!$109:$109,Assumptions!120:120)*AN$108 ->  | AO121: =LOOKUP(AO$107,Assumptions!$109:$109,Assumptions!120:120)*AO$108 ->  | AP121: =LOOKUP(AP$107,Assumptions!$109:$109,Assumptions!120:120)*AP$108 ->  | AQ121: =LOOKUP(AQ$107,Assumptions!$109:$109,Assumptions!120:120)*AQ$108 ->  | AR121: =LOOKUP(AR$107,Assumptions!$109:$109,Assumptions!120:120)*AR$108 ->  | AS121: =LOOKUP(AS$107,Assumptions!$109:$109,Assumptions!120:120)*AS$108 ->  | AT121: =LOOKUP(AT$107,Assumptions!$109:$109,Assumptions!120:120)*AT$108 ->  | AU121: =LOOKUP(AU$107,Assumptions!$109:$109,Assumptions!120:120)*AU$108 ->  | AV121: =LOOKUP(AV$107,Assumptions!$109:$109,Assumptions!120:120)*AV$108 ->  | AW121: =LOOKUP(AW$107,Assumptions!$109:$109,Assumptions!120:120)*AW$108 ->  | AX121: =LOOKUP(AX$107,Assumptions!$109:$109,Assumptions!120:120)*AX$108 ->  | AY121: =LOOKUP(AY$107,Assumptions!$109:$109,Assumptions!120:120)*AY$108 ->  | AZ121: =LOOKUP(AZ$107,Assumptions!$109:$109,Assumptions!120:120)*AZ$108 ->  | BA121: =LOOKUP(BA$107,Assumptions!$109:$109,Assumptions!120:120)*BA$108 ->  | BB121: =LOOKUP(BB$107,Assumptions!$109:$109,Assumptions!120:120)*BB$108 ->  | BC121: =LOOKUP(BC$107,Assumptions!$109:$109,Assumptions!120:120)*BC$108 ->  | BD121: =LOOKUP(BD$107,Assumptions!$109:$109,Assumptions!120:120)*BD$108 ->  | BE121: =LOOKUP(BE$107,Assumptions!$109:$109,Assumptions!120:120)*BE$108 ->  | BF121: =LOOKUP(BF$107,Assumptions!$109:$109,Assumptions!120:120)*BF$108 ->  | BG121: =LOOKUP(BG$107,Assumptions!$109:$109,Assumptions!120:120)*BG$108 ->  | BH121: =LOOKUP(BH$107,Assumptions!$109:$109,Assumptions!120:120)*BH$108 ->  | BI121: =LOOKUP(BI$107,Assumptions!$109:$109,Assumptions!120:120)*BI$108 ->  | BJ121: =LOOKUP(BJ$107,Assumptions!$109:$109,Assumptions!120:120)*BJ$108 ->  | BK121: =LOOKUP(BK$107,Assumptions!$109:$109,Assumptions!120:120)*BK$108 ->  | BL121: =LOOKUP(BL$107,Assumptions!$109:$109,Assumptions!120:120)*BL$108 ->  | BM121: =LOOKUP(BM$107,Assumptions!$109:$109,Assumptions!120:120)*BM$108 ->  | BN121: =LOOKUP(BN$107,Assumptions!$109:$109,Assumptions!120:120)*BN$108 ->  | BO121: =LOOKUP(BO$107,Assumptions!$109:$109,Assumptions!120:120)*BO$108 ->  | BP121: =LOOKUP(BP$107,Assumptions!$109:$109,Assumptions!120:120)*BP$108 ->  | BQ121: =LOOKUP(BQ$107,Assumptions!$109:$109,Assumptions!120:120)*BQ$108 ->  | BR121: =LOOKUP(BR$107,Assumptions!$109:$109,Assumptions!120:120)*BR$108 ->  | BS121: =LOOKUP(BS$107,Assumptions!$109:$109,Assumptions!120:120)*BS$108 ->  | BT121: =LOOKUP(BT$107,Assumptions!$109:$109,Assumptions!120:120)*BT$108 ->  | BU121: =LOOKUP(BU$107,Assumptions!$109:$109,Assumptions!120:120)*BU$108 ->  | BV121: =LOOKUP(BV$107,Assumptions!$109:$109,Assumptions!120:120)*BV$108 ->  | BW121: =LOOKUP(BW$107,Assumptions!$109:$109,Assumptions!120:120)*BW$108 ->  | BX121: =LOOKUP(BX$107,Assumptions!$109:$109,Assumptions!120:120)*BX$108 ->  | BY121: =LOOKUP(BY$107,Assumptions!$109:$109,Assumptions!120:120)*BY$108 ->  | BZ121: =LOOKUP(BZ$107,Assumptions!$109:$109,Assumptions!120:120)*BZ$108 ->  | CA121: =LOOKUP(CA$107,Assumptions!$109:$109,Assumptions!120:120)*CA$108 ->  | CB121: =LOOKUP(CB$107,Assumptions!$109:$109,Assumptions!120:120)*CB$108 ->  | CC121: =LOOKUP(CC$107,Assumptions!$109:$109,Assumptions!120:120)*CC$108 ->  | CD121: =LOOKUP(CD$107,Assumptions!$109:$109,Assumptions!120:120)*CD$108 ->  | CE121: =LOOKUP(CE$107,Assumptions!$109:$109,Assumptions!120:120)*CE$108 ->  | CF121: =LOOKUP(CF$107,Assumptions!$109:$109,Assumptions!120:120)*CF$108 ->  | CG121: =LOOKUP(CG$107,Assumptions!$109:$109,Assumptions!120:120)*CG$108 ->  | CH121: =LOOKUP(CH$107,Assumptions!$109:$109,Assumptions!120:120)*CH$108 ->  | CI121: =LOOKUP(CI$107,Assumptions!$109:$109,Assumptions!120:120)*CI$108 ->  | CJ121: =LOOKUP(CJ$107,Assumptions!$109:$109,Assumptions!120:120)*CJ$108 ->  | CK121: =LOOKUP(CK$107,Assumptions!$109:$109,Assumptions!120:120)*CK$108 ->  | CL121: =LOOKUP(CL$107,Assumptions!$109:$109,Assumptions!120:120)*CL$108 ->  | CM121: =LOOKUP(CM$107,Assumptions!$109:$109,Assumptions!120:120)*CM$108 ->  | CN121: =LOOKUP(CN$107,Assumptions!$109:$109,Assumptions!120:120)*CN$108 ->  | CO121: =LOOKUP(CO$107,Assumptions!$109:$109,Assumptions!120:120)*CO$108 ->  | CP121: =LOOKUP(CP$107,Assumptions!$109:$109,Assumptions!120:120)*CP$108 ->  | CQ121: =LOOKUP(CQ$107,Assumptions!$109:$109,Assumptions!120:120)*CQ$108 ->  | CR121: =LOOKUP(CR$107,Assumptions!$109:$109,Assumptions!120:120)*CR$108 ->  | CS121: =LOOKUP(CS$107,Assumptions!$109:$109,Assumptions!120:120)*CS$108 ->  | CT121: =LOOKUP(CT$107,Assumptions!$109:$109,Assumptions!120:120)*CT$108 ->  | CU121: =LOOKUP(CU$107,Assumptions!$109:$109,Assumptions!120:120)*CU$108 ->  | CV121: =LOOKUP(CV$107,Assumptions!$109:$109,Assumptions!120:120)*CV$108 ->  | CW121: =LOOKUP(CW$107,Assumptions!$109:$109,Assumptions!120:120)*CW$108 ->  | CX121: =LOOKUP(CX$107,Assumptions!$109:$109,Assumptions!120:120)*CX$108 ->  | CY121: =LOOKUP(CY$107,Assumptions!$109:$109,Assumptions!120:120)*CY$108 ->  | CZ121: =LOOKUP(CZ$107,Assumptions!$109:$109,Assumptions!120:120)*CZ$108 ->  | DA121: =LOOKUP(DA$107,Assumptions!$109:$109,Assumptions!120:120)*DA$108 ->  | DB121: =LOOKUP(DB$107,Assumptions!$109:$109,Assumptions!120:120)*DB$108 ->  | DC121: =LOOKUP(DC$107,Assumptions!$109:$109,Assumptions!120:120)*DC$108 ->  | DD121: =LOOKUP(DD$107,Assumptions!$109:$109,Assumptions!120:120)*DD$108 ->  | DE121: =LOOKUP(DE$107,Assumptions!$109:$109,Assumptions!120:120)*DE$108 ->  | DF121: =LOOKUP(DF$107,Assumptions!$109:$109,Assumptions!120:120)*DF$108 ->  | DG121: =LOOKUP(DG$107,Assumptions!$109:$109,Assumptions!120:120)*DG$108 ->  | DH121: =LOOKUP(DH$107,Assumptions!$109:$109,Assumptions!120:120)*DH$108 ->  | DI121: =LOOKUP(DI$107,Assumptions!$109:$109,Assumptions!120:120)*DI$108 ->  | DJ121: =LOOKUP(DJ$107,Assumptions!$109:$109,Assumptions!120:120)*DJ$108 ->  | DK121: =LOOKUP(DK$107,Assumptions!$109:$109,Assumptions!120:120)*DK$108 ->  | DL121: =LOOKUP(DL$107,Assumptions!$109:$109,Assumptions!120:120)*DL$108 ->  | DM121: =LOOKUP(DM$107,Assumptions!$109:$109,Assumptions!120:120)*DM$108 ->  | DN121: =LOOKUP(DN$107,Assumptions!$109:$109,Assumptions!120:120)*DN$108 ->  | DO121: =LOOKUP(DO$107,Assumptions!$109:$109,Assumptions!120:120)*DO$108 ->  | DP121: =LOOKUP(DP$107,Assumptions!$109:$109,Assumptions!120:120)*DP$108 ->  | DQ121: =LOOKUP(DQ$107,Assumptions!$109:$109,Assumptions!120:120)*DQ$108 -> 
E122: December | F122: Euro/MWH | K122: =LOOKUP(K$107,Assumptions!$109:$109,Assumptions!121:121)*K$108 ->  | L122: =LOOKUP(L$107,Assumptions!$109:$109,Assumptions!121:121)*L$108 ->  | M122: =LOOKUP(M$107,Assumptions!$109:$109,Assumptions!121:121)*M$108 ->  | N122: =LOOKUP(N$107,Assumptions!$109:$109,Assumptions!121:121)*N$108 ->  | O122: =LOOKUP(O$107,Assumptions!$109:$109,Assumptions!121:121)*O$108 ->  | P122: =LOOKUP(P$107,Assumptions!$109:$109,Assumptions!121:121)*P$108 ->  | Q122: =LOOKUP(Q$107,Assumptions!$109:$109,Assumptions!121:121)*Q$108 ->  | R122: =LOOKUP(R$107,Assumptions!$109:$109,Assumptions!121:121)*R$108 ->  | S122: =LOOKUP(S$107,Assumptions!$109:$109,Assumptions!121:121)*S$108 ->  | T122: =LOOKUP(T$107,Assumptions!$109:$109,Assumptions!121:121)*T$108 ->  | U122: =LOOKUP(U$107,Assumptions!$109:$109,Assumptions!121:121)*U$108 ->  | V122: =LOOKUP(V$107,Assumptions!$109:$109,Assumptions!121:121)*V$108 ->  | W122: =LOOKUP(W$107,Assumptions!$109:$109,Assumptions!121:121)*W$108 ->  | X122: =LOOKUP(X$107,Assumptions!$109:$109,Assumptions!121:121)*X$108 ->  | Y122: =LOOKUP(Y$107,Assumptions!$109:$109,Assumptions!121:121)*Y$108 ->  | Z122: =LOOKUP(Z$107,Assumptions!$109:$109,Assumptions!121:121)*Z$108 ->  | AA122: =LOOKUP(AA$107,Assumptions!$109:$109,Assumptions!121:121)*AA$108 ->  | AB122: =LOOKUP(AB$107,Assumptions!$109:$109,Assumptions!121:121)*AB$108 ->  | AC122: =LOOKUP(AC$107,Assumptions!$109:$109,Assumptions!121:121)*AC$108 ->  | AD122: =LOOKUP(AD$107,Assumptions!$109:$109,Assumptions!121:121)*AD$108 ->  | AE122: =LOOKUP(AE$107,Assumptions!$109:$109,Assumptions!121:121)*AE$108 ->  | AF122: =LOOKUP(AF$107,Assumptions!$109:$109,Assumptions!121:121)*AF$108 ->  | AG122: =LOOKUP(AG$107,Assumptions!$109:$109,Assumptions!121:121)*AG$108 ->  | AH122: =LOOKUP(AH$107,Assumptions!$109:$109,Assumptions!121:121)*AH$108 ->  | AI122: =LOOKUP(AI$107,Assumptions!$109:$109,Assumptions!121:121)*AI$108 ->  | AJ122: =LOOKUP(AJ$107,Assumptions!$109:$109,Assumptions!121:121)*AJ$108 ->  | AK122: =LOOKUP(AK$107,Assumptions!$109:$109,Assumptions!121:121)*AK$108 ->  | AL122: =LOOKUP(AL$107,Assumptions!$109:$109,Assumptions!121:121)*AL$108 ->  | AM122: =LOOKUP(AM$107,Assumptions!$109:$109,Assumptions!121:121)*AM$108 ->  | AN122: =LOOKUP(AN$107,Assumptions!$109:$109,Assumptions!121:121)*AN$108 ->  | AO122: =LOOKUP(AO$107,Assumptions!$109:$109,Assumptions!121:121)*AO$108 ->  | AP122: =LOOKUP(AP$107,Assumptions!$109:$109,Assumptions!121:121)*AP$108 ->  | AQ122: =LOOKUP(AQ$107,Assumptions!$109:$109,Assumptions!121:121)*AQ$108 ->  | AR122: =LOOKUP(AR$107,Assumptions!$109:$109,Assumptions!121:121)*AR$108 ->  | AS122: =LOOKUP(AS$107,Assumptions!$109:$109,Assumptions!121:121)*AS$108 ->  | AT122: =LOOKUP(AT$107,Assumptions!$109:$109,Assumptions!121:121)*AT$108 ->  | AU122: =LOOKUP(AU$107,Assumptions!$109:$109,Assumptions!121:121)*AU$108 ->  | AV122: =LOOKUP(AV$107,Assumptions!$109:$109,Assumptions!121:121)*AV$108 ->  | AW122: =LOOKUP(AW$107,Assumptions!$109:$109,Assumptions!121:121)*AW$108 ->  | AX122: =LOOKUP(AX$107,Assumptions!$109:$109,Assumptions!121:121)*AX$108 ->  | AY122: =LOOKUP(AY$107,Assumptions!$109:$109,Assumptions!121:121)*AY$108 ->  | AZ122: =LOOKUP(AZ$107,Assumptions!$109:$109,Assumptions!121:121)*AZ$108 ->  | BA122: =LOOKUP(BA$107,Assumptions!$109:$109,Assumptions!121:121)*BA$108 ->  | BB122: =LOOKUP(BB$107,Assumptions!$109:$109,Assumptions!121:121)*BB$108 ->  | BC122: =LOOKUP(BC$107,Assumptions!$109:$109,Assumptions!121:121)*BC$108 ->  | BD122: =LOOKUP(BD$107,Assumptions!$109:$109,Assumptions!121:121)*BD$108 ->  | BE122: =LOOKUP(BE$107,Assumptions!$109:$109,Assumptions!121:121)*BE$108 ->  | BF122: =LOOKUP(BF$107,Assumptions!$109:$109,Assumptions!121:121)*BF$108 ->  | BG122: =LOOKUP(BG$107,Assumptions!$109:$109,Assumptions!121:121)*BG$108 ->  | BH122: =LOOKUP(BH$107,Assumptions!$109:$109,Assumptions!121:121)*BH$108 ->  | BI122: =LOOKUP(BI$107,Assumptions!$109:$109,Assumptions!121:121)*BI$108 ->  | BJ122: =LOOKUP(BJ$107,Assumptions!$109:$109,Assumptions!121:121)*BJ$108 ->  | BK122: =LOOKUP(BK$107,Assumptions!$109:$109,Assumptions!121:121)*BK$108 ->  | BL122: =LOOKUP(BL$107,Assumptions!$109:$109,Assumptions!121:121)*BL$108 ->  | BM122: =LOOKUP(BM$107,Assumptions!$109:$109,Assumptions!121:121)*BM$108 ->  | BN122: =LOOKUP(BN$107,Assumptions!$109:$109,Assumptions!121:121)*BN$108 ->  | BO122: =LOOKUP(BO$107,Assumptions!$109:$109,Assumptions!121:121)*BO$108 ->  | BP122: =LOOKUP(BP$107,Assumptions!$109:$109,Assumptions!121:121)*BP$108 ->  | BQ122: =LOOKUP(BQ$107,Assumptions!$109:$109,Assumptions!121:121)*BQ$108 ->  | BR122: =LOOKUP(BR$107,Assumptions!$109:$109,Assumptions!121:121)*BR$108 ->  | BS122: =LOOKUP(BS$107,Assumptions!$109:$109,Assumptions!121:121)*BS$108 ->  | BT122: =LOOKUP(BT$107,Assumptions!$109:$109,Assumptions!121:121)*BT$108 ->  | BU122: =LOOKUP(BU$107,Assumptions!$109:$109,Assumptions!121:121)*BU$108 ->  | BV122: =LOOKUP(BV$107,Assumptions!$109:$109,Assumptions!121:121)*BV$108 ->  | BW122: =LOOKUP(BW$107,Assumptions!$109:$109,Assumptions!121:121)*BW$108 ->  | BX122: =LOOKUP(BX$107,Assumptions!$109:$109,Assumptions!121:121)*BX$108 ->  | BY122: =LOOKUP(BY$107,Assumptions!$109:$109,Assumptions!121:121)*BY$108 ->  | BZ122: =LOOKUP(BZ$107,Assumptions!$109:$109,Assumptions!121:121)*BZ$108 ->  | CA122: =LOOKUP(CA$107,Assumptions!$109:$109,Assumptions!121:121)*CA$108 ->  | CB122: =LOOKUP(CB$107,Assumptions!$109:$109,Assumptions!121:121)*CB$108 ->  | CC122: =LOOKUP(CC$107,Assumptions!$109:$109,Assumptions!121:121)*CC$108 ->  | CD122: =LOOKUP(CD$107,Assumptions!$109:$109,Assumptions!121:121)*CD$108 ->  | CE122: =LOOKUP(CE$107,Assumptions!$109:$109,Assumptions!121:121)*CE$108 ->  | CF122: =LOOKUP(CF$107,Assumptions!$109:$109,Assumptions!121:121)*CF$108 ->  | CG122: =LOOKUP(CG$107,Assumptions!$109:$109,Assumptions!121:121)*CG$108 ->  | CH122: =LOOKUP(CH$107,Assumptions!$109:$109,Assumptions!121:121)*CH$108 ->  | CI122: =LOOKUP(CI$107,Assumptions!$109:$109,Assumptions!121:121)*CI$108 ->  | CJ122: =LOOKUP(CJ$107,Assumptions!$109:$109,Assumptions!121:121)*CJ$108 ->  | CK122: =LOOKUP(CK$107,Assumptions!$109:$109,Assumptions!121:121)*CK$108 ->  | CL122: =LOOKUP(CL$107,Assumptions!$109:$109,Assumptions!121:121)*CL$108 ->  | CM122: =LOOKUP(CM$107,Assumptions!$109:$109,Assumptions!121:121)*CM$108 ->  | CN122: =LOOKUP(CN$107,Assumptions!$109:$109,Assumptions!121:121)*CN$108 ->  | CO122: =LOOKUP(CO$107,Assumptions!$109:$109,Assumptions!121:121)*CO$108 ->  | CP122: =LOOKUP(CP$107,Assumptions!$109:$109,Assumptions!121:121)*CP$108 ->  | CQ122: =LOOKUP(CQ$107,Assumptions!$109:$109,Assumptions!121:121)*CQ$108 ->  | CR122: =LOOKUP(CR$107,Assumptions!$109:$109,Assumptions!121:121)*CR$108 ->  | CS122: =LOOKUP(CS$107,Assumptions!$109:$109,Assumptions!121:121)*CS$108 ->  | CT122: =LOOKUP(CT$107,Assumptions!$109:$109,Assumptions!121:121)*CT$108 ->  | CU122: =LOOKUP(CU$107,Assumptions!$109:$109,Assumptions!121:121)*CU$108 ->  | CV122: =LOOKUP(CV$107,Assumptions!$109:$109,Assumptions!121:121)*CV$108 ->  | CW122: =LOOKUP(CW$107,Assumptions!$109:$109,Assumptions!121:121)*CW$108 ->  | CX122: =LOOKUP(CX$107,Assumptions!$109:$109,Assumptions!121:121)*CX$108 ->  | CY122: =LOOKUP(CY$107,Assumptions!$109:$109,Assumptions!121:121)*CY$108 ->  | CZ122: =LOOKUP(CZ$107,Assumptions!$109:$109,Assumptions!121:121)*CZ$108 ->  | DA122: =LOOKUP(DA$107,Assumptions!$109:$109,Assumptions!121:121)*DA$108 ->  | DB122: =LOOKUP(DB$107,Assumptions!$109:$109,Assumptions!121:121)*DB$108 ->  | DC122: =LOOKUP(DC$107,Assumptions!$109:$109,Assumptions!121:121)*DC$108 ->  | DD122: =LOOKUP(DD$107,Assumptions!$109:$109,Assumptions!121:121)*DD$108 ->  | DE122: =LOOKUP(DE$107,Assumptions!$109:$109,Assumptions!121:121)*DE$108 ->  | DF122: =LOOKUP(DF$107,Assumptions!$109:$109,Assumptions!121:121)*DF$108 ->  | DG122: =LOOKUP(DG$107,Assumptions!$109:$109,Assumptions!121:121)*DG$108 ->  | DH122: =LOOKUP(DH$107,Assumptions!$109:$109,Assumptions!121:121)*DH$108 ->  | DI122: =LOOKUP(DI$107,Assumptions!$109:$109,Assumptions!121:121)*DI$108 ->  | DJ122: =LOOKUP(DJ$107,Assumptions!$109:$109,Assumptions!121:121)*DJ$108 ->  | DK122: =LOOKUP(DK$107,Assumptions!$109:$109,Assumptions!121:121)*DK$108 ->  | DL122: =LOOKUP(DL$107,Assumptions!$109:$109,Assumptions!121:121)*DL$108 ->  | DM122: =LOOKUP(DM$107,Assumptions!$109:$109,Assumptions!121:121)*DM$108 ->  | DN122: =LOOKUP(DN$107,Assumptions!$109:$109,Assumptions!121:121)*DN$108 ->  | DO122: =LOOKUP(DO$107,Assumptions!$109:$109,Assumptions!121:121)*DO$108 ->  | DP122: =LOOKUP(DP$107,Assumptions!$109:$109,Assumptions!121:121)*DP$108 ->  | DQ122: =LOOKUP(DQ$107,Assumptions!$109:$109,Assumptions!121:121)*DQ$108 -> 
D124: Revenues
E125: January | F125: Euro | I125: =SUM(K125:DQ125) ->  | K125: =K111*K31 ->  | L125: =L111*L31 ->  | AQ125: =AQ111*AQ31 ->  | BW125: =BW111*BW31 ->  | DC125: =DC111*DC31 -> 
E126: February | F126: Euro | I126: =SUM(K126:DQ126) ->  | K126: =K112*K32 ->  | AQ126: =AQ112*AQ32 ->  | BW126: =BW112*BW32 ->  | DC126: =DC112*DC32 -> 
E127: March | F127: Euro | K127: =K113*K33 ->  | AQ127: =AQ113*AQ33 ->  | BW127: =BW113*BW33 ->  | DC127: =DC113*DC33 -> 
E128: April | F128: Euro | K128: =K114*K34 ->  | AQ128: =AQ114*AQ34 ->  | BW128: =BW114*BW34 ->  | DC128: =DC114*DC34 -> 
E129: May | F129: Euro | K129: =K115*K35 ->  | AQ129: =AQ115*AQ35 ->  | BW129: =BW115*BW35 ->  | DC129: =DC115*DC35 -> 
E130: June | F130: Euro | K130: =K116*K36 ->  | AQ130: =AQ116*AQ36 ->  | BW130: =BW116*BW36 ->  | DC130: =DC116*DC36 -> 
E131: July | F131: Euro | K131: =K117*K37 ->  | AQ131: =AQ117*AQ37 ->  | BW131: =BW117*BW37 ->  | DC131: =DC117*DC37 -> 
E132: August | F132: Euro | K132: =K118*K38 ->  | AQ132: =AQ118*AQ38 ->  | BW132: =BW118*BW38 ->  | DC132: =DC118*DC38 -> 
E133: September | F133: Euro | K133: =K119*K39 ->  | AQ133: =AQ119*AQ39 ->  | BW133: =BW119*BW39 ->  | DC133: =DC119*DC39 -> 
E134: October | F134: Euro | K134: =K120*K40 ->  | AQ134: =AQ120*AQ40 ->  | BW134: =BW120*BW40 ->  | DC134: =DC120*DC40 -> 
E135: November | F135: Euro | K135: =K121*K41 ->  | AQ135: =AQ121*AQ41 ->  | BW135: =BW121*BW41 ->  | DC135: =DC121*DC41 -> 
E136: December | F136: Euro | K136: =K122*K42 ->  | AQ136: =AQ122*AQ42 ->  | BW136: =BW122*BW42 ->  | DC136: =DC122*DC42 -> 
E137: Total | F137: Euro | I137: =SUM(K137:DQ137) ->  | K137: =SUM(K125:K136) ->  | L137: =SUM(L125:L136) ->  | BX137: =SUM(BX125:BX136) -> 
E139: Revenues Applied | F139: Euro | G139: =Assumptions!F104 -> FALSE | I139: Test
B141: Free Cash Flow and Pre-tax Project IRR
D142: EBITDA | F142: Euro
D143: Total Capital Expenditures | F143: Euro
D144: Project Cash Flow Pre-tax | F144: Euro
D146: Pre-tax Project IRR | F146: %
B148: Taxes and Depreciation
D149: Tax Depreciation Rate | F149: % | G149: =Assumptions!F124 -> 10 | H149: =1/G149 -> 0.1 | I149: =SUM(K149:DQ149) -> 0 | K149: =$H$149*K10/12*K5 -> 0 | L149: =$H$149*L10/12*L5 -> 0 | M149: 0 | N149: 0 | O149: 0 | P149: 0 | Q149: 0 | R149: 0 | S149: 0 | T149: 0 | U149: 0 | V149: 0 | W149: 0 | X149: 0 | Y149: 0 | Z149: 0 | AA149: 0 | AB149: 0 | AC149: 0 | AD149: 0 | AE149: 0 | AF149: 0 | AG149: 0 | AH149: 0 | AI149: 0 | AJ149: 0 | AK149: 0 | AL149: 0 | AM149: 0 | AN149: 0 | AO149: 0 | AP149: 0 | AQ149: 0 | AR149: 0 | AS149: 0 | AT149: 0 | AU149: 0 | AV149: 0 | AW149: 0 | AX149: 0 | AY149: 0 | AZ149: 0 | BA149: 0 | BB149: 0 | BC149: 0 | BD149: 0 | BE149: 0 | BF149: 0 | BG149: 0 | BH149: 0 | BI149: 0 | BJ149: 0 | BK149: 0 | BL149: 0 | BM149: 0 | BN149: 0 | BO149: 0 | BP149: 0 | BQ149: 0 | BR149: 0 | BS149: 0 | BT149: 0 | BU149: 0 | BV149: 0 | BW149: 0 | BX149: =$H$149*BX10/12*BX5 -> 0 | BY149: 0 | BZ149: 0 | CA149: 0 | CB149: 0 | CC149: 0 | CD149: 0 | CE149: 0 | CF149: 0 | CG149: 0 | CH149: 0 | CI149: 0 | CJ149: 0 | CK149: 0 | CL149: 0 | CM149: 0 | CN149: 0 | CO149: 0 | CP149: 0 | CQ149: 0 | CR149: 0 | CS149: 0 | CT149: 0 | CU149: 0 | CV149: 0 | CW149: 0 | CX149: 0 | CY149: 0 | CZ149: 0 | DA149: 0 | DB149: 0 | DC149: 0 | DD149: 0 | DE149: 0 | DF149: 0 | DG149: 0 | DH149: 0 | DI149: 0 | DJ149: 0 | DK149: 0 | DL149: 0 | DM149: 0 | DN149: 0 | DO149: 0 | DP149: 0 | DQ149: 0
D150: Underpreciated Amount | F150: % | J150: 1 | K150: =J150-J149 -> 1 | L150: =K150-K149 -> 1 | M150: 1 | N150: 1 | O150: 1 | P150: 1 | Q150: 1 | R150: 1 | S150: 1 | T150: 1 | U150: 1 | V150: 1 | W150: 1 | X150: 1 | Y150: 1 | Z150: 1 | AA150: 1 | AB150: 1 | AC150: 1 | AD150: 1 | AE150: 1 | AF150: 1 | AG150: 1 | AH150: 1 | AI150: 1 | AJ150: 1 | AK150: 1 | AL150: 1 | AM150: 1 | AN150: 1 | AO150: 1 | AP150: 1 | AQ150: 1 | AR150: 1 | AS150: 1 | AT150: 1 | AU150: 1 | AV150: 1 | AW150: 1 | AX150: 1 | AY150: 1 | AZ150: 1 | BA150: 1 | BB150: 1 | BC150: 1 | BD150: 1 | BE150: 1 | BF150: 1 | BG150: 1 | BH150: 1 | BI150: 1 | BJ150: 1 | BK150: 1 | BL150: 1 | BM150: 1 | BN150: 1 | BO150: 1 | BP150: 1 | BQ150: 1 | BR150: 1 | BS150: 1 | BT150: 1 | BU150: 1 | BV150: 1 | BW150: 1 | BX150: =BW150-BW149 -> 1 | BY150: 1 | BZ150: 1 | CA150: 1 | CB150: 1 | CC150: 1 | CD150: 1 | CE150: 1 | CF150: 1 | CG150: 1 | CH150: 1 | CI150: 1 | CJ150: 1 | CK150: 1 | CL150: 1 | CM150: 1 | CN150: 1 | CO150: 1 | CP150: 1 | CQ150: 1 | CR150: 1 | CS150: 1 | CT150: 1 | CU150: 1 | CV150: 1 | CW150: 1 | CX150: 1 | CY150: 1 | CZ150: 1 | DA150: 1 | DB150: 1 | DC150: 1 | DD150: 1 | DE150: 1 | DF150: 1 | DG150: 1 | DH150: 1 | DI150: 1 | DJ150: 1 | DK150: 1 | DL150: 1 | DM150: 1 | DN150: 1 | DO150: 1 | DP150: 1 | DQ150: 1
D151: Adjusted Depreciation | F151: % | I151: =SUM(K151:DQ151) -> 0 | K151: =MAX(MIN(K149,K150),0) -> 0 | L151: =MAX(MIN(L149,L150),0) -> 0 | M151: 0 | N151: 0 | O151: 0 | P151: 0 | Q151: 0 | R151: 0 | S151: 0 | T151: 0 | U151: 0 | V151: 0 | W151: 0 | X151: 0 | Y151: 0 | Z151: 0 | AA151: 0 | AB151: 0 | AC151: 0 | AD151: 0 | AE151: 0 | AF151: 0 | AG151: 0 | AH151: 0 | AI151: 0 | AJ151: 0 | AK151: 0 | AL151: 0 | AM151: 0 | AN151: 0 | AO151: 0 | AP151: 0 | AQ151: 0 | AR151: 0 | AS151: 0 | AT151: 0 | AU151: 0 | AV151: 0 | AW151: 0 | AX151: 0 | AY151: 0 | AZ151: 0 | BA151: 0 | BB151: 0 | BC151: 0 | BD151: 0 | BE151: 0 | BF151: 0 | BG151: 0 | BH151: 0 | BI151: 0 | BJ151: 0 | BK151: 0 | BL151: 0 | BM151: 0 | BN151: 0 | BO151: 0 | BP151: 0 | BQ151: 0 | BR151: 0 | BS151: 0 | BT151: 0 | BU151: 0 | BV151: 0 | BW151: 0 | BX151: =MAX(MIN(BX149,BX150),0) -> 0 | BY151: 0 | BZ151: 0 | CA151: 0 | CB151: 0 | CC151: 0 | CD151: 0 | CE151: 0 | CF151: 0 | CG151: 0 | CH151: 0 | CI151: 0 | CJ151: 0 | CK151: 0 | CL151: 0 | CM151: 0 | CN151: 0 | CO151: 0 | CP151: 0 | CQ151: 0 | CR151: 0 | CS151: 0 | CT151: 0 | CU151: 0 | CV151: 0 | CW151: 0 | CX151: 0 | CY151: 0 | CZ151: 0 | DA151: 0 | DB151: 0 | DC151: 0 | DD151: 0 | DE151: 0 | DF151: 0 | DG151: 0 | DH151: 0 | DI151: 0 | DJ151: 0 | DK151: 0 | DL151: 0 | DM151: 0 | DN151: 0 | DO151: 0 | DP151: 0 | DQ151: 0
D153: Cost Base for Tax Depreciation | F153: Euro | G153: =I63 -> 6224542.373
D154: Depreciation | F154: Euro
D156: EBIT | F156: Euro
D157: Opening Balance | F157: Euro
D158: Add: NOL Created from Loss | F158: Euro
D159: Less: NOL Used from Gain | F159: Euro
D160: Closing Balance | F160: Euro
D162: Adjusted EBIT | F162: Euro | K162: =K156+K158-K159 -> 0 | L162: =L156+L158-L159 -> 0 | M162: 0 | N162: 0 | O162: 0 | P162: 0 | Q162: 0 | R162: 0 | S162: 0 | T162: 0 | U162: 0 | V162: 0 | W162: 0 | X162: 0 | Y162: 0 | Z162: 0 | AA162: 0 | AB162: 0 | AC162: 0 | AD162: 0 | AE162: 0 | AF162: 0 | AG162: 0 | AH162: 0 | AI162: 0 | AJ162: 0 | AK162: 0 | AL162: 0 | AM162: 0 | AN162: 0 | AO162: 0 | AP162: 0 | AQ162: 0 | AR162: 0 | AS162: 0 | AT162: 0 | AU162: 0 | AV162: 0 | AW162: 0 | AX162: 0 | AY162: 0 | AZ162: 0 | BA162: 0 | BB162: 0 | BC162: 0 | BD162: 0 | BE162: 0 | BF162: 0 | BG162: 0 | BH162: 0 | BI162: 0 | BJ162: 0 | BK162: 0 | BL162: 0 | BM162: 0 | BN162: 0 | BO162: 0 | BP162: 0 | BQ162: 0 | BR162: 0 | BS162: 0 | BT162: 0 | BU162: 0 | BV162: 0 | BW162: 0 | BX162: =BX156+BX158-BX159 -> 0 | BY162: 0 | BZ162: 0 | CA162: 0 | CB162: 0 | CC162: 0 | CD162: 0 | CE162: 0 | CF162: 0 | CG162: 0 | CH162: 0 | CI162: 0 | CJ162: 0 | CK162: 0 | CL162: 0 | CM162: 0 | CN162: 0 | CO162: 0 | CP162: 0 | CQ162: 0 | CR162: 0 | CS162: 0 | CT162: 0 | CU162: 0 | CV162: 0 | CW162: 0 | CX162: 0 | CY162: 0 | CZ162: 0 | DA162: 0 | DB162: 0 | DC162: 0 | DD162: 0 | DE162: 0 | DF162: 0 | DG162: 0 | DH162: 0 | DI162: 0 | DJ162: 0 | DK162: 0 | DL162: 0 | DM162: 0 | DN162: 0 | DO162: 0 | DP162: 0 | DQ162: 0
D163: Taxes on EBIT | F163: Euro | G163: =Assumptions!F125 -> 0.3 | K163: =$G$163*K162 -> 0 | L163: =$G$163*L162 -> 0 | M163: 0 | N163: 0 | O163: 0 | P163: 0 | Q163: 0 | R163: 0 | S163: 0 | T163: 0 | U163: 0 | V163: 0 | W163: 0 | X163: 0 | Y163: 0 | Z163: 0 | AA163: 0 | AB163: 0 | AC163: 0 | AD163: 0 | AE163: 0 | AF163: 0 | AG163: 0 | AH163: 0 | AI163: 0 | AJ163: 0 | AK163: 0 | AL163: 0 | AM163: 0 | AN163: 0 | AO163: 0 | AP163: 0 | AQ163: 0 | AR163: 0 | AS163: 0 | AT163: 0 | AU163: 0 | AV163: 0 | AW163: 0 | AX163: 0 | AY163: 0 | AZ163: 0 | BA163: 0 | BB163: 0 | BC163: 0 | BD163: 0 | BE163: 0 | BF163: 0 | BG163: 0 | BH163: 0 | BI163: 0 | BJ163: 0 | BK163: 0 | BL163: 0 | BM163: 0 | BN163: 0 | BO163: 0 | BP163: 0 | BQ163: 0 | BR163: 0 | BS163: 0 | BT163: 0 | BU163: 0 | BV163: 0 | BW163: 0 | BX163: =$G$163*BX162 -> 0 | BY163: 0 | BZ163: 0 | CA163: 0 | CB163: 0 | CC163: 0 | CD163: 0 | CE163: 0 | CF163: 0 | CG163: 0 | CH163: 0 | CI163: 0 | CJ163: 0 | CK163: 0 | CL163: 0 | CM163: 0 | CN163: 0 | CO163: 0 | CP163: 0 | CQ163: 0 | CR163: 0 | CS163: 0 | CT163: 0 | CU163: 0 | CV163: 0 | CW163: 0 | CX163: 0 | CY163: 0 | CZ163: 0 | DA163: 0 | DB163: 0 | DC163: 0 | DD163: 0 | DE163: 0 | DF163: 0 | DG163: 0 | DH163: 0 | DI163: 0 | DJ163: 0 | DK163: 0 | DL163: 0 | DM163: 0 | DN163: 0 | DO163: 0 | DP163: 0 | DQ163: 0
D164: After Tax Project Free Cash Flow | F164: Euro | K164: =K144-K163 -> 0 | L164: =L144-L163 -> 0 | M164: 0 | N164: 0 | O164: 0 | P164: 0 | Q164: 0 | R164: 0 | S164: 0 | T164: 0 | U164: 0 | V164: 0 | W164: 0 | X164: 0 | Y164: 0 | Z164: 0 | AA164: 0 | AB164: 0 | AC164: 0 | AD164: 0 | AE164: 0 | AF164: 0 | AG164: 0 | AH164: 0 | AI164: 0 | AJ164: 0 | AK164: 0 | AL164: 0 | AM164: 0 | AN164: 0 | AO164: 0 | AP164: 0 | AQ164: 0 | AR164: 0 | AS164: 0 | AT164: 0 | AU164: 0 | AV164: 0 | AW164: 0 | AX164: 0 | AY164: 0 | AZ164: 0 | BA164: 0 | BB164: 0 | BC164: 0 | BD164: 0 | BE164: 0 | BF164: 0 | BG164: 0 | BH164: 0 | BI164: 0 | BJ164: 0 | BK164: 0 | BL164: 0 | BM164: 0 | BN164: 0 | BO164: 0 | BP164: 0 | BQ164: 0 | BR164: 0 | BS164: 0 | BT164: 0 | BU164: 0 | BV164: 0 | BW164: 0 | BX164: =BX144-BX163 -> 0 | BY164: 0 | BZ164: 0 | CA164: 0 | CB164: 0 | CC164: 0 | CD164: 0 | CE164: 0 | CF164: 0 | CG164: 0 | CH164: 0 | CI164: 0 | CJ164: 0 | CK164: 0 | CL164: 0 | CM164: 0 | CN164: 0 | CO164: 0 | CP164: 0 | CQ164: 0 | CR164: 0 | CS164: 0 | CT164: 0 | CU164: 0 | CV164: 0 | CW164: 0 | CX164: 0 | CY164: 0 | CZ164: 0 | DA164: 0 | DB164: 0 | DC164: 0 | DD164: 0 | DE164: 0 | DF164: 0 | DG164: 0 | DH164: 0 | DI164: 0 | DJ164: 0 | DK164: 0 | DL164: 0 | DM164: 0 | DN164: 0 | DO164: 0 | DP164: 0 | DQ164: 0
D166: Project IRR | F166: % | G166: =XIRR(K164:DQ164,K7:DQ7) -> 
B168: LCOE
C169: Discount Rate | F169: % | G169: =Assumptions!F100 -> 0.07 | K169: =(1+$G169)^(K$5/12)-1 -> 0 | L169: =(1+$G169)^(L$5/12)-1 -> 0 | M169: 0 | N169: 0 | O169: 0 | P169: 0 | Q169: 0 | R169: 0 | S169: 0 | T169: 0 | U169: 0 | V169: 0 | W169: 0 | X169: 0 | Y169: 0 | Z169: 0 | AA169: 0 | AB169: 0 | AC169: 0 | AD169: 0 | AE169: 0 | AF169: 0 | AG169: 0 | AH169: 0 | AI169: 0 | AJ169: 0 | AK169: 0 | AL169: 0 | AM169: 0 | AN169: 0 | AO169: 0 | AP169: 0 | AQ169: 0 | AR169: 0 | AS169: 0 | AT169: 0 | AU169: 0 | AV169: 0 | AW169: 0 | AX169: 0 | AY169: 0 | AZ169: 0 | BA169: 0 | BB169: 0 | BC169: 0 | BD169: 0 | BE169: 0 | BF169: 0 | BG169: 0 | BH169: 0 | BI169: 0 | BJ169: 0 | BK169: 0 | BL169: 0 | BM169: 0 | BN169: 0 | BO169: 0 | BP169: 0 | BQ169: 0 | BR169: 0 | BS169: 0 | BT169: 0 | BU169: 0 | BV169: 0 | BW169: 0 | BX169: =(1+$G169)^(BX$5/12)-1 -> 0 | BY169: 0 | BZ169: 0 | CA169: 0 | CB169: 0 | CC169: 0 | CD169: 0 | CE169: 0 | CF169: 0 | CG169: 0 | CH169: 0 | CI169: 0 | CJ169: 0 | CK169: 0 | CL169: 0 | CM169: 0 | CN169: 0 | CO169: 0 | CP169: 0 | CQ169: 0 | CR169: 0 | CS169: 0 | CT169: 0 | CU169: 0 | CV169: 0 | CW169: 0 | CX169: 0 | CY169: 0 | CZ169: 0 | DA169: 0 | DB169: 0 | DC169: 0 | DD169: 0 | DE169: 0 | DF169: 0 | DG169: 0 | DH169: 0 | DI169: 0 | DJ169: 0 | DK169: 0 | DL169: 0 | DM169: 0 | DN169: 0 | DO169: 0 | DP169: 0 | DQ169: 0
C170: Inflation Rate | F170: % | G170: =Assumptions!F101 -> 0.02 | K170: =(1+$G170)^(K$5/12)-1 -> 0 | L170: 0 | M170: 0 | N170: 0 | O170: 0 | P170: 0 | Q170: 0 | R170: 0 | S170: 0 | T170: 0 | U170: 0 | V170: 0 | W170: 0 | X170: 0 | Y170: 0 | Z170: 0 | AA170: 0 | AB170: 0 | AC170: 0 | AD170: 0 | AE170: 0 | AF170: 0 | AG170: 0 | AH170: 0 | AI170: 0 | AJ170: 0 | AK170: 0 | AL170: 0 | AM170: 0 | AN170: 0 | AO170: 0 | AP170: 0 | AQ170: 0 | AR170: 0 | AS170: 0 | AT170: 0 | AU170: 0 | AV170: 0 | AW170: 0 | AX170: 0 | AY170: 0 | AZ170: 0 | BA170: 0 | BB170: 0 | BC170: 0 | BD170: 0 | BE170: 0 | BF170: 0 | BG170: 0 | BH170: 0 | BI170: 0 | BJ170: 0 | BK170: 0 | BL170: 0 | BM170: 0 | BN170: 0 | BO170: 0 | BP170: 0 | BQ170: 0 | BR170: 0 | BS170: 0 | BT170: 0 | BU170: 0 | BV170: 0 | BW170: 0 | BX170: 0 | BY170: 0 | BZ170: 0 | CA170: 0 | CB170: 0 | CC170: 0 | CD170: 0 | CE170: 0 | CF170: 0 | CG170: 0 | CH170: 0 | CI170: 0 | CJ170: 0 | CK170: 0 | CL170: 0 | CM170: 0 | CN170: 0 | CO170: 0 | CP170: 0 | CQ170: 0 | CR170: 0 | CS170: 0 | CT170: 0 | CU170: 0 | CV170: 0 | CW170: 0 | CX170: 0 | CY170: 0 | CZ170: 0 | DA170: 0 | DB170: 0 | DC170: 0 | DD170: 0 | DE170: 0 | DF170: 0 | DG170: 0 | DH170: 0 | DI170: 0 | DJ170: 0 | DK170: 0 | DL170: 0 | DM170: 0 | DN170: 0 | DO170: 0 | DP170: 0 | DQ170: 0
C171: Real Discount | F171: % | G171: =(1+G169)/(1+G170)-1 -> 0.04901960784 | K171: 0 | L171: 0 | M171: 0 | N171: 0 | O171: 0 | P171: 0 | Q171: 0 | R171: 0 | S171: 0 | T171: 0 | U171: 0 | V171: 0 | W171: 0 | X171: 0 | Y171: 0 | Z171: 0 | AA171: 0 | AB171: 0 | AC171: 0 | AD171: 0 | AE171: 0 | AF171: 0 | AG171: 0 | AH171: 0 | AI171: 0 | AJ171: 0 | AK171: 0 | AL171: 0 | AM171: 0 | AN171: 0 | AO171: 0 | AP171: 0 | AQ171: 0 | AR171: 0 | AS171: 0 | AT171: 0 | AU171: 0 | AV171: 0 | AW171: 0 | AX171: 0 | AY171: 0 | AZ171: 0 | BA171: 0 | BB171: 0 | BC171: 0 | BD171: 0 | BE171: 0 | BF171: 0 | BG171: 0 | BH171: 0 | BI171: 0 | BJ171: 0 | BK171: 0 | BL171: 0 | BM171: 0 | BN171: 0 | BO171: 0 | BP171: 0 | BQ171: 0 | BR171: 0 | BS171: 0 | BT171: 0 | BU171: 0 | BV171: 0 | BW171: 0 | BX171: 0 | BY171: 0 | BZ171: 0 | CA171: 0 | CB171: 0 | CC171: 0 | CD171: 0 | CE171: 0 | CF171: 0 | CG171: 0 | CH171: 0 | CI171: 0 | CJ171: 0 | CK171: 0 | CL171: 0 | CM171: 0 | CN171: 0 | CO171: 0 | CP171: 0 | CQ171: 0 | CR171: 0 | CS171: 0 | CT171: 0 | CU171: 0 | CV171: 0 | CW171: 0 | CX171: 0 | CY171: 0 | CZ171: 0 | DA171: 0 | DB171: 0 | DC171: 0 | DD171: 0 | DE171: 0 | DF171: 0 | DG171: 0 | DH171: 0 | DI171: 0 | DJ171: 0 | DK171: 0 | DL171: 0 | DM171: 0 | DN171: 0 | DO171: 0 | DP171: 0 | DQ171: 0
C173: Nominal Factor | F173: Index | G173: =G169 -> 0.07 | J173: 1 | K173: =J173*(1+K169) -> 1 | L173: =K173*(1+L169) -> 1 | M173: 1 | N173: 1 | O173: 1 | P173: 1 | Q173: 1 | R173: 1 | S173: 1 | T173: 1 | U173: 1 | V173: 1 | W173: 1 | X173: 1 | Y173: 1 | Z173: 1 | AA173: 1 | AB173: 1 | AC173: 1 | AD173: 1 | AE173: 1 | AF173: 1 | AG173: 1 | AH173: 1 | AI173: 1 | AJ173: 1 | AK173: 1 | AL173: 1 | AM173: 1 | AN173: 1 | AO173: 1 | AP173: 1 | AQ173: 1 | AR173: 1 | AS173: 1 | AT173: 1 | AU173: 1 | AV173: 1 | AW173: 1 | AX173: 1 | AY173: 1 | AZ173: 1 | BA173: 1 | BB173: 1 | BC173: 1 | BD173: 1 | BE173: 1 | BF173: 1 | BG173: 1 | BH173: 1 | BI173: 1 | BJ173: 1 | BK173: 1 | BL173: 1 | BM173: 1 | BN173: 1 | BO173: 1 | BP173: 1 | BQ173: 1 | BR173: 1 | BS173: 1 | BT173: 1 | BU173: 1 | BV173: 1 | BW173: 1 | BX173: =BW173*(1+BX169) -> 1 | BY173: 1 | BZ173: 1 | CA173: 1 | CB173: 1 | CC173: 1 | CD173: 1 | CE173: 1 | CF173: 1 | CG173: 1 | CH173: 1 | CI173: 1 | CJ173: 1 | CK173: 1 | CL173: 1 | CM173: 1 | CN173: 1 | CO173: 1 | CP173: 1 | CQ173: 1 | CR173: 1 | CS173: 1 | CT173: 1 | CU173: 1 | CV173: 1 | CW173: 1 | CX173: 1 | CY173: 1 | CZ173: 1 | DA173: 1 | DB173: 1 | DC173: 1 | DD173: 1 | DE173: 1 | DF173: 1 | DG173: 1 | DH173: 1 | DI173: 1 | DJ173: 1 | DK173: 1 | DL173: 1 | DM173: 1 | DN173: 1 | DO173: 1 | DP173: 1 | DQ173: 1
C174: Real Discount Factor | F174: Index | G174: =G171 -> 0.04901960784 | J174: 1 | K174: =J174*(1+K171) -> 1 | L174: =K174*(1+L171) -> 1 | M174: 1 | N174: 1 | O174: 1 | P174: 1 | Q174: 1 | R174: 1 | S174: 1 | T174: 1 | U174: 1 | V174: 1 | W174: 1 | X174: 1 | Y174: 1 | Z174: 1 | AA174: 1 | AB174: 1 | AC174: 1 | AD174: 1 | AE174: 1 | AF174: 1 | AG174: 1 | AH174: 1 | AI174: 1 | AJ174: 1 | AK174: 1 | AL174: 1 | AM174: 1 | AN174: 1 | AO174: 1 | AP174: 1 | AQ174: 1 | AR174: 1 | AS174: 1 | AT174: 1 | AU174: 1 | AV174: 1 | AW174: 1 | AX174: 1 | AY174: 1 | AZ174: 1 | BA174: 1 | BB174: 1 | BC174: 1 | BD174: 1 | BE174: 1 | BF174: 1 | BG174: 1 | BH174: 1 | BI174: 1 | BJ174: 1 | BK174: 1 | BL174: 1 | BM174: 1 | BN174: 1 | BO174: 1 | BP174: 1 | BQ174: 1 | BR174: 1 | BS174: 1 | BT174: 1 | BU174: 1 | BV174: 1 | BW174: 1 | BX174: =BW174*(1+BX171) -> 1 | BY174: 1 | BZ174: 1 | CA174: 1 | CB174: 1 | CC174: 1 | CD174: 1 | CE174: 1 | CF174: 1 | CG174: 1 | CH174: 1 | CI174: 1 | CJ174: 1 | CK174: 1 | CL174: 1 | CM174: 1 | CN174: 1 | CO174: 1 | CP174: 1 | CQ174: 1 | CR174: 1 | CS174: 1 | CT174: 1 | CU174: 1 | CV174: 1 | CW174: 1 | CX174: 1 | CY174: 1 | CZ174: 1 | DA174: 1 | DB174: 1 | DC174: 1 | DD174: 1 | DE174: 1 | DF174: 1 | DG174: 1 | DH174: 1 | DI174: 1 | DJ174: 1 | DK174: 1 | DL174: 1 | DM174: 1 | DN174: 1 | DO174: 1 | DP174: 1 | DQ174: 1
C176: PV of Revenues | G176: =SUMPRODUCT(K139:DQ139/K173:DQ173) -> 0
C177: PV of Generation | G177: =SUMPRODUCT(K43:DQ43/K174:DQ174) -> 0
C178: Real LCOE | F178: Euro/MWH | G178: =G176/G177 -> 
D187: Crisis Dates
E188: Crisis Start
E189: Crisis End
E190: January | F190: Flag | G190: =G18 -> 1 | H190: =Assumptions!$F$105 -> 2020-03-01 | I190: =Assumptions!$F$106 -> 2022-03-01 | K190: =find_month_test(K$6,K$7,$G190,$H190,$I190) -> 2015-01-01 | L190: =find_month_test(L$6,L$7,$G190,$H190,$I190) -> 1900-01-02
E191: February | F191: Flag | G191: 2 | H191: =Assumptions!$F$105 -> 2020-03-01 | I191: =Assumptions!$F$106 -> 2022-03-01
E192: March | F192: Flag | G192: 3 | H192: =Assumptions!$F$105 -> 2020-03-01 | I192: =Assumptions!$F$106 -> 2022-03-01
E193: April | F193: Flag | G193: 4 | H193: =Assumptions!$F$105 -> 2020-03-01 | I193: =Assumptions!$F$106 -> 2022-03-01
E194: May | F194: Flag | G194: 5 | H194: =Assumptions!$F$105 -> 2020-03-01 | I194: =Assumptions!$F$106 -> 2022-03-01
E195: June | F195: Flag | G195: 6 | H195: =Assumptions!$F$105 -> 2020-03-01 | I195: =Assumptions!$F$106 -> 2022-03-01
E196: July | F196: Flag | G196: 7 | H196: =Assumptions!$F$105 -> 2020-03-01 | I196: =Assumptions!$F$106 -> 2022-03-01
E197: August | F197: Flag | G197: 8 | H197: =Assumptions!$F$105 -> 2020-03-01 | I197: =Assumptions!$F$106 -> 2022-03-01
E198: September | F198: Flag | G198: 9 | H198: =Assumptions!$F$105 -> 2020-03-01 | I198: =Assumptions!$F$106 -> 2022-03-01
E199: October | F199: Flag | G199: 10 | H199: =Assumptions!$F$105 -> 2020-03-01 | I199: =Assumptions!$F$106 -> 2022-03-01
E200: November | F200: Flag | G200: 11 | H200: =Assumptions!$F$105 -> 2020-03-01 | I200: =Assumptions!$F$106 -> 2022-03-01
E201: December | F201: Flag | G201: 12 | H201: =Assumptions!$F$105 -> 2020-03-01 | I201: =Assumptions!$F$106 -> 2022-03-01

Sheet Financing Model
F1: Unit | G1: Driver | H1: Driver | I1: Sum | J1: Start
B2: Timeline
C3: Period | F3: Period | J3: 0 | K3: 1 | L3: 2 | M3: 3 | N3: 4 | O3: 5 | P3: 6 | Q3: 7 | R3: 8 | S3: 9 | T3: 10 | U3: 11 | V3: 12 | W3: 13 | X3: 14 | Y3: 15 | Z3: 16 | AA3: 17 | AB3: 18 | AC3: 19 | AD3: 20 | AE3: 21 | AF3: 22 | AG3: 23 | AH3: 24 | AI3: 25 | AJ3: 26 | AK3: 27 | AL3: 28 | AM3: 29 | AN3: 30 | AO3: 31 | AP3: 32 | AQ3: 33 | AR3: 34 | AS3: 35 | AT3: 36 | AU3: 37 | AV3: 38 | AW3: 39 | AX3: 40 | AY3: 41 | AZ3: 42 | BA3: 43 | BB3: 44 | BC3: 45 | BD3: 46 | BE3: 47 | BF3: 48 | BG3: 49 | BH3: 50 | BI3: 51 | BJ3: 52 | BK3: 53 | BL3: 54 | BM3: 55 | BN3: 56 | BO3: 57 | BP3: 58 | BQ3: 59 | BR3: 60 | BS3: 60 | BT3: 60 | BU3: 60 | BV3: 60 | BW3: 60 | BX3: 60 | BY3: 60 | BZ3: 60 | CA3: 60 | CB3: 60 | CC3: 60 | CD3: 60 | CE3: 60 | CF3: 60 | CG3: 60 | CH3: 60 | CI3: 60 | CJ3: 60 | CK3: 60 | CL3: 60 | CM3: 60 | CN3: 60 | CO3: 60 | CP3: 60 | CQ3: 60 | CR3: 60 | CS3: 60 | CT3: 60 | CU3: 60 | CV3: 60 | CW3: 60 | CX3: 60 | CY3: 60 | CZ3: 60 | DA3: 60 | DB3: 60 | DC3: 60 | DD3: 60 | DE3: 60 | DF3: 60 | DG3: 60 | DH3: 60 | DI3: 60 | DJ3: 60 | DK3: 60 | DL3: 60 | DM3: 60 | DN3: 60 | DO3: 60 | DP3: 60 | DQ3: 60
C4: Pre-COD/Post COD | F4: Flag | G4: =Assumptions!$F$12 -> 9 | K4: =K3<=$G$4 -> TRUE | L4: =L3<=$G$4 -> TRUE | M4: TRUE | N4: TRUE | O4: TRUE | P4: TRUE | Q4: TRUE | R4: TRUE | S4: TRUE | T4: FALSE | U4: FALSE | V4: FALSE | W4: FALSE | X4: FALSE | Y4: FALSE | Z4: FALSE | AA4: FALSE | AB4: FALSE | AC4: FALSE | AD4: FALSE | AE4: FALSE | AF4: FALSE | AG4: FALSE | AH4: FALSE | AI4: FALSE | AJ4: FALSE | AK4: FALSE | AL4: FALSE | AM4: FALSE | AN4: FALSE | AO4: FALSE | AP4: FALSE | AQ4: FALSE | AR4: FALSE | AS4: FALSE | AT4: FALSE | AU4: FALSE | AV4: FALSE | AW4: FALSE | AX4: FALSE | AY4: FALSE | AZ4: FALSE | BA4: FALSE | BB4: FALSE | BC4: FALSE | BD4: FALSE | BE4: FALSE | BF4: FALSE | BG4: FALSE | BH4: FALSE | BI4: FALSE | BJ4: FALSE | BK4: FALSE | BL4: FALSE | BM4: FALSE | BN4: FALSE | BO4: FALSE | BP4: FALSE | BQ4: FALSE | BR4: FALSE | BS4: FALSE | BT4: FALSE | BU4: FALSE | BV4: FALSE | BW4: FALSE | BX4: =BX3<=$G$4 -> FALSE | BY4: FALSE | BZ4: FALSE | CA4: FALSE | CB4: FALSE | CC4: FALSE | CD4: FALSE | CE4: FALSE | CF4: FALSE | CG4: FALSE | CH4: FALSE | CI4: FALSE | CJ4: FALSE | CK4: FALSE | CL4: FALSE | CM4: FALSE | CN4: FALSE | CO4: FALSE | CP4: FALSE | CQ4: FALSE | CR4: FALSE | CS4: FALSE | CT4: FALSE | CU4: FALSE | CV4: FALSE | CW4: FALSE | CX4: FALSE | CY4: FALSE | CZ4: FALSE | DA4: FALSE | DB4: FALSE | DC4: FALSE | DD4: FALSE | DE4: FALSE | DF4: FALSE | DG4: FALSE | DH4: FALSE | DI4: FALSE | DJ4: FALSE | DK4: FALSE | DL4: FALSE | DM4: FALSE | DN4: FALSE | DO4: FALSE | DP4: FALSE | DQ4: FALSE
C5: Months in Period | F5: Months | G5: =Assumptions!$F$3 -> 1 | H5: =Assumptions!$F$4 -> 6 | K5: =IF(K4,$G$5,$H$5) -> 1 | L5: 1 | M5: 1 | N5: 1 | O5: 1 | P5: 1 | Q5: 1 | R5: 1 | S5: 1 | T5: 6 | U5: 6 | V5: 6 | W5: 6 | X5: 6 | Y5: 6 | Z5: 6 | AA5: 6 | AB5: 6 | AC5: 6 | AD5: 6 | AE5: 6 | AF5: 6 | AG5: 6 | AH5: 6 | AI5: 6 | AJ5: 6 | AK5: 6 | AL5: 6 | AM5: 6 | AN5: 6 | AO5: 6 | AP5: 6 | AQ5: =IF(AQ4,$G$5,$H$5) -> 6 | AR5: 6 | AS5: 6 | AT5: 6 | AU5: 6 | AV5: 6 | AW5: 6 | AX5: 6 | AY5: 6 | AZ5: 6 | BA5: 6 | BB5: 6 | BC5: 6 | BD5: 6 | BE5: 6 | BF5: 6 | BG5: 6 | BH5: 6 | BI5: 6 | BJ5: 6 | BK5: 6 | BL5: 6 | BM5: 6 | BN5: 6 | BO5: 6 | BP5: 6 | BQ5: 6 | BR5: 6 | BS5: 6 | BT5: 6 | BU5: 6 | BV5: 6 | BW5: =IF(BW4,$G$5,$H$5) -> 6 | BX5: 6 | BY5: 6 | BZ5: 6 | CA5: 6 | CB5: 6 | CC5: 6 | CD5: 6 | CE5: 6 | CF5: 6 | CG5: 6 | CH5: 6 | CI5: 6 | CJ5: 6 | CK5: 6 | CL5: 6 | CM5: 6 | CN5: 6 | CO5: 6 | CP5: 6 | CQ5: 6 | CR5: 6 | CS5: 6 | CT5: 6 | CU5: 6 | CV5: 6 | CW5: 6 | CX5: 6 | CY5: 6 | CZ5: 6 | DA5: =IF(DA4,$G$5,$H$5) -> 6 | DB5: 6 | DC5: 6 | DD5: 6 | DE5: 6 | DF5: 6 | DG5: 6 | DH5: 6 | DI5: 6 | DJ5: 6 | DK5: 6 | DL5: 6 | DM5: 6 | DN5: 6 | DO5: 6 | DP5: 6 | DQ5: 6
C6: Start of Period | F6: Date | K6: =J7+1 -> 2015-06-01 | L6: =K7+1 -> 2015-07-01 | M6: 2015-08-01 | N6: 2015-09-01 | O6: 2015-10-01 | P6: 2015-11-01 | Q6: 2015-12-01 | R6: 2016-01-01 | S6: 2016-02-01 | T6: 2016-03-01 | U6: 2016-09-01 | V6: 2017-03-01 | W6: 2017-09-01 | X6: 2018-03-01 | Y6: 2018-09-01 | Z6: 2019-03-01 | AA6: 2019-09-01 | AB6: 2020-03-01 | AC6: 2020-09-01 | AD6: 2021-03-01 | AE6: 2021-09-01 | AF6: 2022-03-01 | AG6: 2022-09-01 | AH6: 2023-03-01 | AI6: 2023-09-01 | AJ6: 2024-03-01 | AK6: 2024-09-01 | AL6: 2025-03-01 | AM6: 2025-09-01 | AN6: 2026-03-01 | AO6: 2026-09-01 | AP6: 2027-03-01 | AQ6: 2027-09-01 | AR6: 2028-03-01 | AS6: 2028-09-01 | AT6: 2029-03-01 | AU6: 2029-09-01 | AV6: 2030-03-01 | AW6: 2030-09-01 | AX6: 2031-03-01 | AY6: 2031-09-01 | AZ6: 2032-03-01 | BA6: 2032-09-01 | BB6: 2033-03-01 | BC6: 2033-09-01 | BD6: 2034-03-01 | BE6: 2034-09-01 | BF6: 2035-03-01 | BG6: 2035-09-01 | BH6: 2036-03-01 | BI6: 2036-09-01 | BJ6: 2037-03-01 | BK6: 2037-09-01 | BL6: 2038-03-01 | BM6: 2038-09-01 | BN6: 2039-03-01 | BO6: 2039-09-01 | BP6: 2040-03-01 | BQ6: 2040-09-01 | BR6: 2041-03-01 | BS6: 2041-09-01 | BT6: 2042-03-01 | BU6: 2042-09-01 | BV6: 2043-03-01 | BW6: 2043-09-01 | BX6: =BW7+1 -> 2044-03-01 | BY6: 2044-09-01 | BZ6: 2045-03-01 | CA6: 2045-09-01 | CB6: 2046-03-01 | CC6: 2046-09-01 | CD6: 2047-03-01 | CE6: 2047-09-01 | CF6: 2048-03-01 | CG6: 2048-09-01 | CH6: 2049-03-01 | CI6: 2049-09-01 | CJ6: 2050-03-01 | CK6: 2050-09-01 | CL6: 2051-03-01 | CM6: 2051-09-01 | CN6: 2052-03-01 | CO6: 2052-09-01 | CP6: 2053-03-01 | CQ6: 2053-09-01 | CR6: 2054-03-01 | CS6: 2054-09-01 | CT6: 2055-03-01 | CU6: 2055-09-01 | CV6: 2056-03-01 | CW6: 2056-09-01 | CX6: 2057-03-01 | CY6: 2057-09-01 | CZ6: 2058-03-01 | DA6: 2058-09-01 | DB6: 2059-03-01 | DC6: 2059-09-01 | DD6: 2060-03-01 | DE6: 2060-09-01 | DF6: 2061-03-01 | DG6: 2061-09-01 | DH6: 2062-03-01 | DI6: 2062-09-01 | DJ6: 2063-03-01 | DK6: 2063-09-01 | DL6: 2064-03-01 | DM6: 2064-09-01 | DN6: 2065-03-01 | DO6: 2065-09-01 | DP6: 2066-03-01 | DQ6: 2066-09-01
C7: End of Period | F7: Date | J7: =Assumptions!$F$6-1 -> 2015-05-31 | K7: =EDATE(K6,K5)-1 -> 2015-06-30 | L7: =EDATE(L6,L5)-1 -> 2015-07-31 | M7: 2015-08-31 | N7: 2015-09-30 | O7: 2015-10-31 | P7: 2015-11-30 | Q7: 2015-12-31 | R7: 2016-01-31 | S7: 2016-02-29 | T7: 2016-08-31 | U7: 2017-02-28 | V7: 2017-08-31 | W7: 2018-02-28 | X7: 2018-08-31 | Y7: 2019-02-28 | Z7: 2019-08-31 | AA7: 2020-02-29 | AB7: 2020-08-31 | AC7: 2021-02-28 | AD7: 2021-08-31 | AE7: 2022-02-28 | AF7: 2022-08-31 | AG7: 2023-02-28 | AH7: 2023-08-31 | AI7: 2024-02-29 | AJ7: 2024-08-31 | AK7: 2025-02-28 | AL7: 2025-08-31 | AM7: 2026-02-28 | AN7: 2026-08-31 | AO7: 2027-02-28 | AP7: 2027-08-31 | AQ7: 2028-02-29 | AR7: 2028-08-31 | AS7: 2029-02-28 | AT7: 2029-08-31 | AU7: 2030-02-28 | AV7: 2030-08-31 | AW7: 2031-02-28 | AX7: 2031-08-31 | AY7: 2032-02-29 | AZ7: 2032-08-31 | BA7: 2033-02-28 | BB7: 2033-08-31 | BC7: 2034-02-28 | BD7: 2034-08-31 | BE7: 2035-02-28 | BF7: 2035-08-31 | BG7: 2036-02-29 | BH7: 2036-08-31 | BI7: 2037-02-28 | BJ7: 2037-08-31 | BK7: 2038-02-28 | BL7: 2038-08-31 | BM7: 2039-02-28 | BN7: 2039-08-31 | BO7: 2040-02-29 | BP7: 2040-08-31 | BQ7: 2041-02-28 | BR7: 2041-08-31 | BS7: 2042-02-28 | BT7: 2042-08-31 | BU7: 2043-02-28 | BV7: 2043-08-31 | BW7: 2044-02-29 | BX7: =EDATE(BX6,BX5)-1 -> 2044-08-31 | BY7: 2045-02-28 | BZ7: 2045-08-31 | CA7: 2046-02-28 | CB7: 2046-08-31 | CC7: 2047-02-28 | CD7: 2047-08-31 | CE7: 2048-02-29 | CF7: 2048-08-31 | CG7: 2049-02-28 | CH7: 2049-08-31 | CI7: 2050-02-28 | CJ7: 2050-08-31 | CK7: 2051-02-28 | CL7: 2051-08-31 | CM7: 2052-02-29 | CN7: 2052-08-31 | CO7: 2053-02-28 | CP7: 2053-08-31 | CQ7: 2054-02-28 | CR7: 2054-08-31 | CS7: 2055-02-28 | CT7: 2055-08-31 | CU7: 2056-02-29 | CV7: 2056-08-31 | CW7: 2057-02-28 | CX7: 2057-08-31 | CY7: 2058-02-28 | CZ7: 2058-08-31 | DA7: 2059-02-28 | DB7: 2059-08-31 | DC7: 2060-02-29 | DD7: 2060-08-31 | DE7: 2061-02-28 | DF7: 2061-08-31 | DG7: 2062-02-28 | DH7: 2062-08-31 | DI7: 2063-02-28 | DJ7: 2063-08-31 | DK7: 2064-02-29 | DL7: 2064-08-31 | DM7: 2065-02-28 | DN7: 2065-08-31 | DO7: 2066-02-28 | DP7: 2066-08-31 | DQ7: 2067-02-28
C8: Development Period | F8: Flag | G8: =Assumptions!$F$7 -> 4 | I8: =SUM(K8:BR8) -> 4 | K8: =(K3<=$G$8)*1 -> 1 | L8: =(L3<=$G$8)*1 -> 1 | M8: 1 | N8: 1 | O8: 0 | P8: 0 | Q8: 0 | R8: 0 | S8: 0 | T8: 0 | U8: 0 | V8: 0 | W8: 0 | X8: 0 | Y8: 0 | Z8: 0 | AA8: 0 | AB8: 0 | AC8: 0 | AD8: 0 | AE8: 0 | AF8: 0 | AG8: 0 | AH8: 0 | AI8: 0 | AJ8: 0 | AK8: 0 | AL8: 0 | AM8: 0 | AN8: 0 | AO8: 0 | AP8: 0 | AQ8: 0 | AR8: 0 | AS8: 0 | AT8: 0 | AU8: 0 | AV8: 0 | AW8: 0 | AX8: 0 | AY8: 0 | AZ8: 0 | BA8: 0 | BB8: 0 | BC8: 0 | BD8: 0 | BE8: 0 | BF8: 0 | BG8: 0 | BH8: 0 | BI8: 0 | BJ8: 0 | BK8: 0 | BL8: 0 | BM8: 0 | BN8: 0 | BO8: 0 | BP8: 0 | BQ8: 0 | BR8: 0 | BS8: 0 | BT8: 0 | BU8: 0 | BV8: 0 | BW8: 0 | BX8: =(BX3<=$G$8)*1 -> 0 | BY8: 0 | BZ8: 0 | CA8: 0 | CB8: 0 | CC8: 0 | CD8: 0 | CE8: 0 | CF8: 0 | CG8: 0 | CH8: 0 | CI8: 0 | CJ8: 0 | CK8: 0 | CL8: 0 | CM8: 0 | CN8: 0 | CO8: 0 | CP8: 0 | CQ8: 0 | CR8: 0 | CS8: 0 | CT8: 0 | CU8: 0 | CV8: 0 | CW8: 0 | CX8: 0 | CY8: 0 | CZ8: 0 | DA8: 0 | DB8: 0 | DC8: 0 | DD8: 0 | DE8: 0 | DF8: 0 | DG8: 0 | DH8: 0 | DI8: 0 | DJ8: 0 | DK8: 0 | DL8: 0 | DM8: 0 | DN8: 0 | DO8: 0 | DP8: 0 | DQ8: 0
C9: Construction Period | F9: Flag | G9: =Assumptions!$F$9 -> 00:00:00 | H9: =Assumptions!$F$14 -> 1900-05-31 | I9: =SUM(K9:BR9) -> 0 | K9: =AND(K$6>=$G9,K$6<$H9)*1 -> 0 | L9: =AND(L$6>=$G9,L$6<$H9)*1 -> 0 | M9: 0 | N9: 0 | O9: 0 | P9: 0 | Q9: 0 | R9: 0 | S9: 0 | T9: 0 | U9: 0 | V9: 0 | W9: 0 | X9: 0 | Y9: 0 | Z9: 0 | AA9: 0 | AB9: 0 | AC9: 0 | AD9: 0 | AE9: 0 | AF9: 0 | AG9: 0 | AH9: 0 | AI9: 0 | AJ9: 0 | AK9: 0 | AL9: 0 | AM9: 0 | AN9: 0 | AO9: 0 | AP9: 0 | AQ9: 0 | AR9: 0 | AS9: 0 | AT9: 0 | AU9: 0 | AV9: 0 | AW9: 0 | AX9: 0 | AY9: 0 | AZ9: 0 | BA9: 0 | BB9: 0 | BC9: 0 | BD9: 0 | BE9: 0 | BF9: 0 | BG9: 0 | BH9: 0 | BI9: 0 | BJ9: 0 | BK9: 0 | BL9: 0 | BM9: 0 | BN9: 0 | BO9: 0 | BP9: 0 | BQ9: 0 | BR9: 0 | BS9: 0 | BT9: =AND(BT$6>=$G9,BT$6<$H9)*1 -> 0 | BU9: 0 | BV9: 0 | BW9: 0 | BX9: 0 | BY9: 0 | BZ9: 0 | CA9: 0 | CB9: 0 | CC9: 0 | CD9: 0 | CE9: 0 | CF9: 0 | CG9: 0 | CH9: 0 | CI9: 0 | CJ9: 0 | CK9: 0 | CL9: 0 | CM9: 0 | CN9: 0 | CO9: =AND(CO$6>=$G9,CO$6<$H9)*1 -> 0 | CP9: 0 | CQ9: 0 | CR9: 0 | CS9: 0 | CT9: 0 | CU9: 0 | CV9: 0 | CW9: 0 | CX9: 0 | CY9: 0 | CZ9: 0 | DA9: 0 | DB9: 0 | DC9: 0 | DD9: 0 | DE9: =AND(DE$6>=$G9,DE$6<$H9)*1 -> 0 | DF9: 0 | DG9: 0 | DH9: 0 | DI9: 0 | DJ9: 0 | DK9: 0 | DL9: 0 | DM9: 0 | DN9: 0 | DO9: 0 | DP9: 0 | DQ9: 0
C10: Operating Period | F10: Flag | G10: =Assumptions!$F$14 -> 1900-05-31 | H10: =Assumptions!$F$17 -> 00:00:00 | I10: 0 | K10: =AND(K$6>=$G10,K$6<$H10)*1 -> 0 | L10: 0 | M10: 0 | N10: 0 | O10: 0 | P10: 0 | Q10: 0 | R10: 0 | S10: 0 | T10: 0 | U10: 0 | V10: 0 | W10: 0 | X10: 0 | Y10: 0 | Z10: 0 | AA10: 0 | AB10: 0 | AC10: 0 | AD10: 0 | AE10: 0 | AF10: 0 | AG10: 0 | AH10: 0 | AI10: 0 | AJ10: 0 | AK10: 0 | AL10: 0 | AM10: 0 | AN10: 0 | AO10: 0 | AP10: 0 | AQ10: 0 | AR10: 0 | AS10: 0 | AT10: 0 | AU10: 0 | AV10: 0 | AW10: 0 | AX10: 0 | AY10: 0 | AZ10: 0 | BA10: 0 | BB10: 0 | BC10: 0 | BD10: 0 | BE10: 0 | BF10: 0 | BG10: 0 | BH10: 0 | BI10: 0 | BJ10: 0 | BK10: 0 | BL10: 0 | BM10: 0 | BN10: 0 | BO10: 0 | BP10: 0 | BQ10: 0 | BR10: 0 | BS10: 0 | BT10: 0 | BU10: 0 | BV10: 0 | BW10: 0 | BX10: 0 | BY10: 0 | BZ10: 0 | CA10: 0 | CB10: 0 | CC10: 0 | CD10: 0 | CE10: 0 | CF10: 0 | CG10: 0 | CH10: 0 | CI10: 0 | CJ10: 0 | CK10: 0 | CL10: 0 | CM10: 0 | CN10: 0 | CO10: 0 | CP10: 0 | CQ10: 0 | CR10: 0 | CS10: 0 | CT10: 0 | CU10: 0 | CV10: 0 | CW10: 0 | CX10: 0 | CY10: 0 | CZ10: 0 | DA10: 0 | DB10: 0 | DC10: 0 | DD10: 0 | DE10: 0 | DF10: 0 | DG10: 0 | DH10: 0 | DI10: 0 | DJ10: 0 | DK10: 0 | DL10: 0 | DM10: 0 | DN10: 0 | DO10: 0 | DP10: 0 | DQ10: 0
B12: CFADS and Debt Sizing from Sculpting
C13: EBITDA | K13: ='Operating Model'!K142 -> 0 | L13: ='Operating Model'!L142 -> 0 | M13: ='Operating Model'!M142 -> 0 | N13: ='Operating Model'!N142 -> 0 | O13: ='Operating Model'!O142 -> 0 | P13: ='Operating Model'!P142 -> 0 | Q13: ='Operating Model'!Q142 -> 0 | R13: ='Operating Model'!R142 -> 0 | S13: ='Operating Model'!S142 -> 0 | T13: ='Operating Model'!T142 -> 0 | U13: ='Operating Model'!U142 -> 0 | V13: ='Operating Model'!V142 -> 0 | W13: ='Operating Model'!W142 -> 0 | X13: ='Operating Model'!X142 -> 0 | Y13: ='Operating Model'!Y142 -> 0 | Z13: ='Operating Model'!Z142 -> 0 | AA13: ='Operating Model'!AA142 -> 0 | AB13: ='Operating Model'!AB142 -> 0 | AC13: ='Operating Model'!AC142 -> 0 | AD13: ='Operating Model'!AD142 -> 0 | AE13: ='Operating Model'!AE142 -> 0 | AF13: ='Operating Model'!AF142 -> 0 | AG13: ='Operating Model'!AG142 -> 0 | AH13: ='Operating Model'!AH142 -> 0 | AI13: ='Operating Model'!AI142 -> 0 | AJ13: ='Operating Model'!AJ142 -> 0 | AK13: ='Operating Model'!AK142 -> 0 | AL13: ='Operating Model'!AL142 -> 0 | AM13: ='Operating Model'!AM142 -> 0 | AN13: ='Operating Model'!AN142 -> 0 | AO13: ='Operating Model'!AO142 -> 0 | AP13: ='Operating Model'!AP142 -> 0 | AQ13: ='Operating Model'!AQ142 -> 0 | AR13: ='Operating Model'!AR142 -> 0 | AS13: ='Operating Model'!AS142 -> 0 | AT13: ='Operating Model'!AT142 -> 0 | AU13: ='Operating Model'!AU142 -> 0 | AV13: ='Operating Model'!AV142 -> 0 | AW13: ='Operating Model'!AW142 -> 0 | AX13: ='Operating Model'!AX142 -> 0 | AY13: ='Operating Model'!AY142 -> 0 | AZ13: ='Operating Model'!AZ142 -> 0 | BA13: ='Operating Model'!BA142 -> 0 | BB13: ='Operating Model'!BB142 -> 0 | BC13: ='Operating Model'!BC142 -> 0 | BD13: ='Operating Model'!BD142 -> 0 | BE13: ='Operating Model'!BE142 -> 0 | BF13: ='Operating Model'!BF142 -> 0 | BG13: ='Operating Model'!BG142 -> 0 | BH13: ='Operating Model'!BH142 -> 0 | BI13: ='Operating Model'!BI142 -> 0 | BJ13: ='Operating Model'!BJ142 -> 0 | BK13: ='Operating Model'!BK142 -> 0 | BL13: ='Operating Model'!BL142 -> 0 | BM13: ='Operating Model'!BM142 -> 0 | BN13: ='Operating Model'!BN142 -> 0 | BO13: ='Operating Model'!BO142 -> 0 | BP13: ='Operating Model'!BP142 -> 0 | BQ13: ='Operating Model'!BQ142 -> 0 | BR13: ='Operating Model'!BR142 -> 0 | BS13: ='Operating Model'!BS142 -> 0 | BT13: ='Operating Model'!BT142 -> 0 | BU13: ='Operating Model'!BU142 -> 0 | BV13: ='Operating Model'!BV142 -> 0 | BW13: ='Operating Model'!BW142 -> 0 | BX13: ='Operating Model'!BX142 -> 0 | BY13: ='Operating Model'!BY142 -> 0 | BZ13: ='Operating Model'!BZ142 -> 0 | CA13: ='Operating Model'!CA142 -> 0 | CB13: ='Operating Model'!CB142 -> 0 | CC13: ='Operating Model'!CC142 -> 0 | CD13: ='Operating Model'!CD142 -> 0 | CE13: ='Operating Model'!CE142 -> 0 | CF13: ='Operating Model'!CF142 -> 0 | CG13: ='Operating Model'!CG142 -> 0 | CH13: ='Operating Model'!CH142 -> 0 | CI13: ='Operating Model'!CI142 -> 0 | CJ13: ='Operating Model'!CJ142 -> 0 | CK13: ='Operating Model'!CK142 -> 0 | CL13: ='Operating Model'!CL142 -> 0 | CM13: ='Operating Model'!CM142 -> 0 | CN13: ='Operating Model'!CN142 -> 0 | CO13: ='Operating Model'!CO142 -> 0 | CP13: ='Operating Model'!CP142 -> 0 | CQ13: ='Operating Model'!CQ142 -> 0 | CR13: ='Operating Model'!CR142 -> 0 | CS13: ='Operating Model'!CS142 -> 0 | CT13: ='Operating Model'!CT142 -> 0 | CU13: ='Operating Model'!CU142 -> 0 | CV13: ='Operating Model'!CV142 -> 0 | CW13: ='Operating Model'!CW142 -> 0 | CX13: ='Operating Model'!CX142 -> 0 | CY13: ='Operating Model'!CY142 -> 0 | CZ13: ='Operating Model'!CZ142 -> 0 | DA13: ='Operating Model'!DA142 -> 0 | DB13: ='Operating Model'!DB142 -> 0 | DC13: ='Operating Model'!DC142 -> 0 | DD13: ='Operating Model'!DD142 -> 0 | DE13: ='Operating Model'!DE142 -> 0 | DF13: ='Operating Model'!DF142 -> 0 | DG13: ='Operating Model'!DG142 -> 0 | DH13: ='Operating Model'!DH142 -> 0 | DI13: ='Operating Model'!DI142 -> 0 | DJ13: ='Operating Model'!DJ142 -> 0 | DK13: ='Operating Model'!DK142 -> 0 | DL13: ='Operating Model'!DL142 -> 0 | DM13: ='Operating Model'!DM142 -> 0 | DN13: ='Operating Model'!DN142 -> 0 | DO13: ='Operating Model'!DO142 -> 0 | DP13: ='Operating Model'!DP142 -> 0 | DQ13: ='Operating Model'!DQ142 -> 0
C14: Less: Working Capital Changes
C15: Less: Actual Taxes | K15: ='Operating Model'!K163 -> 0 | L15: ='Operating Model'!L163 -> 0 | M15: ='Operating Model'!M163 -> 0 | N15: ='Operating Model'!N163 -> 0 | O15: ='Operating Model'!O163 -> 0 | P15: ='Operating Model'!P163 -> 0 | Q15: ='Operating Model'!Q163 -> 0 | R15: ='Operating Model'!R163 -> 0 | S15: ='Operating Model'!S163 -> 0 | T15: ='Operating Model'!T163 -> 0 | U15: ='Operating Model'!U163 -> 0 | V15: ='Operating Model'!V163 -> 0 | W15: ='Operating Model'!W163 -> 0 | X15: ='Operating Model'!X163 -> 0 | Y15: ='Operating Model'!Y163 -> 0 | Z15: ='Operating Model'!Z163 -> 0 | AA15: ='Operating Model'!AA163 -> 0 | AB15: ='Operating Model'!AB163 -> 0 | AC15: ='Operating Model'!AC163 -> 0 | AD15: ='Operating Model'!AD163 -> 0 | AE15: ='Operating Model'!AE163 -> 0 | AF15: ='Operating Model'!AF163 -> 0 | AG15: ='Operating Model'!AG163 -> 0 | AH15: ='Operating Model'!AH163 -> 0 | AI15: ='Operating Model'!AI163 -> 0 | AJ15: ='Operating Model'!AJ163 -> 0 | AK15: ='Operating Model'!AK163 -> 0 | AL15: ='Operating Model'!AL163 -> 0 | AM15: ='Operating Model'!AM163 -> 0 | AN15: ='Operating Model'!AN163 -> 0 | AO15: ='Operating Model'!AO163 -> 0 | AP15: ='Operating Model'!AP163 -> 0 | AQ15: ='Operating Model'!AQ163 -> 0 | AR15: ='Operating Model'!AR163 -> 0 | AS15: ='Operating Model'!AS163 -> 0 | AT15: ='Operating Model'!AT163 -> 0 | AU15: ='Operating Model'!AU163 -> 0 | AV15: ='Operating Model'!AV163 -> 0 | AW15: ='Operating Model'!AW163 -> 0 | AX15: ='Operating Model'!AX163 -> 0 | AY15: ='Operating Model'!AY163 -> 0 | AZ15: ='Operating Model'!AZ163 -> 0 | BA15: ='Operating Model'!BA163 -> 0 | BB15: ='Operating Model'!BB163 -> 0 | BC15: ='Operating Model'!BC163 -> 0 | BD15: ='Operating Model'!BD163 -> 0 | BE15: ='Operating Model'!BE163 -> 0 | BF15: ='Operating Model'!BF163 -> 0 | BG15: ='Operating Model'!BG163 -> 0 | BH15: ='Operating Model'!BH163 -> 0 | BI15: ='Operating Model'!BI163 -> 0 | BJ15: ='Operating Model'!BJ163 -> 0 | BK15: ='Operating Model'!BK163 -> 0 | BL15: ='Operating Model'!BL163 -> 0 | BM15: ='Operating Model'!BM163 -> 0 | BN15: ='Operating Model'!BN163 -> 0 | BO15: ='Operating Model'!BO163 -> 0 | BP15: ='Operating Model'!BP163 -> 0 | BQ15: ='Operating Model'!BQ163 -> 0 | BR15: ='Operating Model'!BR163 -> 0 | BS15: ='Operating Model'!BS163 -> 0 | BT15: ='Operating Model'!BT163 -> 0 | BU15: ='Operating Model'!BU163 -> 0 | BV15: ='Operating Model'!BV163 -> 0 | BW15: ='Operating Model'!BW163 -> 0 | BX15: ='Operating Model'!BX163 -> 0 | BY15: ='Operating Model'!BY163 -> 0 | BZ15: ='Operating Model'!BZ163 -> 0 | CA15: ='Operating Model'!CA163 -> 0 | CB15: ='Operating Model'!CB163 -> 0 | CC15: ='Operating Model'!CC163 -> 0 | CD15: ='Operating Model'!CD163 -> 0 | CE15: ='Operating Model'!CE163 -> 0 | CF15: ='Operating Model'!CF163 -> 0 | CG15: ='Operating Model'!CG163 -> 0 | CH15: ='Operating Model'!CH163 -> 0 | CI15: ='Operating Model'!CI163 -> 0 | CJ15: ='Operating Model'!CJ163 -> 0 | CK15: ='Operating Model'!CK163 -> 0 | CL15: ='Operating Model'!CL163 -> 0 | CM15: ='Operating Model'!CM163 -> 0 | CN15: ='Operating Model'!CN163 -> 0 | CO15: ='Operating Model'!CO163 -> 0 | CP15: ='Operating Model'!CP163 -> 0 | CQ15: ='Operating Model'!CQ163 -> 0 | CR15: ='Operating Model'!CR163 -> 0 | CS15: ='Operating Model'!CS163 -> 0 | CT15: ='Operating Model'!CT163 -> 0 | CU15: ='Operating Model'!CU163 -> 0 | CV15: ='Operating Model'!CV163 -> 0 | CW15: ='Operating Model'!CW163 -> 0 | CX15: ='Operating Model'!CX163 -> 0 | CY15: ='Operating Model'!CY163 -> 0 | CZ15: ='Operating Model'!CZ163 -> 0 | DA15: ='Operating Model'!DA163 -> 0 | DB15: ='Operating Model'!DB163 -> 0 | DC15: ='Operating Model'!DC163 -> 0 | DD15: ='Operating Model'!DD163 -> 0 | DE15: ='Operating Model'!DE163 -> 0 | DF15: ='Operating Model'!DF163 -> 0 | DG15: ='Operating Model'!DG163 -> 0 | DH15: ='Operating Model'!DH163 -> 0 | DI15: ='Operating Model'!DI163 -> 0 | DJ15: ='Operating Model'!DJ163 -> 0 | DK15: ='Operating Model'!DK163 -> 0 | DL15: ='Operating Model'!DL163 -> 0 | DM15: ='Operating Model'!DM163 -> 0 | DN15: ='Operating Model'!DN163 -> 0 | DO15: ='Operating Model'!DO163 -> 0 | DP15: ='Operating Model'!DP163 -> 0 | DQ15: ='Operating Model'!DQ163 -> 0
D16: CFADS
C18: Total Direct Construction | I18: =SUM(K18:DQ18) -> 6224542.373 | K18: ='Operating Model'!K63 -> 18000 | L18: ='Operating Model'!L63 -> 73932.20339 | M18: ='Operating Model'!M63 -> 73932.20339 | N18: ='Operating Model'!N63 -> 73932.20339 | O18: ='Operating Model'!O63 -> 55932.20339 | P18: ='Operating Model'!P63 -> 55932.20339 | Q18: ='Operating Model'!Q63 -> 55932.20339 | R18: ='Operating Model'!R63 -> 55932.20339 | S18: ='Operating Model'!S63 -> 55932.20339 | T18: ='Operating Model'!T63 -> 55932.20339 | U18: ='Operating Model'!U63 -> 55932.20339 | V18: ='Operating Model'!V63 -> 55932.20339 | W18: ='Operating Model'!W63 -> 55932.20339 | X18: ='Operating Model'!X63 -> 55932.20339 | Y18: ='Operating Model'!Y63 -> 55932.20339 | Z18: ='Operating Model'!Z63 -> 55932.20339 | AA18: ='Operating Model'!AA63 -> 55932.20339 | AB18: ='Operating Model'!AB63 -> 55932.20339 | AC18: ='Operating Model'!AC63 -> 55932.20339 | AD18: ='Operating Model'!AD63 -> 55932.20339 | AE18: ='Operating Model'!AE63 -> 55932.20339 | AF18: ='Operating Model'!AF63 -> 55932.20339 | AG18: ='Operating Model'!AG63 -> 55932.20339 | AH18: ='Operating Model'!AH63 -> 55932.20339 | AI18: ='Operating Model'!AI63 -> 55932.20339 | AJ18: ='Operating Model'!AJ63 -> 55932.20339 | AK18: ='Operating Model'!AK63 -> 55932.20339 | AL18: ='Operating Model'!AL63 -> 55932.20339 | AM18: ='Operating Model'!AM63 -> 55932.20339 | AN18: ='Operating Model'!AN63 -> 55932.20339 | AO18: ='Operating Model'!AO63 -> 55932.20339 | AP18: ='Operating Model'!AP63 -> 55932.20339 | AQ18: ='Operating Model'!AQ63 -> 55932.20339 | AR18: ='Operating Model'!AR63 -> 55932.20339 | AS18: ='Operating Model'!AS63 -> 55932.20339 | AT18: ='Operating Model'!AT63 -> 55932.20339 | AU18: ='Operating Model'!AU63 -> 55932.20339 | AV18: ='Operating Model'!AV63 -> 55932.20339 | AW18: ='Operating Model'!AW63 -> 55932.20339 | AX18: ='Operating Model'!AX63 -> 55932.20339 | AY18: ='Operating Model'!AY63 -> 55932.20339 | AZ18: ='Operating Model'!AZ63 -> 55932.20339 | BA18: ='Operating Model'!BA63 -> 55932.20339 | BB18: ='Operating Model'!BB63 -> 55932.20339 | BC18: ='Operating Model'!BC63 -> 55932.20339 | BD18: ='Operating Model'!BD63 -> 55932.20339 | BE18: ='Operating Model'!BE63 -> 55932.20339 | BF18: ='Operating Model'!BF63 -> 55932.20339 | BG18: ='Operating Model'!BG63 -> 55932.20339 | BH18: ='Operating Model'!BH63 -> 55932.20339 | BI18: ='Operating Model'!BI63 -> 55932.20339 | BJ18: ='Operating Model'!BJ63 -> 55932.20339 | BK18: ='Operating Model'!BK63 -> 55932.20339 | BL18: ='Operating Model'!BL63 -> 55932.20339 | BM18: ='Operating Model'!BM63 -> 55932.20339 | BN18: ='Operating Model'!BN63 -> 55932.20339 | BO18: ='Operating Model'!BO63 -> 55932.20339 | BP18: ='Operating Model'!BP63 -> 55932.20339 | BQ18: ='Operating Model'!BQ63 -> 55932.20339 | BR18: ='Operating Model'!BR63 -> 55932.20339 | BS18: ='Operating Model'!BS63 -> 55932.20339 | BT18: ='Operating Model'!BT63 -> 55932.20339 | BU18: ='Operating Model'!BU63 -> 55932.20339 | BV18: ='Operating Model'!BV63 -> 55932.20339 | BW18: ='Operating Model'!BW63 -> 55932.20339 | BX18: ='Operating Model'!BX63 -> 55932.20339 | BY18: ='Operating Model'!BY63 -> 55932.20339 | BZ18: ='Operating Model'!BZ63 -> 55932.20339 | CA18: ='Operating Model'!CA63 -> 55932.20339 | CB18: ='Operating Model'!CB63 -> 55932.20339 | CC18: ='Operating Model'!CC63 -> 55932.20339 | CD18: ='Operating Model'!CD63 -> 55932.20339 | CE18: ='Operating Model'!CE63 -> 55932.20339 | CF18: ='Operating Model'!CF63 -> 55932.20339 | CG18: ='Operating Model'!CG63 -> 55932.20339 | CH18: ='Operating Model'!CH63 -> 55932.20339 | CI18: ='Operating Model'!CI63 -> 55932.20339 | CJ18: ='Operating Model'!CJ63 -> 55932.20339 | CK18: ='Operating Model'!CK63 -> 55932.20339 | CL18: ='Operating Model'!CL63 -> 55932.20339 | CM18: ='Operating Model'!CM63 -> 55932.20339 | CN18: ='Operating Model'!CN63 -> 55932.20339 | CO18: ='Operating Model'!CO63 -> 55932.20339 | CP18: ='Operating Model'!CP63 -> 55932.20339 | CQ18: ='Operating Model'!CQ63 -> 55932.20339 | CR18: ='Operating Model'!CR63 -> 55932.20339 | CS18: ='Operating Model'!CS63 -> 55932.20339 | CT18: ='Operating Model'!CT63 -> 55932.20339 | CU18: ='Operating Model'!CU63 -> 55932.20339 | CV18: ='Operating Model'!CV63 -> 55932.20339 | CW18: ='Operating Model'!CW63 -> 55932.20339 | CX18: ='Operating Model'!CX63 -> 55932.20339 | CY18: ='Operating Model'!CY63 -> 55932.20339 | CZ18: ='Operating Model'!CZ63 -> 55932.20339 | DA18: ='Operating Model'!DA63 -> 55932.20339 | DB18: ='Operating Model'!DB63 -> 55932.20339 | DC18: ='Operating Model'!DC63 -> 55932.20339 | DD18: ='Operating Model'!DD63 -> 55932.20339 | DE18: ='Operating Model'!DE63 -> 55932.20339 | DF18: ='Operating Model'!DF63 -> 55932.20339 | DG18: ='Operating Model'!DG63 -> 55932.20339 | DH18: ='Operating Model'!DH63 -> 55932.20339 | DI18: ='Operating Model'!DI63 -> 55932.20339 | DJ18: ='Operating Model'!DJ63 -> 55932.20339 | DK18: ='Operating Model'!DK63 -> 55932.20339 | DL18: ='Operating Model'!DL63 -> 55932.20339 | DM18: ='Operating Model'!DM63 -> 55932.20339 | DN18: ='Operating Model'!DN63 -> 55932.20339 | DO18: ='Operating Model'!DO63 -> 55932.20339 | DP18: ='Operating Model'!DP63 -> 55932.20339 | DQ18: ='Operating Model'!DQ63 -> 55932.20339
C19: Total Depreciation Expense | I19: =SUM(K19:DQ19) -> 0 | K19: ='Operating Model'!K154 -> 0 | L19: ='Operating Model'!L154 -> 0 | M19: ='Operating Model'!M154 -> 0 | N19: ='Operating Model'!N154 -> 0 | O19: ='Operating Model'!O154 -> 0 | P19: ='Operating Model'!P154 -> 0 | Q19: ='Operating Model'!Q154 -> 0 | R19: ='Operating Model'!R154 -> 0 | S19: ='Operating Model'!S154 -> 0 | T19: ='Operating Model'!T154 -> 0 | U19: ='Operating Model'!U154 -> 0 | V19: ='Operating Model'!V154 -> 0 | W19: ='Operating Model'!W154 -> 0 | X19: ='Operating Model'!X154 -> 0 | Y19: ='Operating Model'!Y154 -> 0 | Z19: ='Operating Model'!Z154 -> 0 | AA19: ='Operating Model'!AA154 -> 0 | AB19: ='Operating Model'!AB154 -> 0 | AC19: ='Operating Model'!AC154 -> 0 | AD19: ='Operating Model'!AD154 -> 0 | AE19: ='Operating Model'!AE154 -> 0 | AF19: ='Operating Model'!AF154 -> 0 | AG19: ='Operating Model'!AG154 -> 0 | AH19: ='Operating Model'!AH154 -> 0 | AI19: ='Operating Model'!AI154 -> 0 | AJ19: ='Operating Model'!AJ154 -> 0 | AK19: ='Operating Model'!AK154 -> 0 | AL19: ='Operating Model'!AL154 -> 0 | AM19: ='Operating Model'!AM154 -> 0 | AN19: ='Operating Model'!AN154 -> 0 | AO19: ='Operating Model'!AO154 -> 0 | AP19: ='Operating Model'!AP154 -> 0 | AQ19: ='Operating Model'!AQ154 -> 0 | AR19: ='Operating Model'!AR154 -> 0 | AS19: ='Operating Model'!AS154 -> 0 | AT19: ='Operating Model'!AT154 -> 0 | AU19: ='Operating Model'!AU154 -> 0 | AV19: ='Operating Model'!AV154 -> 0 | AW19: ='Operating Model'!AW154 -> 0 | AX19: ='Operating Model'!AX154 -> 0 | AY19: ='Operating Model'!AY154 -> 0 | AZ19: ='Operating Model'!AZ154 -> 0 | BA19: ='Operating Model'!BA154 -> 0 | BB19: ='Operating Model'!BB154 -> 0 | BC19: ='Operating Model'!BC154 -> 0 | BD19: ='Operating Model'!BD154 -> 0 | BE19: ='Operating Model'!BE154 -> 0 | BF19: ='Operating Model'!BF154 -> 0 | BG19: ='Operating Model'!BG154 -> 0 | BH19: ='Operating Model'!BH154 -> 0 | BI19: ='Operating Model'!BI154 -> 0 | BJ19: ='Operating Model'!BJ154 -> 0 | BK19: ='Operating Model'!BK154 -> 0 | BL19: ='Operating Model'!BL154 -> 0 | BM19: ='Operating Model'!BM154 -> 0 | BN19: ='Operating Model'!BN154 -> 0 | BO19: ='Operating Model'!BO154 -> 0 | BP19: ='Operating Model'!BP154 -> 0 | BQ19: ='Operating Model'!BQ154 -> 0 | BR19: ='Operating Model'!BR154 -> 0 | BS19: ='Operating Model'!BS154 -> 0 | BT19: ='Operating Model'!BT154 -> 0 | BU19: ='Operating Model'!BU154 -> 0 | BV19: ='Operating Model'!BV154 -> 0 | BW19: ='Operating Model'!BW154 -> 0 | BX19: ='Operating Model'!BX154 -> 0 | BY19: ='Operating Model'!BY154 -> 0 | BZ19: ='Operating Model'!BZ154 -> 0 | CA19: ='Operating Model'!CA154 -> 0 | CB19: ='Operating Model'!CB154 -> 0 | CC19: ='Operating Model'!CC154 -> 0 | CD19: ='Operating Model'!CD154 -> 0 | CE19: ='Operating Model'!CE154 -> 0 | CF19: ='Operating Model'!CF154 -> 0 | CG19: ='Operating Model'!CG154 -> 0 | CH19: ='Operating Model'!CH154 -> 0 | CI19: ='Operating Model'!CI154 -> 0 | CJ19: ='Operating Model'!CJ154 -> 0 | CK19: ='Operating Model'!CK154 -> 0 | CL19: ='Operating Model'!CL154 -> 0 | CM19: ='Operating Model'!CM154 -> 0 | CN19: ='Operating Model'!CN154 -> 0 | CO19: ='Operating Model'!CO154 -> 0 | CP19: ='Operating Model'!CP154 -> 0 | CQ19: ='Operating Model'!CQ154 -> 0 | CR19: ='Operating Model'!CR154 -> 0 | CS19: ='Operating Model'!CS154 -> 0 | CT19: ='Operating Model'!CT154 -> 0 | CU19: ='Operating Model'!CU154 -> 0 | CV19: ='Operating Model'!CV154 -> 0 | CW19: ='Operating Model'!CW154 -> 0 | CX19: ='Operating Model'!CX154 -> 0 | CY19: ='Operating Model'!CY154 -> 0 | CZ19: ='Operating Model'!CZ154 -> 0 | DA19: ='Operating Model'!DA154 -> 0 | DB19: ='Operating Model'!DB154 -> 0 | DC19: ='Operating Model'!DC154 -> 0 | DD19: ='Operating Model'!DD154 -> 0 | DE19: ='Operating Model'!DE154 -> 0 | DF19: ='Operating Model'!DF154 -> 0 | DG19: ='Operating Model'!DG154 -> 0 | DH19: ='Operating Model'!DH154 -> 0 | DI19: ='Operating Model'!DI154 -> 0 | DJ19: ='Operating Model'!DJ154 -> 0 | DK19: ='Operating Model'!DK154 -> 0 | DL19: ='Operating Model'!DL154 -> 0 | DM19: ='Operating Model'!DM154 -> 0 | DN19: ='Operating Model'!DN154 -> 0 | DO19: ='Operating Model'!DO154 -> 0 | DP19: ='Operating Model'!DP154 -> 0 | DQ19: ='Operating Model'!DQ154 -> 0
C21: Flag for Repayment | G21: =Assumptions!F138 -> 1900-05-31 | H21: =Assumptions!F139 -> 1920-05-31
C22: Target Debt Service from DSCR | G22: =Assumptions!F129 -> 0 | I22: =SUM(K22:DQ22) -> 0
C24: Base Interest Rate | G24: =Assumptions!F143 -> 0.018 | K24: =$G$24 -> 0.018 | L24: =$G$24 -> 0.018 | M24: 0.018 | N24: 0.018 | O24: 0.018 | P24: 0.018 | Q24: 0.018 | R24: 0.018 | S24: 0.018 | T24: 0.018 | U24: 0.018 | V24: 0.018 | W24: 0.018 | X24: 0.018 | Y24: 0.018 | Z24: 0.018 | AA24: 0.018 | AB24: 0.018 | AC24: 0.018 | AD24: 0.018 | AE24: 0.018 | AF24: 0.018 | AG24: 0.018 | AH24: 0.018 | AI24: 0.018 | AJ24: 0.018 | AK24: 0.018 | AL24: 0.018 | AM24: 0.018 | AN24: 0.018 | AO24: 0.018 | AP24: 0.018 | AQ24: 0.018 | AR24: 0.018 | AS24: 0.018 | AT24: 0.018 | AU24: 0.018 | AV24: 0.018 | AW24: 0.018 | AX24: 0.018 | AY24: 0.018 | AZ24: 0.018 | BA24: 0.018 | BB24: 0.018 | BC24: 0.018 | BD24: 0.018 | BE24: 0.018 | BF24: 0.018 | BG24: 0.018 | BH24: 0.018 | BI24: 0.018 | BJ24: 0.018 | BK24: 0.018 | BL24: 0.018 | BM24: 0.018 | BN24: 0.018 | BO24: 0.018 | BP24: 0.018 | BQ24: 0.018 | BR24: 0.018 | BS24: 0.018 | BT24: 0.018 | BU24: 0.018 | BV24: 0.018 | BW24: 0.018 | BX24: =$G$24 -> 0.018 | BY24: 0.018 | BZ24: 0.018 | CA24: 0.018 | CB24: 0.018 | CC24: 0.018 | CD24: 0.018 | CE24: 0.018 | CF24: 0.018 | CG24: 0.018 | CH24: 0.018 | CI24: 0.018 | CJ24: 0.018 | CK24: 0.018 | CL24: 0.018 | CM24: 0.018 | CN24: 0.018 | CO24: 0.018 | CP24: 0.018 | CQ24: 0.018 | CR24: 0.018 | CS24: 0.018 | CT24: 0.018 | CU24: 0.018 | CV24: 0.018 | CW24: 0.018 | CX24: 0.018 | CY24: 0.018 | CZ24: 0.018 | DA24: 0.018 | DB24: 0.018 | DC24: 0.018 | DD24: 0.018 | DE24: 0.018 | DF24: 0.018 | DG24: 0.018 | DH24: 0.018 | DI24: 0.018 | DJ24: 0.018 | DK24: 0.018 | DL24: 0.018 | DM24: 0.018 | DN24: 0.018 | DO24: 0.018 | DP24: 0.018 | DQ24: 0.018
C25: Credit Spread
C26: Total Rate | K26: =SUM(K24:K25) -> 0.018 | L26: =SUM(L24:L25) -> 0.018 | M26: 0.018 | N26: 0.018 | O26: 0.018 | P26: 0.018 | Q26: 0.018 | R26: 0.018 | S26: 0.018 | T26: 0.018 | U26: 0.018 | V26: 0.018 | W26: 0.018 | X26: 0.018 | Y26: 0.018 | Z26: 0.018 | AA26: 0.018 | AB26: 0.018 | AC26: 0.018 | AD26: 0.018 | AE26: 0.018 | AF26: 0.018 | AG26: 0.018 | AH26: 0.018 | AI26: 0.018 | AJ26: 0.018 | AK26: 0.018 | AL26: 0.018 | AM26: 0.018 | AN26: 0.018 | AO26: 0.018 | AP26: 0.018 | AQ26: 0.018 | AR26: 0.018 | AS26: 0.018 | AT26: 0.018 | AU26: 0.018 | AV26: 0.018 | AW26: 0.018 | AX26: 0.018 | AY26: 0.018 | AZ26: 0.018 | BA26: 0.018 | BB26: 0.018 | BC26: 0.018 | BD26: 0.018 | BE26: 0.018 | BF26: 0.018 | BG26: 0.018 | BH26: 0.018 | BI26: 0.018 | BJ26: 0.018 | BK26: 0.018 | BL26: 0.018 | BM26: 0.018 | BN26: 0.018 | BO26: 0.018 | BP26: 0.018 | BQ26: 0.018 | BR26: 0.018 | BS26: 0.018 | BT26: 0.018 | BU26: 0.018 | BV26: 0.018 | BW26: 0.018 | BX26: =SUM(BX24:BX25) -> 0.018 | BY26: 0.018 | BZ26: 0.018 | CA26: 0.018 | CB26: 0.018 | CC26: 0.018 | CD26: 0.018 | CE26: 0.018 | CF26: 0.018 | CG26: 0.018 | CH26: 0.018 | CI26: 0.018 | CJ26: 0.018 | CK26: 0.018 | CL26: 0.018 | CM26: 0.018 | CN26: 0.018 | CO26: 0.018 | CP26: 0.018 | CQ26: 0.018 | CR26: 0.018 | CS26: 0.018 | CT26: 0.018 | CU26: 0.018 | CV26: 0.018 | CW26: 0.018 | CX26: 0.018 | CY26: 0.018 | CZ26: 0.018 | DA26: 0.018 | DB26: 0.018 | DC26: 0.018 | DD26: 0.018 | DE26: 0.018 | DF26: 0.018 | DG26: 0.018 | DH26: 0.018 | DI26: 0.018 | DJ26: 0.018 | DK26: 0.018 | DL26: 0.018 | DM26: 0.018 | DN26: 0.018 | DO26: 0.018 | DP26: 0.018 | DQ26: 0.018
C28: Periodic Rate | K28: =K26/12*K5 -> 0.0015 | L28: =L26/12*L5 -> 0.0015 | M28: 0.0015 | N28: 0.0015 | O28: 0.0015 | P28: 0.0015 | Q28: 0.0015 | R28: 0.0015 | S28: 0.0015 | T28: 0.009 | U28: 0.009 | V28: 0.009 | W28: 0.009 | X28: 0.009 | Y28: 0.009 | Z28: 0.009 | AA28: 0.009 | AB28: 0.009 | AC28: 0.009 | AD28: 0.009 | AE28: 0.009 | AF28: 0.009 | AG28: 0.009 | AH28: 0.009 | AI28: 0.009 | AJ28: 0.009 | AK28: 0.009 | AL28: 0.009 | AM28: 0.009 | AN28: 0.009 | AO28: 0.009 | AP28: 0.009 | AQ28: 0.009 | AR28: 0.009 | AS28: 0.009 | AT28: 0.009 | AU28: 0.009 | AV28: 0.009 | AW28: 0.009 | AX28: 0.009 | AY28: 0.009 | AZ28: 0.009 | BA28: 0.009 | BB28: 0.009 | BC28: 0.009 | BD28: 0.009 | BE28: 0.009 | BF28: 0.009 | BG28: 0.009 | BH28: 0.009 | BI28: 0.009 | BJ28: 0.009 | BK28: 0.009 | BL28: 0.009 | BM28: 0.009 | BN28: 0.009 | BO28: 0.009 | BP28: 0.009 | BQ28: 0.009 | BR28: 0.009 | BS28: 0.009 | BT28: 0.009 | BU28: 0.009 | BV28: 0.009 | BW28: 0.009 | BX28: =BX26/12*BX5 -> 0.009 | BY28: 0.009 | BZ28: 0.009 | CA28: 0.009 | CB28: 0.009 | CC28: 0.009 | CD28: 0.009 | CE28: 0.009 | CF28: 0.009 | CG28: 0.009 | CH28: 0.009 | CI28: 0.009 | CJ28: 0.009 | CK28: 0.009 | CL28: 0.009 | CM28: 0.009 | CN28: 0.009 | CO28: 0.009 | CP28: 0.009 | CQ28: 0.009 | CR28: 0.009 | CS28: 0.009 | CT28: 0.009 | CU28: 0.009 | CV28: 0.009 | CW28: 0.009 | CX28: 0.009 | CY28: 0.009 | CZ28: 0.009 | DA28: 0.009 | DB28: 0.009 | DC28: 0.009 | DD28: 0.009 | DE28: 0.009 | DF28: 0.009 | DG28: 0.009 | DH28: 0.009 | DI28: 0.009 | DJ28: 0.009 | DK28: 0.009 | DL28: 0.009 | DM28: 0.009 | DN28: 0.009 | DO28: 0.009 | DP28: 0.009 | DQ28: 0.009
C29: Interest Rate Index | J29: 1
C31: Present Value Debt Service - Debt | G31: =SUMPRODUCT(K22:DQ22/K29:DQ29) -> 
C33: Opening Balance
C34: Add: Draws | G34: =EDATE(Assumptions!F138,-1) -> 1900-04-30 | H34: =G31 ->  | K34: =(K6=$G$34)*$H$34 ->  | L34: =(L6=$G$34)*$H$34 ->  | BX34: =(BX6=$G$34)*$H$34 -> 
C35: Less: Repayment
C36: Closing Balance
C37: Interest
B39: Summary Sources and Uses
C40: Total Uses of Funds | H40: Computed | I40: Fixed | J40: Difference
D41: Development Cost
E42: Legal
E43: Accounting/Model/Appr | G43: ='Operating Model'!I48 -> 30000
E44: Independent Eng | G44: ='Operating Model'!I49 -> 18000
E45: Misc. | G45: ='Operating Model'!I50 -> 24000
D46: EPC Cost
E47: Panel Price | G47: ='Operating Model'!I54 -> 0
E48: Racking and Tracking | G48: ='Operating Model'!I55 -> 3803389.831
E49: Balance of System and Inverter | G49: ='Operating Model'!I56 -> 1118644.068
E50: Site Work (assume ineligible) | G50: ='Operating Model'!I57 -> 335593.2203
E51: Special Ineligible | G51: ='Operating Model'!I58 -> 0
E52: Battery | G52: ='Operating Model'!I59 -> 0
E53: Misc. (Tax, Margin, Other) | G53: ='Operating Model'!I60 -> 894915.2542
D54: Financing costs
E55: Interest During Construction | H55: =SUM(K75:DQ75) -> 0 | I55: 115325.74 | J55: =I55-H55 -> 115325.74
E56: Up-Front Fees | G56: =I56 -> 56240.84297 | H56: =SUM(K76:DQ76) -> 0 | I56: 56240.84297 | J56: =I56-H56 -> 56240.84297
E57: Commitment Fees | G57: 38964.13715 | H57: =SUM(K77:DQ77) -> 0 | I57: 38964.13715 | J57: 38964.13715
E58: Total Uses of Funds | G58: =SUM(G42:G57) -> 6319747.353 | J58: =SUM(J55:J57) -> 210530.7201
D60: Sources of Funds | F60: Fix Debt | H60: DSCR | I60: Debt/Cap | K60: Fixed
E61: Debt | F61: =fixed_debt -> TRUE | G61: =IF(F61,K61,H61) -> 0 | I61: =G58*J61 -> 5055797.882 | J61: =Assumptions!F130 -> 0.8 | K61: =I108 -> 0
E62: Equity | G62: =G58-G61 -> 6319747.353
E63: Total Sources | G63: =SUM(G61:G62) -> 6319747.353
E65: Up Front Equity | G65: =G62*H65 -> 6319747.353 | H65: =Assumptions!F133 -> 1
E66: Pro-Rata Equity | G66: =G62-G65 -> 0 | H66: =G66/$G$68 -> 
E67: Debt | G67: =G61 -> 0 | H67: =G67/G68 -> 
E68: Total Pro-Rata | G68: =G66+G67 -> 0
E69: Debt to Capital | G69: =G61/G63 -> 0
B71: Periodic Sources and Uses
C72: Total Funding Needs
D73: Development Costs | K73: ='Operating Model'!K51 -> 18000 | L73: ='Operating Model'!L51 -> 18000 | M73: ='Operating Model'!M51 -> 18000 | N73: ='Operating Model'!N51 -> 18000 | O73: ='Operating Model'!O51 -> 0 | P73: ='Operating Model'!P51 -> 0 | Q73: ='Operating Model'!Q51 -> 0 | R73: ='Operating Model'!R51 -> 0 | S73: ='Operating Model'!S51 -> 0 | T73: ='Operating Model'!T51 -> 0 | U73: ='Operating Model'!U51 -> 0 | V73: ='Operating Model'!V51 -> 0 | W73: ='Operating Model'!W51 -> 0 | X73: ='Operating Model'!X51 -> 0 | Y73: ='Operating Model'!Y51 -> 0 | Z73: ='Operating Model'!Z51 -> 0 | AA73: ='Operating Model'!AA51 -> 0 | AB73: ='Operating Model'!AB51 -> 0 | AC73: ='Operating Model'!AC51 -> 0 | AD73: ='Operating Model'!AD51 -> 0 | AE73: ='Operating Model'!AE51 -> 0 | AF73: ='Operating Model'!AF51 -> 0 | AG73: ='Operating Model'!AG51 -> 0 | AH73: ='Operating Model'!AH51 -> 0 | AI73: ='Operating Model'!AI51 -> 0 | AJ73: ='Operating Model'!AJ51 -> 0 | AK73: ='Operating Model'!AK51 -> 0 | AL73: ='Operating Model'!AL51 -> 0 | AM73: ='Operating Model'!AM51 -> 0 | AN73: ='Operating Model'!AN51 -> 0 | AO73: ='Operating Model'!AO51 -> 0 | AP73: ='Operating Model'!AP51 -> 0 | AQ73: ='Operating Model'!AQ51 -> 0 | AR73: ='Operating Model'!AR51 -> 0 | AS73: ='Operating Model'!AS51 -> 0 | AT73: ='Operating Model'!AT51 -> 0 | AU73: ='Operating Model'!AU51 -> 0 | AV73: ='Operating Model'!AV51 -> 0 | AW73: ='Operating Model'!AW51 -> 0 | AX73: ='Operating Model'!AX51 -> 0 | AY73: ='Operating Model'!AY51 -> 0 | AZ73: ='Operating Model'!AZ51 -> 0 | BA73: ='Operating Model'!BA51 -> 0 | BB73: ='Operating Model'!BB51 -> 0 | BC73: ='Operating Model'!BC51 -> 0 | BD73: ='Operating Model'!BD51 -> 0 | BE73: ='Operating Model'!BE51 -> 0 | BF73: ='Operating Model'!BF51 -> 0 | BG73: ='Operating Model'!BG51 -> 0 | BH73: ='Operating Model'!BH51 -> 0 | BI73: ='Operating Model'!BI51 -> 0 | BJ73: ='Operating Model'!BJ51 -> 0 | BK73: ='Operating Model'!BK51 -> 0 | BL73: ='Operating Model'!BL51 -> 0 | BM73: ='Operating Model'!BM51 -> 0 | BN73: ='Operating Model'!BN51 -> 0 | BO73: ='Operating Model'!BO51 -> 0 | BP73: ='Operating Model'!BP51 -> 0 | BQ73: ='Operating Model'!BQ51 -> 0 | BR73: ='Operating Model'!BR51 -> 0 | BS73: ='Operating Model'!BS51 -> 0 | BT73: ='Operating Model'!BT51 -> 0 | BU73: ='Operating Model'!BU51 -> 0 | BV73: ='Operating Model'!BV51 -> 0 | BW73: ='Operating Model'!BW51 -> 0 | BX73: ='Operating Model'!BX51 -> 0 | BY73: ='Operating Model'!BY51 -> 0 | BZ73: ='Operating Model'!BZ51 -> 0 | CA73: ='Operating Model'!CA51 -> 0 | CB73: ='Operating Model'!CB51 -> 0 | CC73: ='Operating Model'!CC51 -> 0 | CD73: ='Operating Model'!CD51 -> 0 | CE73: ='Operating Model'!CE51 -> 0 | CF73: ='Operating Model'!CF51 -> 0 | CG73: ='Operating Model'!CG51 -> 0 | CH73: ='Operating Model'!CH51 -> 0 | CI73: ='Operating Model'!CI51 -> 0 | CJ73: ='Operating Model'!CJ51 -> 0 | CK73: ='Operating Model'!CK51 -> 0 | CL73: ='Operating Model'!CL51 -> 0 | CM73: ='Operating Model'!CM51 -> 0 | CN73: ='Operating Model'!CN51 -> 0 | CO73: ='Operating Model'!CO51 -> 0 | CP73: ='Operating Model'!CP51 -> 0 | CQ73: ='Operating Model'!CQ51 -> 0 | CR73: ='Operating Model'!CR51 -> 0 | CS73: ='Operating Model'!CS51 -> 0 | CT73: ='Operating Model'!CT51 -> 0 | CU73: ='Operating Model'!CU51 -> 0 | CV73: ='Operating Model'!CV51 -> 0 | CW73: ='Operating Model'!CW51 -> 0 | CX73: ='Operating Model'!CX51 -> 0 | CY73: ='Operating Model'!CY51 -> 0 | CZ73: ='Operating Model'!CZ51 -> 0 | DA73: ='Operating Model'!DA51 -> 0 | DB73: ='Operating Model'!DB51 -> 0 | DC73: ='Operating Model'!DC51 -> 0 | DD73: ='Operating Model'!DD51 -> 0 | DE73: ='Operating Model'!DE51 -> 0 | DF73: ='Operating Model'!DF51 -> 0 | DG73: ='Operating Model'!DG51 -> 0 | DH73: ='Operating Model'!DH51 -> 0 | DI73: ='Operating Model'!DI51 -> 0 | DJ73: ='Operating Model'!DJ51 -> 0 | DK73: ='Operating Model'!DK51 -> 0 | DL73: ='Operating Model'!DL51 -> 0 | DM73: ='Operating Model'!DM51 -> 0 | DN73: ='Operating Model'!DN51 -> 0 | DO73: ='Operating Model'!DO51 -> 0 | DP73: ='Operating Model'!DP51 -> 0 | DQ73: ='Operating Model'!DQ51 -> 0
D74: EPC Costs
D75: IDC | K75: =K121 -> 0 | L75: =L121 -> 0 | M75: 0 | N75: 0 | O75: 0 | P75: 0 | Q75: 0 | R75: 0 | S75: 0 | T75: 0 | U75: 0 | V75: 0 | W75: 0 | X75: 0 | Y75: 0 | Z75: 0 | AA75: 0 | AB75: 0 | AC75: 0 | AD75: 0 | AE75: 0 | AF75: 0 | AG75: 0 | AH75: 0 | AI75: 0 | AJ75: 0 | AK75: 0 | AL75: 0 | AM75: 0 | AN75: 0 | AO75: 0 | AP75: 0 | AQ75: 0 | AR75: 0 | AS75: 0 | AT75: 0 | AU75: 0 | AV75: 0 | AW75: 0 | AX75: 0 | AY75: 0 | AZ75: 0 | BA75: 0 | BB75: 0 | BC75: 0 | BD75: 0 | BE75: 0 | BF75: 0 | BG75: 0 | BH75: 0 | BI75: 0 | BJ75: 0 | BK75: 0 | BL75: 0 | BM75: 0 | BN75: 0 | BO75: 0 | BP75: 0 | BQ75: 0 | BR75: 0 | BS75: 0 | BT75: 0 | BU75: 0 | BV75: 0 | BW75: 0 | BX75: =BX121 -> 0 | BY75: 0 | BZ75: 0 | CA75: 0 | CB75: 0 | CC75: 0 | CD75: 0 | CE75: 0 | CF75: 0 | CG75: 0 | CH75: 0 | CI75: 0 | CJ75: 0 | CK75: 0 | CL75: 0 | CM75: 0 | CN75: 0 | CO75: 0 | CP75: 0 | CQ75: 0 | CR75: 0 | CS75: 0 | CT75: 0 | CU75: 0 | CV75: 0 | CW75: 0 | CX75: 0 | CY75: 0 | CZ75: 0 | DA75: 0 | DB75: 0 | DC75: 0 | DD75: 0 | DE75: 0 | DF75: 0 | DG75: 0 | DH75: 0 | DI75: 0 | DJ75: 0 | DK75: 0 | DL75: 0 | DM75: 0 | DN75: 0 | DO75: 0 | DP75: 0 | DQ75: 0
D76: Up-Front Fee | K76: =K124 -> 0 | L76: =L124 -> 0 | M76: 0 | N76: 0 | O76: 0 | P76: 0 | Q76: 0 | R76: 0 | S76: 0 | T76: 0 | U76: 0 | V76: 0 | W76: 0 | X76: 0 | Y76: 0 | Z76: 0 | AA76: 0 | AB76: 0 | AC76: 0 | AD76: 0 | AE76: 0 | AF76: 0 | AG76: 0 | AH76: 0 | AI76: 0 | AJ76: 0 | AK76: 0 | AL76: 0 | AM76: 0 | AN76: 0 | AO76: 0 | AP76: 0 | AQ76: 0 | AR76: 0 | AS76: 0 | AT76: 0 | AU76: 0 | AV76: 0 | AW76: 0 | AX76: 0 | AY76: 0 | AZ76: 0 | BA76: 0 | BB76: 0 | BC76: 0 | BD76: 0 | BE76: 0 | BF76: 0 | BG76: 0 | BH76: 0 | BI76: 0 | BJ76: 0 | BK76: 0 | BL76: 0 | BM76: 0 | BN76: 0 | BO76: 0 | BP76: 0 | BQ76: 0 | BR76: 0 | BS76: 0 | BT76: 0 | BU76: 0 | BV76: 0 | BW76: 0 | BX76: =BX124 -> 0 | BY76: 0 | BZ76: 0 | CA76: 0 | CB76: 0 | CC76: 0 | CD76: 0 | CE76: 0 | CF76: 0 | CG76: 0 | CH76: 0 | CI76: 0 | CJ76: 0 | CK76: 0 | CL76: 0 | CM76: 0 | CN76: 0 | CO76: 0 | CP76: 0 | CQ76: 0 | CR76: 0 | CS76: 0 | CT76: 0 | CU76: 0 | CV76: 0 | CW76: 0 | CX76: 0 | CY76: 0 | CZ76: 0 | DA76: 0 | DB76: 0 | DC76: 0 | DD76: 0 | DE76: 0 | DF76: 0 | DG76: 0 | DH76: 0 | DI76: 0 | DJ76: 0 | DK76: 0 | DL76: 0 | DM76: 0 | DN76: 0 | DO76: 0 | DP76: 0 | DQ76: 0
D77: Commitment Fee | K77: =K131 -> 0 | L77: =L131 -> 0 | M77: 0 | N77: 0 | O77: 0 | P77: 0 | Q77: 0 | R77: 0 | S77: 0 | T77: 0 | U77: 0 | V77: 0 | W77: 0 | X77: 0 | Y77: 0 | Z77: 0 | AA77: 0 | AB77: 0 | AC77: 0 | AD77: 0 | AE77: 0 | AF77: 0 | AG77: 0 | AH77: 0 | AI77: 0 | AJ77: 0 | AK77: 0 | AL77: 0 | AM77: 0 | AN77: 0 | AO77: 0 | AP77: 0 | AQ77: 0 | AR77: 0 | AS77: 0 | AT77: 0 | AU77: 0 | AV77: 0 | AW77: 0 | AX77: 0 | AY77: 0 | AZ77: 0 | BA77: 0 | BB77: 0 | BC77: 0 | BD77: 0 | BE77: 0 | BF77: 0 | BG77: 0 | BH77: 0 | BI77: 0 | BJ77: 0 | BK77: 0 | BL77: 0 | BM77: 0 | BN77: 0 | BO77: 0 | BP77: 0 | BQ77: 0 | BR77: 0 | BS77: 0 | BT77: 0 | BU77: 0 | BV77: 0 | BW77: 0 | BX77: =BX131 -> 0 | BY77: 0 | BZ77: 0 | CA77: 0 | CB77: 0 | CC77: 0 | CD77: 0 | CE77: 0 | CF77: 0 | CG77: 0 | CH77: 0 | CI77: 0 | CJ77: 0 | CK77: 0 | CL77: 0 | CM77: 0 | CN77: 0 | CO77: 0 | CP77: 0 | CQ77: 0 | CR77: 0 | CS77: 0 | CT77: 0 | CU77: 0 | CV77: 0 | CW77: 0 | CX77: 0 | CY77: 0 | CZ77: 0 | DA77: 0 | DB77: 0 | DC77: 0 | DD77: 0 | DE77: 0 | DF77: 0 | DG77: 0 | DH77: 0 | DI77: 0 | DJ77: 0 | DK77: 0 | DL77: 0 | DM77: 0 | DN77: 0 | DO77: 0 | DP77: 0 | DQ77: 0
E78: Total Funding Needs | K78: =SUM(K73:K77) -> 18000 | L78: =SUM(L73:L77) -> 18000 | M78: 18000 | N78: 18000 | O78: 0 | P78: 0 | Q78: 0 | R78: 0 | S78: 0 | T78: 0 | U78: 0 | V78: 0 | W78: 0 | X78: 0 | Y78: 0 | Z78: 0 | AA78: 0 | AB78: 0 | AC78: 0 | AD78: 0 | AE78: 0 | AF78: 0 | AG78: 0 | AH78: 0 | AI78: 0 | AJ78: 0 | AK78: 0 | AL78: 0 | AM78: 0 | AN78: 0 | AO78: 0 | AP78: 0 | AQ78: 0 | AR78: 0 | AS78: 0 | AT78: 0 | AU78: 0 | AV78: 0 | AW78: 0 | AX78: 0 | AY78: 0 | AZ78: 0 | BA78: 0 | BB78: 0 | BC78: 0 | BD78: 0 | BE78: 0 | BF78: 0 | BG78: 0 | BH78: 0 | BI78: 0 | BJ78: 0 | BK78: 0 | BL78: 0 | BM78: 0 | BN78: 0 | BO78: 0 | BP78: 0 | BQ78: 0 | BR78: 0 | BS78: 0 | BT78: 0 | BU78: 0 | BV78: 0 | BW78: 0 | BX78: =SUM(BX73:BX77) -> 0 | BY78: 0 | BZ78: 0 | CA78: 0 | CB78: 0 | CC78: 0 | CD78: 0 | CE78: 0 | CF78: 0 | CG78: 0 | CH78: 0 | CI78: 0 | CJ78: 0 | CK78: 0 | CL78: 0 | CM78: 0 | CN78: 0 | CO78: 0 | CP78: 0 | CQ78: 0 | CR78: 0 | CS78: 0 | CT78: 0 | CU78: 0 | CV78: 0 | CW78: 0 | CX78: 0 | CY78: 0 | CZ78: 0 | DA78: 0 | DB78: 0 | DC78: 0 | DD78: 0 | DE78: 0 | DF78: 0 | DG78: 0 | DH78: 0 | DI78: 0 | DJ78: 0 | DK78: 0 | DL78: 0 | DM78: 0 | DN78: 0 | DO78: 0 | DP78: 0 | DQ78: 0
C80: Equity Up-Front
D81: Total Equity Commitment | G81: =G65 -> 6319747.353 | K81: =$G$81 -> 6319747.353 | L81: =$G$81 -> 6319747.353 | M81: 6319747.353 | N81: 6319747.353 | O81: 6319747.353 | P81: 6319747.353 | Q81: 6319747.353 | R81: 6319747.353 | S81: 6319747.353 | T81: 6319747.353 | U81: 6319747.353 | V81: 6319747.353 | W81: 6319747.353 | X81: 6319747.353 | Y81: 6319747.353 | Z81: 6319747.353 | AA81: 6319747.353 | AB81: 6319747.353 | AC81: 6319747.353 | AD81: 6319747.353 | AE81: 6319747.353 | AF81: 6319747.353 | AG81: 6319747.353 | AH81: 6319747.353 | AI81: 6319747.353 | AJ81: 6319747.353 | AK81: 6319747.353 | AL81: 6319747.353 | AM81: 6319747.353 | AN81: 6319747.353 | AO81: 6319747.353 | AP81: 6319747.353 | AQ81: 6319747.353 | AR81: 6319747.353 | AS81: 6319747.353 | AT81: 6319747.353 | AU81: 6319747.353 | AV81: 6319747.353 | AW81: 6319747.353 | AX81: 6319747.353 | AY81: 6319747.353 | AZ81: 6319747.353 | BA81: 6319747.353 | BB81: 6319747.353 | BC81: 6319747.353 | BD81: 6319747.353 | BE81: 6319747.353 | BF81: 6319747.353 | BG81: 6319747.353 | BH81: 6319747.353 | BI81: 6319747.353 | BJ81: 6319747.353 | BK81: 6319747.353 | BL81: 6319747.353 | BM81: 6319747.353 | BN81: 6319747.353 | BO81: 6319747.353 | BP81: 6319747.353 | BQ81: 6319747.353 | BR81: 6319747.353 | BS81: 6319747.353 | BT81: 6319747.353 | BU81: 6319747.353 | BV81: 6319747.353 | BW81: 6319747.353 | BX81: =$G$81 -> 6319747.353 | BY81: 6319747.353 | BZ81: 6319747.353 | CA81: 6319747.353 | CB81: 6319747.353 | CC81: 6319747.353 | CD81: 6319747.353 | CE81: 6319747.353 | CF81: 6319747.353 | CG81: 6319747.353 | CH81: 6319747.353 | CI81: 6319747.353 | CJ81: 6319747.353 | CK81: 6319747.353 | CL81: 6319747.353 | CM81: 6319747.353 | CN81: 6319747.353 | CO81: 6319747.353 | CP81: 6319747.353 | CQ81: 6319747.353 | CR81: 6319747.353 | CS81: 6319747.353 | CT81: 6319747.353 | CU81: 6319747.353 | CV81: 6319747.353 | CW81: 6319747.353 | CX81: 6319747.353 | CY81: 6319747.353 | CZ81: 6319747.353 | DA81: 6319747.353 | DB81: 6319747.353 | DC81: 6319747.353 | DD81: 6319747.353 | DE81: 6319747.353 | DF81: 6319747.353 | DG81: 6319747.353 | DH81: 6319747.353 | DI81: 6319747.353 | DJ81: 6319747.353 | DK81: 6319747.353 | DL81: 6319747.353 | DM81: 6319747.353 | DN81: 6319747.353 | DO81: 6319747.353 | DP81: 6319747.353 | DQ81: 6319747.353
D82: Less: Initial Equity | K82: =K87 -> 0 | L82: =L87 -> 18000 | M82: 36000 | N82: 54000 | O82: 72000 | P82: 72000 | Q82: 72000 | R82: 72000 | S82: 72000 | T82: 72000 | U82: 72000 | V82: 72000 | W82: 72000 | X82: 72000 | Y82: 72000 | Z82: 72000 | AA82: 72000 | AB82: 72000 | AC82: 72000 | AD82: 72000 | AE82: 72000 | AF82: 72000 | AG82: 72000 | AH82: 72000 | AI82: 72000 | AJ82: 72000 | AK82: 72000 | AL82: 72000 | AM82: 72000 | AN82: 72000 | AO82: 72000 | AP82: 72000 | AQ82: 72000 | AR82: 72000 | AS82: 72000 | AT82: 72000 | AU82: 72000 | AV82: 72000 | AW82: 72000 | AX82: 72000 | AY82: 72000 | AZ82: 72000 | BA82: 72000 | BB82: 72000 | BC82: 72000 | BD82: 72000 | BE82: 72000 | BF82: 72000 | BG82: 72000 | BH82: 72000 | BI82: 72000 | BJ82: 72000 | BK82: 72000 | BL82: 72000 | BM82: 72000 | BN82: 72000 | BO82: 72000 | BP82: 72000 | BQ82: 72000 | BR82: 72000 | BS82: 72000 | BT82: 72000 | BU82: 72000 | BV82: 72000 | BW82: 72000 | BX82: =BX87 -> 72000 | BY82: 72000 | BZ82: 72000 | CA82: 72000 | CB82: 72000 | CC82: 72000 | CD82: 72000 | CE82: 72000 | CF82: 72000 | CG82: 72000 | CH82: 72000 | CI82: 72000 | CJ82: 72000 | CK82: 72000 | CL82: 72000 | CM82: 72000 | CN82: 72000 | CO82: 72000 | CP82: 72000 | CQ82: 72000 | CR82: 72000 | CS82: 72000 | CT82: 72000 | CU82: 72000 | CV82: 72000 | CW82: 72000 | CX82: 72000 | CY82: 72000 | CZ82: 72000 | DA82: 72000 | DB82: 72000 | DC82: 72000 | DD82: 72000 | DE82: 72000 | DF82: 72000 | DG82: 72000 | DH82: 72000 | DI82: 72000 | DJ82: 72000 | DK82: 72000 | DL82: 72000 | DM82: 72000 | DN82: 72000 | DO82: 72000 | DP82: 72000 | DQ82: 72000
D83: Remainining | K83: =K81-K82 -> 6319747.353 | L83: =L81-L82 -> 6301747.353 | M83: 6283747.353 | N83: 6265747.353 | O83: 6247747.353 | P83: 6247747.353 | Q83: 6247747.353 | R83: 6247747.353 | S83: 6247747.353 | T83: 6247747.353 | U83: 6247747.353 | V83: 6247747.353 | W83: 6247747.353 | X83: 6247747.353 | Y83: 6247747.353 | Z83: 6247747.353 | AA83: 6247747.353 | AB83: 6247747.353 | AC83: 6247747.353 | AD83: 6247747.353 | AE83: 6247747.353 | AF83: 6247747.353 | AG83: 6247747.353 | AH83: 6247747.353 | AI83: 6247747.353 | AJ83: 6247747.353 | AK83: 6247747.353 | AL83: 6247747.353 | AM83: 6247747.353 | AN83: 6247747.353 | AO83: 6247747.353 | AP83: 6247747.353 | AQ83: 6247747.353 | AR83: 6247747.353 | AS83: 6247747.353 | AT83: 6247747.353 | AU83: 6247747.353 | AV83: 6247747.353 | AW83: 6247747.353 | AX83: 6247747.353 | AY83: 6247747.353 | AZ83: 6247747.353 | BA83: 6247747.353 | BB83: 6247747.353 | BC83: 6247747.353 | BD83: 6247747.353 | BE83: 6247747.353 | BF83: 6247747.353 | BG83: 6247747.353 | BH83: 6247747.353 | BI83: 6247747.353 | BJ83: 6247747.353 | BK83: 6247747.353 | BL83: 6247747.353 | BM83: 6247747.353 | BN83: 6247747.353 | BO83: 6247747.353 | BP83: 6247747.353 | BQ83: 6247747.353 | BR83: 6247747.353 | BS83: 6247747.353 | BT83: 6247747.353 | BU83: 6247747.353 | BV83: 6247747.353 | BW83: 6247747.353 | BX83: =BX81-BX82 -> 6247747.353 | BY83: 6247747.353 | BZ83: 6247747.353 | CA83: 6247747.353 | CB83: 6247747.353 | CC83: 6247747.353 | CD83: 6247747.353 | CE83: 6247747.353 | CF83: 6247747.353 | CG83: 6247747.353 | CH83: 6247747.353 | CI83: 6247747.353 | CJ83: 6247747.353 | CK83: 6247747.353 | CL83: 6247747.353 | CM83: 6247747.353 | CN83: 6247747.353 | CO83: 6247747.353 | CP83: 6247747.353 | CQ83: 6247747.353 | CR83: 6247747.353 | CS83: 6247747.353 | CT83: 6247747.353 | CU83: 6247747.353 | CV83: 6247747.353 | CW83: 6247747.353 | CX83: 6247747.353 | CY83: 6247747.353 | CZ83: 6247747.353 | DA83: 6247747.353 | DB83: 6247747.353 | DC83: 6247747.353 | DD83: 6247747.353 | DE83: 6247747.353 | DF83: 6247747.353 | DG83: 6247747.353 | DH83: 6247747.353 | DI83: 6247747.353 | DJ83: 6247747.353 | DK83: 6247747.353 | DL83: 6247747.353 | DM83: 6247747.353 | DN83: 6247747.353 | DO83: 6247747.353 | DP83: 6247747.353 | DQ83: 6247747.353
D85: Equity Funded | K85: =MIN(K83,K78) -> 18000 | L85: =MIN(L83,L78) -> 18000 | M85: 18000 | N85: 18000 | O85: 0 | P85: 0 | Q85: 0 | R85: 0 | S85: 0 | T85: 0 | U85: 0 | V85: 0 | W85: 0 | X85: 0 | Y85: 0 | Z85: 0 | AA85: 0 | AB85: 0 | AC85: 0 | AD85: 0 | AE85: 0 | AF85: 0 | AG85: 0 | AH85: 0 | AI85: 0 | AJ85: 0 | AK85: 0 | AL85: 0 | AM85: 0 | AN85: 0 | AO85: 0 | AP85: 0 | AQ85: 0 | AR85: 0 | AS85: 0 | AT85: 0 | AU85: 0 | AV85: 0 | AW85: 0 | AX85: 0 | AY85: 0 | AZ85: 0 | BA85: 0 | BB85: 0 | BC85: 0 | BD85: 0 | BE85: 0 | BF85: 0 | BG85: 0 | BH85: 0 | BI85: 0 | BJ85: 0 | BK85: 0 | BL85: 0 | BM85: 0 | BN85: 0 | BO85: 0 | BP85: 0 | BQ85: 0 | BR85: 0 | BS85: 0 | BT85: 0 | BU85: 0 | BV85: 0 | BW85: 0 | BX85: =MIN(BX83,BX78) -> 0 | BY85: 0 | BZ85: 0 | CA85: 0 | CB85: 0 | CC85: 0 | CD85: 0 | CE85: 0 | CF85: 0 | CG85: 0 | CH85: 0 | CI85: 0 | CJ85: 0 | CK85: 0 | CL85: 0 | CM85: 0 | CN85: 0 | CO85: 0 | CP85: 0 | CQ85: 0 | CR85: 0 | CS85: 0 | CT85: 0 | CU85: 0 | CV85: 0 | CW85: 0 | CX85: 0 | CY85: 0 | CZ85: 0 | DA85: 0 | DB85: 0 | DC85: 0 | DD85: 0 | DE85: 0 | DF85: 0 | DG85: 0 | DH85: 0 | DI85: 0 | DJ85: 0 | DK85: 0 | DL85: 0 | DM85: 0 | DN85: 0 | DO85: 0 | DP85: 0 | DQ85: 0
D87: Opening Balance | K87: =J89 -> 0 | L87: =K89 -> 18000 | M87: 36000 | N87: 54000 | O87: 72000 | P87: 72000 | Q87: 72000 | R87: 72000 | S87: 72000 | T87: 72000 | U87: 72000 | V87: 72000 | W87: 72000 | X87: 72000 | Y87: 72000 | Z87: 72000 | AA87: 72000 | AB87: 72000 | AC87: 72000 | AD87: 72000 | AE87: 72000 | AF87: 72000 | AG87: 72000 | AH87: 72000 | AI87: 72000 | AJ87: 72000 | AK87: 72000 | AL87: 72000 | AM87: 72000 | AN87: 72000 | AO87: 72000 | AP87: 72000 | AQ87: 72000 | AR87: 72000 | AS87: 72000 | AT87: 72000 | AU87: 72000 | AV87: 72000 | AW87: 72000 | AX87: 72000 | AY87: 72000 | AZ87: 72000 | BA87: 72000 | BB87: 72000 | BC87: 72000 | BD87: 72000 | BE87: 72000 | BF87: 72000 | BG87: 72000 | BH87: 72000 | BI87: 72000 | BJ87: 72000 | BK87: 72000 | BL87: 72000 | BM87: 72000 | BN87: 72000 | BO87: 72000 | BP87: 72000 | BQ87: 72000 | BR87: 72000 | BS87: 72000 | BT87: 72000 | BU87: 72000 | BV87: 72000 | BW87: 72000 | BX87: =BW89 -> 72000 | BY87: 72000 | BZ87: 72000 | CA87: 72000 | CB87: 72000 | CC87: 72000 | CD87: 72000 | CE87: 72000 | CF87: 72000 | CG87: 72000 | CH87: 72000 | CI87: 72000 | CJ87: 72000 | CK87: 72000 | CL87: 72000 | CM87: 72000 | CN87: 72000 | CO87: 72000 | CP87: 72000 | CQ87: 72000 | CR87: 72000 | CS87: 72000 | CT87: 72000 | CU87: 72000 | CV87: 72000 | CW87: 72000 | CX87: 72000 | CY87: 72000 | CZ87: 72000 | DA87: 72000 | DB87: 72000 | DC87: 72000 | DD87: 72000 | DE87: 72000 | DF87: 72000 | DG87: 72000 | DH87: 72000 | DI87: 72000 | DJ87: 72000 | DK87: 72000 | DL87: 72000 | DM87: 72000 | DN87: 72000 | DO87: 72000 | DP87: 72000 | DQ87: 72000
D88: Add: Funded | K88: =K85 -> 18000 | L88: =L85 -> 18000 | M88: 18000 | N88: 18000 | O88: 0 | P88: 0 | Q88: 0 | R88: 0 | S88: 0 | T88: 0 | U88: 0 | V88: 0 | W88: 0 | X88: 0 | Y88: 0 | Z88: 0 | AA88: 0 | AB88: 0 | AC88: 0 | AD88: 0 | AE88: 0 | AF88: 0 | AG88: 0 | AH88: 0 | AI88: 0 | AJ88: 0 | AK88: 0 | AL88: 0 | AM88: 0 | AN88: 0 | AO88: 0 | AP88: 0 | AQ88: 0 | AR88: 0 | AS88: 0 | AT88: 0 | AU88: 0 | AV88: 0 | AW88: 0 | AX88: 0 | AY88: 0 | AZ88: 0 | BA88: 0 | BB88: 0 | BC88: 0 | BD88: 0 | BE88: 0 | BF88: 0 | BG88: 0 | BH88: 0 | BI88: 0 | BJ88: 0 | BK88: 0 | BL88: 0 | BM88: 0 | BN88: 0 | BO88: 0 | BP88: 0 | BQ88: 0 | BR88: 0 | BS88: 0 | BT88: 0 | BU88: 0 | BV88: 0 | BW88: 0 | BX88: =BX85 -> 0 | BY88: 0 | BZ88: 0 | CA88: 0 | CB88: 0 | CC88: 0 | CD88: 0 | CE88: 0 | CF88: 0 | CG88: 0 | CH88: 0 | CI88: 0 | CJ88: 0 | CK88: 0 | CL88: 0 | CM88: 0 | CN88: 0 | CO88: 0 | CP88: 0 | CQ88: 0 | CR88: 0 | CS88: 0 | CT88: 0 | CU88: 0 | CV88: 0 | CW88: 0 | CX88: 0 | CY88: 0 | CZ88: 0 | DA88: 0 | DB88: 0 | DC88: 0 | DD88: 0 | DE88: 0 | DF88: 0 | DG88: 0 | DH88: 0 | DI88: 0 | DJ88: 0 | DK88: 0 | DL88: 0 | DM88: 0 | DN88: 0 | DO88: 0 | DP88: 0 | DQ88: 0
D89: Closing Balance | K89: =SUM(K87:K88) -> 18000 | L89: =SUM(L87:L88) -> 36000 | M89: 54000 | N89: 72000 | O89: 72000 | P89: 72000 | Q89: 72000 | R89: 72000 | S89: 72000 | T89: 72000 | U89: 72000 | V89: 72000 | W89: 72000 | X89: 72000 | Y89: 72000 | Z89: 72000 | AA89: 72000 | AB89: 72000 | AC89: 72000 | AD89: 72000 | AE89: 72000 | AF89: 72000 | AG89: 72000 | AH89: 72000 | AI89: 72000 | AJ89: 72000 | AK89: 72000 | AL89: 72000 | AM89: 72000 | AN89: 72000 | AO89: 72000 | AP89: 72000 | AQ89: 72000 | AR89: 72000 | AS89: 72000 | AT89: 72000 | AU89: 72000 | AV89: 72000 | AW89: 72000 | AX89: 72000 | AY89: 72000 | AZ89: 72000 | BA89: 72000 | BB89: 72000 | BC89: 72000 | BD89: 72000 | BE89: 72000 | BF89: 72000 | BG89: 72000 | BH89: 72000 | BI89: 72000 | BJ89: 72000 | BK89: 72000 | BL89: 72000 | BM89: 72000 | BN89: 72000 | BO89: 72000 | BP89: 72000 | BQ89: 72000 | BR89: 72000 | BS89: 72000 | BT89: 72000 | BU89: 72000 | BV89: 72000 | BW89: 72000 | BX89: =SUM(BX87:BX88) -> 72000 | BY89: 72000 | BZ89: 72000 | CA89: 72000 | CB89: 72000 | CC89: 72000 | CD89: 72000 | CE89: 72000 | CF89: 72000 | CG89: 72000 | CH89: 72000 | CI89: 72000 | CJ89: 72000 | CK89: 72000 | CL89: 72000 | CM89: 72000 | CN89: 72000 | CO89: 72000 | CP89: 72000 | CQ89: 72000 | CR89: 72000 | CS89: 72000 | CT89: 72000 | CU89: 72000 | CV89: 72000 | CW89: 72000 | CX89: 72000 | CY89: 72000 | CZ89: 72000 | DA89: 72000 | DB89: 72000 | DC89: 72000 | DD89: 72000 | DE89: 72000 | DF89: 72000 | DG89: 72000 | DH89: 72000 | DI89: 72000 | DJ89: 72000 | DK89: 72000 | DL89: 72000 | DM89: 72000 | DN89: 72000 | DO89: 72000 | DP89: 72000 | DQ89: 72000
C91: Pro-Rata Funding
D92: Total Pro-Rata Funding | K92: =K78-K85 -> 0 | L92: =L78-L85 -> 0 | M92: 0 | N92: 0 | O92: 0 | P92: 0 | Q92: 0 | R92: 0 | S92: 0 | T92: 0 | U92: 0 | V92: 0 | W92: 0 | X92: 0 | Y92: 0 | Z92: 0 | AA92: 0 | AB92: 0 | AC92: 0 | AD92: 0 | AE92: 0 | AF92: 0 | AG92: 0 | AH92: 0 | AI92: 0 | AJ92: 0 | AK92: 0 | AL92: 0 | AM92: 0 | AN92: 0 | AO92: 0 | AP92: 0 | AQ92: 0 | AR92: 0 | AS92: 0 | AT92: 0 | AU92: 0 | AV92: 0 | AW92: 0 | AX92: 0 | AY92: 0 | AZ92: 0 | BA92: 0 | BB92: 0 | BC92: 0 | BD92: 0 | BE92: 0 | BF92: 0 | BG92: 0 | BH92: 0 | BI92: 0 | BJ92: 0 | BK92: 0 | BL92: 0 | BM92: 0 | BN92: 0 | BO92: 0 | BP92: 0 | BQ92: 0 | BR92: 0 | BS92: 0 | BT92: 0 | BU92: 0 | BV92: 0 | BW92: 0 | BX92: =BX78-BX85 -> 0 | BY92: 0 | BZ92: 0 | CA92: 0 | CB92: 0 | CC92: 0 | CD92: 0 | CE92: 0 | CF92: 0 | CG92: 0 | CH92: 0 | CI92: 0 | CJ92: 0 | CK92: 0 | CL92: 0 | CM92: 0 | CN92: 0 | CO92: 0 | CP92: 0 | CQ92: 0 | CR92: 0 | CS92: 0 | CT92: 0 | CU92: 0 | CV92: 0 | CW92: 0 | CX92: 0 | CY92: 0 | CZ92: 0 | DA92: 0 | DB92: 0 | DC92: 0 | DD92: 0 | DE92: 0 | DF92: 0 | DG92: 0 | DH92: 0 | DI92: 0 | DJ92: 0 | DK92: 0 | DL92: 0 | DM92: 0 | DN92: 0 | DO92: 0 | DP92: 0 | DQ92: 0
D93: Debt Pro-Rata | I93: =SUM(K93:DQ93) -> 0 | K93: =K92*$G$93 -> 0 | L93: =L92*$G$93 -> 0 | M93: 0 | N93: 0 | O93: 0 | P93: 0 | Q93: 0 | R93: 0 | S93: 0 | T93: 0 | U93: 0 | V93: 0 | W93: 0 | X93: 0 | Y93: 0 | Z93: 0 | AA93: 0 | AB93: 0 | AC93: 0 | AD93: 0 | AE93: 0 | AF93: 0 | AG93: 0 | AH93: 0 | AI93: 0 | AJ93: 0 | AK93: 0 | AL93: 0 | AM93: 0 | AN93: 0 | AO93: 0 | AP93: 0 | AQ93: 0 | AR93: 0 | AS93: 0 | AT93: 0 | AU93: 0 | AV93: 0 | AW93: 0 | AX93: 0 | AY93: 0 | AZ93: 0 | BA93: 0 | BB93: 0 | BC93: 0 | BD93: 0 | BE93: 0 | BF93: 0 | BG93: 0 | BH93: 0 | BI93: 0 | BJ93: 0 | BK93: 0 | BL93: 0 | BM93: 0 | BN93: 0 | BO93: 0 | BP93: 0 | BQ93: 0 | BR93: 0 | BS93: 0 | BT93: 0 | BU93: 0 | BV93: 0 | BW93: 0 | BX93: =BX92*$G$93 -> 0 | BY93: 0 | BZ93: 0 | CA93: 0 | CB93: 0 | CC93: 0 | CD93: 0 | CE93: 0 | CF93: 0 | CG93: 0 | CH93: 0 | CI93: 0 | CJ93: 0 | CK93: 0 | CL93: 0 | CM93: 0 | CN93: 0 | CO93: 0 | CP93: 0 | CQ93: 0 | CR93: 0 | CS93: 0 | CT93: 0 | CU93: 0 | CV93: 0 | CW93: 0 | CX93: 0 | CY93: 0 | CZ93: 0 | DA93: 0 | DB93: 0 | DC93: 0 | DD93: 0 | DE93: 0 | DF93: 0 | DG93: 0 | DH93: 0 | DI93: 0 | DJ93: 0 | DK93: 0 | DL93: 0 | DM93: 0 | DN93: 0 | DO93: 0 | DP93: 0 | DQ93: 0
D94: Equity Pro-Rata | I94: =SUM(K94:DQ94) -> 0 | K94: =K92*$G$94 -> 0 | L94: =L92*$G$94 -> 0 | M94: 0 | N94: 0 | O94: 0 | P94: 0 | Q94: 0 | R94: 0 | S94: 0 | T94: 0 | U94: 0 | V94: 0 | W94: 0 | X94: 0 | Y94: 0 | Z94: 0 | AA94: 0 | AB94: 0 | AC94: 0 | AD94: 0 | AE94: 0 | AF94: 0 | AG94: 0 | AH94: 0 | AI94: 0 | AJ94: 0 | AK94: 0 | AL94: 0 | AM94: 0 | AN94: 0 | AO94: 0 | AP94: 0 | AQ94: 0 | AR94: 0 | AS94: 0 | AT94: 0 | AU94: 0 | AV94: 0 | AW94: 0 | AX94: 0 | AY94: 0 | AZ94: 0 | BA94: 0 | BB94: 0 | BC94: 0 | BD94: 0 | BE94: 0 | BF94: 0 | BG94: 0 | BH94: 0 | BI94: 0 | BJ94: 0 | BK94: 0 | BL94: 0 | BM94: 0 | BN94: 0 | BO94: 0 | BP94: 0 | BQ94: 0 | BR94: 0 | BS94: 0 | BT94: 0 | BU94: 0 | BV94: 0 | BW94: 0 | BX94: =BX92*$G$94 -> 0 | BY94: 0 | BZ94: 0 | CA94: 0 | CB94: 0 | CC94: 0 | CD94: 0 | CE94: 0 | CF94: 0 | CG94: 0 | CH94: 0 | CI94: 0 | CJ94: 0 | CK94: 0 | CL94: 0 | CM94: 0 | CN94: 0 | CO94: 0 | CP94: 0 | CQ94: 0 | CR94: 0 | CS94: 0 | CT94: 0 | CU94: 0 | CV94: 0 | CW94: 0 | CX94: 0 | CY94: 0 | CZ94: 0 | DA94: 0 | DB94: 0 | DC94: 0 | DD94: 0 | DE94: 0 | DF94: 0 | DG94: 0 | DH94: 0 | DI94: 0 | DJ94: 0 | DK94: 0 | DL94: 0 | DM94: 0 | DN94: 0 | DO94: 0 | DP94: 0 | DQ94: 0
D96: Total Debt Funding | K96: =K93 -> 0 | L96: =L93 -> 0 | M96: 0 | N96: 0 | O96: 0 | P96: 0 | Q96: 0 | R96: 0 | S96: 0 | T96: 0 | U96: 0 | V96: 0 | W96: 0 | X96: 0 | Y96: 0 | Z96: 0 | AA96: 0 | AB96: 0 | AC96: 0 | AD96: 0 | AE96: 0 | AF96: 0 | AG96: 0 | AH96: 0 | AI96: 0 | AJ96: 0 | AK96: 0 | AL96: 0 | AM96: 0 | AN96: 0 | AO96: 0 | AP96: 0 | AQ96: 0 | AR96: 0 | AS96: 0 | AT96: 0 | AU96: 0 | AV96: 0 | AW96: 0 | AX96: 0 | AY96: 0 | AZ96: 0 | BA96: 0 | BB96: 0 | BC96: 0 | BD96: 0 | BE96: 0 | BF96: 0 | BG96: 0 | BH96: 0 | BI96: 0 | BJ96: 0 | BK96: 0 | BL96: 0 | BM96: 0 | BN96: 0 | BO96: 0 | BP96: 0 | BQ96: 0 | BR96: 0 | BS96: 0 | BT96: 0 | BU96: 0 | BV96: 0 | BW96: 0 | BX96: =BX93 -> 0 | BY96: 0 | BZ96: 0 | CA96: 0 | CB96: 0 | CC96: 0 | CD96: 0 | CE96: 0 | CF96: 0 | CG96: 0 | CH96: 0 | CI96: 0 | CJ96: 0 | CK96: 0 | CL96: 0 | CM96: 0 | CN96: 0 | CO96: 0 | CP96: 0 | CQ96: 0 | CR96: 0 | CS96: 0 | CT96: 0 | CU96: 0 | CV96: 0 | CW96: 0 | CX96: 0 | CY96: 0 | CZ96: 0 | DA96: 0 | DB96: 0 | DC96: 0 | DD96: 0 | DE96: 0 | DF96: 0 | DG96: 0 | DH96: 0 | DI96: 0 | DJ96: 0 | DK96: 0 | DL96: 0 | DM96: 0 | DN96: 0 | DO96: 0 | DP96: 0 | DQ96: 0
D97: Total Equity Funding | K97: =K94+K85 -> 18000 | L97: =L94+L85 -> 18000 | M97: 18000 | N97: 18000 | O97: 0 | P97: 0 | Q97: 0 | R97: 0 | S97: 0 | T97: 0 | U97: 0 | V97: 0 | W97: 0 | X97: 0 | Y97: 0 | Z97: 0 | AA97: 0 | AB97: 0 | AC97: 0 | AD97: 0 | AE97: 0 | AF97: 0 | AG97: 0 | AH97: 0 | AI97: 0 | AJ97: 0 | AK97: 0 | AL97: 0 | AM97: 0 | AN97: 0 | AO97: 0 | AP97: 0 | AQ97: 0 | AR97: 0 | AS97: 0 | AT97: 0 | AU97: 0 | AV97: 0 | AW97: 0 | AX97: 0 | AY97: 0 | AZ97: 0 | BA97: 0 | BB97: 0 | BC97: 0 | BD97: 0 | BE97: 0 | BF97: 0 | BG97: 0 | BH97: 0 | BI97: 0 | BJ97: 0 | BK97: 0 | BL97: 0 | BM97: 0 | BN97: 0 | BO97: 0 | BP97: 0 | BQ97: 0 | BR97: 0 | BS97: 0 | BT97: 0 | BU97: 0 | BV97: 0 | BW97: 0 | BX97: =BX94+BX85 -> 0 | BY97: 0 | BZ97: 0 | CA97: 0 | CB97: 0 | CC97: 0 | CD97: 0 | CE97: 0 | CF97: 0 | CG97: 0 | CH97: 0 | CI97: 0 | CJ97: 0 | CK97: 0 | CL97: 0 | CM97: 0 | CN97: 0 | CO97: 0 | CP97: 0 | CQ97: 0 | CR97: 0 | CS97: 0 | CT97: 0 | CU97: 0 | CV97: 0 | CW97: 0 | CX97: 0 | CY97: 0 | CZ97: 0 | DA97: 0 | DB97: 0 | DC97: 0 | DD97: 0 | DE97: 0 | DF97: 0 | DG97: 0 | DH97: 0 | DI97: 0 | DJ97: 0 | DK97: 0 | DL97: 0 | DM97: 0 | DN97: 0 | DO97: 0 | DP97: 0 | DQ97: 0
B99: Debt Balance
C100: Debt Repayment
D101: Repayment Period | I101: repayper | K101: =J101+K10 -> 0 | L101: 0 | M101: 0 | N101: 0 | O101: 0 | P101: 0 | Q101: 0 | R101: 0 | S101: 0 | T101: 0 | U101: 0 | V101: 0 | W101: 0 | X101: 0 | Y101: 0 | Z101: 0 | AA101: 0 | AB101: 0 | AC101: 0 | AD101: 0 | AE101: 0 | AF101: 0 | AG101: 0 | AH101: 0 | AI101: 0 | AJ101: 0 | AK101: 0 | AL101: 0 | AM101: 0 | AN101: 0 | AO101: 0 | AP101: 0 | AQ101: 0 | AR101: =AQ101+AR10 -> 0 | AS101: 0 | AT101: 0 | AU101: 0 | AV101: 0 | AW101: 0 | AX101: 0 | AY101: 0 | AZ101: 0 | BA101: 0 | BB101: 0 | BC101: 0 | BD101: 0 | BE101: 0 | BF101: 0 | BG101: 0 | BH101: 0 | BI101: 0 | BJ101: 0 | BK101: 0 | BL101: 0 | BM101: 0 | BN101: 0 | BO101: 0 | BP101: 0 | BQ101: 0 | BR101: 0 | BS101: 0 | BT101: 0 | BU101: 0 | BV101: 0 | BW101: 0 | BX101: =BW101+BX10 -> 0 | BY101: 0 | BZ101: 0 | CA101: 0 | CB101: 0 | CC101: 0 | CD101: 0 | CE101: 0 | CF101: 0 | CG101: 0 | CH101: 0 | CI101: 0 | CJ101: 0 | CK101: 0 | CL101: 0 | CM101: 0 | CN101: 0 | CO101: 0 | CP101: 0 | CQ101: 0 | CR101: 0 | CS101: 0 | CT101: 0 | CU101: 0 | CV101: 0 | CW101: 0 | CX101: 0 | CY101: 0 | CZ101: 0 | DA101: 0 | DB101: 0 | DC101: 0 | DD101: =DC101+DD10 -> 0 | DE101: 0 | DF101: 0 | DG101: 0 | DH101: 0 | DI101: 0 | DJ101: 0 | DK101: 0 | DL101: 0 | DM101: 0 | DN101: 0 | DO101: 0 | DP101: 0 | DQ101: 0
D102: Total Target Debt Service | I102: =SUM(K102:DQ102) -> 0 | K102: =K22 -> 0 | L102: 0 | M102: 0 | N102: 0 | O102: 0 | P102: 0 | Q102: 0 | R102: 0 | S102: 0 | T102: 0 | U102: 0 | V102: 0 | W102: 0 | X102: 0 | Y102: 0 | Z102: 0 | AA102: 0 | AB102: 0 | AC102: 0 | AD102: 0 | AE102: 0 | AF102: 0 | AG102: 0 | AH102: 0 | AI102: 0 | AJ102: 0 | AK102: 0 | AL102: 0 | AM102: 0 | AN102: 0 | AO102: 0 | AP102: 0 | AQ102: =AQ22 -> 0 | AR102: 0 | AS102: 0 | AT102: 0 | AU102: 0 | AV102: 0 | AW102: 0 | AX102: 0 | AY102: 0 | AZ102: 0 | BA102: 0 | BB102: 0 | BC102: 0 | BD102: 0 | BE102: 0 | BF102: 0 | BG102: 0 | BH102: 0 | BI102: 0 | BJ102: 0 | BK102: 0 | BL102: 0 | BM102: 0 | BN102: 0 | BO102: 0 | BP102: 0 | BQ102: 0 | BR102: 0 | BS102: 0 | BT102: 0 | BU102: 0 | BV102: 0 | BW102: =BW22 -> 0 | BX102: 0 | BY102: 0 | BZ102: 0 | CA102: 0 | CB102: 0 | CC102: 0 | CD102: 0 | CE102: 0 | CF102: 0 | CG102: 0 | CH102: 0 | CI102: 0 | CJ102: 0 | CK102: 0 | CL102: 0 | CM102: 0 | CN102: 0 | CO102: 0 | CP102: 0 | CQ102: 0 | CR102: 0 | CS102: 0 | CT102: 0 | CU102: 0 | CV102: 0 | CW102: 0 | CX102: 0 | CY102: 0 | CZ102: 0 | DA102: 0 | DB102: 0 | DC102: =DC22 -> 0 | DD102: 0 | DE102: 0 | DF102: 0 | DG102: 0 | DH102: 0 | DI102: 0 | DJ102: 0 | DK102: 0 | DL102: 0 | DM102: 0 | DN102: 0 | DO102: 0 | DP102: 0 | DQ102: 0
D103: Less: Interest Expense | I103: 0 | K103: =K37 -> 0 | L103: =L37 -> 0 | M103: 0 | N103: 0 | O103: 0 | P103: 0 | Q103: 0 | R103: 0 | S103: 0 | T103: 0 | U103: 0 | V103: 0 | W103: 0 | X103: 0 | Y103: 0 | Z103: 0 | AA103: 0 | AB103: 0 | AC103: 0 | AD103: 0 | AE103: 0 | AF103: 0 | AG103: 0 | AH103: 0 | AI103: 0 | AJ103: 0 | AK103: 0 | AL103: 0 | AM103: 0 | AN103: 0 | AO103: 0 | AP103: 0 | AQ103: 0 | AR103: 0 | AS103: 0 | AT103: 0 | AU103: 0 | AV103: 0 | AW103: 0 | AX103: 0 | AY103: 0 | AZ103: 0 | BA103: 0 | BB103: 0 | BC103: 0 | BD103: 0 | BE103: 0 | BF103: 0 | BG103: 0 | BH103: 0 | BI103: 0 | BJ103: 0 | BK103: 0 | BL103: 0 | BM103: 0 | BN103: 0 | BO103: 0 | BP103: 0 | BQ103: 0 | BR103: 0 | BS103: 0 | BT103: 0 | BU103: 0 | BV103: 0 | BW103: 0 | BX103: =BX37 -> 0 | BY103: 0 | BZ103: 0 | CA103: 0 | CB103: 0 | CC103: 0 | CD103: 0 | CE103: 0 | CF103: 0 | CG103: 0 | CH103: 0 | CI103: 0 | CJ103: 0 | CK103: 0 | CL103: 0 | CM103: 0 | CN103: 0 | CO103: 0 | CP103: 0 | CQ103: 0 | CR103: 0 | CS103: 0 | CT103: 0 | CU103: 0 | CV103: 0 | CW103: 0 | CX103: 0 | CY103: 0 | CZ103: 0 | DA103: 0 | DB103: 0 | DC103: 0 | DD103: 0 | DE103: 0 | DF103: 0 | DG103: 0 | DH103: 0 | DI103: 0 | DJ103: 0 | DK103: 0 | DL103: 0 | DM103: 0 | DN103: 0 | DO103: 0 | DP103: 0 | DQ103: 0
D104: Computed Repayment for Structuring | I104: =SUM(K104:DQ104) -> 0 | J104: repaycomp | K104: =K102-K103 -> 0 | L104: =L102-L103 -> 0 | M104: 0 | N104: 0 | O104: 0 | P104: 0 | Q104: 0 | R104: 0 | S104: 0 | T104: 0 | U104: 0 | V104: 0 | W104: 0 | X104: 0 | Y104: 0 | Z104: 0 | AA104: 0 | AB104: 0 | AC104: 0 | AD104: 0 | AE104: 0 | AF104: 0 | AG104: 0 | AH104: 0 | AI104: 0 | AJ104: 0 | AK104: 0 | AL104: 0 | AM104: 0 | AN104: 0 | AO104: 0 | AP104: 0 | AQ104: 0 | AR104: 0 | AS104: 0 | AT104: 0 | AU104: 0 | AV104: 0 | AW104: 0 | AX104: 0 | AY104: 0 | AZ104: 0 | BA104: 0 | BB104: 0 | BC104: 0 | BD104: 0 | BE104: 0 | BF104: 0 | BG104: 0 | BH104: 0 | BI104: 0 | BJ104: 0 | BK104: 0 | BL104: 0 | BM104: 0 | BN104: 0 | BO104: 0 | BP104: 0 | BQ104: 0 | BR104: 0 | BS104: 0 | BT104: 0 | BU104: 0 | BV104: 0 | BW104: 0 | BX104: =BX102-BX103 -> 0 | BY104: 0 | BZ104: 0 | CA104: 0 | CB104: 0 | CC104: 0 | CD104: 0 | CE104: 0 | CF104: 0 | CG104: 0 | CH104: 0 | CI104: 0 | CJ104: 0 | CK104: 0 | CL104: 0 | CM104: 0 | CN104: 0 | CO104: 0 | CP104: 0 | CQ104: 0 | CR104: 0 | CS104: 0 | CT104: 0 | CU104: 0 | CV104: 0 | CW104: 0 | CX104: 0 | CY104: 0 | CZ104: 0 | DA104: 0 | DB104: 0 | DC104: 0 | DD104: 0 | DE104: 0 | DF104: 0 | DG104: 0 | DH104: 0 | DI104: 0 | DJ104: 0 | DK104: 0 | DL104: 0 | DM104: 0 | DN104: 0 | DO104: 0 | DP104: 0 | DQ104: 0
